Workbook

Sheet INDICE
F1: REINO UNIDO
F2: Trocas comerciais com Portugal (PT) 2018-2022 Setores agrícola e agroalimentar, do mar e das florestas
C3: Fonte
D4: Estatísticas do Comércio Internacional | F4: Reino Unido - Síntese
D5: dados: 2021 provisórios; 2022 preliminares | F5: 1. Evolução da balança comercial
F6: 2. Ranking dos parceiros comerciais de Portugal por país
C7: Data | D7: 2023-07-18T15:07:44.310 | F7: 2A Parceiros comerciais de Portugal - UE vs. Países Terceiros
F8: 3. Principais produtos transacionados (NC a 2 e 4 dígitos)
F9: 3A Principais produtos transacionados (sem mar nem florestas)
F10: 3B Principais origens e destinos
F11: 3C Principais origens e destinos (sem mar nem florestas)
F12: 4A Evolução da balança comercial por produto
F13: 5.2. Trocas comerciais por produto (NC 2 dígitos)

Sheet Sintese
A1: Reino Unido - Síntese (2018-2022)
A3: • As trocas comerciais de bens transacionáveis (excluindo serviços) entre Portugal e Reino Unido representam um total de 3503,3 milhões de € (M€) em exportações e 1619,1 M€ em importações, na média do período 2018-2022, correspondendo a um saldo positivo da balança comercial de cerca de 1884,2 M€.
A4: • No que respeita aos produtos dos setores agrícola e agroalimentar, mar e florestas, Portugal exportou para Reino Unido 683,2 M€ em média anual, no mesmo período (este país ocupa assim a 4ª posição em relação ao total dos países), enquanto as importações totalizaram 212,5 M€ (10ª posição), com um saldo positivo de 470,7 M€. Estes setores representam perto de 19,5% do total de exportações de bens transacionáveis e 13,1% das correspondentes importações.
A5: • Se nos referirmos apenas ao setor agrícola e agroalimentar, as exportações representam, em média, 357,3 M€ (5ª posição) e as importações 163,9 milhões (11ª posição), ou seja, Portugal tem um saldo positivo de 193,5 M€. Estes valores representam, respetivamente, cerca de 52,3% das exportações do setor agroflorestal e mar e 77,1% das importações.
A6: • As principais exportações agrícolas e agroalimentares (NC 4 dígitos) neste período são Vinhos de uvas frescas (24%), Tomates preparados (16%) e Produtos de padaria, pastelaria, etc. (9%). As importações agrícolas e agroalimentares mais relevantes referem-se a Álcool etílico <80%; aguardentes, etc. (21%), Cevada (18%) e Trigo e mistura trigo/centeio (8%). Se considerarmos também os produtos do mar e da floresta, merecem particular destaque, em termos de exportações, Papel e cartão p/ escrita, etc. (15%), Vinhos de uvas frescas (13%) e Tomates preparados (8%). Nas importações destes setores, destacam-se Álcool etílico <80%; aguardentes, etc. (16%), Cevada (14%) e Trigo e mistura trigo/centeio (6%).
A9: Saldo da Balança Comercial | B9: 2018 | C9: 2019 | D9: 2020 | E9: 2021 | F9: 2022 | G9: média 2018-2022 | J9: Posição entre os parceiros comerciais de Portugal (milhares de euros)
A10: Total de Bens Transacionáveis* | B10: 1774376.528 | C10: 6079-07-07T23:58:33.600 | D10: 1132261.053 | E10: 2312702.019 | F10: 9223-10-25T21:51:50.400 | G10: 1884169.902 | J10: AA + M + F | K10: Posição | L10: média 2018-2022 | M10: % do total | N10: TVMA* 2018-2022 | O10: TVT* 2018-2022
A11: Agrícola e Agroalimentar (AA) | B11: 153190.135 | C11: 2203-08-01T20:13:55.200 | D11: 198706.174 | E11: 259235.612 | F11: 2571-09-28T18:04:19.200 | G11: 193473.1034 | J11: Exportações | K11: 4ª | L11: 683215.1712 | M11: 0.05272391033 | N11: 0.07784695374 | O11: 0.3496724859
A12: Mar (M) | B12: -289.995 | C12: 2059.585 | D12: 8985.44 | E12: 14475.284 | F12: 3082.955 | G12: 5662.6538 | J12: Importações | K12: 10ª | L12: 212474.1826 | M12: 0.01420879225 | N12: -0.0495494379 | O12: -0.1839474477
A13: Florestas (F) | B13: 221920.988 | C13: 2609-08-05T07:09:07.200 | D13: 234966.803 | E13: 261832.414 | F13: 2940-10-03T15:41:45.600 | G13: 271605.2314 | J13: AA
A14: AA + M + F | B14: 374821.128 | C14: 2918-10-26T17:25:26.400 | D14: 442658.417 | E14: 535543.31 | F14: 3620-12-11T08:41:16.800 | G14: 470740.9886 | J14: Exportações | K14: 5ª | L14: 357335.5234 | M14: 0.05057059961 | N14: 0.06040028722 | O14: 0.2643850344
J15: Importações | K15: 11ª | L15: 163862.42 | M15: 0.01606744209 | N15: -0.01194724147 | O15: -0.05832579302
A16: milhares de euros *exclui serviços | K16: *TVMA - Taxa de variação média anual; TVT - Taxa de variação total
A18: Evolução das trocas comerciais Portugal-Reino Unido em milhares de euros (2018-2022)
E27: Exportações | G27: Importações | I27: Saldo
A28: Principais produtos agrícolas e agroalimentares, do mar e da floresta transacionados (NC 4 dígitos)
A47: Principais produtos agrícolas e agroalimentares transacionados (NC 4 dígitos)
A81: Fonte: GPP a partir de dados INE/Comércio Internacional (2021 provisórios; 2022 preliminares) | N81: 2023-07-18T15:07:44.310

Sheet 1
A1: Evolução da balança comercial Portugal-Reino Unido 2018-2022 em milhões de euros
A3: Total de Bens Transacionáveis (BT)(1) | B3: 2018 | C3: 2019 | D3: 2020 | E3: 2021 | F3: 2022 | G3: média quinquénio | H3: var. 18/19 | I3: var. 19/20 | J3: var. 20/21 | K3: var. 21/22 | L3: TVMA* 2018-2022 | M3: TVT* 2018-2022
A4: Exportações | B4: 3675.127772 | C4: 3628.796073 | D4: 3062.165199 | E4: 3306.292658 | F4: 3844.196734 | G4: 3503.315687 | H4: -0.01260682672 | I4: -0.1561484477 | J4: 0.07972380428 | K4: 0.1626910052 | L4: 0.01130764587 | M4: 0.04600356028
A5: Importações | B5: 1900.751244 | C5: 2102.257074 | D5: 1929.904146 | E5: 993.590639 | F5: 1169.225823 | G5: 1619.145785 | H5: 0.106013783 | I5: -0.08198470593 | J5: -0.4851606278 | K5: 0.1767681549 | L5: -0.114388436 | M5: -0.3848612086
A6: Saldo (exp-imp) | B6: 1774.376528 | C6: 1526.538999 | D6: 1132.261053 | E6: 2312.702019 | F6: 2674.970911 | G6: 1884.169902
A7: Cobertura (exp/imp) | B7: 1.93351328 | C7: 1.726142877 | D7: 1.586692896 | E7: 3.32762058 | F7: 3.287813747 | G7: 2.163681442
A8: Exp BT Reino Unido / Exp BT Mundo | B8: 0.06352857916 | C8: 0.06057806097 | D8: 0.05696268091 | E8: 0.05197059572 | F8: 0.04919445232 | G8: 0.05591498829 | L8: Exportações
A9: Imp BT Reino Unido / Imp BT Mundo | B9: 0.02519578783 | C9: 0.0262857284 | D9: 0.02832031786 | E9: 0.01194999215 | F9: 0.01070295017 | G9: 0.01946318038 | L9: Importações
A10: Exp BT Reino Unido / Exp TE Mundo | B10: 0.04122699675 | C10: 0.0389059357 | D10: 0.04122142424 | E10: 0.03698119101 | F10: 0.03210137582 | G10: 0.03760076367
A11: Imp BT Reino Unido / Imp TE Mundo | B11: 0.02155184137 | C11: 0.0227759129 | D11: 0.02455824548 | E11: 0.01040074839 | F11: 0.009301870298 | G11: 0.01685523255
A12: (1) Todos os produtos transacionados entre PT e Reino Unido (exclui serviços) | D12: TE - Total da Economia (bens e serviços) Fonte: INE/Contas Nacionais | H12: *TVMA - Taxa de variação média anual; TVT - Taxa de variação total
A24: Agro(1) + Mar + Florestas (AMF) | B24: 2018 | C24: 2019 | D24: 2020 | E24: 2021 | F24: 2022 | G24: média quinquénio | H24: var. 18/19 | I24: var. 19/20 | J24: var. 20/21 | K24: var. 21/22 | L24: TVMA* 2018-2022 | M24: TVT* 2018-2022
A25: Exportações | B25: 604.719958 | C25: 645.306276 | D25: 664.085871 | E25: 685.789862 | F25: 816.173889 | G25: 683.2151712 | H25: 0.0671158897 | I25: 0.02910183226 | J25: 0.03268250681 | K25: 0.1901224183 | L25: 0.07784695374 | M25: 0.3496724859
A26: Importações | B26: 229.89883 | C26: 273.18855 | D26: 221.427454 | E26: 150.246552 | F26: 187.609527 | G26: 212.4741826 | H26: 0.1882990009 | I26: -0.1894702249 | J26: -0.3214637603 | K26: 0.2486777534 | L26: -0.0495494379 | M26: -0.1839474477
A27: Saldo (exp-imp) | B27: 374.821128 | C27: 372.117726 | D27: 442.658417 | E27: 535.54331 | F27: 628.564362 | G27: 470.7409886
A28: Cobertura (exp/imp) | B28: 2.63037423 | C28: 2.362127827 | D28: 2.999112617 | E28: 4.564429951 | F28: 4.350386156 | G28: 3.215520883
A29: Exp AMF / Exp BT | B29: 0.1645439276 | C29: 0.1778293029 | D29: 0.2168680747 | E29: 0.2074195883 | F29: 0.2123132466 | G29: 0.1950195849 | L29: Exportações
A30: Imp AMF / Imp BT | B30: 0.120951561 | C30: 0.1299501157 | D30: 0.1147349491 | E30: 0.1512157483 | F30: 0.1604561953 | G30: 0.1312260975 | L30: Importações
A31: Exp AMF Reino Unido / Exp AMF Mundo | B31: 0.05190413109 | C31: 0.05455831942 | D31: 0.05756918903 | E31: 0.0511914531 | F31: 0.04982371317 | G31: 0.05272391033
A32: Imp AMF Reino Unido / Imp AMF Mundo | B32: 0.01686638036 | C32: 0.01974852388 | D32: 0.01697361988 | E32: 0.01005356051 | F32: 0.009713354391 | G32: 0.01420879225
A33: (1) Produtos agrícolas e agroalimentares | B33: BT - Total de Bens Transacionáveis (exclui serviços) | H33: *TVMA - Taxa de variação média anual; TVT - Taxa de variação total
A45: Agroalimentar (AA)(1) | B45: 2018 | C45: 2019 | D45: 2020 | E45: 2021 | F45: 2022 | G45: média quinquénio | H45: var. 18/19 | I45: var. 19/20 | J45: var. 20/21 | K45: var. 21/22 | L45: TVMA* 2018-2022 | M45: TVT* 2018-2022
A46: Exportações | B46: 313.269793 | C46: 329.792517 | D46: 371.115789 | E46: 376.40588 | F46: 396.093638 | G46: 357.3355234 | H46: 0.05274279349 | I46: 0.1253008175 | J46: 0.01425455655 | K46: 0.05230459737 | L46: 0.06040028722 | M46: 0.2643850344
A47: Importações | B47: 160.079658 | C47: 218.909674 | D47: 172.409615 | E47: 117.170268 | F47: 150.742885 | G47: 163.86242 | H47: 0.3675046332 | I47: -0.2124166472 | J47: -0.3203959768 | K47: 0.2865284647 | L47: -0.01491168228 | M47: -0.05832579302
A48: Saldo (exp-imp) | B48: 153.190135 | C48: 110.882843 | D48: 198.706174 | E48: 259.235612 | F48: 245.350753 | G48: 193.4731034
A49: Cobertura (exp/imp) | B49: 1.956961908 | C49: 1.506523266 | D49: 2.152523738 | E49: 3.212469225 | F49: 2.627610835 | G49: 2.180704541
A50: Exp AA / Exp AMF | B50: 0.5180411013 | C50: 0.5110635512 | D50: 0.5588370499 | E50: 0.5488647483 | F50: 0.4853054519 | G50: 0.523020475 | L50: Exportações
A51: Imp AA / Imp AMF | B51: 0.6963047963 | C51: 0.8013135031 | D51: 0.7786279971 | E51: 0.7798532907 | F51: 0.8034926979 | G51: 0.7712109678 | L51: Importações
A52: Exp AA / Exp BT | B52: 0.08524051746 | C52: 0.09088207504 | D52: 0.1211939151 | E52: 0.1138453001 | F52: 0.1030367761 | G52: 0.101999236
A53: Imp AA / Imp BT | B53: 0.08421915204 | C53: 0.1041307824 | D53: 0.08933584363 | E53: 0.1179260989 | F53: 0.1289253813 | G53: 0.1012030056
A54: Exp AA Reino Unido / Exp AA Mundo | B54: 0.05129787331 | C54: 0.05241741394 | D54: 0.0560845112 | E54: 0.05051205591 | F54: 0.04469098922 | G54: 0.05057059961
A55: Imp AA Reino Unido / Imp AA Mundo | B55: 0.0175991458 | C55: 0.02349554099 | D55: 0.01897853943 | E55: 0.01140804726 | F55: 0.01139934178 | G55: 0.01606744209
A56: (1) Produtos agrícolas e agroalimentares | B56: AMF - Agroalimentar, Mar e Florestas; BT - Total de Bens Transacionáveis (exclui serviços) | H56: *TVMA - Taxa de variação média anual; TVT - Taxa de variação total
A67: Mar (M) | B67: 2018 | C67: 2019 | D67: 2020 | E67: 2021 | F67: 2022 | G67: média quinquénio | H67: var. 18/19 | I67: var. 19/20 | J67: var. 20/21 | K67: var. 21/22 | L67: TVMA* 2018-2022 | M67: TVT* 2018-2022
A68: Exportações | B68: 26.379308 | C68: 27.095558 | D68: 33.528443 | E68: 25.438384 | F68: 17.502372 | G68: 25.988813 | H68: 0.0271519632 | I68: 0.2374147453 | J68: -0.241289433 | K68: -0.3119699742 | L68: -0.0974767931 | M68: -0.3365113293
A69: Importações | B69: 26.669303 | C69: 25.035973 | D69: 24.543003 | E69: 10.9631 | F69: 14.419417 | G69: 20.3261592 | H69: -0.06124382028 | I69: -0.01969046699 | J69: -0.5533105708 | K69: 0.3152682179 | L69: -0.1425002364
A70: Saldo (exp-imp) | B70: -0.289995 | C70: 2.059585 | D70: 8.98544 | E70: 14.475284 | F70: 3.082955 | G70: 5.6626538
A71: Cobertura (exp/imp) | B71: 0.9891262625 | C71: 1.082265027 | D71: 1.366110048 | E71: 2.320364131 | F71: 1.213805801 | G71: 1.278589464
A72: Exp M / Exp AMF | B72: 0.04362235387 | C72: 0.04198867888 | D72: 0.05048811376 | E72: 0.03709355505 | F72: 0.0214444155 | G72: 0.03803898698 | L72: Exportações
A73: Imp M / Imp AMF | B73: 0.1160045182 | C73: 0.09164356632 | D73: 0.1108399277 | E73: 0.07296739828 | F73: 0.07685866081 | G73: 0.09566413647 | L73: Importações
A74: Exp M / Exp BT | B74: 0.007177793436 | C74: 0.007466817494 | D74: 0.01094926002 | E74: 0.007693929918 | F74: 0.004552933476 | G74: 0.007418347452
A75: Imp M / Imp BT | B75: 0.01403092755 | C75: 0.01190909205 | D75: 0.01271721347 | E75: 0.01103381973 | F75: 0.01233244829 | G75: 0.01255363129
A76: Exp M Reino Unido / Exp M Mundo | B76: 0.02418329356 | C76: 0.02536118431 | D76: 0.0372675031 | E76: 0.02322236504 | F76: 0.01364300586 | G76: 0.02389919996
A77: Imp M Reino Unido / Imp M Mundo | B77: 0.01209912041 | C77: 0.01148785745 | D77: 0.01275049353 | E77: 0.005240350814 | F77: 0.005534247116 | G77: 0.009234137331
A78: AMF - Agroalimentar, Mar e Florestas; BT - Total de Bens Transacionáveis (exclui serviços) | H78: *TVMA - Taxa de variação média anual; TVT - Taxa de variação total
A90: Florestas (F) | B90: 2018 | C90: 2019 | D90: 2020 | E90: 2021 | F90: 2022 | G90: média quinquénio | H90: var. 18/19 | I90: var. 19/20 | J90: var. 20/21 | K90: var. 21/22 | L90: TVMA* 2018-2022 | M90: TVT* 2018-2022
A91: Exportações | B91: 265.070857 | C91: 288.418201 | D91: 259.441639 | E91: 283.945598 | F91: 402.577879 | G91: 299.8908348 | H91: 0.08807963374 | I91: -0.1004671754 | J91: 0.09444882901 | K91: 0.4177993314 | L91: 0.1101252511 | M91: 0.5187557152
A92: Importações | B92: 43.149869 | C92: 29.242903 | D92: 24.474836 | E92: 22.113184 | F92: 22.447225 | G92: 28.2856034 | H92: -0.3222945126 | I92: -0.1630503989 | J92: -0.09649306741 | K92: 0.01510596574 | L92: -0.1507299777 | M92: -0.4797846316
A93: Saldo (exp-imp) | B93: 221.920988 | C93: 259.175298 | D93: 234.966803 | E93: 261.832414 | F93: 380.130654 | G93: 271.6052314
A94: Cobertura (exp/imp) | B94: 6.143028082 | C94: 9.862844363 | D94: 10.60034229 | E94: 12.84055693 | F94: 17.93441635 | G94: 10.60224279
A95: Exp F / Exp AMF | B95: 0.4383365449 | C95: 0.44694777 | D95: 0.3906748364 | E95: 0.4140416966 | F95: 0.4932501326 | G95: 0.438940538 | L95: Exportações
A96: Imp F / Imp AMF | B96: 0.1876906855 | C96: 0.1070429306 | D96: 0.1105320752 | E96: 0.147179311 | F96: 0.1196486413 | G96: 0.1331248957 | L96: Importações
A97: Exp F / Exp BT | B97: 0.0721256167 | C97: 0.07948041036 | D97: 0.08472489959 | E97: 0.08588035827 | F97: 0.104723537 | G97: 0.08560200153
A98: Imp F / Imp BT | B98: 0.02270148139 | C98: 0.01391024122 | D98: 0.01268189203 | E98: 0.02225582965 | F98: 0.01919836575 | G98: 0.01746946054
A99: Exp F Reino Unido / Exp F Mundo | B99: 0.05952601114 | C99: 0.06455516251 | D99: 0.06455879554 | E99: 0.058553444 | F99: 0.06456318243 | G99: 0.06241421216
A100: Imp F Reino Unido / Imp F Mundo | B100: 0.01851540017 | C100: 0.01251327624 | D100: 0.01202062758 | E100: 0.008565314553 | F100: 0.006440570724 | G100: 0.0110745844
A101: AMF - Agroalimentar, Mar e Florestas; BT - Total de Bens Transacionáveis (exclui serviços) | H101: *TVMA - Taxa de variação média anual; TVT - Taxa de variação total
A111: Fonte: GPP a partir de dados INE/Comércio Internacional (2021 provisórios; 2022 preliminares) | H111: 2023-07-18T15:07:44.310

Sheet 2
A1: Ranking dos parceiros comerciais de Portugal por país (média 2018-2022 em milhares de euros) produtos agrícolas e agroalimentares, do mar e da floresta
A2: Exportações | F2: Importações | K2: Trocas comerciais (total e saldo)
A3: P | B3: País | C3: média quinquénio | D3: % do Total | F3: P | G3: País | H3: média quinquénio | I3: % do Total | K3: P | L3: País | M3: Total (exp+imp) | N3: % do Total | O3: Saldo (exp-imp)
A4: 1 | B4: Espanha | C4: 4146454.758 | D4: 0.3199831006 | F4: 1 | G4: Espanha | H4: 6898685.753 | I4: 0.4613360147 | K4: 1 | L4: Espanha | M4: 11045140.51 | N4: 0.3957120214 | O4: -2752230.994
A5: 2 | B5: França | C5: 1358997.152 | D5: 0.1048741993 | F5: 2 | G5: França | H5: 985555.8696 | I5: 0.06590710658 | K5: 2 | L5: França | M5: 2344553.022 | N5: 0.08399782825 | O5: 373441.2826
A6: 3 | B6: Itália | C6: 876597.9418 | D6: 0.0676473141 | F6: 3 | G6: Alemanha | H6: 880908.072 | I6: 0.05890899134 | K6: 3 | L6: Alemanha | M6: 1516348.182 | N6: 0.05432590048 | O6: -245467.9624
A7: 4 | B7: Alemanha | C7: 635440.1096 | D7: 0.04903709516 | F7: 4 | G7: Países Baixos | H7: 832880.4034 | I7: 0.05569723565 | K7: 4 | L7: Países Baixos | M7: 1421041.707 | N7: 0.05091137463 | O7: -244719.0998
A8: 5 | B8: Países Baixos | C8: 588161.3036 | D8: 0.04538857616 | F8: 5 | G8: Brasil | H8: 705274.2876 | I8: 0.04716382812 | K8: 5 | L8: Itália | M8: 1323412.341 | N8: 0.04741362704 | O8: 429783.5422
A9: 6 | B9: Estados Unidos | C9: 554106.8232 | D9: 0.04276058216 | F9: 6 | G9: Itália | H9: 446814.3996 | I9: 0.02987983245 | K9: 6 | L9: Brasil | M9: 1157990.494 | N9: 0.04148709187 | O9: -252558.0814 | P9: Nota: Nesta listagem, o Reino Unido passa a ser constituído por três componentes: Reino Unido [até 2020] ; Reino Unido (sem Irlanda do Norte) pós-2020 e Reino Unido (Irlanda do Norte) pós-2020. Estas componentes são calculadas igualmente como média do quinquénio, embora a primeira corresponda apenas a 2018-2020 e as duas últimas a 2021-2022. A posição consolidada do Reino Unido é assim a apresentada na folha de Síntese.
A10: 7 | B10: Brasil | C10: 452716.2062 | D10: 0.03493623922 | F10: 7 | G10: Suécia | H10: 341935.6152 | I10: 0.02286627042 | K10: 7 | L10: Estados Unidos | M10: 835578.5624 | N10: 0.02993610463 | O10: 272635.084
A11: 8 | B11: Reino Unido | C11: 382822.421 | D11: 0.02954251581 | F11: 8 | G11: Bélgica | H11: 285371.451 | I11: 0.01908365341 | K11: 8 | L11: Reino Unido | M11: 527725.3878 | N11: 0.01890671103 | O11: 237919.4542
A12: 9 | B12: Angola | C12: 331119.6562 | D12: 0.02555259865 | F12: 9 | G12: Estados Unidos | H12: 281471.7392 | I12: 0.01882286787 | K12: 9 | L12: Bélgica | M12: 524506.1098 | N12: 0.01879137461 | O12: -46236.7922
A13: 10 | B13: Reino Unido (sem Irlanda do Norte) pós 2020 | C13: 297911.4506 | D13: 0.02298991192 | F13: 10 | G13: Polónia | H13: 207484.8952 | I13: 0.01387514348 | K13: 10 | L13: Polónia | M13: 458805.1662 | N13: 0.01643752016 | O13: 43835.3758
A14: 11 | B14: Polónia | C14: 251320.271 | D14: 0.01939445725 | F14: 11 | G14: Ucrânia | H14: 195332.8996 | I14: 0.01306250272 | K14: 11 | L14: Suécia | M14: 435895.9016 | N14: 0.01561675455 | O14: -247975.3288
A15: 12 | B15: Bélgica | C15: 239134.6588 | D15: 0.01845409007 | F15: 12 | G15: China, República Popular da | H15: 173708.8634 | I15: 0.01161643792 | K15: 12 | L15: China, República Popular da | M15: 367378.303 | N15: 0.01316198837 | O15: 19960.5762
A16: 13 | B16: Israel | C16: 214334.0624 | D16: 0.01654022095 | F16: 13 | G16: África do Sul | H16: 145344.5192 | I16: 0.009719628296 | K16: 13 | L16: Reino Unido (sem Irlanda do Norte) pós 2020 | M16: 358973.5286 | N16: 0.01286087221 | O16: 236849.3726
A17: 14 | B17: China, República Popular da | C17: 193669.4396 | D17: 0.01494552609 | F17: 14 | G17: Reino Unido | H17: 144902.9668 | I17: 0.009690100349 | K17: 14 | L17: Angola | M17: 346542.8048 | N17: 0.01241551918 | O17: 315696.5076
A18: 15 | B18: Turquia | C18: 167228.7496 | D18: 0.01290509048 | F18: 15 | G18: Dinamarca | H18: 144410.5462 | I18: 0.009657170692 | K18: 15 | L18: Dinamarca | M18: 229157.968 | N18: 0.008209996302 | O18: -59663.1244
A19: 16 | B19: Suíça | C19: 143382.5624 | D19: 0.01106487338 | F19: 16 | G19: Roménia | H19: 138729.3114 | I19: 0.00927724931 | K19: 16 | L19: Turquia | M19: 223208.1582 | N19: 0.007996833666 | O19: 111249.341
A20: 17 | B20: Marrocos | C20: 109031.778 | D20: 0.008414013519 | F20: 17 | G20: Irlanda | H20: 118243.0764 | I20: 0.007907272716 | K20: 17 | L20: Israel | M20: 222677.5138 | N20: 0.007977822376 | O20: 205990.611
A21: 18 | B21: Cabo Verde | C21: 100899.9446 | D21: 0.007786477608 | F21: 18 | G21: Canadá | H21: 108500.262 | I21: 0.007255741203 | K21: 18 | L21: Ucrânia | M21: 209672.7922 | N21: 0.007511904838 | O21: -180993.007
A22: 19 | B22: Canadá | C22: 96471.0096 | D22: 0.007444695426 | F22: 19 | G22: Rússia, Federação da | H22: 105947.3528 | I22: 0.007085020431 | K22: 19 | L22: Canadá | M22: 204971.2716 | N22: 0.007343464408 | O22: -12029.2524
A23: 20 | B23: Suécia | C23: 93960.2864 | D23: 0.007250942198 | F23: 20 | G23: Uruguai | H23: 102111.7952 | I23: 0.006828525075 | K23: 20 | L23: Rússia, Federação da | M23: 185992.9178 | N23: 0.006663530754 | O23: -25901.7878
A24: 21 | B24: Dinamarca | C24: 84747.4218 | D24: 0.0065399828 | F24: 21 | G24: Argentina | H24: 97726.5184 | I24: 0.006535268331 | K24: 21 | L24: África do Sul | M24: 182500.0166 | N24: 0.006538391287 | O24: -108189.0218
A25: 22 | B25: Egito | C25: 83378.3752 | D25: 0.006434333082 | F25: 22 | G25: Índia | H25: 75540.6788 | I25: 0.005051634029 | K25: 22 | L25: Irlanda | M25: 182216.4716 | N25: 0.006528232778 | O25: -54269.6812
A26: 23 | B26: Rússia, Federação da | C26: 80045.565 | D26: 0.006177139164 | F26: 23 | G26: Finlândia | H26: 74014.7114 | I26: 0.004949587966 | K26: 23 | L26: Roménia | M26: 164574.233 | N26: 0.005896167854 | O26: -112884.3898
A27: 24 | B27: Argélia | C27: 78380.8918 | D27: 0.006048675857 | F27: 24 | G27: Vietname | H27: 70006.3292 | I27: 0.004681535306 | K27: 24 | L27: Marrocos | M27: 151640.1714 | N27: 0.005432781837 | O27: 66423.3846
A28: 25 | B28: México | C28: 73464.5916 | D28: 0.005669283563 | F28: 25 | G28: Costa Rica | H28: 69968.8442 | I28: 0.00467902857 | K28: 25 | L28: Suíça | M28: 147879.8298 | N28: 0.005298060837 | O28: 138885.295
A29: 26 | B29: Japão | C29: 66607.632 | D29: 0.005140130028 | F29: 26 | G29: Áustria | H29: 64437.3394 | I29: 0.004309120088 | K29: 26 | L29: Grécia | M29: 116239.3676 | N29: 0.004164484379 | O29: -11103.4736
A30: 27 | B30: Irlanda | C30: 63973.3952 | D30: 0.00493684522 | F30: 27 | G30: Grécia | H30: 63671.4206 | I30: 0.004257900777 | K30: 27 | L30: Argentina | M30: 113791.3158 | N30: 0.004076778521 | O30: -81661.721
A31: 28 | B31: Luxemburgo | C31: 55233.376 | D31: 0.004262375437 | F31: 28 | G31: Reino Unido (sem Irlanda do Norte) pós 2020 | H31: 61062.078 | I31: 0.004083406133 | K31: 28 | L31: Uruguai | M31: 105100.8748 | N31: 0.003765427844 | O31: -99122.7156
A32: 29 | B32: Grécia | C32: 52567.947 | D32: 0.004056683518 | F32: 29 | G32: Turquia | H32: 55979.4086 | I32: 0.003743512633 | K32: 29 | L32: Áustria | M32: 103605.5406 | N32: 0.003711854807 | O32: -25269.1382
A33: 30 | B33: Áustria | C33: 39168.2012 | D33: 0.003022621299 | F33: 30 | G33: Equador | H33: 48766.9652 | I33: 0.003261194694 | K33: 30 | L33: Finlândia | M33: 103235.6284 | N33: 0.003698602038 | O33: -44793.7944
A34: 31 | B34: Moçambique | C34: 37451.371 | D34: 0.002890133021 | F34: 31 | G34: Chile | H34: 47783.2146 | I34: 0.003195408311 | K34: 31 | L34: Cabo Verde | M34: 101736.0812 | N34: 0.003644878063 | O34: 100063.808
A35: 32 | B35: África do Sul | C35: 37155.4974 | D35: 0.00286730037 | F35: 32 | G35: Bulgária | H35: 47595.9378 | I35: 0.003182884545 | K35: 32 | L35: Índia | M35: 100003.3314 | N35: 0.003582799185 | O35: -51078.0262
A36: 33 | B36: Chile | C36: 36026.5554 | D36: 0.002780179593 | F36: 33 | G36: Cuba | H36: 43073.8564 | I36: 0.002880479262 | K36: 33 | L36: Egito | M36: 93743.8836 | N36: 0.003358543211 | O36: 73012.8668
A37: 34 | B37: Austrália | C37: 34889.2258 | D37: 0.002692411542 | F37: 34 | G37: Marrocos | H37: 42608.3934 | I37: 0.002849352342 | K37: 34 | L37: México | M37: 93550.6764 | N37: 0.003351621216 | O37: 53378.5068
A38: 35 | B38: Arábia Saudita | C38: 32824.7102 | D38: 0.002533092282 | F38: 35 | G38: Moçambique | H38: 40008.1492 | I38: 0.002675466135 | K38: 35 | L38: Chile | M38: 83809.77 | N38: 0.003002635727 | O38: -11756.6592
A39: 36 | B39: Guiné-Bissau | C39: 32182.3282 | D39: 0.00248351948 | F39: 36 | G39: Checa, República | H39: 35951.6258 | I39: 0.002404194127 | K39: 36 | L39: Argélia | M39: 83292.5462 | N39: 0.002984105254 | O39: 73469.2374
A40: 37 | B40: Finlândia | C40: 29220.917 | D40: 0.002254986529 | F40: 37 | G40: Colômbia | H40: 29155.8878 | I40: 0.00194974254 | K40: 37 | L40: Japão | M40: 83018.2336 | N40: 0.002974277512 | O40: 50197.0304
A41: 38 | B41: Checa, República | C41: 29120.8636 | D41: 0.00224726538 | F41: 38 | G41: Indonésia | H41: 28536.2748 | I41: 0.001908307142 | K41: 38 | L41: Moçambique | M41: 77459.5202 | N41: 0.002775126608 | O41: -2556.7782
A42: 39 | B42: Emirados Árabes Unidos | C42: 29075.6888 | D42: 0.002243779228 | F42: 39 | G42: Guiana | H42: 28025.2642 | I42: 0.001874134315 | K42: 39 | L42: Vietname | M42: 75952.8202 | N42: 0.002721146371 | O42: -64059.8382
A43: 40 | B43: São Tomé e Príncipe | C43: 26794.0764 | D43: 0.002067706546 | F43: 40 | G43: Hungria | H43: 24241.8222 | I43: 0.001621124087 | K43: 40 | L43: Costa Rica | M43: 73986.1334 | N43: 0.002650686279 | O43: -65951.555
A44: 41 | B44: Jordânia | C44: 26642.1032 | D44: 0.00205597873 | F44: 41 | G44: Namíbia | H44: 22812.3548 | I44: 0.001525531272 | K44: 41 | L44: Checa, República | M44: 65072.4894 | N44: 0.002331338954 | O44: -6830.7622
A45: 42 | B45: Roménia | C45: 25844.9216 | D45: 0.001994459998 | F45: 42 | G45: Costa do Marfim | H45: 22796.1714 | I45: 0.001524449039 | K45: 42 | L45: Luxemburgo | M45: 63920.9884 | N45: 0.00229008436 | O45: 46545.7636
A46: 43 | B46: Tunísia | C46: 24967.3514 | D46: 0.001926737655 | F46: 43 | G46: Uganda | H46: 22685.1304 | I46: 0.001517023391 | K46: 43 | L46: Bulgária | M46: 60579.4162 | N46: 0.002170366526 | O46: -34612.4594
A47: 44 | B47: Índia | C47: 24462.6526 | D47: 0.001887789904 | F47: 44 | G47: México | H47: 20086.0848 | I47: 0.001343217338 | K47: 44 | L47: Equador | M47: 51816.5236 | N47: 0.00185642014 | O47: -45717.4068
A48: 45 | B48: Noruega | C48: 22053.074 | D48: 0.001701842033 | F48: 45 | G48: Peru | H48: 19492.7516 | I48: 0.001303539349 | K48: 45 | L48: Austrália | M48: 48706.4602 | N48: 0.001744996526 | O48: 21071.9914
A49: 46 | B49: Coreia, República da | C49: 18918.1652 | D49: 0.001459920224 | F49: 46 | G49: Paraguai | H49: 18841.0926 | I49: 0.001259960938 | K49: 46 | L49: Cuba | M49: 48370.083 | N49: 0.001732945208 | O49: -37777.6298
A50: 47 | B50: Hungria | C50: 18318.947 | D50: 0.001413678384 | F50: 47 | G50: Senegal | H50: 17576.369 | I50: 0.00117538504 | K50: 47 | L50: Hungria | M50: 42560.7692 | N50: 0.001524816094 | O50: -5922.8752
A51: 48 | B51: Nigéria | C51: 16230.2952 | D51: 0.001252496527 | F51: 48 | G51: Nova Zelânda | H51: 17376.4264 | I51: 0.001162014272 | K51: 48 | L51: Colômbia | M51: 37488.773 | N51: 0.001343102709 | O51: -20823.0026
A52: 49 | B52: Argentina | C52: 16064.7974 | D52: 0.001239725014 | F52: 49 | G52: Japão | H52: 16410.6016 | I52: 0.001097426642 | K52: 49 | L52: Tunísia | M52: 35512.9364 | N52: 0.00127231481 | O52: 14421.7664
A53: 50 | B53: Lituânia | C53: 14413.8814 | D53: 0.001112323354 | F53: 50 | G53: Angola | H53: 15423.1486 | I53: 0.001031392669 | K53: 50 | L53: Noruega | M53: 34929.1028 | N53: 0.001251397921 | O53: 9177.0452
A54: 51 | B54: Ucrânia | C54: 14339.8926 | D54: 0.001106613617 | F54: 51 | G54: Lituânia | H54: 14632.016 | I54: 0.0009784872351 | K54: 51 | L54: Costa do Marfim | M54: 32980.227 | N54: 0.001181575941 | O54: -12612.1158
A55: 52 | B55: Macau | C55: 14162.3014 | D55: 0.001092908853 | F55: 52 | G55: Mauritânia | H55: 14124.4552 | I55: 0.0009445451069 | K55: 52 | L55: Arábia Saudita | M55: 32858.648 | N55: 0.001177220155 | O55: 32790.7724
A56: 53 | B56: Síria, República Árabe da | C56: 13309.7072 | D56: 0.001027113915 | F56: 53 | G56: Austrália | H56: 13817.2344 | I56: 0.0009240003213 | K56: 53 | L56: Guiné-Bissau | M56: 32561.5328 | N56: 0.001166575468 | O56: 31803.1236
A57: 54 | B57: Iraque | C57: 13221.9204 | D57: 0.001020339382 | F57: 54 | G57: Tanzânia, República Unida da | H57: 13710.948 | I57: 0.0009168926278 | K57: 54 | L57: Indonésia | M57: 32138.0738 | N57: 0.001151404288 | O57: -24934.4758
A58: 55 | B58: Bulgária | C58: 12983.4784 | D58: 0.001001938745 | F58: 55 | G58: Eslovénia | H58: 13650.4762 | I58: 0.0009128486953 | K58: 55 | L58: Coreia, República da | M58: 31290.6162 | N58: 0.001121042596 | O58: 6545.7142
A59: 56 | B59: HongKong | C59: 12801.5844 | D59: 0.0009879019327 | F59: 56 | G59: Suazilândia | H59: 13238.574 | I59: 0.0008853035474 | K59: 56 | L59: Emirados Árabes Unidos | M59: 29704.3194 | N59: 0.00106421066 | O59: 28447.0582
A60: 57 | B60: Eslováquia | C60: 12723.6548 | D60: 0.0009818880831 | F60: 57 | G60: Noruega | H60: 12876.0288 | I60: 0.0008610590516 | K60: 57 | L60: Lituânia | M60: 29045.8974 | N60: 0.001040621508 | O60: -218.1346
A61: 58 | B61: Letónia | C61: 11854.8684 | D61: 0.0009148435879 | F61: 58 | G61: Tailândia | H61: 12763.9012 | I61: 0.0008535607393 | K61: 58 | L61: Senegal | M61: 28854.7126 | N61: 0.001033771969 | O61: -6298.0254
A62: 59 | B62: Croácia | C62: 11368.2152 | D62: 0.0008772884212 | F62: 59 | G62: Camarões | H62: 12420.1756 | I62: 0.0008305747672 | K62: 59 | L62: Guiana | M62: 28164.8444 | N62: 0.0010090562 | O62: -27885.684
A63: 60 | B63: Senegal | C63: 11278.3436 | D63: 0.0008703530041 | F63: 60 | G63: Coreia, República da | H63: 12372.451 | I63: 0.0008273832786 | K63: 60 | L63: São Tomé e Príncipe | M63: 27847.803 | N63: 0.0009976976216 | O63: 25740.3498
A64: 61 | B64: Dominicana, República | C64: 11207.4662 | D64: 0.0008648833748 | F64: 61 | G64: Estónia | H64: 12191.4028 | I64: 0.000815276037 | K64: 61 | L64: Jordânia | M64: 26698.3012 | N64: 0.0009565146525 | O64: 26585.9052
A65: 62 | B65: Líbia, Jamahira Árabe da | C65: 11110.442 | D65: 0.0008573959896 | F65: 62 | G65: Moldava, República de | H65: 11911.7076 | I65: 0.0007965719717 | K65: 62 | L65: Peru | M65: 25630.734 | N65: 0.0009182671377 | O65: -13354.7692
A66: 63 | B66: Costa do Marfim | C66: 10184.0556 | D66: 0.0007859064859 | F66: 63 | G66: Sérvia | H66: 11556.9174 | I66: 0.0007728460763 | K66: 63 | L66: Uganda | M66: 23651.9568 | N66: 0.000847373886 | O66: -21718.304
A67: 64 | B67: Malta | C67: 9933.2892 | D67: 0.000766554771 | F67: 64 | G67: Letónia | H67: 10713.2288 | I67: 0.0007164260638 | K67: 64 | L67: Namíbia | M67: 23552.016 | N67: 0.0008437933272 | O67: -22072.6936
A68: 65 | B68: Líbano | C68: 9909.3948 | D68: 0.0007647108333 | F68: 65 | G68: Tunísia | H68: 10545.585 | I68: 0.000705215215 | K68: 65 | L68: Letónia | M68: 22568.0972 | N68: 0.0008085426667 | O68: 1141.6396
A69: 66 | B69: Território Palestiniano Ocupado | C69: 9895.7186 | D69: 0.0007636554371 | F69: 66 | G69: Paquistão | H69: 10439.2814 | I69: 0.0006981063713 | K69: 66 | L69: Tailândia | M69: 22047.6452 | N69: 0.0007898965379 | O69: -3480.1572
A70: 67 | B70: Chipre | C70: 9813.0332 | D70: 0.0007572745811 | F70: 67 | G70: Egito | H70: 10365.5084 | I70: 0.0006931729473 | K70: 67 | L70: Eslovénia | M70: 21973.065 | N70: 0.0007872245681 | O70: -5327.8874
A71: 68 | B71: Tailândia | C71: 9283.744 | D71: 0.000716429182 | F71: 68 | G71: Islândia | H71: 10004.2966 | I71: 0.00066901762 | K71: 68 | L71: Nigéria | M71: 21616.2318 | N71: 0.000774440377 | O71: 10844.3586
A72: 69 | B72: Kuwait | C72: 9136.5242 | D72: 0.0007050681879 | F72: 69 | G72: Maurícias | H72: 9636.258 | I72: 0.0006444057639 | K72: 69 | L72: Nova Zelânda | M72: 21601.4804 | N72: 0.0007739118816 | O72: -13151.3724
A73: 70 | B73: Camarões | C73: 9091.9556 | D73: 0.0007016288163 | F73: 70 | G73: Luxemburgo | H73: 8687.6124 | I73: 0.0005809669588 | K73: 70 | L73: Camarões | M73: 21512.1312 | N73: 0.0007707107858 | O73: -3328.22
A74: 71 | B74: Colômbia | C74: 8332.8852 | D74: 0.0006430511362 | F74: 71 | G74: Israel | H74: 8343.4514 | I74: 0.0005579518702 | K74: 71 | L74: Estónia | M74: 20493.83 | N74: 0.0007342283141 | O74: -3888.9756
A75: 72 | B75: Eslovénia | C75: 8322.5888 | D75: 0.0006422565601 | F75: 72 | G75: Filipinas | H75: 8336.7014 | I75: 0.0005575004772 | K75: 72 | L75: Paraguai | M75: 20050.3854 | N75: 0.0007183411139 | O75: -17631.7998
A76: 73 | B76: Estónia | C76: 8302.4272 | D76: 0.0006407006836 | F76: 73 | G76: Belize | H76: 8129.6594 | I76: 0.0005436549515 | K76: 73 | L76: Croácia | M76: 18458.4608 | N76: 0.0006613075523 | O76: 4277.9696
A77: 74 | B77: Geórgia | C77: 8048.6886 | D77: 0.0006211196032 | F77: 74 | G77: Malásia | H77: 8111.8758 | I77: 0.0005424657083 | K77: 74 | L77: Eslováquia | M77: 18117.5172 | N77: 0.0006490926347 | O77: 7329.7924
A78: 75 | B78: Gibraltar | C78: 7970.9208 | D78: 0.0006151182398 | F78: 75 | G78: Bangladesh | H78: 7928.3318 | I78: 0.000530191565 | K78: 75 | L78: Sérvia | M78: 17501.5482 | N78: 0.0006270244376 | O78: -5612.2866
A79: 76 | B79: Gana | C79: 7307.4466 | D79: 0.0005639177459 | F79: 76 | G79: Croácia | H79: 7090.2456 | I79: 0.000474146202 | K79: 76 | L79: Mauritânia | M79: 16926.9998 | N79: 0.0006064402079 | O79: -11321.9106
A80: 77 | B80: Taiwan | C80: 6604.3022 | D80: 0.0005096558913 | F80: 77 | G80: Quénia | H80: 6720.3804 | I80: 0.0004494121956 | K80: 77 | L80: HongKong | M80: 15599.17 | N80: 0.0005588683175 | O80: 10003.9988
A81: 78 | B81: Belarus | C81: 6189.2796 | D81: 0.0004776284784 | F81: 78 | G81: Gana | H81: 6620.3222 | I81: 0.0004427210007 | K81: 78 | L81: Maurícias | M81: 15492.8062 | N81: 0.0005550576431 | O81: -3779.7098
A82: 79 | B82: Guatemala | C82: 6179.8032 | D82: 0.0004768971819 | F82: 79 | G82: Reino Unido (Irlanda do Norte) pós-2020 | H82: 6509.1378 | I82: 0.000435285763 | K82: 79 | L82: Suazilândia | M82: 15229.7308 | N82: 0.0005456324938 | O82: -11247.4172
A83: 80 | B83: Peru | C83: 6137.9824 | D83: 0.0004736698588 | F83: 80 | G83: Panamá | H83: 6501.636 | I83: 0.0004347840949 | K83: 80 | L83: Moldava, República de | M83: 14880.8148 | N83: 0.0005331319506 | O83: -8942.6004
A84: 81 | B84: Vietname | C84: 5946.491 | D84: 0.0004588924127 | F84: 81 | G84: Honduras | H84: 6221.2504 | I84: 0.0004160338605 | K84: 81 | L84: Síria, República Árabe da | M84: 14259.5412 | N84: 0.0005108737066 | O84: 12359.8732
A85: 82 | B85: Sérvia | C85: 5944.6308 | D85: 0.0004587488605 | F85: 82 | G85: Suriname | H85: 5829.6302 | I85: 0.0003898450314 | K85: 82 | L85: Tanzânia, República Unida da | M85: 14227.4994 | N85: 0.0005097257515 | O85: -13194.3966
A86: 83 | B86: Maurícias | C86: 5856.5482 | D86: 0.0004519515011 | F86: 83 | G86: Eslováquia | H86: 5393.8624 | I86: 0.0003607039185 | K86: 83 | L86: Macau | M86: 14180.6616 | N86: 0.0005080477031 | O86: 14143.9412
A87: 84 | B87: Andorra | C87: 5401.2632 | D87: 0.0004168170273 | F87: 84 | G87: Nigéria | H87: 5385.9366 | I87: 0.0003601738962 | K87: 84 | L87: Gana | M87: 13927.7688 | N87: 0.0004989873638 | O87: 687.1244
A88: 85 | B88: Cuba | C88: 5296.2266 | D88: 0.0004087113228 | F88: 85 | G88: Etiópia | H88: 5332.739 | I88: 0.0003566164116 | K88: 85 | L88: Paquistão | M88: 13694.5862 | N88: 0.0004906331778 | O88: -7183.9766
A89: 86 | B89: Singapura | C89: 4688.1098 | D89: 0.0003617827753 | F89: 86 | G89: Congo | H89: 5207.2118 | I89: 0.0003482220274 | K89: 86 | L89: Dominicana, República | M89: 13458.9994 | N89: 0.000482192857 | O89: 8955.933
A90: 87 | B90: Omã | C90: 4393.4536 | D90: 0.000339044072 | F90: 87 | G90: Guatemala | H90: 5138.5064 | I90: 0.0003436274892 | K90: 87 | L90: Chipre | M90: 13271.6582 | N90: 0.0004754810216 | O90: 6354.4082
A91: 88 | B91: Nova Zelânda | C91: 4225.054 | D91: 0.0003260486266 | F91: 88 | G91: Camboja | H91: 4965.2796 | I91: 0.0003320432883 | K91: 88 | L91: Iraque | M91: 13234.1844 | N91: 0.0004741384554 | O91: 13209.6564
A92: 89 | B92: Panamá | C92: 4203.97 | D92: 0.0003244215683 | F92: 89 | G92: Argélia | H92: 4911.6544 | I92: 0.0003284572088 | K92: 89 | L92: Malta | M92: 12134.198 | N92: 0.0004347294645 | O92: 7732.3804
A93: 90 | B93: Costa Rica | C93: 4017.2892 | D93: 0.0003100153575 | F93: 90 | G93: Macedónia, Antiga República jugoslava da | H93: 4838.0028 | I93: 0.0003235319031 | K93: 90 | L93: Filipinas | M93: 11815.5126 | N93: 0.0004233119869 | O93: -4857.8902
A94: 91 | B94: Catar | C94: 3815.048 | D94: 0.0002944083462 | F94: 91 | G94: Zimbabwe | H94: 4709.1506 | I94: 0.0003149151662 | K94: 91 | L94: Islândia | M94: 11807.758 | N94: 0.0004230341644 | O94: -8200.8352
A95: 92 | B95: Burquina Faso | C95: 3646.8948 | D95: 0.0002814319157 | F95: 92 | G95: Suíça | H95: 4497.2674 | I95: 0.0003007458948 | K95: 92 | L95: Malásia | M95: 11523.7994 | N95: 0.0004128608369 | O95: -4699.9522
A96: 93 | B96: Indonésia | C96: 3601.799 | D96: 0.0002779518599 | F96: 93 | G96: Sri Lanca | H96: 4393.1556 | I96: 0.0002937836233 | K96: 93 | L96: Guatemala | M96: 11318.3096 | N96: 0.0004054987953 | O96: 1041.2968
A97: 94 | B97: Sudão | C97: 3570.9408 | D97: 0.0002755705237 | F97: 94 | G97: Madagáscar | H97: 3797.768 | I97: 0.0002539682509 | K97: 94 | L97: Líbia, Jamahira Árabe da | M97: 11116.443 | N97: 0.0003982665613 | O97: 11104.441
A98: 95 | B98: Filipinas | C98: 3478.8112 | D98: 0.0002684608561 | F98: 95 | G98: Mali | H98: 3762.5872 | I98: 0.0002516156042 | K98: 95 | L98: Panamá | M98: 10705.606 | N98: 0.000383547587 | O98: -2297.666
A99: 96 | B99: Mali | C99: 3441.82 | D99: 0.0002656062346 | F99: 96 | G99: Myanmar | H99: 3487.5904 | I99: 0.0002332257351 | K99: 96 | L99: Líbano | M99: 10450.9178 | N99: 0.0003744229242 | O99: 9367.8718
A100: 97 | B100: Malásia | C100: 3411.9236 | D100: 0.0002632991209 | F100: 97 | G100: Chipre | H100: 3458.625 | I100: 0.0002312887311 | K100: 97 | L100: Kuwait | M100: 10320.1982 | N100: 0.0003697396595 | O100: 7952.8502
A101: 98 | B101: Venezuela | C101: 3292.4432 | D101: 0.0002540787842 | F101: 98 | G101: Nicarágua | H101: 3458.6086 | I101: 0.0002312876344 | K101: 98 | L101: Taiwan | M101: 10028.0104 | N101: 0.0003592715061 | O101: 3180.594
A102: 99 | B102: Paquistão | C102: 3255.3048 | D102: 0.0002512128033 | F102: 99 | G102: Taiwan | H102: 3423.7082 | I102: 0.0002289537389 | K102: 99 | L102: Território Palestiniano Ocupado | M102: 9896.2038 | N102: 0.0003545492976 | O102: 9895.2334
A103: 100 | B103: Irão, República Islâmica do | C103: 3151.3458 | D103: 0.0002431902575 | F103: 100 | G103: Congo, República Democrática do | H103: 3287.5874 | I103: 0.0002198509286 | K103: 100 | L103: Bangladesh | M103: 9893.1502 | N103: 0.0003544398969 | O103: -5963.5134
A104: 101 | B104: Equador | C104: 3049.5584 | D104: 0.0002353352947 | F104: 101 | G104: Malavi | H104: 3258.318 | I104: 0.0002178935952 | K104: 101 | L104: Quénia | M104: 9767.4084 | N104: 0.0003499349708 | O104: -3673.3524
A105: 102 | B105: Quénia | C105: 3047.028 | D105: 0.000235140023 | F105: 102 | G105: Papuásia-Nova Guiné | H105: 3105.1676 | I105: 0.000207651964 | K105: 102 | L105: Reino Unido (Irlanda do Norte) pós-2020 | M105: 8990.4374 | N105: 0.0003220985875 | O105: -4027.8382
A106: 103 | B106: Uruguai | C106: 2989.0796 | D106: 0.0002306681284 | F106: 103 | G106: HongKong | H106: 2797.5856 | I106: 0.0001870830239 | K106: 103 | L106: Geórgia | M106: 8359.3498 | N106: 0.0002994887393 | O106: 7738.0274
A107: 104 | B107: Moldava, República de | C107: 2969.1072 | D107: 0.0002291268525 | F107: 104 | G107: Gabão | H107: 2642.8406 | I107: 0.000176734757 | K107: 104 | L107: Belize | M107: 8131.84 | N107: 0.0002913377916 | O107: -8127.4788
A108: 105 | B108: Mauritânia | C108: 2802.5446 | D108: 0.000216273169 | F108: 105 | G108: Centro-Africana, República | H108: 2579.2684 | I108: 0.0001724834914 | K108: 105 | L108: Gibraltar | M108: 7990.6994 | N108: 0.0002862811758 | O108: 7951.1422
A109: 106 | B109: Timor-Leste | C109: 2726.394 | D109: 0.0002103966054 | F109: 106 | G109: Gâmbia | H109: 2389.373 | I109: 0.0001597846107 | K109: 106 | L109: Congo | M109: 7640.4052 | N109: 0.0002737312561 | O109: -2774.0184
A110: 107 | B110: Guiné | C110: 2671.9054 | D110: 0.0002061917046 | F110: 107 | G110: Dominicana, República | H110: 2251.5332 | I110: 0.0001505668457 | K110: 107 | L110: Honduras | M110: 7590.891 | N110: 0.0002719573209 | O110: -4851.6098
A111: 108 | B111: Arménia | C111: 2588.4812 | D111: 0.0001997538352 | F111: 108 | G111: Malta | H111: 2200.9088 | I111: 0.0001471814387 | K111: 108 | L111: Etiópia | M111: 7364.853 | N111: 0.0002638591031 | O111: -3300.625
A112: 109 | B112: Gabão | C112: 2550.5466 | D112: 0.0001968264112 | F112: 109 | G112: Serra Leoa | H112: 1997.8504 | I112: 0.0001336023084 | K112: 109 | L112: Mali | M112: 7204.4072 | N112: 0.0002581108437 | O112: -320.7672
A113: 110 | B113: Reino Unido (Irlanda do Norte) pós-2020 | C113: 2481.2996 | D113: 0.0001914826004 | F113: 110 | G113: Benim | H113: 1832.152 | I113: 0.0001225215544 | K113: 110 | L113: Belarus | M113: 7048.6518 | N113: 0.0002525306264 | O113: 5329.9074
A114: 111 | B114: Congo | C114: 2433.1934 | D114: 0.0001877702312 | F114: 111 | G114: El Salvador | H114: 1779.4546 | I114: 0.0001189975197 | K114: 111 | L114: Suriname | M114: 6411.9606 | N114: 0.0002297200192 | O114: -5247.2998
A115: 112 | B115: Albânia | C115: 2230.3856 | D115: 0.0001721194952 | F115: 112 | G115: Burquina Faso | H115: 1725.7416 | I115: 0.0001154055686 | K115: 112 | L115: Singapura | M115: 5996.509 | N115: 0.0002148357185 | O115: 3379.7106
A116: 113 | B116: Seychelles | C116: 2209.8298 | D116: 0.0001705331982 | F116: 113 | G116: Laos, República Democrática Popular do | H116: 1570.485 | I116: 0.0001050230895 | K116: 113 | L116: Camboja | M116: 5868.657 | N116: 0.0002102551907 | O116: -4061.9022
A117: 114 | B117: Guiné Equatorial | C117: 2176.386 | D117: 0.0001679523306 | F117: 114 | G117: Singapura | H117: 1308.3992 | I117: 8.749661808e-05 | K117: 114 | L117: Sri Lanca | M117: 5833.9434 | N117: 0.0002090115136 | O117: -2952.3678
A118: 115 | B118: Etiópia | C118: 2032.114 | D118: 0.0001568188191 | F118: 115 | G118: Seychelles | H118: 1264.2444 | I118: 8.454385284e-05 | K118: 115 | L118: Macedónia, Antiga República jugoslava da | M118: 5788.8886 | N118: 0.0002073973443 | O118: -3887.117
A119: 116 | B119: Suazilândia | C119: 1991.1568 | D119: 0.0001536581402 | F119: 116 | G119: Kuwait | H119: 1183.674 | I119: 7.915586612e-05 | K119: 116 | L119: Andorra | M119: 5443.4826 | N119: 0.0001950225532 | O119: 5359.0438
A120: 117 | B120: Bangladesh | C120: 1964.8184 | D120: 0.0001516255984 | F120: 117 | G120: Bolívia | H120: 1171.2708 | I120: 7.832642656e-05 | K120: 117 | L120: Burquina Faso | M120: 5372.6364 | N120: 0.0001924843607 | O120: 1921.1532
A121: 118 | B121: Islândia | C121: 1803.4614 | D121: 0.0001391736325 | F121: 118 | G121: Togo | H121: 1123.3014 | I121: 7.511856747e-05 | K121: 118 | L121: Gabão | M121: 5193.3872 | N121: 0.0001860624358 | O121: -92.294
A122: 119 | B122: Benim | C122: 1771.8166 | D122: 0.0001367315942 | F122: 119 | G122: São Tomé e Príncipe | H122: 1053.7266 | I122: 7.046588983e-05 | K122: 119 | L122: Nicarágua | M122: 5085.0522 | N122: 0.0001821811396 | O122: -1832.165
A123: 120 | B123: Congo, República Democrática do | C123: 1727.2344 | D123: 0.0001332911731 | F123: 120 | G123: Venezuela | H123: 1042.4414 | I123: 6.971121432e-05 | K123: 120 | L123: Congo, República Democrática do | M123: 5014.8218 | N123: 0.0001796650092 | O123: -1560.353
A124: 121 | B124: Jamaica | C124: 1687.498 | D124: 0.0001302247037 | F124: 121 | G124: Iémen | H124: 1024.4982 | I124: 6.851129818e-05 | K124: 121 | L124: Omã | M124: 4887.3662 | N124: 0.0001750986831 | O124: 3899.541
A125: 122 | B125: Nicarágua | C125: 1626.4436 | D125: 0.0001255131182 | F125: 122 | G125: Síria, República Árabe da | H125: 949.834 | I125: 6.351827694e-05 | K125: 122 | L125: Zimbabwe | M125: 4774.1098 | N125: 0.0001710410689 | O125: -4644.1914
A126: 123 | B126: Togo | C126: 1570.864 | D126: 0.0001212240245 | F126: 123 | G126: Belarus | H126: 859.3722 | I126: 5.746882234e-05 | K126: 123 | L126: Venezuela | M126: 4334.8846 | N126: 0.0001553050363 | O126: 2250.0018
A127: 124 | B127: El Salvador | C127: 1565.6294 | D127: 0.000120820069 | F127: 124 | G127: Cabo Verde | H127: 836.1366 | I127: 5.591498738e-05 | K127: 124 | L127: Madagáscar | M127: 4107.7632 | N127: 0.0001471680037 | O127: -3487.7728
A128: 125 | B128: Cazaquistão | C128: 1539.9044 | D128: 0.0001188348634 | F128: 125 | G128: Bósnia-Herzegovina | H128: 758.1446 | I128: 5.069942607e-05 | K128: 125 | L128: Myanmar | M128: 3979.9732 | N128: 0.0001425896971 | O128: -2995.2076
A129: 126 | B129: Sri Lanca | C129: 1440.7878 | D129: 0.000111186007 | F129: 126 | G129: Turquemenistão | H129: 720.6558 | I129: 4.819243645e-05 | K129: 126 | L129: Catar | M129: 3835.8118 | N129: 0.0001374248557 | O129: 3794.2842
A130: 127 | B130: Azerbaijão | C130: 1435.1898 | D130: 0.0001107540077 | F130: 127 | G130: Chade | H130: 675.9004 | I130: 4.519950727e-05 | K130: 127 | L130: Benim | M130: 3603.9686 | N130: 0.0001291186562 | O130: -60.3354
A131: 128 | B131: Bolívia | C131: 1412.2374 | D131: 0.0001089827644 | F131: 128 | G131: Emirados Árabes Unidos | H131: 628.6306 | I131: 4.203843255e-05 | K131: 128 | L131: Sudão | M131: 3591.4234 | N131: 0.0001286692018 | O131: 3550.4582
A132: 129 | B132: Honduras | C132: 1369.6406 | D132: 0.0001056955572 | F132: 129 | G132: Timor-Leste | H132: 614.51 | I132: 4.109414525e-05 | K132: 129 | L132: Seychelles | M132: 3474.0742 | N132: 0.0001244649557 | O132: 945.5854
A133: 130 | B133: São Bartolomeu | C133: 1280.9726 | D133: 9.885302223e-05 | F133: 130 | G133: Faroé, Ilhas | H133: 597.6172 | I133: 3.996447254e-05 | K133: 130 | L133: Irão, República Islâmica do | M133: 3375.8016 | N133: 0.0001209441631 | O133: 2926.89
A134: 131 | B134: Ruanda | C134: 1241.2404 | D134: 9.578687698e-05 | F134: 131 | G134: Líbano | H134: 541.523 | I134: 3.621328346e-05 | K134: 131 | L134: El Salvador | M134: 3345.084 | N134: 0.0001198436498 | O134: -213.8252
A135: 132 | B135: Paraguai | C135: 1209.2928 | D135: 9.332147154e-05 | F135: 132 | G135: Omã | H135: 493.9126 | I135: 3.302943179e-05 | K135: 132 | L135: Timor-Leste | M135: 3340.904 | N135: 0.0001196938938 | O135: 2111.884
A136: 133 | B136: Iémen | C136: 1145.3826 | D136: 8.838950311e-05 | F136: 133 | G136: Gronelândia | H136: 481.3548 | I136: 3.218965366e-05 | K136: 133 | L136: Malavi | M136: 3267.4472 | N136: 0.0001170621718 | O136: -3249.1888
A137: 134 | B137: Montenegro | C137: 1046.3476 | D137: 8.074694381e-05 | F137: 134 | G137: Guiné-Bissau | H137: 379.2046 | I137: 2.535856034e-05 | K137: 134 | L137: Papuásia-Nova Guiné | M137: 3108.0532 | N137: 0.0001113515952 | O137: -3102.282
A138: 135 | B138: Uganda | C138: 966.8264 | D138: 7.461027005e-05 | F138: 135 | G138: Geórgia | H138: 310.6612 | I138: 2.077485554e-05 | K138: 135 | L138: Guiné | M138: 2974.7226 | N138: 0.0001065747866 | O138: 2369.0882
A139: 136 | B139: Macedónia, Antiga República jugoslava da | C139: 950.8858 | D139: 7.338012938e-05 | F139: 136 | G139: Usbequistão | H139: 308.3052 | I139: 2.061730268e-05 | K139: 136 | L139: Gâmbia | M139: 2880.9438 | N139: 0.0001032149925 | O139: -1897.8022
A140: 137 | B140: Bermudas | C140: 907.5284 | D140: 7.003422641e-05 | F140: 137 | G140: Guiné | H140: 302.8172 | I140: 2.02503035e-05 | K140: 137 | L140: Togo | M140: 2694.1654 | N140: 9.652332041e-05 | O140: 447.5626
A141: 138 | B141: Camboja | C141: 903.3774 | D141: 6.971389255e-05 | F141: 138 | G141: Irão, República Islâmica do | H141: 224.4558 | I141: 1.50100393e-05 | K141: 138 | L141: Centro-Africana, República | M141: 2675.6308 | N141: 9.585928504e-05 | O141: -2482.906
A142: 139 | B142: Barbados | C142: 886.8842 | D142: 6.844110759e-05 | F142: 139 | G142: Zâmbia | H142: 199.4064 | I142: 1.333491004e-05 | K142: 139 | L142: Arménia | M142: 2615.4888 | N142: 9.370458973e-05 | O142: 2561.4736
A143: 140 | B143: Trindade e Tobago | C143: 878.7574 | D143: 6.781396011e-05 | F143: 140 | G143: Azerbaijão | H143: 125.9648 | I143: 8.423647765e-06 | K143: 140 | L143: Bolívia | M143: 2583.5082 | N143: 9.255882723e-05 | O143: 240.9666
A144: 141 | B144: Namíbia | C144: 739.6612 | D144: 5.707986654e-05 | F144: 141 | G144: Fiji, Ilhas | H144: 123.8224 | I144: 8.280378987e-06 | K144: 141 | L144: Serra Leoa | M144: 2504.667 | N144: 8.973419946e-05 | O144: -1491.0338
A145: 142 | B145: Turquemenistão | C145: 730.8192 | D145: 5.639752686e-05 | F145: 142 | G145: Maldivas | H145: 106.1904 | I145: 7.101273734e-06 | K145: 142 | L145: Albânia | M145: 2336.138 | N145: 8.369634496e-05 | O145: 2124.6332
A146: 143 | B146: Barém | C146: 714.5288 | D146: 5.514039203e-05 | F146: 143 | G146: Albânia | H146: 105.7524 | I146: 7.071983347e-06 | K146: 143 | L146: Guiné Equatorial | M146: 2182.3724 | N146: 7.818741582e-05 | O146: 2170.3996
A147: 144 | B147: Burundi | C147: 677.1012 | D147: 5.225209343e-05 | F147: 144 | G147: Tajiquistão | H147: 59.4122 | I147: 3.973073793e-06 | K147: 144 | L147: Iémen | M147: 2169.8808 | N147: 7.773988179e-05 | O147: 120.8844
A148: 145 | B148: Aruba | C148: 656.9934 | D148: 5.070036875e-05 | F148: 145 | G148: Jordânia | H148: 56.198 | I148: 3.758130502e-06 | K148: 145 | L148: Jamaica | M148: 1698.6206 | N148: 6.085613765e-05 | O148: 1676.3754
A149: 146 | B149: Niger | C149: 652.165 | D149: 5.032775973e-05 | F149: 146 | G149: Andorra | H149: 42.2194 | I149: 2.823339175e-06 | K149: 146 | L149: Laos, República Democrática Popular do | M149: 1586.3348 | N149: 5.683329694e-05 | O149: -1554.6352
A150: 147 | B150: São Martinho (parte holandesa) | C150: 597.7744 | D150: 4.613042156e-05 | F150: 147 | G150: Libéria | H150: 38.8276 | I150: 2.596519234e-06 | K150: 147 | L150: Azerbaijão | M150: 1561.1546 | N150: 5.593117099e-05 | O150: 1309.225
A151: 148 | B151: Suriname | C151: 582.3304 | D151: 4.493860366e-05 | F151: 148 | G151: Falkland Ilhas (Malvinas) | H151: 38.0622 | I151: 2.545334617e-06 | K151: 148 | L151: Cazaquistão | M151: 1555.7084 | N151: 5.573605108e-05 | O151: 1524.1004
A152: 149 | B152: Bósnia-Herzegovina | C152: 535.6404 | D152: 4.1335523e-05 | F152: 149 | G152: Aruba | H152: 38.029 | I152: 2.543114432e-06 | K152: 149 | L152: Turquemenistão | M152: 1451.475 | N152: 5.200170208e-05 | O152: 10.1634
A153: 150 | B153: Tanzânia, República Unida da | C153: 516.5514 | D153: 3.98624194e-05 | F153: 150 | G153: Arábia Saudita | H153: 33.9378 | I153: 2.269523495e-06 | K153: 150 | L153: Bósnia-Herzegovina | M153: 1293.785 | N153: 4.635217426e-05 | O153: -222.5042
A154: 151 | B154: Ceuta e Melilha | C154: 507.8786 | D154: 3.919313694e-05 | F154: 151 | G154: São Marino | H154: 32.7702 | I154: 2.191442546e-06 | K154: 151 | L154: São Bartolomeu | M154: 1281.3862 | N154: 4.590796495e-05 | O154: 1280.559
A155: 152 | B155: Serra Leoa | C155: 506.8166 | D155: 3.91111821e-05 | F155: 152 | G155: Botswana | H155: 29.9908 | I155: 2.005575648e-06 | K155: 152 | L155: Ruanda | M155: 1241.8804 | N155: 4.449259862e-05 | O155: 1240.6004
A156: 153 | B156: Myanmar | C156: 492.3828 | D156: 3.799732162e-05 | F156: 153 | G156: São Pedro e Miquelon | H156: 28.9156 | I156: 1.933673767e-06 | K156: 153 | L156: Montenegro | M156: 1046.6634 | N156: 3.749859854e-05 | O156: 1046.0318
A157: 154 | B157: Gâmbia | C157: 491.5708 | D157: 3.793465935e-05 | F157: 154 | G157: Arménia | H157: 27.0076 | I157: 1.806080027e-06 | K157: 154 | L157: Bermudas | M157: 908.2538 | N157: 3.253982571e-05 | O157: 906.803
A158: 155 | B158: Curaçau | C158: 479.6396 | D158: 3.701392523e-05 | F158: 155 | G158: Catar | H158: 20.7638 | I158: 1.388538206e-06 | K158: 155 | L158: Barbados | M158: 897.2042 | N158: 3.214395392e-05 | O158: 876.5642
A159: 156 | B159: Kosovo | C159: 471.1818 | D159: 3.636123438e-05 | F159: 156 | G159: Sudão | H159: 20.4826 | I159: 1.369733511e-06 | K159: 156 | L159: Trindade e Tobago | M159: 878.7678 | N159: 3.148343674e-05 | O159: 878.747
A160: 157 | B160: Polinésia Francesa | C160: 366.6458 | D160: 2.829416134e-05 | F160: 157 | G160: Gibraltar | H160: 19.7786 | I160: 1.322654898e-06 | K160: 157 | L160: Barém | M160: 719.082 | N160: 2.576240579e-05 | O160: 709.9756
A161: 158 | B161: Antígua e Barbuda | C161: 363.7054 | D161: 2.806724983e-05 | F161: 158 | G161: Macau | H161: 18.3602 | I161: 1.227802193e-06 | K161: 158 | L161: Aruba | M161: 695.0224 | N161: 2.490042735e-05 | O161: 618.9644
A162: 159 | B162: Haiti | C162: 328.5232 | D162: 2.535222939e-05 | F162: 159 | G162: Quirguizistão | H162: 17.4752 | I162: 1.168619562e-06 | K162: 159 | L162: Burundi | M162: 677.2152 | N162: 2.426245239e-05 | O162: 676.9872
A163: 160 | B163: Comores | C163: 311.607 | D163: 2.404680139e-05 | F163: 160 | G163: Salomão, Ilhas | H163: 16.0532 | I163: 1.073526114e-06 | K163: 160 | L163: Chade | M163: 676.014 | N163: 2.421941724e-05 | O163: -675.7868
A164: 161 | B164: Madagáscar | C164: 309.9952 | D164: 2.392241832e-05 | F164: 161 | G164: Cazaquistão | H164: 15.804 | I164: 1.056861356e-06 | K164: 161 | L164: Niger | M164: 655.4318 | N164: 2.348202291e-05 | O164: 648.8982
A165: 162 | B165: Nova Caledónia | C165: 302.6442 | D165: 2.335513955e-05 | F165: 162 | G165: Santa Helena | H165: 15.7338 | I165: 1.052166869e-06 | K165: 162 | L165: Faroé, Ilhas | M165: 598.4668 | N165: 2.144114934e-05 | O165: -596.7676
A166: 163 | B166: Libéria | C166: 295.8354 | D166: 2.28297025e-05 | F166: 163 | G166: Marshall, Ilhas | H166: 13.4098 | I166: 8.967539487e-07 | K166: 163 | L166: São Martinho (parte holandesa) | M166: 597.7772 | N166: 2.141644318e-05 | O166: 597.7716
A167: 164 | B167: Somália | C167: 292.9902 | D167: 2.26101376e-05 | F167: 164 | G167: Curaçau | H167: 12.9632 | I167: 8.668884538e-07 | K167: 164 | L167: Usbequistão | M167: 531.3872 | N167: 1.903790204e-05 | O167: -85.2232
A168: 165 | B168: Bahamas | C168: 280.4744 | D168: 2.164428973e-05 | F168: 165 | G168: Iraque | H168: 12.264 | I168: 8.201308317e-07 | K168: 165 | L168: Ceuta e Melilha | M168: 507.8786 | N168: 1.819566417e-05 | O168: 507.8786
A169: 166 | B169: Usbequistão | C169: 223.082 | D169: 1.72153018e-05 | F169: 166 | G169: Jamaica | H169: 11.1226 | I169: 7.43801956e-07 | K169: 166 | L169: Curaçau | M169: 492.6028 | N169: 1.764838117e-05 | O169: 466.6764
A170: 167 | B170: São Marino | C170: 219.9688 | D170: 1.697505526e-05 | F170: 167 | G170: Nepal | H170: 10.3458 | I170: 6.918549869e-07 | K170: 167 | L170: Gronelândia | M170: 481.9304 | N170: 1.726602324e-05 | O170: -480.7792
A171: 168 | B171: Bonaire, Santo Eustáquio e Saba | C171: 206.5448 | D171: 1.593912134e-05 | F171: 168 | G171: Barbados | H171: 10.32 | I171: 6.901296627e-07 | K171: 168 | L171: Kosovo | M171: 479.554 | N171: 1.718088444e-05 | O171: 462.8096
A172: 169 | B172: Guiana | C172: 139.5802 | D172: 1.077144399e-05 | F172: 169 | G172: Antígua e Barbuda | H172: 9.2326 | I172: 6.174119306e-07 | K172: 169 | L172: Antígua e Barbuda | M172: 372.938 | N172: 1.336117451e-05 | O172: 354.4728
A173: 170 | B173: Zâmbia | C173: 138.1944 | D173: 1.066450141e-05 | F173: 170 | G173: Kosovo | H173: 8.3722 | I173: 5.598743762e-07 | K173: 170 | L173: Polinésia Francesa | M173: 367.1436 | N173: 1.315357971e-05 | O173: 366.148
A174: 171 | B174: Maldivas | C174: 129.0678 | D174: 9.960199072e-06 | F174: 171 | G174: Jibuti | H174: 7.3022 | I174: 4.883202348e-07 | K174: 171 | L174: Zâmbia | M174: 337.6008 | N174: 1.209515577e-05 | O174: -61.212
A175: 172 | B175: Santa Lúcia | C175: 120.252 | D175: 9.279881263e-06 | F175: 172 | G175: Líbia, Jamahira Árabe da | H175: 6.001 | I175: 4.01305049e-07 | K175: 172 | L175: Libéria | M175: 334.663 | N175: 1.19899038e-05 | O175: 257.0078
A176: 173 | B176: Liechtenstein | C176: 119.4194 | D176: 9.215629282e-06 | F176: 173 | G176: Guiné Equatorial | H176: 5.9864 | I176: 4.003287028e-07 | K176: 173 | L176: Haiti | M176: 328.8008 | N176: 1.177987995e-05 | O176: 328.2456
A177: 174 | B177: Afeganistão | C177: 109.4574 | D177: 8.446858891e-06 | F177: 174 | G177: Barém | H177: 4.5532 | I177: 3.044862772e-07 | K177: 174 | L177: Comores | M177: 311.607 | N177: 1.116388114e-05 | O177: 311.607
A178: 175 | B178: Quirguizistão | C178: 109.2342 | D178: 8.429634483e-06 | F178: 175 | G178: São Cristovão e Nevis | H178: 4.4378 | I178: 2.967691296e-07 | K178: 175 | L178: Nova Caledónia | M178: 303.3498 | N178: 1.08680521e-05 | O178: 301.9386
A179: 176 | B179: Virgens Britânicas, Ilhas | C179: 102.589 | D179: 7.916822497e-06 | F179: 176 | G179: Afeganistão | H179: 4.3662 | I179: 2.919810207e-07 | K179: 176 | L179: Somália | M179: 292.9902 | N179: 1.04969008e-05 | O179: 292.9902
A180: 177 | B180: Botswana | C180: 98.1832 | D180: 7.576825649e-06 | F180: 177 | G180: Niger | H180: 3.2668 | I180: 2.184608122e-07 | K180: 177 | L180: Bahamas | M180: 280.4744 | N180: 1.004849976e-05 | O180: 280.4744
A181: 178 | B181: Jibuti | C181: 96.957 | D181: 7.482199444e-06 | F181: 178 | G181: Liechtenstein | H181: 1.7444 | I181: 1.166533124e-07 | K181: 178 | L181: São Marino | M181: 252.739 | N181: 9.054829179e-06 | O181: 187.1986
A182: 179 | B182: Centro-Africana, República | C182: 96.3624 | D182: 7.436313992e-06 | F182: 179 | G182: Lesoto | H182: 1.7136 | I182: 1.145936231e-07 | K182: 179 | L182: Maldivas | M182: 235.2582 | N182: 8.428548083e-06 | O182: 22.8774
A183: 180 | B183: Nepal | C183: 77.231 | D183: 5.959938378e-06 | F183: 180 | G183: Butão | H183: 1.2178 | I183: 8.143797512e-08 | K183: 180 | L183: Bonaire, Santo Eustáquio e Saba | M183: 206.5448 | N183: 7.399838893e-06 | O183: 206.5448
A184: 181 | B184: Zimbabwe | C184: 64.9592 | D184: 5.012920059e-06 | F184: 181 | G184: Bermudas | H184: 0.7254 | I184: 4.850969548e-08 | K184: 181 | L184: Fiji, Ilhas | M184: 135.9286 | N184: 4.869886538e-06 | O184: -111.7162
A185: 182 | B185: Caimão, Ilhas | C185: 51.6906 | D185: 3.988978399e-06 | F185: 182 | G185: Nova Caledónia | H185: 0.7056 | I185: 4.71856095e-08 | K185: 182 | L185: Botswana | M185: 128.174 | N185: 4.592064047e-06 | O185: 68.1924
A186: 183 | B186: Mongólia | C186: 37.8358 | D186: 2.919799517e-06 | F186: 183 | G186: Ruanda | H186: 0.64 | I186: 4.279873877e-08 | K186: 183 | L186: Quirguizistão | M186: 126.7094 | N186: 4.539592118e-06 | O186: 91.759
A187: 184 | B187: Turcas e Caicos, Ilhas | C187: 19.071 | D187: 1.471714529e-06 | F187: 184 | G187: Polinésia Francesa | H187: 0.4978 | I187: 3.3289394e-08 | K187: 184 | L187: Liechtenstein | M187: 121.1638 | N187: 4.340911026e-06 | O187: 117.675
A188: 185 | B188: Laos, República Democrática Popular do | C188: 15.8498 | D188: 1.223133603e-06 | F188: 185 | G188: Território Palestiniano Ocupado | H188: 0.4852 | I188: 3.244679383e-08 | K188: 185 | L188: Santa Lúcia | M188: 120.2706 | N188: 4.308910529e-06 | O188: 120.2334
A189: 186 | B189: Fiji, Ilhas | C189: 12.1062 | D189: 9.342389195e-07 | F189: 186 | G189: São Bartolomeu | H189: 0.4136 | I189: 2.765868493e-08 | K189: 186 | L189: Afeganistão | M189: 113.8236 | N189: 4.077935161e-06 | O189: 105.0912
A190: 187 | B190: Anguila | C190: 10.0614 | D190: 7.764411181e-07 | F190: 187 | G190: Micronésia, Estados Federados da | H190: 0.3438 | I190: 2.299094748e-08 | K190: 187 | L190: Jibuti | M190: 104.2592 | N190: 3.735273331e-06 | O190: 89.6548
A191: 188 | B191: Malavi | C191: 9.1292 | D191: 7.045029773e-07 | F191: 188 | G191: Montenegro | H191: 0.3158 | I191: 2.111850266e-08 | K191: 188 | L191: Virgens Britânicas, Ilhas | M191: 102.589 | N191: 3.675435412e-06 | O191: 102.589
A192: 189 | B192: Brunei Darussalam | C192: 7.7238 | D192: 5.96047857e-07 | F192: 189 | G192: Haiti | H192: 0.2776 | I192: 1.856395294e-08 | K192: 189 | L192: Nepal | M192: 87.5768 | N192: 3.137596351e-06 | O192: 66.8852
A193: 190 | B193: São Vicente e Granadinas | C193: 7.6034 | D193: 5.867565545e-07 | F193: 190 | G193: Burundi | H193: 0.114 | I193: 7.623525344e-09 | K193: 190 | L193: Tajiquistão | M193: 59.4122 | N193: 2.128548907e-06 | O193: -59.4122
A194: 191 | B194: Guam | C194: 6.6636 | D194: 5.142319195e-07 | F194: 191 | G194: Oceano Indico, Território Britânico do | H194: 0.098 | I194: 6.553556874e-09 | K194: 191 | L194: Caimão, Ilhas | M194: 51.6906 | N194: 1.851908701e-06 | O194: 51.6906
A195: 192 | B195: Territórios Franceses do Sul | C195: 6.3102 | D195: 4.869599403e-07 | F195: 192 | G195: Nauru | H195: 0.0694 | I195: 4.640988236e-09 | K195: 192 | L195: Falkland Ilhas (Malvinas) | M195: 38.0622 | N195: 1.363646763e-06 | O195: -38.0622
A196: 193 | B196: Menores distantes dos Estados Unidos, lhas | C196: 4.5544 | D196: 3.514643517e-07 | F196: 193 | G196: Vanuatu | H196: 0.065 | I196: 4.346746907e-09 | K196: 193 | L196: Mongólia | M196: 37.8488 | N196: 1.356001324e-06 | O196: 37.8228
A197: 194 | B197: Sudão do Sul | C197: 3.771 | D197: 2.910091495e-07 | F197: 194 | G197: São Vicente e Granadinas | H197: 0.0416 | I197: 2.78191802e-09 | K197: 194 | L197: São Pedro e Miquelon | M197: 29.2314 | N197: 1.047267472e-06 | O197: -28.5998
A198: 195 | B198: Melilha | C198: 3.6164 | D198: 2.790786232e-07 | F198: 195 | G198: Santa Sé (Cidade Estado do Vaticano) | H198: 0.021 | I198: 1.404333616e-09 | K198: 195 | L198: Turcas e Caicos, Ilhas | M198: 19.071 | N198: 6.832528707e-07 | O198: 19.071
A199: 196 | B199: Marianas do Norte, Ilhas | C199: 2.9244 | D199: 2.256767851e-07 | F199: 196 | G199: Santa Lúcia | H199: 0.0186 | I199: 1.243838346e-09 | K199: 196 | L199: Salomão, Ilhas | M199: 16.0532 | N199: 5.751347587e-07 | O199: -16.0532
A200: 197 | B200: Papuásia-Nova Guiné | C200: 2.8856 | D200: 2.22682578e-07 | F200: 197 | G200: Mongólia | H200: 0.013 | I200: 8.693493813e-10 | K200: 197 | L200: Santa Helena | M200: 15.7338 | N200: 5.636916793e-07 | O200: -15.7338
... 58 more rows

Sheet 2AA
A1: Ranking dos parceiros comerciais de Portugal por país (média 2018-2022 em milhares de euros) produtos agrícolas e agroalimentares
A2: Exportações | F2: Importações | K2: Trocas comerciais (total e saldo)
A3: P | B3: País | C3: média quinquénio | D3: % do Total | F3: P | G3: País | H3: média quinquénio | I3: % do Total | K3: P | L3: País | M3: Total (exp+imp) | N3: % do Total | O3: Saldo (exp-imp)
A4: 1 | B4: Espanha | C4: 2411545.104 | D4: 0.3412850777 | F4: 1 | G4: Espanha | H4: 4702622.823 | I4: 0.4611131698 | K4: 1 | L4: Espanha | M4: 7114167.927 | N4: 0.4120694865 | O4: -2291077.719
A5: 2 | B5: França | C5: 676548.204 | D5: 0.09574600368 | F5: 2 | G5: França | H5: 801883.8928 | I5: 0.07862829691 | K5: 2 | L5: França | M5: 1478432.097 | N5: 0.08563429499 | O5: -125335.6888
A6: 3 | B6: Itália | C6: 450103.1874 | D6: 0.06369920307 | F6: 3 | G6: Alemanha | H6: 691439.1198 | I6: 0.06779869367 | K6: 3 | L6: Alemanha | M6: 951321.041 | N6: 0.05510277194 | O6: -431557.1986
A7: 4 | B7: Brasil | C7: 371211.2184 | D7: 0.05253430646 | F7: 4 | G7: Países Baixos | H7: 595448.7582 | I7: 0.05838641002 | K7: 4 | L7: Países Baixos | M7: 927730.709 | N7: 0.05373636394 | O7: -263166.8074
A8: 5 | B8: Países Baixos | C8: 332281.9508 | D8: 0.04702498461 | F8: 5 | G8: Brasil | H8: 551854.2014 | I8: 0.05411176904 | K8: 5 | L8: Brasil | M8: 923065.4198 | N8: 0.05346613932 | O8: -180642.983
A9: 6 | B9: Angola | C9: 270815.3222 | D9: 0.0383261454 | F9: 6 | G9: Itália | H9: 325089.427 | I9: 0.03187647017 | K9: 6 | L9: Itália | M9: 775192.6144 | N9: 0.04490099556 | O9: 125013.7604 | P9: Nota: Nesta listagem, o Reino Unido passa a ser constituído por três componentes: Reino Unido [até 2020] ; Reino Unido (sem Irlanda do Norte) pós-2020 e Reino Unido (Irlanda do Norte) pós-2020. Estas componentes são calculadas igualmente como média do quinquénio, embora a primeira corresponda apenas a 2018-2020 e as duas últimas a 2021-2022. A posição consolidada do Reino Unido é assim a apresentada na folha de Síntese.
A10: 7 | B10: Alemanha | C10: 259881.9212 | D10: 0.03677883591 | F10: 7 | G10: Bélgica | H10: 256059.544 | I10: 0.02510778185 | K10: 7 | L10: Bélgica | M10: 422577.6918 | N10: 0.02447670258 | O10: -89541.3962
A11: 8 | B11: Reino Unido | C11: 202835.6198 | D11: 0.0287055673 | F11: 8 | G11: Estados Unidos | H11: 216780.4248 | I11: 0.0212562888 | K11: 8 | L11: Estados Unidos | M11: 400397.3552 | N11: 0.02319196486 | O11: -33163.4944
A12: 9 | B12: Estados Unidos | C12: 183616.9304 | D12: 0.02598571275 | F12: 9 | G12: Ucrânia | H12: 191923.2566 | I12: 0.01881893244 | K12: 9 | L12: Polónia | M12: 317924.6778 | N12: 0.01841495169 | O12: -49349.5234
A13: 10 | B13: Israel | C13: 169490.6434 | D13: 0.02398654179 | F13: 10 | G13: Polónia | H13: 183637.1006 | I13: 0.01800643784 | K13: 10 | L13: Reino Unido | M13: 313115.4092 | N13: 0.01813638745 | O13: 92555.8304
A14: 11 | B14: Bélgica | C14: 166518.1478 | D14: 0.02356587025 | F14: 11 | G14: Roménia | H14: 135111.7674 | I14: 0.0132483122 | K14: 11 | L14: Angola | M14: 277936.6246 | N14: 0.01609874877 | O14: 263694.0198
A15: 12 | B15: Reino Unido (sem Irlanda do Norte) pós 2020 | C15: 153199.9856 | D15: 0.02168106618 | F15: 12 | G15: África do Sul | H15: 112523.4846 | I15: 0.0110334302 | K15: 12 | L15: Reino Unido (sem Irlanda do Norte) pós 2020 | M15: 202787.0812 | N15: 0.01174590891 | O15: 103612.89
A16: 13 | B16: Polónia | C16: 134287.5772 | D16: 0.01900455693 | F16: 13 | G16: Reino Unido | H16: 110279.7894 | I16: 0.01081342586 | K16: 13 | L16: Ucrânia | M16: 198678.4348 | N16: 0.01150792636 | O16: -185168.0784
A17: 14 | B17: Suíça | C17: 92003.1512 | D17: 0.0130204086 | F17: 14 | G17: Irlanda | H17: 110243.3216 | I17: 0.01080985003 | K17: 14 | L17: Canadá | M17: 175349.2144 | N17: 0.01015664256 | O17: -30879.5124
A18: 15 | B18: Cabo Verde | C18: 85447.0724 | D18: 0.01209258359 | F18: 15 | G18: Canadá | H18: 103114.3634 | I18: 0.01011082384 | K18: 15 | L18: Israel | M18: 174656.3316 | N18: 0.01011650914 | O18: 164324.9552
A19: 16 | B19: Canadá | C19: 72234.851 | D19: 0.0102227724 | F19: 16 | G19: Argentina | H19: 72786.9924 | I19: 0.007137089672 | K19: 16 | L19: Roménia | M19: 150921.1448 | N19: 0.008741710805 | O19: -119302.39
A20: 17 | B20: China, República Popular da | C20: 72213.8082 | D20: 0.0102197944 | F20: 17 | G20: Dinamarca | H20: 70231.4784 | I20: 0.006886510112 | K20: 17 | L20: Irlanda | M20: 137024.7724 | N20: 0.007936799943 | O20: -83461.8708
A21: 18 | B21: Japão | C21: 54923.5388 | D21: 0.007772852425 | F21: 18 | G21: Costa Rica | H21: 69966.4528 | I21: 0.006860523168 | K21: 18 | L21: África do Sul | M21: 134358.9168 | N21: 0.007782387261 | O21: -90688.0524
A22: 19 | B22: Suécia | C22: 50824.6094 | D22: 0.007192766472 | F22: 19 | G22: Reino Unido (sem Irlanda do Norte) pós 2020 | H22: 49587.0956 | I22: 0.00486223618 | K22: 19 | L22: Dinamarca | M22: 117591.8134 | N22: 0.006811196848 | O22: -22871.1434
A23: 20 | B23: Rússia, Federação da | C23: 48396.534 | D23: 0.006849142005 | F23: 20 | G23: Bulgária | H23: 45248.5012 | I23: 0.004436817623 | K23: 20 | L23: China, República Popular da | M23: 117263.0084 | N23: 0.006792151682 | O23: 27164.608
A24: 21 | B24: Dinamarca | C24: 47360.335 | D24: 0.006702497741 | F24: 21 | G24: China, República Popular da | H24: 45049.2002 | I24: 0.00441727527 | K24: 21 | L24: Suíça | M24: 94990.2382 | N24: 0.005502059985 | O24: 89016.0642
A25: 22 | B25: Luxemburgo | C25: 45455.684 | D25: 0.006432948993 | F25: 22 | G25: Cuba | H25: 35800.4636 | I25: 0.003510395341 | K25: 22 | L25: Cabo Verde | M25: 85573.8106 | N25: 0.004956638155 | O25: 85320.3342
A26: 23 | B26: Marrocos | C26: 40790.7978 | D26: 0.005772768079 | F26: 23 | G26: Grécia | H26: 30696.3508 | I26: 0.003009914286 | K26: 23 | L26: Argentina | M26: 73024.3208 | N26: 0.004229741929 | O26: -72549.664
A27: 24 | B27: Guiné-Bissau | C27: 30105.257 | D27: 0.004260536101 | F27: 24 | G27: Vietname | H27: 28842.503 | I27: 0.00282813623 | K27: 24 | L27: Costa Rica | M27: 71166.176 | N27: 0.004122113773 | O27: -68766.7296
A28: 25 | B28: Irlanda | C28: 26781.4508 | D28: 0.003790146617 | F28: 25 | G28: Colômbia | H28: 28226.344 | I28: 0.002767719088 | K28: 25 | L28: Japão | M28: 68515.1074 | N28: 0.00396855759 | O28: 41331.9702
A29: 26 | B29: São Tomé e Príncipe | C29: 25260.7912 | D29: 0.003574940844 | F29: 26 | G29: Guiana | H29: 28025.2642 | I29: 0.002748002316 | K29: 26 | L29: Suécia | M29: 64540.5576 | N29: 0.003738342235 | O29: 37108.6612
A30: 27 | B30: Arábia Saudita | C30: 25200.9646 | D30: 0.003566474103 | F30: 27 | G30: Chile | H30: 24582.6414 | I30: 0.002410437776 | K30: 27 | L30: Rússia, Federação da | M30: 60555.2322 | N30: 0.003507502731 | O30: 36237.8358
A31: 28 | B31: Moçambique | C31: 25040.048 | D31: 0.003543700972 | F31: 28 | G31: Áustria | H31: 23767.51 | I31: 0.002330510502 | K31: 28 | L31: Luxemburgo | M31: 53698.83 | N31: 0.003110363647 | O31: 37212.538
A32: 29 | B32: Grécia | C32: 22271.2594 | D32: 0.003151858318 | F32: 29 | G32: Uruguai | H32: 22544.114 | I32: 0.00221055106 | K32: 29 | L32: Bulgária | M32: 53404.496 | N32: 0.003093315124 | O32: -37092.5064
A33: 30 | B33: África do Sul | C33: 21835.4322 | D33: 0.003090179472 | F33: 30 | G33: Checa, República | H33: 22169.2118 | I33: 0.002173790225 | K33: 30 | L33: Grécia | M33: 52967.6102 | N33: 0.003068009662 | O33: -8425.0914
A34: 31 | B34: Finlândia | C34: 19884.365 | D34: 0.002814061841 | F34: 31 | G34: Costa do Marfim | H34: 21706.6942 | I34: 0.002128438309 | K34: 31 | L34: Marrocos | M34: 50677.0038 | N34: 0.002935332304 | O34: 30904.5918
A35: 32 | B35: Checa, República | C35: 18235.0968 | D35: 0.002580655207 | F35: 32 | G35: Índia | H35: 20821.1078 | I35: 0.002041602607 | K35: 32 | L35: Checa, República | M35: 40404.3086 | N35: 0.002340313423 | O35: -3934.115
A36: 33 | B36: Jordânia | C36: 17519.4376 | D36: 0.002479374163 | F36: 33 | G36: Paraguai | H36: 18543.3936 | I36: 0.001818262558 | K36: 33 | L36: Cuba | M36: 38670.0018 | N36: 0.002239858258 | O36: -32930.9254
A37: 34 | B37: Noruega | C37: 16995.9884 | D37: 0.002405294934 | F37: 34 | G37: Turquia | H37: 17986.1158 | I37: 0.00176361898 | K37: 34 | L37: Áustria | M37: 38061.8468 | N37: 0.002204632478 | O37: -9473.1732
A38: 35 | B38: Roménia | C38: 15809.3774 | D38: 0.002237364164 | F38: 35 | G38: Hungria | H38: 16799.5642 | I38: 0.001647272297 | K38: 35 | L38: Moçambique | M38: 35153.372 | N38: 0.002036166716 | O38: 14926.724
A39: 36 | B39: Austrália | C39: 14444.1886 | D39: 0.002044160825 | F39: 36 | G39: Uganda | H39: 16711.9112 | I39: 0.001638677529 | K39: 36 | L39: Colômbia | M39: 34587.7746 | N39: 0.002003405973 | O39: -21864.9134
A40: 37 | B40: Áustria | C40: 14294.3368 | D40: 0.002022953598 | F40: 37 | G40: Suécia | H40: 13715.9482 | I40: 0.001344909977 | K40: 37 | L40: Vietname | M40: 30876.7168 | N40: 0.0017884527 | O40: -26808.2892
A41: 38 | B41: Coreia, República da | C41: 13714.1396 | D41: 0.001940843317 | F41: 38 | G41: Japão | H41: 13591.5686 | I41: 0.001332714001 | K41: 38 | L41: Guiné-Bissau | M41: 30466.7032 | N41: 0.001764703739 | O41: 29743.8108
A42: 39 | B42: Iraque | C42: 12402.8826 | D42: 0.001755272479 | F42: 39 | G42: Suazilândia | H42: 13238.5734 | I42: 0.001298101246 | K42: 39 | L42: Chile | M42: 30212.416 | N42: 0.001749974821 | O42: -18952.8668
A43: 40 | B43: Emirados Árabes Unidos | C43: 11850.4352 | D43: 0.001677089386 | F43: 40 | G43: Indonésia | H43: 13223.1014 | I43: 0.001296584147 | K43: 40 | L43: Guiana | M43: 28043.5076 | N43: 0.0016243465 | O43: -28007.0208
A44: 41 | B44: Argélia | C44: 11256.5744 | D44: 0.001593045414 | F44: 41 | G44: México | H44: 13063.4442 | I44: 0.001280929045 | K44: 41 | L44: Hungria | M44: 27998.5132 | N44: 0.001621740318 | O44: -5600.6152
A45: 42 | B45: Macau | C45: 11226.3432 | D45: 0.001588767055 | F45: 42 | G45: Austrália | H45: 12929.8552 | I45: 0.001267830047 | K45: 42 | L45: Turquia | M45: 27952.4328 | N45: 0.001619071232 | O45: -8019.7988
A46: 43 | B46: Hungria | C46: 11198.949 | D46: 0.001584890191 | F46: 43 | G46: Rússia, Federação da | H46: 12158.6982 | I46: 0.001192214659 | K46: 43 | L46: Austrália | M46: 27374.0438 | N46: 0.001585569569 | O46: 1514.3334
A47: 44 | B47: Nigéria | C47: 10950.0114 | D47: 0.00154966021 | F47: 44 | G47: Moldava, República de | H47: 11903.4008 | I47: 0.001167181609 | K47: 44 | L47: Finlândia | M47: 27349.3512 | N47: 0.001584139315 | O47: 12419.3788
A48: 45 | B48: Turquia | C48: 9966.317 | D48: 0.001410446467 | F48: 45 | G48: Peru | H48: 11309.1784 | I48: 0.001108915449 | K48: 45 | L48: Costa do Marfim | M48: 27312.2444 | N48: 0.001581990001 | O48: -16101.144
A49: 46 | B49: Território Palestiniano Ocupado | C49: 9369.3582 | D49: 0.001325964062 | F49: 46 | G49: Lituânia | H49: 10559.9636 | I49: 0.001035451592 | K49: 46 | L49: São Tomé e Príncipe | M49: 26314.2624 | N49: 0.001524184515 | O49: 24207.32
A50: 47 | B50: Eslováquia | C50: 9087.5718 | D50: 0.001286085275 | F50: 47 | G50: Paquistão | H50: 10304.0036 | I50: 0.001010353571 | K50: 47 | L50: Arábia Saudita | M50: 25224.07 | N50: 0.001461037985 | O50: 25177.8592
A51: 48 | B51: Senegal | C51: 8493.732 | D51: 0.001202044275 | F51: 48 | G51: Tailândia | H51: 10199.4388 | I51: 0.001000100525 | K51: 48 | L51: Uruguai | M51: 24295.7548 | N51: 0.001407267766 | O51: -20792.4732
A52: 49 | B52: Bulgária | C52: 8155.9948 | D52: 0.001154247256 | F52: 49 | G52: Moçambique | H52: 10113.324 | I52: 0.0009916565844 | K52: 49 | L52: Índia | M52: 23835.9726 | N52: 0.00138063609 | O52: -17806.243
A53: 50 | B53: Líbia, Jamahira Árabe da | C53: 7994.648 | D53: 0.001131413242 | F53: 50 | G53: Marrocos | H53: 9886.206 | I53: 0.0009693866502 | K53: 50 | L53: Paraguai | M53: 19188.0202 | N53: 0.001111415658 | O53: -17898.767
A54: 51 | B54: Gibraltar | C54: 7555.2434 | D54: 0.001069228117 | F54: 51 | G54: Egito | H54: 9790.4264 | I54: 0.0009599950327 | K54: 51 | L54: México | M54: 18719.0294 | N54: 0.001084250598 | O54: -7407.859
A55: 52 | B55: Kuwait | C55: 7349.7522 | D55: 0.001040146729 | F55: 52 | G55: Letónia | H55: 8952.1544 | I55: 0.0008777987194 | K55: 52 | L55: Noruega | M55: 18005.9244 | N55: 0.001042945865 | O55: 15986.0524
A56: 53 | B56: Ucrânia | C56: 6755.1782 | D56: 0.0009560018236 | F56: 53 | G56: Sérvia | H56: 8809.7352 | I56: 0.0008638338807 | K56: 53 | L56: Jordânia | M56: 17548.9282 | N56: 0.001016475561 | O56: 17489.947
A57: 54 | B57: Colômbia | C57: 6361.4306 | D57: 0.0009002781384 | F57: 54 | G57: Luxemburgo | H57: 8243.146 | I57: 0.0008082772793 | K57: 54 | L57: Uganda | M57: 17197.4672 | N57: 0.0009961181055 | O57: -16226.3552
A58: 55 | B58: Letónia | C58: 5851.9654 | D58: 0.0008281779442 | F58: 55 | G58: Equador | H58: 8207.9326 | I58: 0.0008048244482 | K58: 55 | L58: Lituânia | M58: 15596.9716 | N58: 0.0009034136028 | O58: -5522.9556
A59: 56 | B59: HongKong | C59: 5831.0346 | D59: 0.0008252157894 | F59: 56 | G59: Nova Zelânda | H59: 7880.6232 | I59: 0.0007727302997 | K59: 56 | L59: Suazilândia | M59: 15229.1516 | N59: 0.0008821085956 | O59: -11247.9952
A60: 57 | B60: Maurícias | C60: 5663.2906 | D60: 0.000801476435 | F60: 57 | G60: Finlândia | H60: 7464.9862 | I60: 0.0007319752356 | K60: 57 | L60: Letónia | M60: 14804.1198 | N60: 0.0008574897453 | O60: -3100.189
A61: 58 | B61: México | C61: 5655.5852 | D61: 0.0008003859565 | F61: 58 | G61: Malásia | H61: 7402.4108 | I61: 0.0007258394382 | K61: 58 | L61: Coreia, República da | M61: 14651.7386 | N61: 0.0008486634646 | O61: 12776.5406
A62: 59 | B62: Chile | C62: 5629.7746 | D62: 0.000796733206 | F62: 59 | G62: Angola | H62: 7121.3024 | I62: 0.0006982755041 | K62: 59 | L62: Indonésia | M62: 14360.499 | N62: 0.0008317941759 | O62: -12085.7038
A63: 60 | B63: Costa do Marfim | C63: 5605.5502 | D63: 0.0007933049366 | F63: 60 | G63: Camarões | H63: 6330.7516 | I63: 0.0006207584676 | K63: 60 | L63: Tailândia | M63: 13287.765 | N63: 0.0007696588773 | O63: -7111.1126
A64: 61 | B64: Andorra | C64: 5268.3636 | D64: 0.0007455858395 | F64: 61 | G64: Honduras | H64: 6193.611 | I64: 0.0006073112193 | K64: 61 | L64: Peru | M64: 13096.3328 | N64: 0.0007585706701 | O64: -9522.024
A65: 62 | B65: Lituânia | C65: 5037.008 | D65: 0.0007128440866 | F65: 62 | G65: Etiópia | H65: 5332.6708 | I65: 0.0005228921877 | K65: 62 | L65: Eslováquia | M65: 12663.425 | N65: 0.0007334956231 | O65: 5511.7186
A66: 63 | B66: Estónia | C66: 4869.894 | D66: 0.0006891938905 | F66: 63 | G66: Israel | H66: 5165.6882 | I66: 0.000506518798 | K66: 63 | L66: Iraque | M66: 12415.1466 | N66: 0.0007191147491 | O66: 12390.6186
A67: 64 | B67: Malta | C67: 4732.779 | D67: 0.0006697891929 | F67: 64 | G67: Belize | H67: 5153.7922 | I67: 0.0005053523421 | K67: 64 | L67: Emirados Árabes Unidos | M67: 12305.7766 | N67: 0.0007127797792 | O67: 11395.0938
A68: 65 | B68: Síria, República Árabe da | C68: 4399.3294 | D68: 0.0006225989611 | F68: 65 | G68: Camboja | H68: 4964.372 | I68: 0.0004867788455 | K68: 65 | L68: Moldava, República de | M68: 12104.7888 | N68: 0.0007011380889 | O68: -11702.0128
A69: 66 | B69: Chipre | C69: 4087.2516 | D69: 0.0005784332948 | F69: 66 | G69: Zimbabwe | H69: 4708.9854 | I69: 0.0004617370489 | K69: 66 | L69: Argélia | M69: 11803.7068 | N69: 0.0006836987051 | O69: 10709.442
A70: 67 | B70: Omã | C70: 3805.6814 | D70: 0.0005385851048 | F70: 67 | G70: Guatemala | H70: 4634.8976 | I70: 0.0004544724092 | K70: 67 | L70: Sérvia | M70: 11344.2464 | N70: 0.0006570856685 | O70: -6275.224
A71: 68 | B71: Eslovénia | C71: 3320.9676 | D71: 0.0004699877617 | F71: 68 | G71: Suriname | H71: 4613.819 | I71: 0.0004524055583 | K71: 68 | L71: Egito | M71: 11328.9988 | N71: 0.0006562024914 | O71: -8251.854
A72: 69 | B72: Mali | C72: 3288.1148 | D72: 0.0004653383896 | F72: 69 | G72: Macedónia, Antiga República jugoslava da | H72: 4601.6794 | I72: 0.0004512152163 | K72: 69 | L72: Macau | M72: 11242.8404 | N72: 0.0006512119924 | O72: 11209.846
A73: 70 | B73: Tailândia | C73: 3088.3262 | D73: 0.0004370640406 | F73: 70 | G73: Eslovénia | H73: 4577.0544 | I73: 0.0004488006251 | K73: 70 | L73: Nigéria | M73: 11147.6308 | N73: 0.0006456972265 | O73: 10752.392
A74: 71 | B74: Índia | C74: 3014.8648 | D74: 0.0004266676854 | F74: 71 | G74: Tanzânia, República Unida da | H74: 4539.6584 | I74: 0.0004451337803 | K74: 71 | L74: Paquistão | M74: 10570.8542 | N74: 0.0006122889572 | O74: -10037.153
A75: 72 | B75: Singapura | C75: 2956.254 | D75: 0.0004183730068 | F75: 72 | G75: Filipinas | H75: 4493.245 | I75: 0.0004405827391 | K75: 72 | L75: Nova Zelânda | M75: 10271.0628 | N75: 0.000594924328 | O75: -5490.1836
A76: 73 | B76: Cuba | C76: 2869.5382 | D76: 0.0004061008712 | F76: 73 | G76: Tunísia | H76: 4126.4674 | I76: 0.0004046185574 | K76: 73 | L76: Território Palestiniano Ocupado | M76: 9369.8434 | N76: 0.000542723562 | O76: 9368.873
A77: 74 | B77: Gana | C77: 2746.7854 | D77: 0.0003887287313 | F77: 74 | G77: Estónia | H77: 4043.8982 | I77: 0.0003965222786 | K77: 74 | L77: Senegal | M77: 9057.0902 | N77: 0.0005246081546 | O77: 7930.3738
A78: 75 | B78: Taiwan | C78: 2744.6238 | D78: 0.0003884228188 | F78: 75 | G78: Reino Unido (Irlanda do Norte) pós-2020 | H78: 3995.535 | I78: 0.0003917800509 | K78: 75 | L78: Equador | M78: 9035.3682 | N78: 0.0005233499648 | O78: -7380.497
A79: 76 | B79: Sérvia | C79: 2534.5112 | D79: 0.0003586874036 | F79: 76 | G79: Mali | H79: 3760.9918 | I79: 0.0003687820426 | K79: 76 | L79: Estónia | M79: 8913.7922 | N79: 0.0005163079944 | O79: 825.9958
A80: 77 | B80: Líbano | C80: 2519.7508 | D80: 0.0003565984921 | F80: 77 | G80: Eslováquia | H80: 3575.8532 | I80: 0.0003506283761 | K80: 77 | L80: Malásia | M80: 8903.6532 | N80: 0.0005157207195 | O80: -5901.1684
A81: 78 | B81: Timor-Leste | C81: 2471.9198 | D81: 0.0003498293852 | F81: 78 | G81: Myanmar | H81: 3336.325 | I81: 0.0003271415663 | K81: 78 | L81: Camarões | M81: 8611.8814 | N81: 0.0004988206045 | O81: -4049.6218
A82: 79 | B82: Belarus | C82: 2455.9286 | D82: 0.0003475662893 | F82: 79 | G82: Quénia | H82: 3256.0222 | I82: 0.0003192675181 | K82: 79 | L82: Kuwait | M82: 8533.2046 | N82: 0.0004942634576 | O82: 6166.2998
A83: 80 | B83: Nova Zelânda | C83: 2390.4396 | D83: 0.0003382981987 | F83: 80 | G83: Malavi | H83: 3254.1762 | I83: 0.0003190865096 | K83: 80 | L83: Líbia, Jamahira Árabe da | M83: 8000.598 | N83: 0.0004634136196 | O83: 7988.698
A84: 81 | B84: Filipinas | C84: 2342.9576 | D84: 0.0003315784827 | F84: 81 | G84: Nicarágua | H84: 3164.5064 | I84: 0.0003102939852 | K84: 81 | L84: Eslovénia | M84: 7898.022 | N84: 0.0004574721743 | O84: -1256.0868
A85: 82 | B85: Camarões | C85: 2281.1298 | D85: 0.0003228285301 | F85: 82 | G85: Chipre | H85: 3147.1004 | I85: 0.0003085872492 | K85: 82 | L85: Gibraltar | M85: 7555.2434 | N85: 0.0004376176244 | O85: 7555.2434
A86: 83 | B86: Guiné | C86: 2265.6424 | D86: 0.0003206367326 | F86: 83 | G86: Sri Lanca | H86: 3073.8124 | I86: 0.0003014010335 | K86: 83 | L86: Chipre | M86: 7234.352 | N86: 0.0004190308331 | O86: 940.1512
A87: 84 | B87: Irão, República Islâmica do | C87: 2234.7082 | D87: 0.0003162588834 | F87: 84 | G87: Suíça | H87: 2987.087 | I87: 0.0002928972207 | K87: 84 | L87: Maurícias | M87: 7215.0708 | N87: 0.0004179140203 | O87: 4111.5104
A88: 85 | B88: Congo | C88: 2184.5722 | D88: 0.0003091635698 | F88: 85 | G88: Taiwan | H88: 2718.5488 | I88: 0.0002665658509 | K88: 85 | L88: Mali | M88: 7049.1066 | N88: 0.00040830098 | O88: -472.877
A89: 86 | B89: Seychelles | C89: 2103.9052 | D89: 0.0002977474684 | F89: 86 | G89: Dominicana, República | H89: 2224.7352 | I89: 0.0002181452221 | K89: 86 | L89: HongKong | M89: 7034.5032 | N89: 0.0004074551165 | O89: 4627.566
A90: 87 | B90: Gabão | C90: 2079.6516 | D90: 0.0002943150666 | F90: 87 | G90: Serra Leoa | H90: 1997.841 | I90: 0.0001958972324 | K90: 87 | L90: Honduras | M90: 7007.3132 | N90: 0.0004058802071 | O90: -5379.9088
A91: 88 | B91: Venezuela | C91: 2058.7692 | D91: 0.0002913597616 | F91: 88 | G91: Benim | H91: 1817.538 | I91: 0.000178217718 | K91: 88 | L91: Filipinas | M91: 6836.2026 | N91: 0.0003959690752 | O91: -2150.2874
A92: 89 | B92: Vietname | C92: 2034.2138 | D92: 0.0002878846486 | F92: 89 | G92: Croácia | H92: 1813.6516 | I92: 0.0001778366392 | K92: 89 | L92: Etiópia | M92: 6077.0796 | N92: 0.0003519988698 | O92: -4588.262
A93: 90 | B93: Suazilândia | C93: 1990.5782 | D93: 0.0002817092803 | F93: 90 | G93: Burquina Faso | H93: 1725.737 | I93: 0.00016921622 | K93: 90 | L93: Malta | M93: 5816.0858 | N93: 0.0003368814896 | O93: 3649.4722
A94: 91 | B94: Sudão | C94: 1865.0268 | D94: 0.0002639410788 | F94: 91 | G94: Gana | H94: 1658.4144 | I94: 0.0001626149384 | K94: 91 | L94: Taiwan | M94: 5463.1726 | N94: 0.0003164399197 | O94: 26.075
A95: 92 | B95: Burquina Faso | C95: 1848.8938 | D95: 0.0002616579152 | F95: 92 | G95: Laos, República Democrática Popular do | H95: 1570.3752 | I95: 0.0001539823017 | K95: 92 | L95: Camboja | M95: 5365.8038 | N95: 0.0003108000878 | O95: -4562.9402
A96: 93 | B96: Guiné Equatorial | C96: 1818.2016 | D96: 0.0002573143141 | F96: 93 | G96: Maurícias | H96: 1551.7802 | I96: 0.0001521589789 | K96: 93 | L96: Síria, República Árabe da | M96: 5349.1634 | N96: 0.0003098362363 | O96: 3449.4954
A97: 94 | B97: Peru | C97: 1787.1544 | D97: 0.000252920473 | F97: 94 | G97: Madagáscar | H97: 1535.4896 | I97: 0.0001505616128 | K97: 94 | L97: Reino Unido (Irlanda do Norte) pós-2020 | M97: 5295.453 | N97: 0.0003067252025 | O97: -2695.617
A98: 95 | B98: Croácia | C98: 1771.9842 | D98: 0.0002507735661 | F98: 95 | G98: Panamá | H98: 1513.6692 | I98: 0.0001484220251 | K98: 95 | L98: Andorra | M98: 5273.09 | N98: 0.0003054298845 | O98: 5263.6372
A99: 96 | B99: Uruguai | C99: 1751.6408 | D99: 0.000247894541 | F99: 96 | G99: Congo, República Democrática do | H99: 1226.6902 | I99: 0.0001202824525 | K99: 96 | L99: Belize | M99: 5155.9728 | N99: 0.0002986461784 | O99: -5151.6116
A100: 97 | B100: Dominicana, República | C100: 1708.9932 | D100: 0.0002418589958 | F100: 97 | G100: HongKong | H100: 1203.4686 | I100: 0.0001180054709 | K100: 97 | L100: Guatemala | M100: 5126.7604 | N100: 0.0002969541269 | O100: -4143.0348
A101: 98 | B101: Benim | C101: 1572.4166 | D101: 0.0002225304933 | F101: 98 | G101: Kuwait | H101: 1183.4524 | I101: 0.0001160427931 | K101: 98 | L101: Tanzânia, República Unida da | M101: 4910.6254 | N101: 0.0002844350748 | O101: -4168.6914
A102: 99 | B102: Bangladesh | C102: 1558.9346 | D102: 0.0002206225027 | F102: 99 | G102: Togo | H102: 1123.3014 | I102: 0.0001101447189 | K102: 99 | L102: Macedónia, Antiga República jugoslava da | M102: 4874.3908 | N102: 0.0002823362808 | O102: -4328.968
A103: 100 | B103: Egito | C103: 1538.5724 | D103: 0.000217740817 | F103: 100 | G103: Malta | H103: 1083.3068 | I103: 0.0001062230698 | K103: 100 | L103: Tunísia | M103: 4852.0784 | N103: 0.0002810438937 | O103: -3400.8564
A104: 101 | B104: Catar | C104: 1515.2294 | D104: 0.0002144372845 | F104: 101 | G104: Singapura | H104: 1064.6932 | I104: 0.0001043979232 | K104: 101 | L104: Zimbabwe | M104: 4772.268 | N104: 0.000276421086 | O104: -4645.7028
A105: 102 | B105: Malásia | C105: 1501.2424 | D105: 0.0002124578256 | F105: 102 | G105: São Tomé e Príncipe | H105: 1053.4712 | I105: 0.000103297556 | K105: 102 | L105: Suriname | M105: 4769.9158 | N105: 0.0002762848409 | O105: -4457.7222
A106: 103 | B106: Geórgia | C106: 1344.215 | D106: 0.0001902350987 | F106: 103 | G106: Noruega | H106: 1009.936 | I106: 9.902873519e-05 | K106: 103 | L106: Gana | M106: 4405.1998 | N106: 0.0002551596248 | O106: 1088.371
A107: 104 | B107: Reino Unido (Irlanda do Norte) pós-2020 | C107: 1299.918 | D107: 0.0001839661282 | F107: 104 | G107: Síria, República Árabe da | H107: 949.834 | I107: 9.313546567e-05 | K107: 104 | L107: Omã | M107: 4285.638 | N107: 0.0002482343217 | O107: 3325.7248
A108: 105 | B108: Albânia | C108: 1266.1722 | D108: 0.0001791903776 | F108: 105 | G108: Coreia, República da | H108: 937.599 | I108: 9.193576928e-05 | K108: 105 | L108: Singapura | M108: 4020.9472 | N108: 0.0002329028025 | O108: 1891.5608
A109: 106 | B109: Costa Rica | C109: 1199.7232 | D109: 0.0001697864265 | F109: 106 | G109: El Salvador | H109: 727.8254 | I109: 7.136653095e-05 | K109: 106 | L109: Dominicana, República | M109: 3933.7284 | N109: 0.0002278508827 | O109: -515.742
A110: 107 | B110: Indonésia | C110: 1137.3976 | D110: 0.0001609660245 | F110: 107 | G110: Turquemenistão | H110: 720.6558 | I110: 7.066351965e-05 | K110: 107 | L110: Myanmar | M110: 3786.5344 | N110: 0.0002193250569 | O110: -2886.1156
A111: 108 | B111: Islândia | C111: 1133.5366 | D111: 0.0001604196107 | F111: 108 | G111: Chade | H111: 675.9004 | I111: 6.62750528e-05 | K111: 108 | L111: Quénia | M111: 3706.4946 | N111: 0.0002146889618 | O111: -2805.5498
A112: 109 | B112: Congo, República Democrática do | C112: 1102.9464 | D112: 0.0001560904448 | F112: 109 | G112: Timor-Leste | H112: 614.232 | I112: 6.022819077e-05 | K112: 109 | L112: Croácia | M112: 3585.6358 | N112: 0.0002076885333 | O112: -41.6674
A113: 110 | B113: Togo | C113: 886.836 | D113: 0.0001255062129 | F113: 110 | G113: Senegal | H113: 563.3582 | I113: 5.523978747e-05 | K113: 110 | L113: Nicarágua | M113: 3581.558 | N113: 0.0002074523375 | O113: -2747.4548
A114: 111 | B114: Panamá | C114: 853.2114 | D114: 0.0001207476147 | F114: 111 | G114: Argélia | H114: 547.1324 | I114: 5.364877532e-05 | K114: 111 | L114: Burquina Faso | M114: 3574.6308 | N114: 0.0002070510976 | O114: 123.1568
A115: 112 | B115: Equador | C115: 827.4356 | D115: 0.0001170997891 | F115: 112 | G115: Líbano | H115: 532.1362 | I115: 5.217833094e-05 | K115: 112 | L115: Sri Lanca | M115: 3466.8512 | N115: 0.0002008082475 | O115: -2680.7736
A116: 113 | B116: Ruanda | C116: 825.9096 | D116: 0.0001168838275 | F116: 113 | G116: Omã | H116: 479.9566 | I116: 4.706188812e-05 | K116: 113 | L116: Benim | M116: 3389.9546 | N116: 0.0001963542139 | O116: -245.1214
A117: 114 | B117: Honduras | C117: 813.7022 | D117: 0.00011515622 | F117: 114 | G117: Emirados Árabes Unidos | H117: 455.3414 | I117: 4.464825783e-05 | K117: 114 | L117: Malavi | M117: 3260.7796 | N117: 0.0001888720914 | O117: -3247.5728
A118: 115 | B118: Bermudas | C118: 793.1712 | D118: 0.0001122506455 | F118: 115 | G118: Belarus | H118: 370.9342 | I118: 3.637175491e-05 | K118: 115 | L118: Timor-Leste | M118: 3086.1518 | N118: 0.0001787572349 | O118: 1857.6878
A119: 116 | B119: Etiópia | C119: 744.4088 | D119: 0.0001053497257 | F119: 116 | G119: Guiné-Bissau | H119: 361.4462 | I119: 3.544141413e-05 | K119: 116 | L119: Líbano | M119: 3051.887 | N119: 0.0001767725364 | O119: 1987.6146
A120: 117 | B120: Tunísia | C120: 725.611 | D120: 0.000102689436 | F120: 117 | G120: Usbequistão | H120: 308.2694 | I120: 3.022719141e-05 | K120: 117 | L120: Belarus | M120: 2826.8628 | N120: 0.0001637386008 | O120: 2084.9944
A121: 118 | B121: Burundi | C121: 677.0954 | D121: 9.582344359e-05 | F121: 118 | G121: Guiné | H121: 302.1342 | I121: 2.962560765e-05 | K121: 118 | L121: Guiné | M121: 2567.7766 | N121: 0.0001487317134 | O121: 1963.5082
A122: 119 | B122: Iémen | C122: 670.7886 | D122: 9.493089684e-05 | F122: 119 | G122: Geórgia | H122: 294.5626 | I122: 2.888317845e-05 | K122: 119 | L122: Serra Leoa | M122: 2499.2974 | N122: 0.0001447652356 | O122: -1496.3846
A123: 120 | B123: Paraguai | C123: 644.6266 | D123: 9.122841573e-05 | F123: 120 | G123: Bolívia | H123: 281.6492 | I123: 2.761696191e-05 | K123: 120 | L123: Irão, República Islâmica do | M123: 2440.1832 | N123: 0.0001413412009 | O123: 2029.2332
A124: 121 | B124: Namíbia | C124: 633.8792 | D124: 8.970742935e-05 | F124: 121 | G124: Bangladesh | H124: 280.7044 | I124: 2.752432005e-05 | K124: 121 | L124: Congo | M124: 2383.877 | N124: 0.0001380798122 | O124: 1985.2674
A125: 122 | B125: Azerbaijão | C125: 594.9756 | D125: 8.420174002e-05 | F125: 122 | G125: Irão, República Islâmica do | H125: 205.475 | I125: 2.01477414e-05 | K125: 122 | L125: Panamá | M125: 2366.8806 | N125: 0.0001370953404 | O125: -660.4578
A126: 123 | B126: Arménia | C126: 559.6906 | D126: 7.920815979e-05 | F126: 123 | G126: Congo | H126: 199.3048 | I126: 1.954272574e-05 | K126: 123 | L126: Congo, República Democrática do | M126: 2329.6366 | N126: 0.0001349380795 | O126: -123.7438
A127: 124 | B127: Cazaquistão | C127: 531.8816 | D127: 7.527259304e-05 | F127: 124 | G127: Zâmbia | H127: 199.3012 | I127: 1.954237274e-05 | K127: 124 | L127: Venezuela | M127: 2213.7304 | N127: 0.0001282245174 | O127: 1903.808
A128: 125 | B128: Aruba | C128: 522.985 | D128: 7.401353435e-05 | F128: 125 | G128: Nigéria | H128: 197.6194 | I128: 1.937746474e-05 | K128: 125 | L128: Seychelles | M128: 2103.9052 | N128: 0.0001218631812 | O128: 2103.9052
A129: 126 | B129: Serra Leoa | C129: 501.4564 | D129: 7.096677818e-05 | F129: 126 | G129: Islândia | H129: 194.2478 | I129: 1.90468643e-05 | K129: 126 | L129: Gabão | M129: 2079.9016 | N129: 0.0001204728358 | O129: 2079.4016
A130: 127 | B130: Guatemala | C130: 491.8628 | D130: 6.960907912e-05 | F130: 127 | G130: Venezuela | H130: 154.9612 | I130: 1.519463772e-05 | K130: 127 | L130: Togo | M130: 2010.1374 | N130: 0.0001164319278 | O130: -236.4654
A131: 128 | B131: Uganda | C131: 485.556 | D131: 6.871653237e-05 | F131: 128 | G131: Cabo Verde | H131: 126.7382 | I131: 1.242724652e-05 | K131: 128 | L131: Sudão | M131: 1881.5594 | N131: 0.0001089843849 | O131: 1848.4942
A132: 129 | B132: São Bartolomeu | C132: 472.0258 | D132: 6.680172043e-05 | F132: 129 | G132: Azerbaijão | H132: 124.8946 | I132: 1.224647331e-05 | K132: 129 | L132: Bangladesh | M132: 1839.639 | N132: 0.0001065562559 | O132: 1278.2302
A133: 130 | B133: Mauritânia | C133: 470.2498 | D133: 6.655037855e-05 | F133: 130 | G133: Albânia | H133: 104.056 | I133: 1.020315552e-05 | K133: 130 | L133: Guiné Equatorial | M133: 1818.2016 | N133: 0.0001053145508 | O133: 1818.2016
A134: 131 | B134: Barém | C134: 469.46 | D134: 6.6438605e-05 | F134: 131 | G134: Namíbia | H134: 69.6464 | I134: 6.829140562e-06 | K134: 131 | L134: Madagáscar | M134: 1665.147 | N134: 9.644926522e-05 | O134: -1405.8322
A135: 132 | B135: Gâmbia | C135: 455.249 | D135: 6.442744533e-05 | F135: 132 | G135: Tajiquistão | H135: 59.4122 | I135: 5.825631546e-06 | K135: 132 | L135: Geórgia | M135: 1638.7776 | N135: 9.4921887e-05 | O135: 1049.6524
A136: 133 | B136: Quénia | C136: 450.4724 | D136: 6.375145453e-05 | F136: 133 | G136: Iémen | H136: 45.76 | I136: 4.486972365e-06 | K136: 133 | L136: Laos, República Democrática Popular do | M136: 1584.7624 | N136: 9.179319845e-05 | O136: -1555.988
A137: 134 | B137: Myanmar | C137: 450.2094 | D137: 6.371423442e-05 | F137: 134 | G137: Libéria | H137: 38.8276 | I137: 3.807219585e-06 | K137: 134 | L137: Catar | M137: 1531.2716 | N137: 8.869488439e-05 | O137: 1499.1872
A138: 135 | B138: Kosovo | C138: 418.4652 | D138: 5.922175292e-05 | F138: 135 | G138: Aruba | H138: 38.029 | I138: 3.728913288e-06 | K138: 135 | L138: Albânia | M138: 1370.2282 | N138: 7.936686855e-05 | O138: 1162.1162
A139: 136 | B139: Nicarágua | C139: 417.0516 | D139: 5.902169837e-05 | F139: 136 | G139: São Marino | H139: 32.7702 | I139: 3.213264462e-06 | K139: 136 | L139: Islândia | M139: 1327.7844 | N139: 7.690842295e-05 | O139: 939.2888
A140: 137 | B140: Camboja | C140: 401.4318 | D140: 5.681116345e-05 | F140: 137 | G140: Botswana | H140: 29.9908 | I140: 2.940731879e-06 | K140: 137 | L140: El Salvador | M140: 1020.3732 | N140: 5.910243683e-05 | O140: -435.2776
A141: 138 | B141: Sri Lanca | C141: 393.0388 | D141: 5.56233749e-05 | F141: 138 | G141: Jordânia | H141: 29.4906 | I141: 2.891685035e-06 | K141: 138 | L141: Ruanda | M141: 826.0866 | N141: 4.784889597e-05 | O141: 825.7326
A142: 139 | B142: Bolívia | C142: 391.1324 | D142: 5.535357863e-05 | F142: 139 | G142: Bósnia-Herzegovina | H142: 27.8982 | I142: 2.735543104e-06 | K142: 139 | L142: Bermudas | M142: 793.8604 | N142: 4.5982278e-05 | O142: 792.482
A143: 140 | B143: Tanzânia, República Unida da | C143: 370.967 | D143: 5.249974434e-05 | F143: 140 | G143: Papuásia-Nova Guiné | H143: 25.837 | I143: 2.533433238e-06 | K143: 140 | L143: Turquemenistão | M143: 732.4956 | N143: 4.242788318e-05 | O143: -708.816
A144: 141 | B144: São Martinho (parte holandesa) | C144: 349.244 | D144: 4.942547643e-05 | F144: 141 | G144: Arábia Saudita | H144: 23.1054 | I144: 2.265587659e-06 | K144: 141 | L144: Azerbaijão | M144: 719.8702 | N144: 4.169659006e-05 | O144: 470.081
A145: 142 | B145: Comores | C145: 311.607 | D145: 4.409903802e-05 | F145: 142 | G145: Quirguizistão | H145: 17.4752 | I145: 1.713521404e-06 | K145: 142 | L145: Iémen | M145: 716.5486 | N145: 4.15041951e-05 | O145: 625.0286
A146: 143 | B146: Libéria | C146: 294.774 | D146: 4.171680942e-05 | F146: 143 | G146: Sudão | H146: 16.5326 | I146: 1.621095265e-06 | K146: 143 | L146: Namíbia | M146: 703.5256 | N146: 4.074987204e-05 | O146: 564.2328
A147: 144 | B147: Somália | C147: 292.8146 | D147: 4.143951252e-05 | F147: 144 | G147: Macau | H147: 16.4972 | I147: 1.617624137e-06 | K147: 144 | L147: Burundi | M147: 677.2094 | N147: 3.92255753e-05 | O147: 676.9814
A148: 145 | B148: El Salvador | C148: 292.5478 | D148: 4.140175463e-05 | F148: 145 | G148: Catar | H148: 16.0422 | I148: 1.573009355e-06 | K148: 145 | L148: Chade | M148: 675.9044 | N148: 3.91499866e-05 | O148: -675.8964
A149: 146 | B149: Jamaica | C149: 276.7996 | D149: 3.917304837e-05 | F149: 146 | G149: Arménia | H149: 15.34 | I149: 1.504155509e-06 | K149: 146 | L149: Bolívia | M149: 672.7816 | N149: 3.896910661e-05 | O149: 109.4832
A150: 147 | B150: Macedónia, Antiga República jugoslava da | C150: 272.7114 | D150: 3.859448086e-05 | F150: 147 | G150: Curaçau | H150: 12.9632 | I150: 1.271099654e-06 | K150: 147 | L150: Arménia | M150: 575.0306 | N150: 3.330713676e-05 | O150: 544.3506
A151: 148 | B151: Paquistão | C151: 266.8506 | D151: 3.776505263e-05 | F151: 148 | G151: Iraque | H151: 12.264 | I151: 1.202539971e-06 | K151: 148 | L151: Aruba | M151: 561.014 | N151: 3.249526203e-05 | O151: 484.956
A152: 149 | B152: Antígua e Barbuda | C152: 264.4064 | D152: 3.741914619e-05 | F152: 149 | G152: Jamaica | H152: 11.1226 | I152: 1.090620604e-06 | K152: 149 | L152: Cazaquistão | M152: 537.7376 | N152: 3.114703771e-05 | O152: 526.0256
A153: 150 | B153: Argentina | C153: 237.3284 | D153: 3.358703153e-05 | F153: 150 | G153: Kosovo | H153: 8.3722 | I153: 8.209316004e-07 | K153: 150 | L153: Barém | M153: 473.8044 | N153: 2.744387507e-05 | O153: 465.1156
A154: 151 | B154: Curaçau | C154: 224.0074 | D154: 3.170182585e-05 | F154: 151 | G154: Líbia, Jamahira Árabe da | H154: 5.95 | I154: 5.834240728e-07 | K154: 151 | L154: São Bartolomeu | M154: 472.3088 | N154: 2.735724637e-05 | O154: 471.7428
A155: 152 | B155: Moldava, República de | C155: 201.388 | D155: 2.850069821e-05 | F155: 152 | G155: Cazaquistão | H155: 5.856 | I155: 5.74206953e-07 | K155: 152 | L155: Mauritânia | M155: 471.8238 | N155: 2.732915402e-05 | O155: 468.6758
A156: 153 | B156: Haiti | C156: 195.7344 | D156: 2.77005932e-05 | F156: 153 | G156: Andorra | H156: 4.7264 | I156: 4.634446282e-07 | K156: 153 | L156: Gâmbia | M156: 455.249 | N156: 2.636910227e-05 | O156: 455.249
A157: 154 | B157: Ceuta e Melilha | C157: 191.5534 | D157: 2.710889251e-05 | F157: 154 | G157: São Cristovão e Nevis | H157: 4.4378 | I157: 4.351461093e-07 | K157: 154 | L157: Kosovo | M157: 426.8374 | N157: 2.472343499e-05 | O157: 410.093
A158: 155 | B158: Suriname | C158: 156.0968 | D158: 2.209102722e-05 | F158: 155 | G158: Afeganistão | H158: 4.3662 | I158: 4.281254095e-07 | K158: 155 | L158: São Martinho (parte holandesa) | M158: 349.244 | N158: 2.022904115e-05 | O158: 349.244
A159: 156 | B159: Trindade e Tobago | C159: 142.2682 | D159: 2.013398531e-05 | F159: 156 | G159: Barém | H159: 4.3444 | I159: 4.259878221e-07 | K159: 156 | L159: Usbequistão | M159: 348.6042 | N159: 2.019198241e-05 | O159: -267.9346
A160: 157 | B160: Nova Caledónia | C160: 140.1192 | D160: 1.982985596e-05 | F160: 157 | G160: Nepal | H160: 2.4222 | I160: 2.375075276e-07 | K160: 157 | L160: Zâmbia | M160: 336.5272 | N160: 1.949245392e-05 | O160: -62.0752
A161: 158 | B161: Zâmbia | C161: 137.226 | D161: 1.942040644e-05 | F161: 158 | G161: Lesoto | H161: 1.7136 | I161: 1.68026133e-07 | K161: 158 | L161: Libéria | M161: 333.6016 | N161: 1.932299622e-05 | O161: 255.9464
A162: 159 | B162: Polinésia Francesa | C162: 133.1554 | D162: 1.884432971e-05 | F162: 159 | G162: Liechtenstein | H162: 1.6922 | I162: 1.659277674e-07 | K162: 159 | L162: Comores | M162: 311.607 | N162: 1.804901681e-05 | O162: 311.607
A163: 160 | B163: Madagáscar | C163: 129.6574 | D163: 1.834928808e-05 | F163: 160 | G163: Mauritânia | H163: 1.574 | I163: 1.543377295e-07 | K163: 160 | L163: Somália | M163: 292.8146 | N163: 1.696051641e-05 | O163: 292.8146
A164: 161 | B164: Maldivas | C164: 127.1794 | D164: 1.799859822e-05 | F164: 161 | G164: Fiji, Ilhas | H164: 1.3646 | I164: 1.338051243e-07 | K164: 161 | L164: Jamaica | M164: 287.9222 | N164: 1.667713699e-05 | O164: 265.677
A165: 162 | B165: Niger | C165: 113.05 | D165: 1.59989867e-05 | F165: 162 | G165: Bermudas | H165: 0.6892 | I165: 6.757913798e-08 | K165: 162 | L165: Antígua e Barbuda | M165: 264.426 | N165: 1.531618134e-05 | O165: 264.3868
A166: 163 | B166: Liechtenstein | C166: 106.2456 | D166: 1.503601894e-05 | F166: 163 | G166: Território Palestiniano Ocupado | H166: 0.4852 | I166: 4.757602691e-08 | K166: 163 | L166: Curaçau | M166: 236.9706 | N166: 1.372589942e-05 | O166: 211.0442
A167: 164 | B167: Centro-Africana, República | C167: 83.0308 | D167: 1.17506295e-05 | F167: 164 | G167: Montenegro | H167: 0.3086 | I167: 3.025960821e-08 | K167: 164 | L167: Haiti | M167: 195.7408 | N167: 1.133777158e-05 | O167: 195.728
A168: 165 | B168: Jibuti | C168: 77.3086 | D168: 1.094081613e-05 | F168: 165 | G168: São Bartolomeu | H168: 0.283 | I168: 2.774941388e-08 | K168: 165 | L168: Ceuta e Melilha | M168: 191.5534 | N168: 1.109522744e-05 | O168: 191.5534
A169: 166 | B169: Nepal | C169: 76.6542 | D169: 1.084820457e-05 | F169: 166 | G169: Gabão | H169: 0.25 | I169: 2.45136165e-08 | K169: 166 | L169: Trindade e Tobago | M169: 142.2786 | N169: 8.241114103e-06 | O169: 142.2578
A170: 167 | B170: Zimbabwe | C170: 63.2826 | D170: 8.955837909e-06 | F170: 167 | G170: Ruanda | H170: 0.177 | I170: 1.735564048e-08 | K170: 167 | L170: Nova Caledónia | M170: 140.1192 | N170: 8.116036532e-06 | O170: 140.1192
A171: 168 | B171: Caimão, Ilhas | C171: 51.4562 | D171: 7.282150016e-06 | F171: 168 | G171: Barbados | H171: 0.1378 | I171: 1.351190542e-08 | K171: 168 | L171: Polinésia Francesa | M171: 133.1554 | N171: 7.712676712e-06 | O171: 133.1554
A172: 169 | B172: Bósnia-Herzegovina | C172: 50.6168 | D172: 7.163357009e-06 | F172: 169 | G172: Niger | H172: 0.1252 | I172: 1.227641914e-08 | K172: 169 | L172: Maldivas | M172: 127.183 | N172: 7.366741133e-06 | O172: 127.1758
A173: 170 | B173: Montenegro | C173: 46.101 | D173: 6.524274973e-06 | F173: 170 | G173: Burundi | H173: 0.114 | I173: 1.117820913e-08 | K173: 170 | L173: Niger | M173: 113.1752 | N173: 6.55537612e-06 | O173: 112.9248
A174: 171 | B174: Bahamas | C174: 42.9652 | D174: 6.080492377e-06 | F174: 171 | G174: Oceano Indico, Território Britânico do | H174: 0.098 | I174: 9.609337669e-09 | K174: 171 | L174: Liechtenstein | M174: 107.9378 | N174: 6.252013485e-06 | O174: 104.5534
A175: 172 | B175: Usbequistão | C175: 40.3348 | D175: 5.708234663e-06 | F175: 172 | G175: São Vicente e Granadinas | H175: 0.0416 | I175: 4.079065786e-09 | K175: 172 | L175: Centro-Africana, República | M175: 83.0308 | N175: 4.809340947e-06 | O175: 83.0308
A176: 173 | B176: Mongólia | C176: 30.8452 | D176: 4.365253821e-06 | F176: 173 | G176: Antígua e Barbuda | H176: 0.0196 | I176: 1.921867534e-09 | K176: 173 | L176: Nepal | M176: 79.0764 | N176: 4.580292716e-06 | O176: 74.232
A177: 174 | B177: Afeganistão | C177: 18.9718 | D177: 2.684914426e-06 | F177: 174 | G177: Santa Sé (Cidade Estado do Vaticano) | H177: 0.018 | I177: 1.764980388e-09 | K177: 174 | L177: Bósnia-Herzegovina | M177: 78.515 | N177: 4.547775096e-06 | O177: 22.7186
A178: 175 | B178: Guiana | C178: 18.2434 | D178: 2.581830287e-06 | F178: 175 | G178: Mongólia | H178: 0.0112 | I178: 1.098210019e-09 | K178: 175 | L178: Jibuti | M178: 77.3086 | N178: 4.477897546e-06 | O178: 77.3086
A179: 176 | B179: Turcas e Caicos, Ilhas | C179: 18.0666 | D179: 2.556809315e-06 | F179: 176 | G179: Trindade e Tobago | H179: 0.0104 | I179: 1.019766447e-09 | K179: 176 | L179: Tajiquistão | M179: 59.4122 | N179: 3.441295594e-06 | O179: -59.4122
A180: 177 | B180: Laos, República Democrática Popular do | C180: 14.3872 | D180: 2.036095722e-06 | F180: 177 | G180: Haiti | H180: 0.0064 | I180: 6.275485825e-10 | K180: 177 | L180: Caimão, Ilhas | M180: 51.4562 | N180: 2.980465197e-06 | O180: 51.4562
A181: 178 | B181: Turquemenistão | C181: 11.8398 | D181: 1.675584279e-06 | F181: 178 | G181: Maldivas | H181: 0.0036 | I181: 3.529960776e-10 | K181: 178 | L181: Montenegro | M181: 46.4096 | N181: 2.68815415e-06 | O181: 45.7924
A182: 179 | B182: Barbados | C182: 11.7888 | D182: 1.668366691e-06 | F182: 179 | G182: Anguila | H182: 0 | I182: 0 | K182: 179 | L182: Bahamas | M182: 42.9652 | N182: 2.48864633e-06 | O182: 42.9652
A183: 180 | B183: Virgens Britânicas, Ilhas | C183: 9.9272 | D183: 1.404910577e-06 | F183: 180 | G183: Antárctica | H183: 0 | I183: 0 | K183: 180 | L183: São Marino | M183: 32.7902 | N183: 1.899286187e-06 | O183: -32.7502
A184: 181 | B184: Fiji, Ilhas | C184: 8.1268 | D184: 1.150115569e-06 | F184: 181 | G184: Antilhas Holandesas | H184: 0 | I184: 0 | K184: 181 | L184: Mongólia | M184: 30.8564 | N184: 1.787275902e-06 | O184: 30.834
A185: 182 | B185: Santa Lúcia | C185: 7.138 | D185: 1.010179275e-06 | F185: 182 | G185: Bahamas | H185: 0 | I185: 0 | K185: 182 | L185: Botswana | M185: 30.0852 | N185: 1.742606169e-06 | O185: -29.8964
A186: 183 | B186: Brunei Darussalam | C186: 6.98 | D186: 9.878189044e-07 | F186: 183 | G186: Bonaire, Santo Eustáquio e Saba | H186: 0 | I186: 0 | K186: 183 | L186: Papuásia-Nova Guiné | M186: 28.7226 | N186: 1.663681144e-06 | O186: -22.9514
A187: 184 | B187: Malavi | C187: 6.6034 | D187: 9.345219704e-07 | F187: 184 | G187: Bouvet, Ilha | H187: 0 | I187: 0 | K187: 184 | L187: Afeganistão | M187: 23.338 | N187: 1.351792335e-06 | O187: 14.6056
A188: 185 | B188: Guam | C188: 6.5774 | D188: 9.308424158e-07 | F188: 185 | G188: Brunei Darussalam | H188: 0 | I188: 0 | K188: 185 | L188: Quirguizistão | M188: 22.1318 | N188: 1.281926369e-06 | O188: -12.8186
A189: 186 | B189: São Vicente e Granadinas | C189: 5.6654 | D189: 8.017749601e-07 | F189: 186 | G189: Butão | H189: 0 | I189: 0 | K189: 186 | L189: Turcas e Caicos, Ilhas | M189: 18.0666 | N189: 1.04646034e-06 | O189: 18.0666
A190: 187 | B190: Quirguizistão | C190: 4.6566 | D190: 6.590082393e-07 | F190: 187 | G190: Caimão, Ilhas | H190: 0 | I190: 0 | K190: 187 | L190: Barbados | M190: 11.9266 | N190: 6.908169708e-07 | O190: 11.651
A191: 188 | B191: Menores distantes dos Estados Unidos, lhas | C191: 4.5542 | D191: 6.445164548e-07 | F191: 188 | G191: Centro-Africana, República | H191: 0 | I191: 0 | K191: 188 | L191: Virgens Britânicas, Ilhas | M191: 9.9272 | N191: 5.750069788e-07 | O191: 9.9272
A192: 189 | B192: Sudão do Sul | C192: 3.771 | D192: 5.336769468e-07 | F192: 189 | G192: Ceuta | H192: 0 | I192: 0 | K192: 189 | L192: Fiji, Ilhas | M192: 9.4914 | N192: 5.497644087e-07 | O192: 6.7622
A193: 190 | B193: Bonaire, Santo Eustáquio e Saba | C193: 3.1276 | D193: 4.426221211e-07 | F193: 190 | G193: Ceuta e Melilha | H193: 0 | I193: 0 | K193: 190 | L193: Santa Lúcia | M193: 7.138 | N193: 4.134498967e-07 | O193: 7.138
A194: 191 | B194: Marianas do Norte, Ilhas | C194: 2.9244 | D194: 4.138649863e-07 | F194: 191 | G194: Christmas, Ilha | H194: 0 | I194: 0 | K194: 191 | L194: Brunei Darussalam | M194: 6.98 | N194: 4.042981618e-07 | O194: 6.98
A195: 192 | B195: Papuásia-Nova Guiné | C195: 2.8856 | D195: 4.083739585e-07 | F195: 192 | G195: Cocos (Keeling), Ilhas | H195: 0 | I195: 0 | K195: 192 | L195: Guam | M195: 6.5774 | N195: 3.809786145e-07 | O195: 6.5774
A196: 193 | B196: Belize | C196: 2.1806 | D196: 3.086014188e-07 | F196: 193 | G196: Comores | H196: 0 | I196: 0 | K196: 193 | L196: São Vicente e Granadinas | M196: 5.707 | N196: 3.305629813e-07 | O196: 5.6238
A197: 194 | B197: Melilha | C197: 1.3464 | D197: 1.905443228e-07 | F197: 194 | G197: Cook, Ilhas | H197: 0 | I197: 0 | K197: 194 | L197: Menores distantes dos Estados Unidos, lhas | M197: 4.5542 | N197: 2.6379007e-07 | O197: 4.5542
A198: 195 | B198: Granada | C198: 0.6866 | D198: 9.716854725e-08 | F198: 195 | G198: Coreia, República Popular Democrática da | H198: 0 | I198: 0 | K198: 195 | L198: São Cristovão e Nevis | M198: 4.4378 | N198: 2.570479058e-07 | O198: -4.4378
A199: 196 | B199: Virgens dos Estados Unidos, Ilhas | C199: 0.295 | D199: 4.174879324e-08 | F199: 196 | G199: Domínica | H199: 0 | I199: 0 | K199: 196 | L199: Sudão do Sul | M199: 3.771 | N199: 2.184252676e-07 | O199: 3.771
A200: 197 | B200: Botswana | C200: 0.0944 | D200: 1.335961384e-08 | F200: 197 | G200: Eritreia | H200: 0 | I200: 0 | K200: 197 | L200: Bonaire, Santo Eustáquio e Saba | M200: 3.1276 | N200: 1.81158013e-07 | O200: 3.1276
... 58 more rows

Sheet 2A
A1: Parceiros comerciais de Portugal - União Europeia vs. Países Terceiros (média 2018-2022 em milhões de euros) produtos agrícolas e agroalimentares, do mar e da floresta
A2: Exportações | F2: Importações | K2: Trocas comerciais (total e saldo)
A3: P | B3: Grupo de Países | C3: média quinquénio | D3: % do Total | F3: P | G3: Grupo de Países | H3: média quinquénio | I3: % do Total | K3: P | L3: Grupo de Países | M3: média quinquénio | N3: % do Total | O3: Saldo (exp-imp)
A4: 1 | B4: União Europeia | C4: 8687.977909 | D4: 0.6704537422 | F4: 1 | G4: União Europeia | H4: 11668.95063 | I4: 0.7803380776 | K4: 1 | L4: União Europeia | M4: 20356.92854 | N4: 0.729323573 | O4: -2980.972719
A5: 2 | B5: Países Terceiros | C5: 4270.960171 | D5: 0.329591219 | F5: 2 | G5: Países Terceiros | H5: 3284.761055 | I5: 0.2196619224 | K5: 2 | L5: Países Terceiros | M5: 7555.721226 | N5: 0.2706973005 | O5: 986.1991156
B6: Outros | C6: 0 | D6: -4.496115282e-05 | G6: Outros | H6: 0 | I6: 0 | L6: Outros | M6: 0 | N6: -2.087350238e-05 | O6: 0
B7: Total | C7: 12958.35546 | D7: 1 | G7: Total | H7: 14953.71168 | I7: 1 | L7: Total | M7: 27912.06714 | N7: 1 | O7: -1995.356226 | R7: -0.5826226
F27: valores em milhões de euros
A28: Nota: Outros = Países não determinados, abastecimentos de bordo, etc.
A29: Fonte: GPP a partir de dados INE/Comércio Internacional (2021 provisórios; 2022 preliminares) | M29: 2023-03-23

Sheet 3
A1: Principais produtos agrícolas e agroalimentares, do mar e da floresta transacionados entre Portugal e Reino Unido em 2018-2022 (NC a 2 e 4 dígitos) em milhões de euros
AC4: P | AE4: Cód.NC | AF4: Descritivo | AG4: Média export quinquénio | AH4: % do total | AI4: % acumulada | AN4: P | AO4: NC | AP4: Exportações | AQ4: 2018 | AR4: 2019 | AS4: 2020 | AT4: 2021 | AU4: 2022 | AV4: média quinquénio
AC5: 1 | AD5: º | AE5: 48 | AF5: Papel e cartão | AG5: 148.9993676 | AH5: 0.2180855664 | AN5: 1º | AO5: 48 | AP5: Papel e cartão | AQ5: 123.600771 | AR5: 130.672138 | AS5: 124.294749 | AT5: 136.697391 | AU5: 229.731789 | AV5: 148.9993676
AC6: 2 | AD6: º | AE6: 22 | AF6: Bebidas, líquidos alcoólicos e vinagres | AG6: 95.3660452 | AH6: 0.1395842031 | AN6: 2º | AO6: 22 | AP6: Bebidas, líquidos alcoólicos e vinagres | AQ6: 83.041278 | AR6: 86.334089 | AS6: 103.839157 | AT6: 107.376355 | AU6: 96.239347 | AV6: 95.3660452
AC7: 3 | AD7: º | AE7: 44 | AF7: Madeira e suas obras | AG7: 88.926583 | AH7: 0.13015897 | AI7: 0.4878287395 | AN7: 3º | AO7: 44 | AP7: Madeira e suas obras | AQ7: 83.459874 | AR7: 92.995569 | AS7: 79.065573 | AT7: 89.62579 | AU7: 99.486109 | AV7: 88.926583
AC8: 4 | AD8: º | AE8: 20 | AF8: Preparações de produtos vegetais | AG8: 72.512662 | AH8: 0.1061344435 | AO8: - | AP8: Outros | AQ8: 314.618035 | AR8: 335.30448 | AS8: 356.886392 | AT8: 352.090326 | AU8: 390.716644 | AV8: 349.9231754
AC9: 5 | AD9: º | AE9: 45 | AF9: Cortiça e suas obras | AG9: 43.0476742 | AH9: 0.06300749166 | AP9: Total | AQ9: 604.719958 | AR9: 645.306276 | AS9: 664.085871 | AT9: 685.789862 | AU9: 816.173889 | AV9: 683.2151712
AC10: 6 | AD10: º | AE10: 08 | AF10: Frutas | AG10: 41.8603716 | AH10: 0.06126967515
AC11: 7 | AD11: º | AE11: 19a | AF11: Preparações à base de cereais (exc. NC 19022010) (a) | AG11: 37.9129142 | AH11: 0.05549190914
AC12: 8 | AD12: º | AE12: 21 | AF12: Preparações alimentícias diversas | AG12: 36.842078 | AH12: 0.05392456074
AC13: 9 | AD13: º | AE13: 07 | AF13: Produtos hortícolas | AG13: 21.8617644 | AH13: 0.03199835911
AC14: 10 | AD14: º | AE14: 16p | AF14: Preparações e conservas de peixes ou crustáceos (NC 1604-05) (p) | AG14: 19.3400446 | AH14: 0.02830739921 | AI14: 0.8879625781
AE15: - | AF15: Outros | AG15: 76.5456664 | AH15: 0.1120374219
AE16: Total | AG16: 683.2151712 | AH16: 1
AC38: P | AE38: Cód.NC | AF38: Descritivo | AG38: Média import quinquénio | AH38: % do total | AI38: % acumulada | AN38: P | AO38: NC | AP38: Importações | AQ38: 2018 | AR38: 2019 | AS38: 2020 | AT38: 2021 | AU38: 2022 | AV38: média quinquénio
AC39: 1 | AD39: º | AE39: 10 | AF39: Cereais | AG39: 43.7361084 | AH39: 0.2058419892 | AN39: 1º | AO39: 10 | AP39: Cereais | AQ39: 10.007512 | AR39: 59.172006 | AS39: 47.083173 | AT39: 36.047419 | AU39: 66.370432 | AV39: 43.7361084
AC40: 2 | AD40: º | AE40: 22 | AF40: Bebidas, líquidos alcoólicos e vinagres | AG40: 38.4053926 | AH40: 0.1807532197 | AN40: 2º | AO40: 22 | AP40: Bebidas, líquidos alcoólicos e vinagres | AQ40: 32.920938 | AR40: 46.899832 | AS40: 27.920351 | AT40: 38.282612 | AU40: 46.00323 | AV40: 38.4053926
AC41: 3 | AD41: º | AE41: 21 | AF41: Preparações alimentícias diversas | AG41: 23.38986 | AH41: 0.1100833038 | AI41: 0.4966785127 | AN41: 3º | AO41: 21 | AP41: Preparações alimentícias diversas | AQ41: 28.660014 | AR41: 28.212176 | AS41: 28.483671 | AT41: 16.414385 | AU41: 15.179054 | AV41: 23.38986
AC42: 4 | AD42: º | AE42: 48 | AF42: Papel e cartão | AG42: 17.5567694 | AH42: 0.08263013033 | AO42: - | AP42: Outros | AQ42: 158.310366 | AR42: 138.904536 | AS42: 117.940259 | AT42: 59.502136 | AU42: 60.056811 | AV42: 106.9428216
AC43: 5 | AD43: º | AE43: 03 | AF43: Peixes e crustáceos | AG43: 16.3106722 | AH43: 0.07676543098 | AP43: Total | AQ43: 229.89883 | AR43: 273.18855 | AS43: 221.427454 | AT43: 150.246552 | AU43: 187.609527 | AV43: 212.4741826
AC44: 6 | AD44: º | AE44: 02 | AF44: Carnes e miudezas | AG44: 13.9263886 | AH44: 0.06554390952
AC45: 7 | AD45: º | AE45: 47 | AF45: Pastas de madeira | AG45: 6.980465 | AH45: 0.03285323852
AC46: 8 | AD46: º | AE46: 04 | AF46: Leite e laticínios; ovos; mel, etc. | AG46: 6.2080016 | AH46: 0.02921767494
AC47: 9 | AD47: º | AE47: 19a | AF47: Preparações à base de cereais (exc. NC 19022010) (a) | AG47: 5.8778974 | AH47: 0.02766405465
AC48: 10 | AD48: º | AE48: 16a | AF48: Preparações de carnes (exc. NC 1604-05) (a) | AG48: 4.7885016 | AH48: 0.02253686326 | AI48: 0.8338898149
AE49: - | AF49: Outros | AG49: 35.2941258 | AH49: 0.1661101851
AE50: Total | AG50: 212.4741826 | AH50: 1
AC62: DESAGREGAÇÃO A 4 DÍGITOS | AN62: DESAGREGAÇÃO A 4 DÍGITOS
AC64: P | AE64: Cód.NC | AF64: Descritivo | AG64: Média export quinquénio | AH64: % do total | AI64: % acumulada | AN64: P | AO64: NC | AP64: Exportações | AQ64: 2018 | AR64: 2019 | AS64: 2020 | AT64: 2021 | AU64: 2022 | AV64: média quinquénio
AC65: 1 | AD65: º | AE65: 4802 | AF65: Papel e cartão p/ escrita, etc. | AG65: 102.1222692 | AH65: 0.1494730701 | AN65: 1º | AO65: 4802 | AP65: Papel e cartão p/ escrita, etc. | AQ65: 91.788564 | AR65: 95.863382 | AS65: 81.892898 | AT65: 80.334415 | AU65: 160.732087 | AV65: 102.1222692
AC66: 2 | AD66: º | AE66: 2204 | AF66: Vinhos de uvas frescas | AG66: 86.319814 | AH66: 0.1263435264 | AN66: 2º | AO66: 2204 | AP66: Vinhos de uvas frescas | AQ66: 75.546565 | AR66: 77.747794 | AS66: 95.3038 | AT66: 97.809935 | AU66: 85.190976 | AV66: 86.319814
AC67: 3 | AD67: º | AE67: 2002 | AF67: Tomates preparados | AG67: 57.4262028 | AH67: 0.08405288 | AI67: 0.3598694765 | AN67: 3º | AO67: 2002 | AP67: Tomates preparados | AQ67: 55.870694 | AR67: 50.027017 | AS67: 63.282649 | AT67: 53.995606 | AU67: 63.955048 | AV67: 57.4262028
AC68: 4 | AD68: º | AE68: 1905 | AF68: Produtos de padaria, pastelaria, etc. | AG68: 32.36438 | AH68: 0.04737069867 | AN68: - | AO68: - | AP68: Outros | AQ68: 381.514135 | AR68: 421.668083 | AS68: 423.606524 | AT68: 453.649906 | AU68: 506.295778 | AV68: 437.3468852
AC69: 5 | AD69: º | AE69: 4401 | AF69: Lenha, resíduos de madeira, etc. | AG69: 30.0591386 | AH69: 0.04399659122 | AP69: Total | AQ69: 604.719958 | AR69: 645.306276 | AS69: 664.085871 | AT69: 685.789862 | AU69: 816.173889 | AV69: 683.2151712
AC70: 6 | AD70: º | AE70: 4418 | AF70: Obras de marcenaria ou carpintaria | AG70: 25.7011402 | AH70: 0.03761792958
AC71: 7 | AD71: º | AE71: 4503 | AF71: Obras de cortiça natural | AG71: 24.739443 | AH71: 0.03621032442
AC72: 8 | AD72: º | AE72: 4803 | AF72: Papel para toalhas, guardanapos, etc. | AG72: 22.7344316 | AH72: 0.03327565394
AC73: 9 | AD73: º | AE73: 2103 | AF73: Preparações para molhos e molhos preparados | AG73: 22.4179706 | AH73: 0.03281246018
AC74: 10 | AD74: º | AE74: 4410 | AF74: Painéis de partículas de madeira, etc. | AG74: 20.5323618 | AH74: 0.03005255543 | AI74: 0.6212056899
AE75: - | AF75: Outros | AG75: 258.7980194 | AH75: 0.3787943101
AE76: Total | AG76: 683.2151712 | AH76: 1
AC89: DESAGREGAÇÃO A 4 DÍGITOS | AN89: DESAGREGAÇÃO A 4 DÍGITOS
G91: média 2018-2022 em milhões de euros | I91: Cód. NC | J91: Descritivo | K91: Export | L91: Import | M91: Saldo | AC91: P | AE91: Cód.NC | AF91: Descritivo | AG91: Média import quinquénio | AH91: % do total | AI91: % acumulada | AN91: P | AO91: NC | AP91: Importações | AQ91: 2018 | AR91: 2019 | AS91: 2020 | AT91: 2021 | AU91: 2022 | AV91: média quinquénio
I92: 4802 | J92: Papel e cartão p/ escrita, etc. | K92: 102.1222692 | L92: 0.4882958 | M92: 101.6339734 | AC92: 1 | AD92: º | AE92: 2208 | AF92: Álcool etílico <80%; aguardentes, etc. | AG92: 34.4604438 | AH92: 0.162186499 | AN92: 1º | AO92: 2208 | AP92: Álcool etílico <80%; aguardentes, etc. | AQ92: 27.859228 | AR92: 38.255393 | AS92: 25.281377 | AT92: 36.578563 | AU92: 44.327658 | AV92: 34.4604438
I93: 2204 | J93: Vinhos de uvas frescas | K93: 86.319814 | L93: 0.7182416 | M93: 85.6015724 | AC93: 2 | AD93: º | AE93: 1003 | AF93: Cevada | AG93: 29.224215 | AH93: 0.1375424282 | AN93: 2º | AO93: 1003 | AP93: Cevada | AQ93: 7.731883 | AR93: 25.802829 | AS93: 40.403968 | AT93: 28.030523 | AU93: 44.151872 | AV93: 29.224215
I94: 2002 | J94: Tomates preparados | K94: 57.4262028 | L94: 0.0563152 | M94: 57.3698876 | AC94: 3 | AD94: º | AE94: 1001 | AF94: Trigo e mistura trigo/centeio | AG94: 12.4383624 | AH94: 0.05854058243 | AI94: 0.3582695096 | AN94: 3º | AO94: 1001 | AP94: Trigo e mistura trigo/centeio | AQ94: 0.852343 | AR94: 26.372329 | AS94: 5.209942 | AT94: 7.694093 | AU94: 22.063105 | AV94: 12.4383624
I95: 4401 | J95: Lenha, resíduos de madeira, etc. | K95: 30.0591386 | L95: 0.197121 | M95: 29.8620176 | AC95: 4 | AD95: º | AE95: 2106 | AF95: Outras preparações alimentícias | AG95: 11.875229 | AH95: 0.0558902209 | AN95: - | AO95: - | AP95: Outros | AQ95: 193.455376 | AR95: 182.757999 | AS95: 150.532167 | AT95: 77.943373 | AU95: 77.066892 | AV95: 136.3511614
I96: 1905 | J96: Produtos de padaria, pastelaria, etc. | K96: 32.36438 | L96: 3.1764724 | M96: 29.1879076 | AC96: 5 | AD96: º | AE96: 0306 | AF96: Crustáceos | AG96: 10.899002 | AH96: 0.05129565327 | AP96: Total | AQ96: 229.89883 | AR96: 273.18855 | AS96: 221.427454 | AT96: 150.246552 | AU96: 187.609527 | AV96: 212.4741826
I97: 4418 | J97: Obras de marcenaria ou carpintaria | K97: 25.7011402 | L97: 0.241657 | M97: 25.4594832 | AC97: 6 | AD97: º | AE97: 4804 | AF97: Papel e cartão "kraft", não revestidos | AG97: 7.0261314 | AH97: 0.03306816534
I98: 4503 | J98: Obras de cortiça natural | K98: 24.739443 | L98: 0.0728552 | M98: 24.6665878 | AC98: 7 | AD98: º | AE98: 4703 | AF98: Pastas químicas de madeira, à soda ou ao sulfato | AG98: 6.9549584 | AH98: 0.03273319287
I99: 4803 | J99: Papel para toalhas, guardanapos, etc. | K99: 22.7344316 | L99: 0.134759 | M99: 22.5996726 | AC99: 8 | AD99: º | AE99: 2103 | AF99: Preparações para molhos e molhos preparados | AG99: 5.7447866 | AH99: 0.02703757478
I100: 0810 | J100: Outras frutas frescas | K100: 19.7460972 | L100: 0.0159934 | M100: 19.7301038 | AC100: 9 | AD100: º | AE100: 0201 | AF100: Carnes de bovino, frescas ou refrigeradas | AG100: 5.418208 | AH100: 0.02550054757
I101: 4410 | J101: Painéis de partículas de madeira, etc. | K101: 20.5323618 | L101: 0.8610644 | M101: 19.6712974 | AC101: 10 | AD101: º | AE101: 1602 | AF101: Outras preparações e conservas de carnes, miudezas ou sangue | AG101: 4.6509732 | AH101: 0.02188959215 | AI101: 0.6056844565
I102: - | J102: Outros | K102: 256.1036462 | L102: 88.8254568 | M102: 167.2781894 | AE102: - | AF102: Outros | AG102: 83.7818728 | AH102: 0.3943155435
I103: 0406 | J103: Queijos e requeijão | K103: 1.1904766 | L103: 4.1381356 | M103: -2.947659 | AE103: Total | AG103: 212.4741826 | AH103: 1
I104: 2309 | J104: Preparações p/ alimentação animal | K104: 0.2061742 | L104: 3.1973952 | M104: -2.991221
I105: 2501 | J105: Sal e cloreto de sódio puro; água do mar | K105: 0.2588934 | L105: 3.4667522 | M105: -3.2078588
I106: 0204 | J106: Carnes de ovino ou caprino | K106: 0.0629064 | L106: 3.3354424 | M106: -3.272536
I107: 1602 | J107: Outras preparações e conservas de carnes, miudezas ou sangue | K107: 0.9246118 | L107: 4.6509732 | M107: -3.7263614
I108: 2106 | J108: Outras preparações alimentícias | K108: 1.6013796 | L108: 11.875229 | M108: -10.2738494
I109: 0306 | J109: Crustáceos | K109: 0.2972324 | L109: 10.899002 | M109: -10.6017696
I110: 1001 | J110: Trigo e mistura trigo/centeio | K110: 0.0038652 | L110: 12.4383624 | M110: -12.4344972
I111: 1003 | J111: Cevada | K111: 0.0008478 | L111: 29.224215 | M111: -29.2233672
I112: 2208 | J112: Álcool etílico <80%; aguardentes, etc. | K112: 0.8198592 | L112: 34.4604438 | M112: -33.6405846
I113: Total | K113: 683.2151712 | L113: 212.4741826 | M113: 470.7409886
A116: Fonte: GPP a partir de dados INE/Comércio Internacional (2021 provisórios; 2022 preliminares) | Y116: 2023-07-18T15:07:44.310

Sheet 3A
A1: Principais produtos agrícolas e agroalimentares transacionados entre Portugal e Reino Unido em 2018-2022 (NC a 2 e 4 dígitos) em milhões de euros
AC4: P | AE4: Cód.NC | AF4: Descritivo | AG4: Média export quinquénio | AH4: % do total | AI4: % acumulada | AN4: P | AO4: NC | AP4: Exportações | AQ4: 2018 | AR4: 2019 | AS4: 2020 | AT4: 2021 | AU4: 2022 | AV4: média quinquénio
AC5: 1 | AD5: º | AE5: 22 | AF5: Bebidas, líquidos alcoólicos e vinagres | AG5: 95.3660452 | AH5: 0.2668809535 | AN5: 1º | AO5: 22 | AP5: Bebidas, líquidos alcoólicos e vinagres | AQ5: 83.041278 | AR5: 86.334089 | AS5: 103.839157 | AT5: 107.376355 | AU5: 96.239347 | AV5: 95.3660452
AC6: 2 | AD6: º | AE6: 20 | AF6: Preparações de produtos vegetais | AG6: 72.512662 | AH6: 0.202925982 | AN6: 2º | AO6: 20 | AP6: Preparações de produtos vegetais | AQ6: 64.266213 | AR6: 62.776998 | AS6: 74.939117 | AT6: 73.163016 | AU6: 87.417966 | AV6: 72.512662
AC7: 3 | AD7: º | AE7: 08 | AF7: Frutas | AG7: 41.8603716 | AH7: 0.1171458443 | AI7: 0.5869527799 | AN7: 3º | AO7: 08 | AP7: Frutas | AQ7: 51.028288 | AR7: 54.05371 | AS7: 54.275807 | AT7: 23.942511 | AU7: 26.001542 | AV7: 41.8603716
AC8: 4 | AD8: º | AE8: 19a | AF8: Preparações à base de cereais (exc. NC 19022010) (a) | AG8: 37.9129142 | AH8: 0.106098923 | AO8: - | AP8: Outros | AQ8: 114.934014 | AR8: 126.62772 | AS8: 138.061708 | AT8: 171.923998 | AU8: 186.434783 | AV8: 147.5964446
AC9: 5 | AD9: º | AE9: 21 | AF9: Preparações alimentícias diversas | AG9: 36.842078 | AH9: 0.1031021983 | AP9: Total | AQ9: 313.269793 | AR9: 329.792517 | AS9: 371.115789 | AT9: 376.40588 | AU9: 396.093638 | AV9: 357.3355234
AC10: 6 | AD10: º | AE10: 07 | AF10: Produtos hortícolas | AG10: 21.8617644 | AH10: 0.06117993585
AC11: 7 | AD11: º | AE11: 02 | AF11: Carnes e miudezas | AG11: 9.514203 | AH11: 0.02662540491
AC12: 8 | AD12: º | AE12: 09 | AF12: Café, chá, mate e especiarias | AG12: 7.1991094 | AH12: 0.0201466379
AC13: 9 | AD13: º | AE13: 10 | AF13: Cereais | AG13: 5.935887 | AH13: 0.01661152226
AC14: 10 | AD14: º | AE14: 06 | AF14: Plantas vivas e produtos de floricultura | AG14: 5.4689772 | AH14: 0.01530487971 | AI14: 0.9360222819
AE15: - | AF15: Outros | AG15: 22.8615114 | AH15: 0.06397771815
AE16: Total | AG16: 357.3355234 | AH16: 1
AC38: P | AE38: Cód.NC | AF38: Descritivo | AG38: Média import quinquénio | AH38: % do total | AI38: % acumulada | AN38: P | AO38: NC | AP38: Importações | AQ38: 2018 | AR38: 2019 | AS38: 2020 | AT38: 2021 | AU38: 2022 | AV38: média quinquénio
AC39: 1 | AD39: º | AE39: 10 | AF39: Cereais | AG39: 43.7361084 | AH39: 0.2669074972 | AN39: 1º | AO39: 10 | AP39: Cereais | AQ39: 10.007512 | AR39: 59.172006 | AS39: 47.083173 | AT39: 36.047419 | AU39: 66.370432 | AV39: 43.7361084
AC40: 2 | AD40: º | AE40: 22 | AF40: Bebidas, líquidos alcoólicos e vinagres | AG40: 38.4053926 | AH40: 0.2343758416 | AN40: 2º | AO40: 22 | AP40: Bebidas, líquidos alcoólicos e vinagres | AQ40: 32.920938 | AR40: 46.899832 | AS40: 27.920351 | AT40: 38.282612 | AU40: 46.00323 | AV40: 38.4053926
AC41: 3 | AD41: º | AE41: 21 | AF41: Preparações alimentícias diversas | AG41: 23.38986 | AH41: 0.1427408432 | AI41: 0.644024182 | AN41: 3º | AO41: 21 | AP41: Preparações alimentícias diversas | AQ41: 28.660014 | AR41: 28.212176 | AS41: 28.483671 | AT41: 16.414385 | AU41: 15.179054 | AV41: 23.38986
AC42: 4 | AD42: º | AE42: 02 | AF42: Carnes e miudezas | AG42: 13.9263886 | AH42: 0.08498830055 | AO42: - | AP42: Outros | AQ42: 88.491194 | AR42: 84.62566 | AS42: 68.92242 | AT42: 26.425852 | AU42: 23.190169 | AV42: 58.331059
AC43: 5 | AD43: º | AE43: 04 | AF43: Leite e laticínios; ovos; mel, etc. | AG43: 6.2080016 | AH43: 0.03788545049 | AP43: Total | AQ43: 160.079658 | AR43: 218.909674 | AS43: 172.409615 | AT43: 117.170268 | AU43: 150.742885 | AV43: 163.86242
AC44: 6 | AD44: º | AE44: 19a | AF44: Preparações à base de cereais (exc. NC 19022010) (a) | AG44: 5.8778974 | AH44: 0.03587093002
AC45: 7 | AD45: º | AE45: 16a | AF45: Preparações de carnes (exc. NC 1604-05) (a) | AG45: 4.7885016 | AH45: 0.02922269548
AC46: 8 | AD46: º | AE46: 07 | AF46: Produtos hortícolas | AG46: 3.411995 | AH46: 0.02082231545
AC47: 9 | AD47: º | AE47: 23a | AF47: Resíduos indústrias alimentares; alimentos p/ animais (exc. NC 230120) (a) | AG47: 3.2054672 | AH47: 0.01956194227
AC48: 10 | AD48: º | AE48: 09 | AF48: Café, chá, mate e especiarias | AG48: 3.0217934 | AH48: 0.01844103975 | AI48: 0.890816856
AE49: - | AF49: Outros | AG49: 17.8910142 | AH49: 0.109183144
AE50: Total | AG50: 163.86242 | AH50: 1
AC62: DESAGREGAÇÃO A 4 DÍGITOS | AN62: DESAGREGAÇÃO A 4 DÍGITOS
AC64: P | AE64: Cód.NC | AF64: Descritivo | AG64: Média export quinquénio | AH64: % do total | AI64: % acumulada | AN64: P | AO64: NC | AP64: Exportações | AQ64: 2018 | AR64: 2019 | AS64: 2020 | AT64: 2021 | AU64: 2022 | AV64: média quinquénio
AC65: 1 | AD65: º | AE65: 2204 | AF65: Vinhos de uvas frescas | AG65: 86.319814 | AH65: 0.2415651631 | AN65: 1º | AO65: 2204 | AP65: Vinhos de uvas frescas | AQ65: 75.546565 | AR65: 77.747794 | AS65: 95.3038 | AT65: 97.809935 | AU65: 85.190976 | AV65: 86.319814
AC66: 2 | AD66: º | AE66: 2002 | AF66: Tomates preparados | AG66: 57.4262028 | AH66: 0.1607066721 | AN66: 2º | AO66: 2002 | AP66: Tomates preparados | AQ66: 55.870694 | AR66: 50.027017 | AS66: 63.282649 | AT66: 53.995606 | AU66: 63.955048 | AV66: 57.4262028
AC67: 3 | AD67: º | AE67: 1905 | AF67: Produtos de padaria, pastelaria, etc. | AG67: 32.36438 | AH67: 0.09057140385 | AI67: 0.4928432391 | AN67: 3º | AO67: 1905 | AP67: Produtos de padaria, pastelaria, etc. | AQ67: 29.723793 | AR67: 28.209291 | AS67: 34.942748 | AT67: 31.209394 | AU67: 37.736674 | AV67: 32.36438
AC68: 4 | AD68: º | AE68: 2103 | AF68: Preparações para molhos e molhos preparados | AG68: 22.4179706 | AH68: 0.06273647352 | AN68: - | AO68: - | AP68: Outros | AQ68: 152.128741 | AR68: 173.808415 | AS68: 177.586592 | AT68: 193.390945 | AU68: 209.21094 | AV68: 181.2251266
AC69: 5 | AD69: º | AE69: 0810 | AF69: Outras frutas frescas | AG69: 19.7460972 | AH69: 0.05525926169 | AP69: Total | AQ69: 313.269793 | AR69: 329.792517 | AS69: 371.115789 | AT69: 376.40588 | AU69: 396.093638 | AV69: 357.3355234
AC70: 6 | AD70: º | AE70: 0808 | AF70: Maçãs, peras e marmelos, frescos | AG70: 17.262521 | AH70: 0.04830899776
AC71: 7 | AD71: º | AE71: 0709 | AF71: Outros produtos hortícolas, frescos ou refrigerados | AG71: 9.6326206 | AH71: 0.02695679542
AC72: 8 | AD72: º | AE72: 0901 | AF72: Café | AG72: 7.0498262 | AH72: 0.01972887031
AC73: 9 | AD73: º | AE73: 2104 | AF73: Preparações para caldos e sopas | AG73: 6.6220794 | AH73: 0.01853182504
AC74: 10 | AD74: º | AE74: 2009 | AF74: Sumos de frutas | AG74: 6.4340364 | AH74: 0.01800558853 | AI74: 0.7423710514
AE75: - | AF75: Outros | AG75: 92.0599752 | AH75: 0.2576289486
AE76: Total | AG76: 357.3355234 | AH76: 1
AC89: DESAGREGAÇÃO A 4 DÍGITOS | AN89: DESAGREGAÇÃO A 4 DÍGITOS
G91: média 2018-2022 em milhões de euros | I91: Cód. NC | J91: Descritivo | K91: Export | L91: Import | M91: Saldo | AC91: P | AE91: Cód.NC | AF91: Descritivo | AG91: Média import quinquénio | AH91: % do total | AI91: % acumulada | AN91: P | AO91: NC | AP91: Importações | AQ91: 2018 | AR91: 2019 | AS91: 2020 | AT91: 2021 | AU91: 2022 | AV91: média quinquénio
I92: 2204 | J92: Vinhos de uvas frescas | K92: 86.319814 | L92: 0.7182416 | M92: 85.6015724 | AC92: 1 | AD92: º | AE92: 2208 | AF92: Álcool etílico <80%; aguardentes, etc. | AG92: 34.4604438 | AH92: 0.2103010794 | AN92: 1º | AO92: 2208 | AP92: Álcool etílico <80%; aguardentes, etc. | AQ92: 27.859228 | AR92: 38.255393 | AS92: 25.281377 | AT92: 36.578563 | AU92: 44.327658 | AV92: 34.4604438
I93: 2002 | J93: Tomates preparados | K93: 57.4262028 | L93: 0.0563152 | M93: 57.3698876 | AC93: 2 | AD93: º | AE93: 1003 | AF93: Cevada | AG93: 29.224215 | AH93: 0.1783460479 | AN93: 2º | AO93: 1003 | AP93: Cevada | AQ93: 7.731883 | AR93: 25.802829 | AS93: 40.403968 | AT93: 28.030523 | AU93: 44.151872 | AV93: 29.224215
I94: 1905 | J94: Produtos de padaria, pastelaria, etc. | K94: 32.36438 | L94: 3.1764724 | M94: 29.1879076 | AC94: 3 | AD94: º | AE94: 1001 | AF94: Trigo e mistura trigo/centeio | AG94: 12.4383624 | AH94: 0.07590735203 | AI94: 0.4645544793 | AN94: 3º | AO94: 1001 | AP94: Trigo e mistura trigo/centeio | AQ94: 0.852343 | AR94: 26.372329 | AS94: 5.209942 | AT94: 7.694093 | AU94: 22.063105 | AV94: 12.4383624
I95: 0810 | J95: Outras frutas frescas | K95: 19.7460972 | L95: 0.0159934 | M95: 19.7301038 | AC95: 4 | AD95: º | AE95: 2106 | AF95: Outras preparações alimentícias | AG95: 11.875229 | AH95: 0.0724707288 | AN95: - | AO95: - | AP95: Outros | AQ95: 123.636204 | AR95: 128.479123 | AS95: 101.514328 | AT95: 44.867089 | AU95: 40.20025 | AV95: 87.7393988
I96: 0808 | J96: Maçãs, peras e marmelos, frescos | K96: 17.262521 | L96: 0.0424692 | M96: 17.2200518 | AC96: 5 | AD96: º | AE96: 2103 | AF96: Preparações para molhos e molhos preparados | AG96: 5.7447866 | AH96: 0.03505859733 | AP96: Total | AQ96: 160.079658 | AR96: 218.909674 | AS96: 172.409615 | AT96: 117.170268 | AU96: 150.742885 | AV96: 163.86242
I97: 2103 | J97: Preparações para molhos e molhos preparados | K97: 22.4179706 | L97: 5.7447866 | M97: 16.673184 | AC97: 6 | AD97: º | AE97: 0201 | AF97: Carnes de bovino, frescas ou refrigeradas | AG97: 5.418208 | AH97: 0.03306559246
I98: 0709 | J98: Outros produtos hortícolas, frescos ou refrigerados | K98: 9.6326206 | L98: 0.0459392 | M98: 9.5866814 | AC98: 7 | AD98: º | AE98: 1602 | AF98: Outras preparações e conservas de carnes, miudezas ou sangue | AG98: 4.6509732 | AH98: 0.02838340359
I99: 2104 | J99: Preparações para caldos e sopas | K99: 6.6220794 | L99: 0.1941572 | M99: 6.4279222 | AC99: 8 | AD99: º | AE99: 0406 | AF99: Queijos e requeijão | AG99: 4.1381356 | AH99: 0.02525371955
I100: 2009 | J100: Sumos de frutas | K100: 6.4340364 | L100: 0.2809964 | M100: 6.15304 | AC100: 9 | AD100: º | AE100: 2101 | AF100: Extratos e preparados de café, chá ou mate | AG100: 4.0692568 | AH100: 0.02483337424
I101: 0704 | J101: Couves, frescas ou refrigeradas | K101: 4.8406852 | L101: 0.0494004 | M101: 4.7912848 | AC101: 10 | AD101: º | AE101: 0204 | AF101: Carnes de ovino ou caprino | AG101: 3.3354424 | AH101: 0.02035513939 | AI101: 0.7039750347
I102: - | J102: Outros | K102: 87.858254 | L102: 43.6413642 | M102: 44.2168898 | AE102: - | AF102: Outros | AG102: 48.5073672 | AH102: 0.2960249653
I103: 0202 | J103: Carnes de bovino, congeladas | K103: 0.4172028 | L103: 2.5068308 | M103: -2.089628 | AE103: Total | AG103: 163.86242 | AH103: 1
I104: 2101 | J104: Extratos e preparados de café, chá ou mate | K104: 1.1835386 | L104: 4.0692568 | M104: -2.8857182
I105: 0406 | J105: Queijos e requeijão | K105: 1.1904766 | L105: 4.1381356 | M105: -2.947659
I106: 2309 | J106: Preparações p/ alimentação animal | K106: 0.2061742 | L106: 3.1973952 | M106: -2.991221
I107: 0204 | J107: Carnes de ovino ou caprino | K107: 0.0629064 | L107: 3.3354424 | M107: -3.272536
I108: 1602 | J108: Outras preparações e conservas de carnes, miudezas ou sangue | K108: 0.9246118 | L108: 4.6509732 | M108: -3.7263614
I109: 2106 | J109: Outras preparações alimentícias | K109: 1.6013796 | L109: 11.875229 | M109: -10.2738494
I110: 1001 | J110: Trigo e mistura trigo/centeio | K110: 0.0038652 | L110: 12.4383624 | M110: -12.4344972
I111: 1003 | J111: Cevada | K111: 0.0008478 | L111: 29.224215 | M111: -29.2233672
I112: 2208 | J112: Álcool etílico <80%; aguardentes, etc. | K112: 0.8198592 | L112: 34.4604438 | M112: -33.6405846
I113: Total | K113: 357.3355234 | L113: 163.86242 | M113: 193.4731034
A116: Fonte: GPP a partir de dados INE/Comércio Internacional (2021 provisórios; 2022 preliminares) | Y116: 2023-07-18T15:07:44.310

Sheet 4A
A1: Evolução da balança comercial Portugal-Reino Unido 2018-2022 por produto em euros (NC 2 dígitos)
A3: =+aux!A31 -> Evolução da balança comercial Portugal-Reino Unido para Bebidas, líquidos alcoólicos e vinagres
A5: Selecione o produto:
Q7: Para obter uma maior desagregação deste produto, clique no botão respetivo:
A20: =+aux!A43 -> Evolução da balança comercial Portugal-Reino Unido para Cereais
A22: Selecione o produto:
A38: Fonte: GPP a partir de dados INE/Comércio Internacional (2021 provisórios; 2022 preliminares) | N38: 2023-07-18T15:07:44.310

Sheet 5.2
A1: Trocas comerciais Portugal-Reino Unido 2018-2022 em milhares de euros (NC 2 dígitos) | C1: Produtos agrícolas e agroalimentares, do mar e da floresta
A2: Cód. NC | B2: Descritivo | C2: Importações | K2: Exportações | S2: Saldo quinquénio (exp-imp) | T2: Evolução das importações | U2: =+"Variação das Importações " & INDEX(K3:N3,1,aux!AL1) & "-"& '5.2'!O3 &"" -> Variação das Importações 2018-2022 | Z2: Evolução das exportações | AA2: ="Variação das Exportações " & INDEX(K3:N3,1,aux!AL1) & "-"& '5.2'!O3 &"" -> Variação das Exportações 2018-2022
C3: 2018 | D3: 2019 | E3: 2020 | F3: 2021 | G3: 2022 | H3: média quinquénio | I3: % Subtot | J3: % Total | K3: 2018 | L3: 2019 | M3: 2020 | N3: 2021 | O3: 2022 | P3: média quinquénio | Q3: % Subtot | R3: % Total | U3: variação total em valor | V3: % no subtotal de variação | W3: % no total de variação | X3: taxa de variação média anual | Y3: taxa de variação total | AA3: variação total em valor | AB3: % no subtotal de variação | AC3: % no total de variação | AD3: taxa de variação média anual | AE3: taxa de variação total
A4: 01 | B4: Animais vivos | C4: 223.884 | D4: 289.608 | E4: 235.352 | F4: 154.95 | G4: 135.249 | H4: 207.8086 | I4: 0.001268189497 | J4: 0.0009780416494 | K4: 0.2 | L4: 0 | M4: 57.399 | N4: 41.295 | O4: 82.859 | P4: 36.3506 | Q4: 0.0001017268019 | R4: 5.320520025e-05 | S4: -171.458 | U4: =G4-INDEX($C4:$G4,1,aux!$AL$1) -> -88.635 | V4: =IF($U$37<>0,U4/$U$37, "n.d.") -> 0.009493108593 | W4: =IF($U$53<>0,U4/$U$53, "n.d.") -> 0.002095920096 | X4: =+IF(INDEX($C4:$G4,1,aux!$AL$1)>0,(G4/INDEX($C4:$G4,1,aux!$AL$1))^(1/($G$3-INDEX($C$3:$G$3,1,aux!$AL$1)))-1,"n.d.") -> -0.1183874755 | Y4: =IF(INDEX($C4:$G4,1,aux!$AL$1)>0,(G4-INDEX($C4:$G4,1,aux!$AL$1))/INDEX($C4:$G4,1,aux!$AL$1),"n.d.") -> -0.3958969824 | AA4: =O4-INDEX($K4:$O4,1,aux!$AL$1) -> 82.659 | AB4: =IF($AA$37<>0,AA4/$AA$37, "n.d.") -> 0.0009980096915 | AC4: =IF($AA$53<>0,AA4/$AA$53, "n.d.") -> 0.0003909078427 | AD4: =+IF(INDEX($K4:$O4,1,aux!$AL$1)>0,(O4/INDEX($K4:$O4,1,aux!$AL$1))^(1/($O$3-INDEX($K$3:$O$3,1,aux!$AL$1)))-1,"n.d.") -> 3.511567121 | AE4: =IF(INDEX($K4:$O4,1,aux!$AL$1)>0,(O4-INDEX($K4:$O4,1,aux!$AL$1))/INDEX($K4:$O4,1,aux!$AL$1),"n.d.") -> 413.295
A5: 02 | B5: Carnes e miudezas | C5: 26425.217 | D5: 23111.983 | E5: 14228.522 | F5: 2610.874 | G5: 3255.347 | H5: 13926.3886 | I5: 0.08498830055 | J5: 0.06554390952 | K5: 7853.669 | L5: 9534.551 | M5: 6346.28 | N5: 12779.792 | O5: 11056.723 | P5: 9514.203 | Q5: 0.02662540491 | R5: 0.01392563193 | S5: -4412.1856 | U5: =G5-INDEX($C5:$G5,1,aux!$AL$1) -> -23169.87 | V5: 2.481571524 | W5: 0.5478896164 | X5: =+IF(INDEX($C5:$G5,1,aux!$AL$1)>0,(G5/INDEX($C5:$G5,1,aux!$AL$1))^(1/($G$3-INDEX($C$3:$G$3,1,aux!$AL$1)))-1,"n.d.") -> -0.4075595795 | Y5: =IF(INDEX($C5:$G5,1,aux!$AL$1)>0,(G5-INDEX($C5:$G5,1,aux!$AL$1))/INDEX($C5:$G5,1,aux!$AL$1),"n.d.") -> -0.8768090722 | AA5: =O5-INDEX($K5:$O5,1,aux!$AL$1) -> 3203.054 | AB5: 0.03867308986 | AC5: 0.01514776285 | AD5: =+IF(INDEX($K5:$O5,1,aux!$AL$1)>0,(O5/INDEX($K5:$O5,1,aux!$AL$1))^(1/($O$3-INDEX($K$3:$O$3,1,aux!$AL$1)))-1,"n.d.") -> 0.08927731439 | AE5: =IF(INDEX($K5:$O5,1,aux!$AL$1)>0,(O5-INDEX($K5:$O5,1,aux!$AL$1))/INDEX($K5:$O5,1,aux!$AL$1),"n.d.") -> 0.4078417361
A6: 04 | B6: Leite e laticínios; ovos; mel, etc. | C6: 13383.029 | D6: 8485.492 | E6: 7273.787 | F6: 701.738 | G6: 1195.962 | H6: 6208.0016 | I6: 0.03788545049 | J6: 0.02921767494 | K6: 6395.437 | L6: 4708.642 | M6: 4039.579 | N6: 2794.27 | O6: 3372.972 | P6: 4262.18 | Q6: 0.01192766943 | R6: 0.006238415333 | S6: -1945.8216 | U6: =G6-INDEX($C6:$G6,1,aux!$AL$1) -> -12187.067 | V6: 1.305276138 | W6: 0.2881832079 | X6: =+IF(INDEX($C6:$G6,1,aux!$AL$1)>0,(G6/INDEX($C6:$G6,1,aux!$AL$1))^(1/($G$3-INDEX($C$3:$G$3,1,aux!$AL$1)))-1,"n.d.") -> -0.4532475467 | Y6: =IF(INDEX($C6:$G6,1,aux!$AL$1)>0,(G6-INDEX($C6:$G6,1,aux!$AL$1))/INDEX($C6:$G6,1,aux!$AL$1),"n.d.") -> -0.9106359255 | AA6: =O6-INDEX($K6:$O6,1,aux!$AL$1) -> -3022.465 | AB6: -0.03649269121 | AC6: -0.01429372812 | AD6: =+IF(INDEX($K6:$O6,1,aux!$AL$1)>0,(O6/INDEX($K6:$O6,1,aux!$AL$1))^(1/($O$3-INDEX($K$3:$O$3,1,aux!$AL$1)))-1,"n.d.") -> -0.1478115815 | AE6: =IF(INDEX($K6:$O6,1,aux!$AL$1)>0,(O6-INDEX($K6:$O6,1,aux!$AL$1))/INDEX($K6:$O6,1,aux!$AL$1),"n.d.") -> -0.4725971032
A7: 05a | B7: Outros produtos de origem animal (exc. NC 0508, 051191) (a) | C7: 1565.063 | D7: 1143.387 | E7: 482.649 | F7: 363.031 | G7: 515.249 | H7: 813.8758 | I7: 0.004966823998 | J7: 0.003830469142 | K7: 707.69 | L7: 562.497 | M7: 225.097 | N7: 266.231 | O7: 205.018 | P7: 393.3066 | Q7: 0.001100664709 | R7: 0.0005756701791 | S7: -420.5692 | U7: =G7-INDEX($C7:$G7,1,aux!$AL$1) -> -1049.814 | V7: 0.1124386338 | W7: 0.02482457561 | X7: =+IF(INDEX($C7:$G7,1,aux!$AL$1)>0,(G7/INDEX($C7:$G7,1,aux!$AL$1))^(1/($G$3-INDEX($C$3:$G$3,1,aux!$AL$1)))-1,"n.d.") -> -0.242519716 | Y7: =IF(INDEX($C7:$G7,1,aux!$AL$1)>0,(G7-INDEX($C7:$G7,1,aux!$AL$1))/INDEX($C7:$G7,1,aux!$AL$1),"n.d.") -> -0.6707806651 | AA7: =O7-INDEX($K7:$O7,1,aux!$AL$1) -> -502.672 | AB7: -0.006069170056 | AC7: -0.00237721757 | AD7: =+IF(INDEX($K7:$O7,1,aux!$AL$1)>0,(O7/INDEX($K7:$O7,1,aux!$AL$1))^(1/($O$3-INDEX($K$3:$O$3,1,aux!$AL$1)))-1,"n.d.") -> -0.2663528523 | AE7: =IF(INDEX($K7:$O7,1,aux!$AL$1)>0,(O7-INDEX($K7:$O7,1,aux!$AL$1))/INDEX($K7:$O7,1,aux!$AL$1),"n.d.") -> -0.7102997075
A8: 06 | B8: Plantas vivas e produtos de floricultura | C8: 669.886 | D8: 290.396 | E8: 1314.971 | F8: 2585.499 | G8: 1182.042 | H8: 1208.5588 | I8: 0.007375448257 | J8: 0.005688026589 | K8: 4508.765 | L8: 5111.593 | M8: 5468.799 | N8: 6246.782 | O8: 6008.947 | P8: 5468.9772 | Q8: 0.01530487971 | R8: 0.008004765454 | S8: 4260.4184 | U8: =G8-INDEX($C8:$G8,1,aux!$AL$1) -> 512.156 | V8: -0.05485364162 | W8: -0.01211076948 | X8: =+IF(INDEX($C8:$G8,1,aux!$AL$1)>0,(G8/INDEX($C8:$G8,1,aux!$AL$1))^(1/($G$3-INDEX($C$3:$G$3,1,aux!$AL$1)))-1,"n.d.") -> 0.1525452936 | Y8: =IF(INDEX($C8:$G8,1,aux!$AL$1)>0,(G8-INDEX($C8:$G8,1,aux!$AL$1))/INDEX($C8:$G8,1,aux!$AL$1),"n.d.") -> 0.7645420266 | AA8: =O8-INDEX($K8:$O8,1,aux!$AL$1) -> 1500.182 | AB8: 0.01811292388 | AC8: 0.007094604451 | AD8: =+IF(INDEX($K8:$O8,1,aux!$AL$1)>0,(O8/INDEX($K8:$O8,1,aux!$AL$1))^(1/($O$3-INDEX($K$3:$O$3,1,aux!$AL$1)))-1,"n.d.") -> 0.07444748421 | AE8: =IF(INDEX($K8:$O8,1,aux!$AL$1)>0,(O8-INDEX($K8:$O8,1,aux!$AL$1))/INDEX($K8:$O8,1,aux!$AL$1),"n.d.") -> 0.332725702
A9: 07 | B9: Produtos hortícolas | C9: 4605.037 | D9: 5361.484 | E9: 5085.085 | F9: 1809.891 | G9: 198.478 | H9: 3411.995 | I9: 0.02082231545 | J9: 0.01605839805 | K9: 21559.266 | L9: 20595.002 | M9: 18876.508 | N9: 23919.842 | O9: 24358.204 | P9: 21861.7644 | Q9: 0.06117993585 | R9: 0.03199835911 | S9: 18449.7694 | U9: =G9-INDEX($C9:$G9,1,aux!$AL$1) -> -4406.559 | V9: 0.4719573883 | W9: 0.1042003222 | X9: =+IF(INDEX($C9:$G9,1,aux!$AL$1)>0,(G9/INDEX($C9:$G9,1,aux!$AL$1))^(1/($G$3-INDEX($C$3:$G$3,1,aux!$AL$1)))-1,"n.d.") -> -0.5443621302 | Y9: =IF(INDEX($C9:$G9,1,aux!$AL$1)>0,(G9-INDEX($C9:$G9,1,aux!$AL$1))/INDEX($C9:$G9,1,aux!$AL$1),"n.d.") -> -0.9568998034 | AA9: =O9-INDEX($K9:$O9,1,aux!$AL$1) -> 2798.938 | AB9: 0.03379386697 | AC9: 0.01323663262 | AD9: =+IF(INDEX($K9:$O9,1,aux!$AL$1)>0,(O9/INDEX($K9:$O9,1,aux!$AL$1))^(1/($O$3-INDEX($K$3:$O$3,1,aux!$AL$1)))-1,"n.d.") -> 0.03098613099 | AE9: =IF(INDEX($K9:$O9,1,aux!$AL$1)>0,(O9-INDEX($K9:$O9,1,aux!$AL$1))/INDEX($K9:$O9,1,aux!$AL$1),"n.d.") -> 0.1298252918
A10: 08 | B10: Frutas | C10: 941.816 | D10: 1828.274 | E10: 2202.643 | F10: 356.999 | G10: 535.292 | H10: 1173.0048 | I10: 0.007158473554 | J10: 0.005520693317 | K10: 51028.288 | L10: 54053.71 | M10: 54275.807 | N10: 23942.511 | O10: 26001.542 | P10: 41860.3716 | Q10: 0.1171458443 | R10: 0.06126967515 | S10: 40687.3668 | U10: =G10-INDEX($C10:$G10,1,aux!$AL$1) -> -406.524 | V10: 0.04354009678 | W10: 0.009612927411 | X10: =+IF(INDEX($C10:$G10,1,aux!$AL$1)>0,(G10/INDEX($C10:$G10,1,aux!$AL$1))^(1/($G$3-INDEX($C$3:$G$3,1,aux!$AL$1)))-1,"n.d.") -> -0.1317272482 | Y10: =IF(INDEX($C10:$G10,1,aux!$AL$1)>0,(G10-INDEX($C10:$G10,1,aux!$AL$1))/INDEX($C10:$G10,1,aux!$AL$1),"n.d.") -> -0.4316384517 | AA10: =O10-INDEX($K10:$O10,1,aux!$AL$1) -> -25026.746 | AB10: -0.3021683671 | AC10: -0.1183555486 | AD10: =+IF(INDEX($K10:$O10,1,aux!$AL$1)>0,(O10/INDEX($K10:$O10,1,aux!$AL$1))^(1/($O$3-INDEX($K$3:$O$3,1,aux!$AL$1)))-1,"n.d.") -> -0.1551161151 | AE10: =IF(INDEX($K10:$O10,1,aux!$AL$1)>0,(O10-INDEX($K10:$O10,1,aux!$AL$1))/INDEX($K10:$O10,1,aux!$AL$1),"n.d.") -> -0.4904484744
A11: 09 | B11: Café, chá, mate e especiarias | C11: 3768.701 | D11: 4121.523 | E11: 2764.062 | F11: 2602.386 | G11: 1852.295 | H11: 3021.7934 | I11: 0.01844103975 | J11: 0.01422193211 | K11: 3599.775 | L11: 4873.466 | M11: 7670.142 | N11: 9243.47 | O11: 10608.694 | P11: 7199.1094 | Q11: 0.0201466379 | R11: 0.01053710413 | S11: 4177.316 | U11: =G11-INDEX($C11:$G11,1,aux!$AL$1) -> -1916.406 | V11: 0.205253571 | W11: 0.04531656622 | X11: =+IF(INDEX($C11:$G11,1,aux!$AL$1)>0,(G11/INDEX($C11:$G11,1,aux!$AL$1))^(1/($G$3-INDEX($C$3:$G$3,1,aux!$AL$1)))-1,"n.d.") -> -0.1627028405 | Y11: =IF(INDEX($C11:$G11,1,aux!$AL$1)>0,(G11-INDEX($C11:$G11,1,aux!$AL$1))/INDEX($C11:$G11,1,aux!$AL$1),"n.d.") -> -0.5085057159 | AA11: =O11-INDEX($K11:$O11,1,aux!$AL$1) -> 7008.919 | AB11: 0.08462440979 | AC11: 0.03314631687 | AD11: =+IF(INDEX($K11:$O11,1,aux!$AL$1)>0,(O11/INDEX($K11:$O11,1,aux!$AL$1))^(1/($O$3-INDEX($K$3:$O$3,1,aux!$AL$1)))-1,"n.d.") -> 0.310227292 | AE11: =IF(INDEX($K11:$O11,1,aux!$AL$1)>0,(O11-INDEX($K11:$O11,1,aux!$AL$1))/INDEX($K11:$O11,1,aux!$AL$1),"n.d.") -> 1.947043635
A12: 10 | B12: Cereais | C12: 10007.512 | D12: 59172.006 | E12: 47083.173 | F12: 36047.419 | G12: 66370.432 | H12: 43736.1084 | I12: 0.2669074972 | J12: 0.2058419892 | K12: 5459.718 | L12: 5875.438 | M12: 7690.361 | N12: 5575.63 | O12: 5078.288 | P12: 5935.887 | Q12: 0.01661152226 | R12: 0.008688166262 | S12: -37800.2214 | U12: =G12-INDEX($C12:$G12,1,aux!$AL$1) -> 56362.92 | V12: -6.036659561 | W12: -1.33279378 | X12: =+IF(INDEX($C12:$G12,1,aux!$AL$1)>0,(G12/INDEX($C12:$G12,1,aux!$AL$1))^(1/($G$3-INDEX($C$3:$G$3,1,aux!$AL$1)))-1,"n.d.") -> 0.6047675401 | Y12: =IF(INDEX($C12:$G12,1,aux!$AL$1)>0,(G12-INDEX($C12:$G12,1,aux!$AL$1))/INDEX($C12:$G12,1,aux!$AL$1),"n.d.") -> 5.632061196 | AA12: =O12-INDEX($K12:$O12,1,aux!$AL$1) -> -381.43 | AB12: -0.004605316259 | AC12: -0.001803844451 | AD12: =+IF(INDEX($K12:$O12,1,aux!$AL$1)>0,(O12/INDEX($K12:$O12,1,aux!$AL$1))^(1/($O$3-INDEX($K$3:$O$3,1,aux!$AL$1)))-1,"n.d.") -> -0.01794281172 | AE12: =IF(INDEX($K12:$O12,1,aux!$AL$1)>0,(O12-INDEX($K12:$O12,1,aux!$AL$1))/INDEX($K12:$O12,1,aux!$AL$1),"n.d.") -> -0.06986258265
A13: 11 | B13: Produtos da indústria de moagem e outros | C13: 2037.93 | D13: 2645.87 | E13: 1785.277 | F13: 1951.265 | G13: 1436.337 | H13: 1971.3358 | I13: 0.0120304326 | J13: 0.009278001571 | K13: 660.083 | L13: 847.784 | M13: 927.644 | N13: 1011.383 | O13: 1221.86 | P13: 933.7508 | Q13: 0.002613092567 | R13: 0.001366700916 | S13: -1037.585 | U13: =G13-INDEX($C13:$G13,1,aux!$AL$1) -> -601.593 | V13: 0.06443264713 | W13: 0.01422565418 | X13: =+IF(INDEX($C13:$G13,1,aux!$AL$1)>0,(G13/INDEX($C13:$G13,1,aux!$AL$1))^(1/($G$3-INDEX($C$3:$G$3,1,aux!$AL$1)))-1,"n.d.") -> -0.08374412703 | Y13: =IF(INDEX($C13:$G13,1,aux!$AL$1)>0,(G13-INDEX($C13:$G13,1,aux!$AL$1))/INDEX($C13:$G13,1,aux!$AL$1),"n.d.") -> -0.2951980686 | AA13: =O13-INDEX($K13:$O13,1,aux!$AL$1) -> 561.777 | AB13: 0.006782793047 | AC13: 0.002656734719 | AD13: =+IF(INDEX($K13:$O13,1,aux!$AL$1)>0,(O13/INDEX($K13:$O13,1,aux!$AL$1))^(1/($O$3-INDEX($K$3:$O$3,1,aux!$AL$1)))-1,"n.d.") -> 0.1664220607 | AE13: =IF(INDEX($K13:$O13,1,aux!$AL$1)>0,(O13-INDEX($K13:$O13,1,aux!$AL$1))/INDEX($K13:$O13,1,aux!$AL$1),"n.d.") -> 0.8510702442
A14: 12 | B14: Sementes e frutos oleaginosos | C14: 1644.98 | D14: 2436.226 | E14: 3620.567 | F14: 82.385 | G14: 72.64 | H14: 1571.3596 | I14: 0.009589505635 | J14: 0.007395531922 | K14: 2235.02 | L14: 120.704 | M14: 317.349 | N14: 238.846 | O14: 883.01 | P14: 758.9858 | Q14: 0.002124014407 | R14: 0.001110903024 | S14: -812.3738 | U14: =G14-INDEX($C14:$G14,1,aux!$AL$1) -> -1572.34 | V14: 0.1684029375 | W14: 0.03718056077 | X14: =+IF(INDEX($C14:$G14,1,aux!$AL$1)>0,(G14/INDEX($C14:$G14,1,aux!$AL$1))^(1/($G$3-INDEX($C$3:$G$3,1,aux!$AL$1)))-1,"n.d.") -> -0.5415902952 | Y14: =IF(INDEX($C14:$G14,1,aux!$AL$1)>0,(G14-INDEX($C14:$G14,1,aux!$AL$1))/INDEX($C14:$G14,1,aux!$AL$1),"n.d.") -> -0.9558414084 | AA14: =O14-INDEX($K14:$O14,1,aux!$AL$1) -> -1352.01 | AB14: -0.01632392217 | AC14: -0.006393874985 | AD14: =+IF(INDEX($K14:$O14,1,aux!$AL$1)>0,(O14/INDEX($K14:$O14,1,aux!$AL$1))^(1/($O$3-INDEX($K$3:$O$3,1,aux!$AL$1)))-1,"n.d.") -> -0.207186472 | AE14: =IF(INDEX($K14:$O14,1,aux!$AL$1)>0,(O14-INDEX($K14:$O14,1,aux!$AL$1))/INDEX($K14:$O14,1,aux!$AL$1),"n.d.") -> -0.6049207613
A15: 13a | B15: Sucos e extratos vegetais (exc. NC 1301) (a) | C15: 311.736 | D15: 326.073 | E15: 60.804 | F15: 229.139 | G15: 30.167 | H15: 191.5838 | I15: 0.001169174726 | J15: 0.000901680372 | K15: 17.518 | L15: 24.268 | M15: 17.413 | N15: 534.09 | O15: 254.897 | P15: 169.6372 | Q15: 0.0004747280606 | R15: 0.0002482924958 | S15: -21.9466 | U15: =G15-INDEX($C15:$G15,1,aux!$AL$1) -> -281.569 | V15: 0.03015699321 | W15: 0.006658161285 | X15: =+IF(INDEX($C15:$G15,1,aux!$AL$1)>0,(G15/INDEX($C15:$G15,1,aux!$AL$1))^(1/($G$3-INDEX($C$3:$G$3,1,aux!$AL$1)))-1,"n.d.") -> -0.4422542223 | Y15: =IF(INDEX($C15:$G15,1,aux!$AL$1)>0,(G15-INDEX($C15:$G15,1,aux!$AL$1))/INDEX($C15:$G15,1,aux!$AL$1),"n.d.") -> -0.9032290143 | AA15: =O15-INDEX($K15:$O15,1,aux!$AL$1) -> 237.379 | AB15: 0.002866070755 | AC15: 0.001122603864 | AD15: =+IF(INDEX($K15:$O15,1,aux!$AL$1)>0,(O15/INDEX($K15:$O15,1,aux!$AL$1))^(1/($O$3-INDEX($K$3:$O$3,1,aux!$AL$1)))-1,"n.d.") -> 0.9530800799 | AE15: =IF(INDEX($K15:$O15,1,aux!$AL$1)>0,(O15-INDEX($K15:$O15,1,aux!$AL$1))/INDEX($K15:$O15,1,aux!$AL$1),"n.d.") -> 13.55057655
A16: 14 | B16: Matérias para entrançar e outros | C16: 14.127 | D16: 89.577 | E16: 21.244 | F16: 16.225 | G16: 7.746 | H16: 29.7838 | I16: 0.0001817610163 | J16: 0.0001401760893 | K16: 0.036 | L16: 0.001 | M16: 0.008 | N16: 0.071 | O16: 57.868 | P16: 11.5968 | Q16: 3.245353244e-05 | R16: 1.697386195e-05 | S16: -18.187 | U16: =G16-INDEX($C16:$G16,1,aux!$AL$1) -> -6.381 | V16: 0.0006834267043 | W16: 0.0001508892213 | X16: =+IF(INDEX($C16:$G16,1,aux!$AL$1)>0,(G16/INDEX($C16:$G16,1,aux!$AL$1))^(1/($G$3-INDEX($C$3:$G$3,1,aux!$AL$1)))-1,"n.d.") -> -0.1394880875 | Y16: =IF(INDEX($C16:$G16,1,aux!$AL$1)>0,(G16-INDEX($C16:$G16,1,aux!$AL$1))/INDEX($C16:$G16,1,aux!$AL$1),"n.d.") -> -0.4516882565 | AA16: =O16-INDEX($K16:$O16,1,aux!$AL$1) -> 57.832 | AB16: 0.0006982530212 | AC16: 0.0002734969254 | AD16: =+IF(INDEX($K16:$O16,1,aux!$AL$1)>0,(O16/INDEX($K16:$O16,1,aux!$AL$1))^(1/($O$3-INDEX($K$3:$O$3,1,aux!$AL$1)))-1,"n.d.") -> 5.331899207 | AE16: =IF(INDEX($K16:$O16,1,aux!$AL$1)>0,(O16-INDEX($K16:$O16,1,aux!$AL$1))/INDEX($K16:$O16,1,aux!$AL$1),"n.d.") -> 1606.444444
A17: 15 | B17: Gorduras e óleos animais ou vegetais | C17: 1322.126 | D17: 634.996 | E17: 568.286 | F17: 627.984 | G17: 399.467 | H17: 710.5718 | I17: 0.004336392688 | J17: 0.003344273602 | K17: 1642.346 | L17: 6326.354 | M17: 2120.03 | N17: 4084.197 | O17: 8650.172 | P17: 4564.6198 | Q17: 0.01277404428 | R17: 0.006681086709 | S17: 3854.048 | U17: =G17-INDEX($C17:$G17,1,aux!$AL$1) -> -922.659 | V17: 0.09881990277 | W17: 0.02181778688 | X17: =+IF(INDEX($C17:$G17,1,aux!$AL$1)>0,(G17/INDEX($C17:$G17,1,aux!$AL$1))^(1/($G$3-INDEX($C$3:$G$3,1,aux!$AL$1)))-1,"n.d.") -> -0.2586009665 | Y17: =IF(INDEX($C17:$G17,1,aux!$AL$1)>0,(G17-INDEX($C17:$G17,1,aux!$AL$1))/INDEX($C17:$G17,1,aux!$AL$1),"n.d.") -> -0.6978601132 | AA17: =O17-INDEX($K17:$O17,1,aux!$AL$1) -> 7007.826 | AB17: 0.08461121311 | AC17: 0.03314114789 | AD17: =+IF(INDEX($K17:$O17,1,aux!$AL$1)>0,(O17/INDEX($K17:$O17,1,aux!$AL$1))^(1/($O$3-INDEX($K$3:$O$3,1,aux!$AL$1)))-1,"n.d.") -> 0.5149211243 | AE17: =IF(INDEX($K17:$O17,1,aux!$AL$1)>0,(O17-INDEX($K17:$O17,1,aux!$AL$1))/INDEX($K17:$O17,1,aux!$AL$1),"n.d.") -> 4.266960799
A18: 16a | B18: Preparações de carnes (exc. NC 1604-05) (a) | C18: 6503.878 | D18: 7006.814 | E18: 8513.123 | F18: 1911.371 | G18: 7.322 | H18: 4788.5016 | I18: 0.02922269548 | J18: 0.02253686326 | K18: 1558.08 | L18: 1727.477 | M18: 2834.049 | N18: 3170.776 | O18: 3284.078 | P18: 2514.892 | Q18: 0.007037900895 | R18: 0.00368096627 | S18: -2273.6096 | U18: =G18-INDEX($C18:$G18,1,aux!$AL$1) -> -6496.556 | V18: 0.6958031431 | W18: 0.1536217327 | X18: =+IF(INDEX($C18:$G18,1,aux!$AL$1)>0,(G18/INDEX($C18:$G18,1,aux!$AL$1))^(1/($G$3-INDEX($C$3:$G$3,1,aux!$AL$1)))-1,"n.d.") -> -0.8168257869 | Y18: =IF(INDEX($C18:$G18,1,aux!$AL$1)>0,(G18-INDEX($C18:$G18,1,aux!$AL$1))/INDEX($C18:$G18,1,aux!$AL$1),"n.d.") -> -0.9988742101 | AA18: =O18-INDEX($K18:$O18,1,aux!$AL$1) -> 1725.998 | AB18: 0.02083938508 | AC18: 0.008162525009 | AD18: =+IF(INDEX($K18:$O18,1,aux!$AL$1)>0,(O18/INDEX($K18:$O18,1,aux!$AL$1))^(1/($O$3-INDEX($K$3:$O$3,1,aux!$AL$1)))-1,"n.d.") -> 0.2049136591 | AE18: =IF(INDEX($K18:$O18,1,aux!$AL$1)>0,(O18-INDEX($K18:$O18,1,aux!$AL$1))/INDEX($K18:$O18,1,aux!$AL$1),"n.d.") -> 1.107772387
A19: 17 | B19: Açúcares e produtos de confeitaria | C19: 1893.966 | D19: 1590.843 | E19: 1551.849 | F19: 532.323 | G19: 707.583 | H19: 1255.3128 | I19: 0.007660772983 | J19: 0.005908072146 | K19: 1535.766 | L19: 1558.594 | M19: 1983.523 | N19: 7492.143 | O19: 1271.366 | P19: 2768.2784 | Q19: 0.00774700028 | R19: 0.004051839767 | S19: 1512.9656 | U19: =G19-INDEX($C19:$G19,1,aux!$AL$1) -> -1186.383 | V19: 0.1270656361 | W19: 0.02805397384 | X19: =+IF(INDEX($C19:$G19,1,aux!$AL$1)>0,(G19/INDEX($C19:$G19,1,aux!$AL$1))^(1/($G$3-INDEX($C$3:$G$3,1,aux!$AL$1)))-1,"n.d.") -> -0.2181898527 | Y19: =IF(INDEX($C19:$G19,1,aux!$AL$1)>0,(G19-INDEX($C19:$G19,1,aux!$AL$1))/INDEX($C19:$G19,1,aux!$AL$1),"n.d.") -> -0.6264014243 | AA19: =O19-INDEX($K19:$O19,1,aux!$AL$1) -> -264.4 | AB19: -0.003192317382 | AC19: -0.001250390564 | AD19: =+IF(INDEX($K19:$O19,1,aux!$AL$1)>0,(O19/INDEX($K19:$O19,1,aux!$AL$1))^(1/($O$3-INDEX($K$3:$O$3,1,aux!$AL$1)))-1,"n.d.") -> -0.04613615858 | AE19: =IF(INDEX($K19:$O19,1,aux!$AL$1)>0,(O19-INDEX($K19:$O19,1,aux!$AL$1))/INDEX($K19:$O19,1,aux!$AL$1),"n.d.") -> -0.1721616444
A20: 18 | B20: Cacau e suas preparações | C20: 2498.309 | D20: 4251.596 | E20: 3004.146 | F20: 767.878 | G20: 732.135 | H20: 2250.8128 | I20: 0.01373599145 | J20: 0.01059334726 | K20: 414.77 | L20: 553.14 | M20: 868.825 | N20: 769.803 | O20: 675.985 | P20: 656.5046 | Q20: 0.001837221762 | R20: 0.0009609045988 | S20: -1594.3082 | U20: =G20-INDEX($C20:$G20,1,aux!$AL$1) -> -1766.174 | V20: 0.1891632152 | W20: 0.04176408393 | X20: =+IF(INDEX($C20:$G20,1,aux!$AL$1)>0,(G20/INDEX($C20:$G20,1,aux!$AL$1))^(1/($G$3-INDEX($C$3:$G$3,1,aux!$AL$1)))-1,"n.d.") -> -0.2642398634 | Y20: =IF(INDEX($C20:$G20,1,aux!$AL$1)>0,(G20-INDEX($C20:$G20,1,aux!$AL$1))/INDEX($C20:$G20,1,aux!$AL$1),"n.d.") -> -0.7069477795 | AA20: =O20-INDEX($K20:$O20,1,aux!$AL$1) -> 261.215 | AB20: 0.003153862272 | AC20: 0.001235328181 | AD20: =+IF(INDEX($K20:$O20,1,aux!$AL$1)>0,(O20/INDEX($K20:$O20,1,aux!$AL$1))^(1/($O$3-INDEX($K$3:$O$3,1,aux!$AL$1)))-1,"n.d.") -> 0.1298802845 | AE20: =IF(INDEX($K20:$O20,1,aux!$AL$1)>0,(O20-INDEX($K20:$O20,1,aux!$AL$1))/INDEX($K20:$O20,1,aux!$AL$1),"n.d.") -> 0.6297827712
A21: 19a | B21: Preparações à base de cereais (exc. NC 19022010) (a) | C21: 7907.516 | D21: 7728.809 | E21: 6892.117 | F21: 3667.711 | G21: 3193.334 | H21: 5877.8974 | I21: 0.03587093002 | J21: 0.02766405465 | K21: 31002.25 | L21: 29674.87 | M21: 39393.982 | N21: 40433.65 | O21: 49059.819 | P21: 37912.9142 | Q21: 0.106098923 | R21: 0.05549190914 | S21: 32035.0168 | U21: =G21-INDEX($C21:$G21,1,aux!$AL$1) -> -4714.182 | V21: 0.5049048531 | W21: 0.1114745731 | X21: =+IF(INDEX($C21:$G21,1,aux!$AL$1)>0,(G21/INDEX($C21:$G21,1,aux!$AL$1))^(1/($G$3-INDEX($C$3:$G$3,1,aux!$AL$1)))-1,"n.d.") -> -0.2028297798 | Y21: =IF(INDEX($C21:$G21,1,aux!$AL$1)>0,(G21-INDEX($C21:$G21,1,aux!$AL$1))/INDEX($C21:$G21,1,aux!$AL$1),"n.d.") -> -0.5961647122 | AA21: =O21-INDEX($K21:$O21,1,aux!$AL$1) -> 18057.569 | AB21: 0.218023795 | AC21: 0.08539717807 | AD21: =+IF(INDEX($K21:$O21,1,aux!$AL$1)>0,(O21/INDEX($K21:$O21,1,aux!$AL$1))^(1/($O$3-INDEX($K$3:$O$3,1,aux!$AL$1)))-1,"n.d.") -> 0.1215875553 | AE21: =IF(INDEX($K21:$O21,1,aux!$AL$1)>0,(O21-INDEX($K21:$O21,1,aux!$AL$1))/INDEX($K21:$O21,1,aux!$AL$1),"n.d.") -> 0.5824599505
A22: 20 | B22: Preparações de produtos vegetais | C22: 3108.501 | D22: 3973.029 | E22: 2299.901 | F22: 1120.939 | G22: 899.212 | H22: 2280.3164 | I22: 0.01391604249 | J22: 0.0107322046 | K22: 64266.213 | L22: 62776.998 | M22: 74939.117 | N22: 73163.016 | O22: 87417.966 | P22: 72512.662 | Q22: 0.202925982 | R22: 0.1061344435 | S22: 70232.3456 | U22: =G22-INDEX($C22:$G22,1,aux!$AL$1) -> -2209.289 | V22: 0.2366223319 | W22: 0.05224226562 | X22: =+IF(INDEX($C22:$G22,1,aux!$AL$1)>0,(G22/INDEX($C22:$G22,1,aux!$AL$1))^(1/($G$3-INDEX($C$3:$G$3,1,aux!$AL$1)))-1,"n.d.") -> -0.2666221809 | Y22: =IF(INDEX($C22:$G22,1,aux!$AL$1)>0,(G22-INDEX($C22:$G22,1,aux!$AL$1))/INDEX($C22:$G22,1,aux!$AL$1),"n.d.") -> -0.7107248799 | AA22: =O22-INDEX($K22:$O22,1,aux!$AL$1) -> 23151.753 | AB22: 0.2795300436 | AC22: 0.109488402 | AD22: =+IF(INDEX($K22:$O22,1,aux!$AL$1)>0,(O22/INDEX($K22:$O22,1,aux!$AL$1))^(1/($O$3-INDEX($K$3:$O$3,1,aux!$AL$1)))-1,"n.d.") -> 0.07995210935 | AE22: =IF(INDEX($K22:$O22,1,aux!$AL$1)>0,(O22-INDEX($K22:$O22,1,aux!$AL$1))/INDEX($K22:$O22,1,aux!$AL$1),"n.d.") -> 0.3602476623
A23: 21 | B23: Preparações alimentícias diversas | C23: 28660.014 | D23: 28212.176 | E23: 28483.671 | F23: 16414.385 | G23: 15179.054 | H23: 23389.86 | I23: 0.1427408432 | J23: 0.1100833038 | K23: 22823.133 | L23: 28082.8 | M23: 35053.372 | N23: 45810.377 | O23: 52440.708 | P23: 36842.078 | Q23: 0.1031021983 | R23: 0.05392456074 | S23: 13452.218 | U23: =G23-INDEX($C23:$G23,1,aux!$AL$1) -> -13480.96 | V23: 1.443856459 | W23: 0.3187794322 | X23: =+IF(INDEX($C23:$G23,1,aux!$AL$1)>0,(G23/INDEX($C23:$G23,1,aux!$AL$1))^(1/($G$3-INDEX($C$3:$G$3,1,aux!$AL$1)))-1,"n.d.") -> -0.1469154494 | Y23: =IF(INDEX($C23:$G23,1,aux!$AL$1)>0,(G23-INDEX($C23:$G23,1,aux!$AL$1))/INDEX($C23:$G23,1,aux!$AL$1),"n.d.") -> -0.4703752064 | AA23: =O23-INDEX($K23:$O23,1,aux!$AL$1) -> 29617.575 | AB23: 0.3575971992 | AC23: 0.1400663249 | AD23: =+IF(INDEX($K23:$O23,1,aux!$AL$1)>0,(O23/INDEX($K23:$O23,1,aux!$AL$1))^(1/($O$3-INDEX($K$3:$O$3,1,aux!$AL$1)))-1,"n.d.") -> 0.2311850161 | AE23: =IF(INDEX($K23:$O23,1,aux!$AL$1)>0,(O23-INDEX($K23:$O23,1,aux!$AL$1))/INDEX($K23:$O23,1,aux!$AL$1),"n.d.") -> 1.297699794
A24: 22 | B24: Bebidas, líquidos alcoólicos e vinagres | C24: 32920.938 | D24: 46899.832 | E24: 27920.351 | F24: 38282.612 | G24: 46003.23 | H24: 38405.3926 | I24: 0.2343758416 | J24: 0.1807532197 | K24: 83041.278 | L24: 86334.089 | M24: 103839.157 | N24: 107376.355 | O24: 96239.347 | P24: 95366.0452 | Q24: 0.2668809535 | R24: 0.1395842031 | S24: 56960.6526 | U24: =G24-INDEX($C24:$G24,1,aux!$AL$1) -> 13082.292 | V24: -1.401157766 | W24: -0.3093522728 | X24: =+IF(INDEX($C24:$G24,1,aux!$AL$1)>0,(G24/INDEX($C24:$G24,1,aux!$AL$1))^(1/($G$3-INDEX($C$3:$G$3,1,aux!$AL$1)))-1,"n.d.") -> 0.0872490358 | Y24: =IF(INDEX($C24:$G24,1,aux!$AL$1)>0,(G24-INDEX($C24:$G24,1,aux!$AL$1))/INDEX($C24:$G24,1,aux!$AL$1),"n.d.") -> 0.3973851535 | AA24: =O24-INDEX($K24:$O24,1,aux!$AL$1) -> 13198.069 | AB24: 0.1593510782 | AC24: 0.06241581293 | AD24: =+IF(INDEX($K24:$O24,1,aux!$AL$1)>0,(O24/INDEX($K24:$O24,1,aux!$AL$1))^(1/($O$3-INDEX($K$3:$O$3,1,aux!$AL$1)))-1,"n.d.") -> 0.03756344106 | AE24: =IF(INDEX($K24:$O24,1,aux!$AL$1)>0,(O24-INDEX($K24:$O24,1,aux!$AL$1))/INDEX($K24:$O24,1,aux!$AL$1),"n.d.") -> 0.1589338377
A25: 23a | B25: Resíduos indústrias alimentares; alimentos p/ animais (exc. NC 230120) (a) | C25: 2951.222 | D25: 3069.848 | E25: 2408.82 | F25: 2796.822 | G25: 4800.624 | H25: 3205.4672 | I25: 0.01956194227 | J25: 0.01508638443 | K25: 1177.346 | L25: 3534.839 | M25: 2808.335 | N25: 3626.617 | O25: 4828.513 | P25: 3195.13 | Q25: 0.008941540347 | R25: 0.00467660868 | S25: -10.3372 | U25: =G25-INDEX($C25:$G25,1,aux!$AL$1) -> 1849.402 | V25: -0.1980772158 | W25: -0.04373214664 | X25: =+IF(INDEX($C25:$G25,1,aux!$AL$1)>0,(G25/INDEX($C25:$G25,1,aux!$AL$1))^(1/($G$3-INDEX($C$3:$G$3,1,aux!$AL$1)))-1,"n.d.") -> 0.12933803 | Y25: =IF(INDEX($C25:$G25,1,aux!$AL$1)>0,(G25-INDEX($C25:$G25,1,aux!$AL$1))/INDEX($C25:$G25,1,aux!$AL$1),"n.d.") -> 0.6266563478 | AA25: =O25-INDEX($K25:$O25,1,aux!$AL$1) -> 3651.167 | AB25: 0.0440835245 | AC25: 0.01726696204 | AD25: =+IF(INDEX($K25:$O25,1,aux!$AL$1)>0,(O25/INDEX($K25:$O25,1,aux!$AL$1))^(1/($O$3-INDEX($K$3:$O$3,1,aux!$AL$1)))-1,"n.d.") -> 0.4230734726 | AE25: =IF(INDEX($K25:$O25,1,aux!$AL$1)>0,(O25-INDEX($K25:$O25,1,aux!$AL$1))/INDEX($K25:$O25,1,aux!$AL$1),"n.d.") -> 3.101184359
A26: 24 | B26: Tabaco | C26: 1482.067 | D26: 1602.468 | E26: 1469.539 | F26: 0 | G26: 228.394 | H26: 956.4936 | I26: 0.005837174869 | J26: 0.00450169328 | K26: 0.137 | L26: 1054.82 | M26: 184.14 | N26: 0.289 | O26: 0 | P26: 247.8772 | Q26: 0.0006936819425 | R26: 0.0003628098591 | S26: -708.6164 | U26: =G26-INDEX($C26:$G26,1,aux!$AL$1) -> -1253.673 | V26: 0.1342726229 | W26: 0.02964515636 | X26: =+IF(INDEX($C26:$G26,1,aux!$AL$1)>0,(G26/INDEX($C26:$G26,1,aux!$AL$1))^(1/($G$3-INDEX($C$3:$G$3,1,aux!$AL$1)))-1,"n.d.") -> -0.3734521943 | Y26: =IF(INDEX($C26:$G26,1,aux!$AL$1)>0,(G26-INDEX($C26:$G26,1,aux!$AL$1))/INDEX($C26:$G26,1,aux!$AL$1),"n.d.") -> -0.8458949562 | AA26: =O26-INDEX($K26:$O26,1,aux!$AL$1) -> -0.137 | AB26: -1.654113015e-06 | AC26: -6.478952619e-07 | AD26: =+IF(INDEX($K26:$O26,1,aux!$AL$1)>0,(O26/INDEX($K26:$O26,1,aux!$AL$1))^(1/($O$3-INDEX($K$3:$O$3,1,aux!$AL$1)))-1,"n.d.") -> -1 | AE26: =IF(INDEX($K26:$O26,1,aux!$AL$1)>0,(O26-INDEX($K26:$O26,1,aux!$AL$1))/INDEX($K26:$O26,1,aux!$AL$1),"n.d.") -> -1
A27: 29 | B27: Manitol e sorbitol (NC 290543; 290544) | C27: 1.061 | D27: 3.788 | E27: 0.51 | F27: 0.044 | G27: 2.339 | H27: 1.5484 | I27: 9.449390531e-06 | J27: 7.287473617e-06 | K27: 17.228 | L27: 0 | M27: 0 | N27: 0 | O27: 0 | P27: 3.4456 | Q27: 9.642478215e-06 | R27: 5.043213537e-06 | S27: 1.8972 | U27: =G27-INDEX($C27:$G27,1,aux!$AL$1) -> 1.278 | V27: -0.000136878127 | W27: -3.022040822e-05 | X27: =+IF(INDEX($C27:$G27,1,aux!$AL$1)>0,(G27/INDEX($C27:$G27,1,aux!$AL$1))^(1/($G$3-INDEX($C$3:$G$3,1,aux!$AL$1)))-1,"n.d.") -> 0.2185089108 | Y27: =IF(INDEX($C27:$G27,1,aux!$AL$1)>0,(G27-INDEX($C27:$G27,1,aux!$AL$1))/INDEX($C27:$G27,1,aux!$AL$1),"n.d.") -> 1.204524034 | AA27: =O27-INDEX($K27:$O27,1,aux!$AL$1) -> -17.228 | AB27: -0.0002080077301 | AC27: -8.147401147e-05 | AD27: =+IF(INDEX($K27:$O27,1,aux!$AL$1)>0,(O27/INDEX($K27:$O27,1,aux!$AL$1))^(1/($O$3-INDEX($K$3:$O$3,1,aux!$AL$1)))-1,"n.d.") -> -1 | AE27: =IF(INDEX($K27:$O27,1,aux!$AL$1)>0,(O27-INDEX($K27:$O27,1,aux!$AL$1))/INDEX($K27:$O27,1,aux!$AL$1),"n.d.") -> -1
A28: 33 | B28: Óleos essenciais e resinóides (NC 3301) | C28: 2815.978 | D28: 2179.63 | E28: 1010.704 | F28: 512.088 | G28: 409.857 | H28: 1385.6514 | I28: 0.008456187819 | J28: 0.006521504792 | K28: 41.385 | L28: 11.444 | M28: 12.107 | N28: 12.191 | O28: 42.636 | P28: 23.9526 | Q28: 6.703111902e-05 | R28: 3.505864771e-05 | S28: -1361.6988 | U28: =G28-INDEX($C28:$G28,1,aux!$AL$1) -> -2406.121 | V28: 0.2577037056 | W28: 0.05689668141 | X28: =+IF(INDEX($C28:$G28,1,aux!$AL$1)>0,(G28/INDEX($C28:$G28,1,aux!$AL$1))^(1/($G$3-INDEX($C$3:$G$3,1,aux!$AL$1)))-1,"n.d.") -> -0.3823381543 | Y28: =IF(INDEX($C28:$G28,1,aux!$AL$1)>0,(G28-INDEX($C28:$G28,1,aux!$AL$1))/INDEX($C28:$G28,1,aux!$AL$1),"n.d.") -> -0.8544530533 | AA28: =O28-INDEX($K28:$O28,1,aux!$AL$1) -> 1.251 | AB28: 1.510434586e-05 | AC28: 5.916182282e-06 | AD28: =+IF(INDEX($K28:$O28,1,aux!$AL$1)>0,(O28/INDEX($K28:$O28,1,aux!$AL$1))^(1/($O$3-INDEX($K$3:$O$3,1,aux!$AL$1)))-1,"n.d.") -> 0.007472901419 | AE28: =IF(INDEX($K28:$O28,1,aux!$AL$1)>0,(O28-INDEX($K28:$O28,1,aux!$AL$1))/INDEX($K28:$O28,1,aux!$AL$1),"n.d.") -> 0.0302283436
A29: 35 | B29: Caseínas, albuminas, gelatinas, peptonas, dextrinas (NC 3501 a 3505) | C29: 304.557 | D29: 402.015 | E29: 412.852 | F29: 25.362 | G29: 23.875 | H29: 233.7322 | I29: 0.001426392946 | J29: 0.001100049884 | K29: 61.176 | L29: 83.739 | M29: 184.399 | N29: 1181.833 | O29: 858.683 | P29: 473.966 | Q29: 0.001326389259 | R29: 0.0006937287402 | S29: 240.2338 | U29: =G29-INDEX($C29:$G29,1,aux!$AL$1) -> -280.682 | V29: 0.03006199251 | W29: 0.006637186714 | X29: =+IF(INDEX($C29:$G29,1,aux!$AL$1)>0,(G29/INDEX($C29:$G29,1,aux!$AL$1))^(1/($G$3-INDEX($C$3:$G$3,1,aux!$AL$1)))-1,"n.d.") -> -0.4708623081 | Y29: =IF(INDEX($C29:$G29,1,aux!$AL$1)>0,(G29-INDEX($C29:$G29,1,aux!$AL$1))/INDEX($C29:$G29,1,aux!$AL$1),"n.d.") -> -0.9216074495 | AA29: =O29-INDEX($K29:$O29,1,aux!$AL$1) -> 797.507 | AB29: 0.009628954077 | AC29: 0.003771540194 | AD29: =+IF(INDEX($K29:$O29,1,aux!$AL$1)>0,(O29/INDEX($K29:$O29,1,aux!$AL$1))^(1/($O$3-INDEX($K$3:$O$3,1,aux!$AL$1)))-1,"n.d.") -> 0.9355881158 | AE29: =IF(INDEX($K29:$O29,1,aux!$AL$1)>0,(O29-INDEX($K29:$O29,1,aux!$AL$1))/INDEX($K29:$O29,1,aux!$AL$1),"n.d.") -> 13.03627239
A30: 38a | B30: Agentes de acabamento, ácidos gordos, sorbitol (NC 380910, 382311-12-13-19-70, 382460) (a) | C30: 24.216 | D30: 208.321 | E30: 371.66 | F30: 1.443 | G30: 5.823 | H30: 122.2926 | I30: 0.0007463126689 | J30: 0.0005755645157 | K30: 403.429 | L30: 451.494 | M30: 30.666 | N30: 0 | O30: 0.004 | P30: 177.1186 | Q30: 0.000495664686 | R30: 0.0002592427795 | S30: 54.826 | U30: =G30-INDEX($C30:$G30,1,aux!$AL$1) -> -18.393 | V30: 0.001969952574 | W30: 0.0004349326826 | X30: =+IF(INDEX($C30:$G30,1,aux!$AL$1)>0,(G30/INDEX($C30:$G30,1,aux!$AL$1))^(1/($G$3-INDEX($C$3:$G$3,1,aux!$AL$1)))-1,"n.d.") -> -0.2997371362 | Y30: =IF(INDEX($C30:$G30,1,aux!$AL$1)>0,(G30-INDEX($C30:$G30,1,aux!$AL$1))/INDEX($C30:$G30,1,aux!$AL$1),"n.d.") -> -0.7595391477 | AA30: =O30-INDEX($K30:$O30,1,aux!$AL$1) -> -403.425 | AB30: -0.004870879878 | AC30: -0.00190786238 | AD30: =+IF(INDEX($K30:$O30,1,aux!$AL$1)>0,(O30/INDEX($K30:$O30,1,aux!$AL$1))^(1/($O$3-INDEX($K$3:$O$3,1,aux!$AL$1)))-1,"n.d.") -> -0.9438857427 | AE30: =IF(INDEX($K30:$O30,1,aux!$AL$1)>0,(O30-INDEX($K30:$O30,1,aux!$AL$1))/INDEX($K30:$O30,1,aux!$AL$1),"n.d.") -> -0.999990085
A31: 41 | B31: Couro e peles em bruto (NC 4101 a 4103) | C31: 0 | D31: 18.439 | E31: 47.271 | F31: 6.9 | G31: 25.797 | H31: 19.6814 | I31: 0.0001201092966 | J31: 9.262960685e-05 | K31: 0.164 | L31: 0 | M31: 0 | N31: 0.997 | O31: 0.774 | P31: 0.387 | Q31: 1.08301575e-06 | R31: 5.664394122e-07 | S31: -19.2944 | U31: =G31-INDEX($C31:$G31,1,aux!$AL$1) -> 25.797 | V31: -0.002762946041 | W31: -0.0006100124185 | X31: =+IF(INDEX($C31:$G31,1,aux!$AL$1)>0,(G31/INDEX($C31:$G31,1,aux!$AL$1))^(1/($G$3-INDEX($C$3:$G$3,1,aux!$AL$1)))-1,"n.d.") -> n.d. | Y31: =IF(INDEX($C31:$G31,1,aux!$AL$1)>0,(G31-INDEX($C31:$G31,1,aux!$AL$1))/INDEX($C31:$G31,1,aux!$AL$1),"n.d.") -> n.d. | AA31: =O31-INDEX($K31:$O31,1,aux!$AL$1) -> 0.61 | AB31: 7.365028755e-06 | AC31: 2.884789122e-06 | AD31: =+IF(INDEX($K31:$O31,1,aux!$AL$1)>0,(O31/INDEX($K31:$O31,1,aux!$AL$1))^(1/($O$3-INDEX($K$3:$O$3,1,aux!$AL$1)))-1,"n.d.") -> 0.4739212429 | AE31: =IF(INDEX($K31:$O31,1,aux!$AL$1)>0,(O31-INDEX($K31:$O31,1,aux!$AL$1))/INDEX($K31:$O31,1,aux!$AL$1),"n.d.") -> 3.719512195
A32: 43 | B32: Peles com pelo em bruto (NC 4301) | C32: 0 | D32: 0 | E32: 0 | F32: 0 | G32: 0.02 | H32: 0.004 | I32: 2.441072212e-08 | J32: 1.882581663e-08 | K32: 0 | L32: 0 | M32: 0 | N32: 0 | O32: 0 | P32: 0 | Q32: 0 | R32: 0 | S32: -0.004 | U32: =G32-INDEX($C32:$G32,1,aux!$AL$1) -> 0.02 | V32: -2.142067714e-06 | W32: -4.72932836e-07 | X32: =+IF(INDEX($C32:$G32,1,aux!$AL$1)>0,(G32/INDEX($C32:$G32,1,aux!$AL$1))^(1/($G$3-INDEX($C$3:$G$3,1,aux!$AL$1)))-1,"n.d.") -> n.d. | Y32: =IF(INDEX($C32:$G32,1,aux!$AL$1)>0,(G32-INDEX($C32:$G32,1,aux!$AL$1))/INDEX($C32:$G32,1,aux!$AL$1),"n.d.") -> n.d. | AA32: =O32-INDEX($K32:$O32,1,aux!$AL$1) -> 0 | AB32: 0 | AC32: 0 | AD32: =+IF(INDEX($K32:$O32,1,aux!$AL$1)>0,(O32/INDEX($K32:$O32,1,aux!$AL$1))^(1/($O$3-INDEX($K$3:$O$3,1,aux!$AL$1)))-1,"n.d.") -> n.d. | AE32: =IF(INDEX($K32:$O32,1,aux!$AL$1)>0,(O32-INDEX($K32:$O32,1,aux!$AL$1))/INDEX($K32:$O32,1,aux!$AL$1),"n.d.") -> n.d.
A33: 50 | B33: Seda crua (NC 5001-5003) | C33: 102.04 | D33: 61.824 | E33: 36.897 | F33: 0.024 | G33: 0.043 | H33: 40.1656 | I33: 0.0002451178251 | J33: 0.0001890375551 | K33: 0 | L33: 0 | M33: 0 | N33: 0.25 | O33: 0 | P33: 0.05 | Q33: 1.399245155e-07 | R33: 7.318338659e-08 | S33: -40.1156 | U33: =G33-INDEX($C33:$G33,1,aux!$AL$1) -> -101.997 | V33: 0.01092422403 | W33: 0.002411886524 | X33: =+IF(INDEX($C33:$G33,1,aux!$AL$1)>0,(G33/INDEX($C33:$G33,1,aux!$AL$1))^(1/($G$3-INDEX($C$3:$G$3,1,aux!$AL$1)))-1,"n.d.") -> -0.8567236526 | Y33: =IF(INDEX($C33:$G33,1,aux!$AL$1)>0,(G33-INDEX($C33:$G33,1,aux!$AL$1))/INDEX($C33:$G33,1,aux!$AL$1),"n.d.") -> -0.9995785966 | AA33: =O33-INDEX($K33:$O33,1,aux!$AL$1) -> 0 | AB33: 0 | AC33: 0 | AD33: =+IF(INDEX($K33:$O33,1,aux!$AL$1)>0,(O33/INDEX($K33:$O33,1,aux!$AL$1))^(1/($O$3-INDEX($K$3:$O$3,1,aux!$AL$1)))-1,"n.d.") -> n.d. | AE33: =IF(INDEX($K33:$O33,1,aux!$AL$1)>0,(O33-INDEX($K33:$O33,1,aux!$AL$1))/INDEX($K33:$O33,1,aux!$AL$1),"n.d.") -> n.d.
A34: 51 | B34: Lã não cardada (NC 5101-5103) | C34: 1414.636 | D34: 1213.717 | E34: 1215.655 | F34: 845.886 | G34: 1326.955 | H34: 1203.3698 | I34: 0.007343781448 | J34: 0.005663604798 | K34: 715.633 | L34: 700.173 | M34: 176.414 | N34: 32.902 | O34: 6.845 | P34: 326.3934 | Q34: 0.0009134087675 | R34: 0.0004777314875 | S34: -876.9764 | U34: =G34-INDEX($C34:$G34,1,aux!$AL$1) -> -87.681 | V34: 0.009390931963 | W34: 0.0020733612 | X34: =+IF(INDEX($C34:$G34,1,aux!$AL$1)>0,(G34/INDEX($C34:$G34,1,aux!$AL$1))^(1/($G$3-INDEX($C$3:$G$3,1,aux!$AL$1)))-1,"n.d.") -> -0.01586909045 | Y34: =IF(INDEX($C34:$G34,1,aux!$AL$1)>0,(G34-INDEX($C34:$G34,1,aux!$AL$1))/INDEX($C34:$G34,1,aux!$AL$1),"n.d.") -> -0.06198131533 | AA34: =O34-INDEX($K34:$O34,1,aux!$AL$1) -> -708.788 | AB34: -0.008557777051 | AC34: -0.003351973627 | AD34: =+IF(INDEX($K34:$O34,1,aux!$AL$1)>0,(O34/INDEX($K34:$O34,1,aux!$AL$1))^(1/($O$3-INDEX($K$3:$O$3,1,aux!$AL$1)))-1,"n.d.") -> -0.6872691154 | AE34: =IF(INDEX($K34:$O34,1,aux!$AL$1)>0,(O34-INDEX($K34:$O34,1,aux!$AL$1))/INDEX($K34:$O34,1,aux!$AL$1),"n.d.") -> -0.9904350414
A35: 52 | B35: Algodão (NC 5201-5203) | C35: 569.715 | D35: 549.63 | E35: 43.859 | F35: 144.071 | G35: 10.56 | H35: 263.567 | I35: 0.001608465199 | J35: 0.001240466003 | K35: 543.994 | L35: 614.021 | M35: 775.287 | N35: 2656.246 | O35: 2125.86 | P35: 1343.0816 | Q35: 0.003758600844 | R35: 0.001965825199 | S35: 1079.5146 | U35: =G35-INDEX($C35:$G35,1,aux!$AL$1) -> -559.155 | V35: 0.05988739364 | W35: 0.013222138 | X35: =+IF(INDEX($C35:$G35,1,aux!$AL$1)>0,(G35/INDEX($C35:$G35,1,aux!$AL$1))^(1/($G$3-INDEX($C$3:$G$3,1,aux!$AL$1)))-1,"n.d.") -> -0.6310210709 | Y35: =IF(INDEX($C35:$G35,1,aux!$AL$1)>0,(G35-INDEX($C35:$G35,1,aux!$AL$1))/INDEX($C35:$G35,1,aux!$AL$1),"n.d.") -> -0.9814644164 | AA35: =O35-INDEX($K35:$O35,1,aux!$AL$1) -> 1581.866 | AB35: 0.0190991616 | AC35: 0.00748090136 | AD35: =+IF(INDEX($K35:$O35,1,aux!$AL$1)>0,(O35/INDEX($K35:$O35,1,aux!$AL$1))^(1/($O$3-INDEX($K$3:$O$3,1,aux!$AL$1)))-1,"n.d.") -> 0.4059994075 | AE35: =IF(INDEX($K35:$O35,1,aux!$AL$1)>0,(O35-INDEX($K35:$O35,1,aux!$AL$1))/INDEX($K35:$O35,1,aux!$AL$1),"n.d.") -> 2.907873984
A36: 53 | B36: Linho e cânhamo em bruto (NC 5301-5302) | C36: 0 | D36: 0 | E36: 0.268 | F36: 0.624 | G36: 0.025 | H36: 0.1834 | I36: 1.119231609e-06 | J36: 8.631636924e-07 | K36: 0 | L36: 0.009 | M36: 0 | N36: 0.025 | O36: 0 | P36: 0.0068 | Q36: 1.902973411e-08 | R36: 9.952940577e-09 | S36: -0.1766 | U36: =G36-INDEX($C36:$G36,1,aux!$AL$1) -> 0.025 | V36: -2.677584643e-06 | W36: =IF($U$53<>0,U36/$U$53, "n.d.") -> -5.91166045e-07 | X36: =+IF(INDEX($C36:$G36,1,aux!$AL$1)>0,(G36/INDEX($C36:$G36,1,aux!$AL$1))^(1/($G$3-INDEX($C$3:$G$3,1,aux!$AL$1)))-1,"n.d.") -> n.d. | Y36: =IF(INDEX($C36:$G36,1,aux!$AL$1)>0,(G36-INDEX($C36:$G36,1,aux!$AL$1))/INDEX($C36:$G36,1,aux!$AL$1),"n.d.") -> n.d. | AA36: =O36-INDEX($K36:$O36,1,aux!$AL$1) -> 0 | AB36: 0 | AC36: =IF($AA$53<>0,AA36/$AA$53, "n.d.") -> 0 | AD36: =+IF(INDEX($K36:$O36,1,aux!$AL$1)>0,(O36/INDEX($K36:$O36,1,aux!$AL$1))^(1/($O$3-INDEX($K$3:$O$3,1,aux!$AL$1)))-1,"n.d.") -> n.d. | AE36: =IF(INDEX($K36:$O36,1,aux!$AL$1)>0,(O36-INDEX($K36:$O36,1,aux!$AL$1))/INDEX($K36:$O36,1,aux!$AL$1),"n.d.") -> n.d.
A37: Subtotal Agrícola e Agroalimentar | C37: 160079.658 | D37: 218909.674 | E37: 172409.615 | F37: 117170.268 | G37: 150742.885 | H37: 163862.42 | I37: 1 | J37: 0.7712109678 | K37: 313269.793 | L37: 329792.517 | M37: 371115.789 | N37: 376405.88 | O37: 396093.638 | P37: 357335.5234 | Q37: 1 | R37: 0.523020475 | S37: 193473.1034 | U37: =G37-INDEX($C37:$G37,1,aux!$AL$1) -> -9336.773 | V37: 1 | W37: 0.2207833267 | X37: =+IF(INDEX($C37:$G37,1,aux!$AL$1)>0,(G37/INDEX($C37:$G37,1,aux!$AL$1))^(1/($G$3-INDEX($C$3:$G$3,1,aux!$AL$1)))-1,"n.d.") -> -0.01491168228 | Y37: =IF(INDEX($C37:$G37,1,aux!$AL$1)>0,(G37-INDEX($C37:$G37,1,aux!$AL$1))/INDEX($C37:$G37,1,aux!$AL$1),"n.d.") -> -0.05832579302 | AA37: =O37-INDEX($K37:$O37,1,aux!$AL$1) -> 82823.845 | AB37: 1 | AC37: 0.3916874215 | AD37: =+IF(INDEX($K37:$O37,1,aux!$AL$1)>0,(O37/INDEX($K37:$O37,1,aux!$AL$1))^(1/($O$3-INDEX($K$3:$O$3,1,aux!$AL$1)))-1,"n.d.") -> 0.06040028722 | AE37: =IF(INDEX($K37:$O37,1,aux!$AL$1)>0,(O37-INDEX($K37:$O37,1,aux!$AL$1))/INDEX($K37:$O37,1,aux!$AL$1),"n.d.") -> 0.2643850344
A38: 03 | B38: Peixes e crustáceos | C38: 25139.636 | D38: 23245.701 | E38: 19515.605 | F38: 5793.738 | G38: 7858.681 | H38: 16310.6722 | I38: 0.802447331 | J38: 0.07676543098 | K38: 4741.478 | L38: 5722.256 | M38: 8904.791 | N38: 5195.761 | O38: 6334.073 | P38: 6179.6718 | Q38: 0.2377819949 | R38: 0.009044986207 | S38: -10131.0004 | U38: =G38-INDEX($C38:$G38,1,aux!$AL$1) -> -17280.955 | V38: =IF($U$44<>0,U38/$U$44, "n.d.") -> 1.410703332 | W38: 0.4086365528 | X38: =+IF(INDEX($C38:$G38,1,aux!$AL$1)>0,(G38/INDEX($C38:$G38,1,aux!$AL$1))^(1/($G$3-INDEX($C$3:$G$3,1,aux!$AL$1)))-1,"n.d.") -> -0.2522650703 | Y38: =IF(INDEX($C38:$G38,1,aux!$AL$1)>0,(G38-INDEX($C38:$G38,1,aux!$AL$1))/INDEX($C38:$G38,1,aux!$AL$1),"n.d.") -> -0.6873987754 | AA38: =O38-INDEX($K38:$O38,1,aux!$AL$1) -> 1592.595 | AB38: =IF($AA$44<>0,AA38/$AA$44, "n.d.") -> -0.1794081877 | AC38: 0.007531640544 | AD38: =+IF(INDEX($K38:$O38,1,aux!$AL$1)>0,(O38/INDEX($K38:$O38,1,aux!$AL$1))^(1/($O$3-INDEX($K$3:$O$3,1,aux!$AL$1)))-1,"n.d.") -> 0.07508383322 | AE38: =IF(INDEX($K38:$O38,1,aux!$AL$1)>0,(O38-INDEX($K38:$O38,1,aux!$AL$1))/INDEX($K38:$O38,1,aux!$AL$1),"n.d.") -> 0.3358857723
A39: 05p | B39: Outros produtos de pescado (NC 0508, 051191) (p) | C39: 59.205 | D39: 71.887 | E39: 70.634 | F39: 105.01 | G39: 120.519 | H39: 85.451 | I39: 0.004203991475 | J39: 0.0004021712142 | K39: 1.903 | L39: 0.877 | M39: 92.415 | N39: 26.567 | O39: 16.4 | P39: 27.6324 | Q39: 0.001063242096 | R39: 4.044465223e-05 | S39: -57.8186 | U39: =G39-INDEX($C39:$G39,1,aux!$AL$1) -> 61.314 | V39: -0.005005271069 | W39: -0.001449870195 | X39: =+IF(INDEX($C39:$G39,1,aux!$AL$1)>0,(G39/INDEX($C39:$G39,1,aux!$AL$1))^(1/($G$3-INDEX($C$3:$G$3,1,aux!$AL$1)))-1,"n.d.") -> 0.1944673512 | Y39: =IF(INDEX($C39:$G39,1,aux!$AL$1)>0,(G39-INDEX($C39:$G39,1,aux!$AL$1))/INDEX($C39:$G39,1,aux!$AL$1),"n.d.") -> 1.035621991 | AA39: =O39-INDEX($K39:$O39,1,aux!$AL$1) -> 14.497 | AB39: -0.001633108541 | AC39: 6.85586687e-05 | AD39: =+IF(INDEX($K39:$O39,1,aux!$AL$1)>0,(O39/INDEX($K39:$O39,1,aux!$AL$1))^(1/($O$3-INDEX($K$3:$O$3,1,aux!$AL$1)))-1,"n.d.") -> 0.7133704203 | AE39: =IF(INDEX($K39:$O39,1,aux!$AL$1)>0,(O39-INDEX($K39:$O39,1,aux!$AL$1))/INDEX($K39:$O39,1,aux!$AL$1),"n.d.") -> 7.617971624
A40: 16p | B40: Preparações e conservas de peixes ou crustáceos (NC 1604-05) (p) | C40: 131.087 | D40: 352.235 | E40: 1661.149 | F40: 43.411 | G40: 18.494 | H40: 441.2752 | I40: 0.02170971877 | J40: 0.0020768415 | K40: 21149.837 | L40: 21189.109 | M40: 23960.201 | N40: 19742.571 | O40: 10658.505 | P40: 19340.0446 | Q40: 0.7441680619 | R40: 0.02830739921 | S40: 18898.7694 | U40: =G40-INDEX($C40:$G40,1,aux!$AL$1) -> -112.593 | V40: 0.009191350842 | W40: 0.00266244634 | X40: =+IF(INDEX($C40:$G40,1,aux!$AL$1)>0,(G40/INDEX($C40:$G40,1,aux!$AL$1))^(1/($G$3-INDEX($C$3:$G$3,1,aux!$AL$1)))-1,"n.d.") -> -0.3871307845 | Y40: =IF(INDEX($C40:$G40,1,aux!$AL$1)>0,(G40-INDEX($C40:$G40,1,aux!$AL$1))/INDEX($C40:$G40,1,aux!$AL$1),"n.d.") -> -0.8589181231 | AA40: =O40-INDEX($K40:$O40,1,aux!$AL$1) -> -10491.332 | AB40: 1.181864103 | AC40: -0.04961521382 | AD40: =+IF(INDEX($K40:$O40,1,aux!$AL$1)>0,(O40/INDEX($K40:$O40,1,aux!$AL$1))^(1/($O$3-INDEX($K$3:$O$3,1,aux!$AL$1)))-1,"n.d.") -> -0.1574468295 | AE40: =IF(INDEX($K40:$O40,1,aux!$AL$1)>0,(O40-INDEX($K40:$O40,1,aux!$AL$1))/INDEX($K40:$O40,1,aux!$AL$1),"n.d.") -> -0.4960478892
A41: 19p | B41: Massas recheadas com pescado (NC 19022010) (p) | C41: 27.77 | D41: 27.49 | E41: 8.004 | F41: 9.622 | G41: 6.913 | H41: 15.9598 | I41: 0.0007851852307 | J41: 7.511406706e-05 | K41: 8.416 | L41: 40.666 | M41: 30.838 | N41: 56.804 | O41: 47.396 | P41: 36.824 | Q41: 0.001416917348 | R41: 5.389810056e-05 | S41: 20.8642 | U41: =G41-INDEX($C41:$G41,1,aux!$AL$1) -> -20.857 | V41: 0.00170262809 | W41: 0.000493198008 | X41: =+IF(INDEX($C41:$G41,1,aux!$AL$1)>0,(G41/INDEX($C41:$G41,1,aux!$AL$1))^(1/($G$3-INDEX($C$3:$G$3,1,aux!$AL$1)))-1,"n.d.") -> -0.2936455764 | Y41: =IF(INDEX($C41:$G41,1,aux!$AL$1)>0,(G41-INDEX($C41:$G41,1,aux!$AL$1))/INDEX($C41:$G41,1,aux!$AL$1),"n.d.") -> -0.7510622974 | AA41: =O41-INDEX($K41:$O41,1,aux!$AL$1) -> 38.98 | AB41: -0.004391154786 | AC41: 0.0001843427541 | AD41: =+IF(INDEX($K41:$O41,1,aux!$AL$1)>0,(O41/INDEX($K41:$O41,1,aux!$AL$1))^(1/($O$3-INDEX($K$3:$O$3,1,aux!$AL$1)))-1,"n.d.") -> 0.5404903814 | AE41: =IF(INDEX($K41:$O41,1,aux!$AL$1)>0,(O41-INDEX($K41:$O41,1,aux!$AL$1))/INDEX($K41:$O41,1,aux!$AL$1),"n.d.") -> 4.631653992
A42: 23p | B42: Farinhas de pescado (NC 230120) (p) | C42: 3.778 | D42: 11.088 | E42: 15.232 | F42: 0 | G42: 0.146 | H42: 6.0488 | I42: 0.0002975869637 | J42: 2.846839991e-05 | K42: 368.527 | L42: 100.628 | M42: 259.579 | N42: 0 | O42: 0 | P42: 145.7468 | Q42: 0.005608059129 | R42: 0.0002133248882 | S42: 139.698 | U42: =G42-INDEX($C42:$G42,1,aux!$AL$1) -> -3.632 | V42: 0.0002964925551 | W42: 8.588460302e-05 | X42: =+IF(INDEX($C42:$G42,1,aux!$AL$1)>0,(G42/INDEX($C42:$G42,1,aux!$AL$1))^(1/($G$3-INDEX($C$3:$G$3,1,aux!$AL$1)))-1,"n.d.") -> -0.5566234441 | Y42: =IF(INDEX($C42:$G42,1,aux!$AL$1)>0,(G42-INDEX($C42:$G42,1,aux!$AL$1))/INDEX($C42:$G42,1,aux!$AL$1),"n.d.") -> -0.9613552144 | AA42: =O42-INDEX($K42:$O42,1,aux!$AL$1) -> -368.527 | AB42: 0.04151511287 | AC42: -0.001742824067 | AD42: =+IF(INDEX($K42:$O42,1,aux!$AL$1)>0,(O42/INDEX($K42:$O42,1,aux!$AL$1))^(1/($O$3-INDEX($K$3:$O$3,1,aux!$AL$1)))-1,"n.d.") -> -1 | AE42: =IF(INDEX($K42:$O42,1,aux!$AL$1)>0,(O42-INDEX($K42:$O42,1,aux!$AL$1))/INDEX($K42:$O42,1,aux!$AL$1),"n.d.") -> -1
A43: 25 | B43: Sal e cloreto de sódio puro; água do mar (NC 2501) | C43: 1307.827 | D43: 1327.572 | E43: 3272.379 | F43: 5011.319 | G43: 6414.664 | H43: 3466.7522 | I43: 0.1705561865 | J43: 0.0163161103 | K43: 109.147 | L43: 42.022 | M43: 280.619 | N43: 416.681 | O43: 445.998 | P43: 258.8934 | Q43: 0.009961724685 | R43: 0.0003789339156 | S43: -3207.8588 | U43: =G43-INDEX($C43:$G43,1,aux!$AL$1) -> 5106.837 | V43: -0.4168885327 | W43: -0.1207595453 | X43: =+IF(INDEX($C43:$G43,1,aux!$AL$1)>0,(G43/INDEX($C43:$G43,1,aux!$AL$1))^(1/($G$3-INDEX($C$3:$G$3,1,aux!$AL$1)))-1,"n.d.") -> 0.4881815071 | Y43: =IF(INDEX($C43:$G43,1,aux!$AL$1)>0,(G43-INDEX($C43:$G43,1,aux!$AL$1))/INDEX($C43:$G43,1,aux!$AL$1),"n.d.") -> 3.904826097 | AA43: =O43-INDEX($K43:$O43,1,aux!$AL$1) -> 336.851 | AB43: -0.03794676451 | AC43: 0.001593023116 | AD43: =+IF(INDEX($K43:$O43,1,aux!$AL$1)>0,(O43/INDEX($K43:$O43,1,aux!$AL$1))^(1/($O$3-INDEX($K$3:$O$3,1,aux!$AL$1)))-1,"n.d.") -> 0.4217730472 | AE43: =IF(INDEX($K43:$O43,1,aux!$AL$1)>0,(O43-INDEX($K43:$O43,1,aux!$AL$1))/INDEX($K43:$O43,1,aux!$AL$1),"n.d.") -> 3.086214005
A44: Subtotal Mar | C44: 26669.303 | D44: 25035.973 | E44: 24543.003 | F44: 10963.1 | G44: 14419.417 | H44: 20326.1592 | I44: 1 | J44: 0.09566413647 | K44: 26379.308 | L44: 27095.558 | M44: 33528.443 | N44: 25438.384 | O44: 17502.372 | P44: 25988.813 | Q44: 1 | R44: 0.03803898698 | S44: 5662.6538 | U44: =G44-INDEX($C44:$G44,1,aux!$AL$1) -> -12249.886 | V44: 1 | W44: 0.2896686663 | X44: =+IF(INDEX($C44:$G44,1,aux!$AL$1)>0,(G44/INDEX($C44:$G44,1,aux!$AL$1))^(1/($G$3-INDEX($C$3:$G$3,1,aux!$AL$1)))-1,"n.d.") -> -0.1425002364 | Y44: =IF(INDEX($C44:$G44,1,aux!$AL$1)>0,(G44-INDEX($C44:$G44,1,aux!$AL$1))/INDEX($C44:$G44,1,aux!$AL$1),"n.d.") -> -0.459325315 | AA44: =O44-INDEX($K44:$O44,1,aux!$AL$1) -> -8876.936 | AB44: 1 | AC44: -0.04198047281 | AD44: =+IF(INDEX($K44:$O44,1,aux!$AL$1)>0,(O44/INDEX($K44:$O44,1,aux!$AL$1))^(1/($O$3-INDEX($K$3:$O$3,1,aux!$AL$1)))-1,"n.d.") -> -0.0974767931 | AE44: =IF(INDEX($K44:$O44,1,aux!$AL$1)>0,(O44-INDEX($K44:$O44,1,aux!$AL$1))/INDEX($K44:$O44,1,aux!$AL$1),"n.d.") -> -0.3365113293
A45: 13f | B45: Gomas e resinas (NC 1301) (f) | C45: 18.949 | D45: 24.023 | E45: 28.04 | F45: 0.983 | G45: 0.619 | H45: 14.5228 | I45: 0.000513434336 | J45: 6.835089243e-05 | K45: 20.844 | L45: 1.049 | M45: 1.854 | N45: 2.004 | O45: 1.371 | P45: 5.4244 | Q45: 1.808791524e-05 | R45: 7.939519245e-06 | S45: -9.0984 | U45: =G45-INDEX($C45:$G45,1,aux!$AL$1) -> -18.33 | V45: =IF($U$52<>0,U45/$U$52, "n.d.") -> 0.0008853941555 | W45: 0.0004334429442 | X45: =+IF(INDEX($C45:$G45,1,aux!$AL$1)>0,(G45/INDEX($C45:$G45,1,aux!$AL$1))^(1/($G$3-INDEX($C$3:$G$3,1,aux!$AL$1)))-1,"n.d.") -> -0.5748657559 | Y45: =IF(INDEX($C45:$G45,1,aux!$AL$1)>0,(G45-INDEX($C45:$G45,1,aux!$AL$1))/INDEX($C45:$G45,1,aux!$AL$1),"n.d.") -> -0.9673333685 | AA45: =O45-INDEX($K45:$O45,1,aux!$AL$1) -> -19.473 | AB45: =IF($AA$52<>0,AA45/$AA$52, "n.d.") -> -0.0001416145861 | AC45: -9.209098127e-05 | AD45: =+IF(INDEX($K45:$O45,1,aux!$AL$1)>0,(O45/INDEX($K45:$O45,1,aux!$AL$1))^(1/($O$3-INDEX($K$3:$O$3,1,aux!$AL$1)))-1,"n.d.") -> -0.4935762118 | AE45: =IF(INDEX($K45:$O45,1,aux!$AL$1)>0,(O45-INDEX($K45:$O45,1,aux!$AL$1))/INDEX($K45:$O45,1,aux!$AL$1),"n.d.") -> -0.9342256765
A46: 38f | B46: Tall oil, essências e colofónias (NC 3803,3805,3806) (f) | C46: 49.765 | D46: 38.662 | E46: 1133.008 | F46: 0.385 | G46: 35.699 | H46: 251.5038 | I46: 0.008891583342 | J46: 0.001183691105 | K46: 8265.525 | L46: 6986.959 | M46: 6958.75 | N46: 9841.745 | O46: 11151.624 | P46: 8640.9206 | Q46: 0.02881355346 | R46: 0.01264743666 | S46: 8389.4168 | U46: =G46-INDEX($C46:$G46,1,aux!$AL$1) -> -14.066 | V46: 0.000679430125 | W46: 0.0003326136636 | X46: =+IF(INDEX($C46:$G46,1,aux!$AL$1)>0,(G46/INDEX($C46:$G46,1,aux!$AL$1))^(1/($G$3-INDEX($C$3:$G$3,1,aux!$AL$1)))-1,"n.d.") -> -0.07969239552 | Y46: =IF(INDEX($C46:$G46,1,aux!$AL$1)>0,(G46-INDEX($C46:$G46,1,aux!$AL$1))/INDEX($C46:$G46,1,aux!$AL$1),"n.d.") -> -0.2826484477 | AA46: =O46-INDEX($K46:$O46,1,aux!$AL$1) -> 2886.099 | AB46: 0.02098873903 | AC46: 0.01364883115 | AD46: =+IF(INDEX($K46:$O46,1,aux!$AL$1)>0,(O46/INDEX($K46:$O46,1,aux!$AL$1))^(1/($O$3-INDEX($K$3:$O$3,1,aux!$AL$1)))-1,"n.d.") -> 0.07774723795 | AE46: =IF(INDEX($K46:$O46,1,aux!$AL$1)>0,(O46-INDEX($K46:$O46,1,aux!$AL$1))/INDEX($K46:$O46,1,aux!$AL$1),"n.d.") -> 0.3491731015
A47: 44 | B47: Madeira e suas obras | C47: 3748.974 | D47: 2683.015 | E47: 4903.593 | F47: 1782.647 | G47: 3483.688 | H47: 3320.3834 | I47: 0.1173877521 | J47: 0.01562723226 | K47: 83459.874 | L47: 92995.569 | M47: 79065.573 | N47: 89625.79 | O47: 99486.109 | P47: 88926.583 | Q47: 0.2965298458 | R47: 0.13015897 | S47: 85606.1996 | U47: =G47-INDEX($C47:$G47,1,aux!$AL$1) -> -265.286 | V47: 0.01281411205 | W47: 0.006273123016 | X47: =+IF(INDEX($C47:$G47,1,aux!$AL$1)>0,(G47/INDEX($C47:$G47,1,aux!$AL$1))^(1/($G$3-INDEX($C$3:$G$3,1,aux!$AL$1)))-1,"n.d.") -> -0.01818038108 | Y47: =IF(INDEX($C47:$G47,1,aux!$AL$1)>0,(G47-INDEX($C47:$G47,1,aux!$AL$1))/INDEX($C47:$G47,1,aux!$AL$1),"n.d.") -> -0.0707622939 | AA47: =O47-INDEX($K47:$O47,1,aux!$AL$1) -> 16026.235 | AB47: 0.1165484843 | AC47: 0.07579066951 | AD47: =+IF(INDEX($K47:$O47,1,aux!$AL$1)>0,(O47/INDEX($K47:$O47,1,aux!$AL$1))^(1/($O$3-INDEX($K$3:$O$3,1,aux!$AL$1)))-1,"n.d.") -> 0.04489146129 | AE47: =IF(INDEX($K47:$O47,1,aux!$AL$1)>0,(O47-INDEX($K47:$O47,1,aux!$AL$1))/INDEX($K47:$O47,1,aux!$AL$1),"n.d.") -> 0.192023235
A48: 45 | B48: Cortiça e suas obras | C48: 28.447 | D48: 17.773 | E48: 55.735 | F48: 258.606 | G48: 358.268 | H48: 143.7658 | I48: 0.005082649218 | J48: 0.0006766271471 | K48: 36140.848 | L48: 42621.844 | M48: 37993.878 | N48: 45320.196 | O48: 53161.605 | P48: 43047.6742 | Q48: 0.1435444809 | R48: 0.06300749166 | S48: 42903.9084 | U48: =G48-INDEX($C48:$G48,1,aux!$AL$1) -> 329.821 | V48: -0.01593134674 | W48: -0.007799159045 | X48: =+IF(INDEX($C48:$G48,1,aux!$AL$1)>0,(G48/INDEX($C48:$G48,1,aux!$AL$1))^(1/($G$3-INDEX($C$3:$G$3,1,aux!$AL$1)))-1,"n.d.") -> 0.8838351093 | Y48: =IF(INDEX($C48:$G48,1,aux!$AL$1)>0,(G48-INDEX($C48:$G48,1,aux!$AL$1))/INDEX($C48:$G48,1,aux!$AL$1),"n.d.") -> 11.59422786 | AA48: =O48-INDEX($K48:$O48,1,aux!$AL$1) -> 17020.757 | AB48: 0.1237810023 | AC48: 0.08049392565 | AD48: =+IF(INDEX($K48:$O48,1,aux!$AL$1)>0,(O48/INDEX($K48:$O48,1,aux!$AL$1))^(1/($O$3-INDEX($K$3:$O$3,1,aux!$AL$1)))-1,"n.d.") -> 0.1012855387 | AE48: =IF(INDEX($K48:$O48,1,aux!$AL$1)>0,(O48-INDEX($K48:$O48,1,aux!$AL$1))/INDEX($K48:$O48,1,aux!$AL$1),"n.d.") -> 0.4709562155
A49: 46 | B49: Obras de espartaria ou de cestaria | C49: 13.723 | D49: 20.992 | E49: 18.868 | F49: 15.934 | G49: 21.449 | H49: 18.1932 | I49: 0.0006431964609 | J49: 8.562546177e-05 | K49: 0.068 | L49: 0.705 | M49: 0.093 | N49: 23.88 | O49: 9.077 | P49: 6.7646 | Q49: 2.255687475e-05 | R49: 9.901126739e-06 | S49: -11.4286 | U49: =G49-INDEX($C49:$G49,1,aux!$AL$1) -> 7.726 | V49: -0.0003731890477 | W49: -0.0001826939545 | X49: =+IF(INDEX($C49:$G49,1,aux!$AL$1)>0,(G49/INDEX($C49:$G49,1,aux!$AL$1))^(1/($G$3-INDEX($C$3:$G$3,1,aux!$AL$1)))-1,"n.d.") -> 0.1181227822 | Y49: =IF(INDEX($C49:$G49,1,aux!$AL$1)>0,(G49-INDEX($C49:$G49,1,aux!$AL$1))/INDEX($C49:$G49,1,aux!$AL$1),"n.d.") -> 0.5629964294 | AA49: =O49-INDEX($K49:$O49,1,aux!$AL$1) -> 9.009 | AB49: 6.551665412e-05 | AC49: 4.260502492e-05 | AD49: =+IF(INDEX($K49:$O49,1,aux!$AL$1)>0,(O49/INDEX($K49:$O49,1,aux!$AL$1))^(1/($O$3-INDEX($K$3:$O$3,1,aux!$AL$1)))-1,"n.d.") -> 2.399056282 | AE49: =IF(INDEX($K49:$O49,1,aux!$AL$1)>0,(O49-INDEX($K49:$O49,1,aux!$AL$1))/INDEX($K49:$O49,1,aux!$AL$1),"n.d.") -> 132.4852941
A50: 47 | B50: Pastas de madeira | C50: 23870.739 | D50: 10905.433 | E50: 0.255 | F50: 83.137 | G50: 42.761 | H50: 6980.465 | I50: 0.2467850836 | J50: 0.03285323852 | K50: 13582.927 | L50: 15139.937 | M50: 11126.742 | N50: 2434.592 | O50: 9036.304 | P50: 10264.1004 | Q50: 0.03422612234 | R50: 0.01502323255 | S50: 3283.6354 | U50: =G50-INDEX($C50:$G50,1,aux!$AL$1) -> -23827.978 | V50: 1.150963036 | W50: 0.5634516606 | X50: =+IF(INDEX($C50:$G50,1,aux!$AL$1)>0,(G50/INDEX($C50:$G50,1,aux!$AL$1))^(1/($G$3-INDEX($C$3:$G$3,1,aux!$AL$1)))-1,"n.d.") -> -0.7942710085 | Y50: =IF(INDEX($C50:$G50,1,aux!$AL$1)>0,(G50-INDEX($C50:$G50,1,aux!$AL$1))/INDEX($C50:$G50,1,aux!$AL$1),"n.d.") -> -0.9982086436 | AA50: =O50-INDEX($K50:$O50,1,aux!$AL$1) -> -4546.623 | AB50: -0.03306466051 | AC50: -0.02150171897 | AD50: =+IF(INDEX($K50:$O50,1,aux!$AL$1)>0,(O50/INDEX($K50:$O50,1,aux!$AL$1))^(1/($O$3-INDEX($K$3:$O$3,1,aux!$AL$1)))-1,"n.d.") -> -0.0968718762 | AE50: =IF(INDEX($K50:$O50,1,aux!$AL$1)>0,(O50-INDEX($K50:$O50,1,aux!$AL$1))/INDEX($K50:$O50,1,aux!$AL$1),"n.d.") -> -0.3347307248
A51: 48 | B51: Papel e cartão | C51: 15419.272 | D51: 15553.005 | E51: 18335.337 | F51: 19971.492 | G51: 18504.741 | H51: 17556.7694 | I51: 0.6206963009 | J51: 0.08263013033 | K51: 123600.771 | L51: 130672.138 | M51: 124294.749 | N51: 136697.391 | O51: 229731.789 | P51: 148999.3676 | Q51: 0.4968453527 | R51: 0.2180855664 | S51: 131442.5982 | U51: =G51-INDEX($C51:$G51,1,aux!$AL$1) -> 3085.469 | V51: -0.149037437 | W51: -0.07296098023 | X51: =+IF(INDEX($C51:$G51,1,aux!$AL$1)>0,(G51/INDEX($C51:$G51,1,aux!$AL$1))^(1/($G$3-INDEX($C$3:$G$3,1,aux!$AL$1)))-1,"n.d.") -> 0.04665797123 | Y51: =IF(INDEX($C51:$G51,1,aux!$AL$1)>0,(G51-INDEX($C51:$G51,1,aux!$AL$1))/INDEX($C51:$G51,1,aux!$AL$1),"n.d.") -> 0.2001047131 | AA51: =O51-INDEX($K51:$O51,1,aux!$AL$1) -> 106131.018 | AB51: 0.7718225328 | AC51: 0.5019108299 | AD51: =+IF(INDEX($K51:$O51,1,aux!$AL$1)>0,(O51/INDEX($K51:$O51,1,aux!$AL$1))^(1/($O$3-INDEX($K$3:$O$3,1,aux!$AL$1)))-1,"n.d.") -> 0.1676158418 | AE51: =IF(INDEX($K51:$O51,1,aux!$AL$1)>0,(O51-INDEX($K51:$O51,1,aux!$AL$1))/INDEX($K51:$O51,1,aux!$AL$1),"n.d.") -> 0.858659838
A52: Subtotal Florestas | C52: 43149.869 | D52: 29242.903 | E52: 24474.836 | F52: 22113.184 | G52: 22447.225 | H52: 28285.6034 | I52: 1 | J52: 0.1331248957 | K52: 265070.857 | L52: 288418.201 | M52: 259441.639 | N52: 283945.598 | O52: 402577.879 | P52: 299890.8348 | Q52: 1 | R52: 0.438940538 | S52: 271605.2314 | U52: =G52-INDEX($C52:$G52,1,aux!$AL$1) -> -20702.644 | V52: 1 | W52: 0.489548007 | X52: =+IF(INDEX($C52:$G52,1,aux!$AL$1)>0,(G52/INDEX($C52:$G52,1,aux!$AL$1))^(1/($G$3-INDEX($C$3:$G$3,1,aux!$AL$1)))-1,"n.d.") -> -0.1507299777 | Y52: =IF(INDEX($C52:$G52,1,aux!$AL$1)>0,(G52-INDEX($C52:$G52,1,aux!$AL$1))/INDEX($C52:$G52,1,aux!$AL$1),"n.d.") -> -0.4797846316 | AA52: =O52-INDEX($K52:$O52,1,aux!$AL$1) -> 137507.022 | AB52: 1 | AC52: 0.6502930513 | AD52: =+IF(INDEX($K52:$O52,1,aux!$AL$1)>0,(O52/INDEX($K52:$O52,1,aux!$AL$1))^(1/($O$3-INDEX($K$3:$O$3,1,aux!$AL$1)))-1,"n.d.") -> 0.1101252511 | AE52: =IF(INDEX($K52:$O52,1,aux!$AL$1)>0,(O52-INDEX($K52:$O52,1,aux!$AL$1))/INDEX($K52:$O52,1,aux!$AL$1),"n.d.") -> 0.5187557152
B53: TOTAL | C53: 229898.83 | D53: 273188.55 | E53: 221427.454 | F53: 150246.552 | G53: 187609.527 | H53: 212474.1826 | J53: 1 | K53: 604719.958 | L53: 645306.276 | M53: 664085.871 | N53: 685789.862 | O53: 816173.889 | P53: 683215.1712 | R53: 1 | S53: 470740.9886 | U53: =G53-INDEX($C53:$G53,1,aux!$AL$1) -> -42289.303 | W53: 1 | X53: =+IF(INDEX($C53:$G53,1,aux!$AL$1)>0,(G53/INDEX($C53:$G53,1,aux!$AL$1))^(1/($G$3-INDEX($C$3:$G$3,1,aux!$AL$1)))-1,"n.d.") -> -0.0495494379 | Y53: =IF(INDEX($C53:$G53,1,aux!$AL$1)>0,(G53-INDEX($C53:$G53,1,aux!$AL$1))/INDEX($C53:$G53,1,aux!$AL$1),"n.d.") -> -0.1839474477 | AA53: =O53-INDEX($K53:$O53,1,aux!$AL$1) -> 211453.931 | AC53: 1 | AD53: =+IF(INDEX($K53:$O53,1,aux!$AL$1)>0,(O53/INDEX($K53:$O53,1,aux!$AL$1))^(1/($O$3-INDEX($K$3:$O$3,1,aux!$AL$1)))-1,"n.d.") -> 0.07784695374 | AE53: =IF(INDEX($K53:$O53,1,aux!$AL$1)>0,(O53-INDEX($K53:$O53,1,aux!$AL$1))/INDEX($K53:$O53,1,aux!$AL$1),"n.d.") -> 0.3496724859
B54: a - agrícola e agroalimentar; p - pescas; f - florestas
A55: Fonte: GPP a partir de dados INE/Comércio Internacional (2021 provisórios; 2022 preliminares) | S55: 2023-07-18T15:07:44.310

Sheet 5.2_var
A1: ="Principais contributos por produto para a variação das trocas comerciais PT-Reino Unido_x000D_ no período " & INDEX('5.2'!K3:N3,1,aux!AL1) & "-2022 (NC 2 dígitos - milhares de euros) Produtos agrícolas e agroalimentares, do mar e da floresta" -> Principais contributos por produto para a variação das trocas comerciais PT-Reino Unido no período 2018-2022 (NC 2 dígitos - milhares de euros) Produtos agrícolas e agroalimentares, do mar e da floresta
E5: aumento das importações | J5: aumento das exportações
E17: redução das importações | J17: redução das exportações
A28: Fonte: GPP a partir de dados INE/Comércio Internacional (2021 provisórios; 2022 preliminares) | F28: a - agrícola e agroalimentar; p - mar; f - florestas | H28: ='3'!Y116 -> 2023-07-18T15:07:44.310
A29: Cód. NC | B29: Descritivo | C29: ="Variação das Importações " & INDEX('5.2'!K3:N3,1,aux!AL1) & "-"& '5.2'!O3 &"" -> Variação das Importações 2018-2022 | F29: Cód. NC | G29: Descritivo | H29: ="Variação das Exportações " & INDEX('5.2'!K3:N3,1,aux!AL1) & "-"& '5.2'!O3 &"" -> Variação das Exportações 2018-2022
C30: variação total em valor | D30: % do aumento/ redução total | H30: variação total em valor | I30: % do aumento/ redução total
A31: =IF(C31>0,aux!AU6,"") -> 10 | B31: =IF(C31>0,aux!AV6,"") -> Cereais | C31: =IF(aux!AW6>0,aux!AW6,0) -> 56362.92 | D31: =IF(SUM($C$31:$C$41)<>0,C31/SUM($C$31:$C$41),0) -> 0.700812932 | F31: =IF(H31>0,aux!AZ6,"") -> 48 | G31: =IF(H31>0,aux!BA6,"") -> Papel e cartão | H31: =IF(aux!BB6>0,aux!BB6,0) -> 106131.018 | I31: =IF(SUM($H$31:$H$41)<>0,H31/SUM($H$31:$H$41),0) -> 0.4104708838
A32: =IF(C32>0,aux!AU7,"") -> 22 | B32: =IF(C32>0,aux!AV7,"") -> Bebidas, líquidos alcoólicos e vinagres | C32: =IF(aux!AW7>0,aux!AW7,0) -> 13082.292 | D32: =IF(SUM($C$31:$C$41)<>0,C32/SUM($C$31:$C$41),0) -> 0.1626643796 | F32: =IF(H32>0,aux!AZ7,"") -> 21 | G32: =IF(H32>0,aux!BA7,"") -> Preparações alimentícias diversas | H32: =IF(aux!BB7>0,aux!BB7,0) -> 29617.575 | I32: =IF(SUM($H$31:$H$41)<>0,H32/SUM($H$31:$H$41),0) -> 0.1145485308
A33: =IF(C33>0,aux!AU8,"") -> 25 | B33: =IF(C33>0,aux!AV8,"") -> Sal e cloreto de sódio puro; água do mar (NC 2501) | C33: =IF(aux!AW8>0,aux!AW8,0) -> 5106.837 | D33: 0.06349808369 | F33: =IF(H33>0,aux!AZ8,"") -> 20 | G33: =IF(H33>0,aux!BA8,"") -> Preparações de produtos vegetais | H33: =IF(aux!BB8>0,aux!BB8,0) -> 23151.753 | I33: 0.08954140547
A34: =IF(C34>0,aux!AU9,"") -> 48 | B34: =IF(C34>0,aux!AV9,"") -> Papel e cartão | C34: =IF(aux!AW9>0,aux!AW9,0) -> 3085.469 | D34: 0.03836452363 | F34: =IF(H34>0,aux!AZ9,"") -> 19a | G34: =IF(H34>0,aux!BA9,"") -> Preparações à base de cereais (exc. NC 19022010) (a) | H34: =IF(aux!BB9>0,aux!BB9,0) -> 18057.569 | I34: 0.06983920861
A35: =IF(C35>0,aux!AU10,"") -> 23a | B35: =IF(C35>0,aux!AV10,"") -> Resíduos indústrias alimentares; alimentos p/ animais (exc. NC 230120) (a) | C35: =IF(aux!AW10>0,aux!AW10,0) -> 1849.402 | D35: 0.02299534584 | F35: =IF(H35>0,aux!AZ10,"") -> 45 | G35: =IF(H35>0,aux!BA10,"") -> Cortiça e suas obras | H35: =IF(aux!BB10>0,aux!BB10,0) -> 17020.757 | I35: 0.0658292486
A36: =IF(C36>0,aux!AU11,"") -> 06 | B36: =IF(C36>0,aux!AV11,"") -> Plantas vivas e produtos de floricultura | C36: =IF(aux!AW11>0,aux!AW11,0) -> 512.156 | D36: 0.006368114853 | F36: =IF(H36>0,aux!AZ11,"") -> 44 | G36: =IF(H36>0,aux!BA11,"") -> Madeira e suas obras | H36: =IF(aux!BB11>0,aux!BB11,0) -> 16026.235 | I36: 0.06198284882
A37: =IF(C37>0,aux!AU12,"") -> 45 | B37: =IF(C37>0,aux!AV12,"") -> Cortiça e suas obras | C37: =IF(aux!AW12>0,aux!AW12,0) -> 329.821 | D37: 0.004100973158 | F37: =IF(H37>0,aux!AZ12,"") -> 22 | G37: =IF(H37>0,aux!BA12,"") -> Bebidas, líquidos alcoólicos e vinagres | H37: =IF(aux!BB12>0,aux!BB12,0) -> 13198.069 | I37: 0.05104467241
A38: =IF(C38>0,aux!AU13,"") -> 05p | B38: =IF(C38>0,aux!AV13,"") -> Outros produtos de pescado (NC 0508, 051191) (p) | C38: =IF(aux!AW13>0,aux!AW13,0) -> 61.314 | D38: 0.0007623743431 | F38: =IF(H38>0,aux!AZ13,"") -> 09 | G38: =IF(H38>0,aux!BA13,"") -> Café, chá, mate e especiarias | H38: =IF(aux!BB13>0,aux!BB13,0) -> 7008.919 | I38: 0.02710759993
A39: =IF(C39>0,aux!AU14,"") -> 41 | B39: =IF(C39>0,aux!AV14,"") -> Couro e peles em bruto (NC 4101 a 4103) | C39: =IF(aux!AW14>0,aux!AW14,0) -> 25.797 | D39: 0.0003207582433 | F39: =IF(H39>0,aux!AZ14,"") -> 15 | G39: =IF(H39>0,aux!BA14,"") -> Gorduras e óleos animais ou vegetais | H39: =IF(aux!BB14>0,aux!BB14,0) -> 7007.826 | I39: 0.02710337266
A40: =IF(C40>0,aux!AU15,"") -> 46 | B40: =IF(C40>0,aux!AV15,"") -> Obras de espartaria ou de cestaria | C40: =IF(aux!AW15>0,aux!AW15,0) -> 7.726 | D40: 9.606458843e-05 | F40: =IF(H40>0,aux!AZ15,"") -> 23a | G40: =IF(H40>0,aux!BA15,"") -> Resíduos indústrias alimentares; alimentos p/ animais (exc. NC 230120) (a) | H40: =IF(aux!BB15>0,aux!BB15,0) -> 3651.167 | I40: 0.0141212039
B41: Outros contributos para o aumento das importações | C41: =SUMIF(aux!AW16:AW51,">0") -> 1.323 | D41: 1.645009714e-05 | G41: Outros contributos para o aumento das exportações | H41: =SUMIF(aux!BB16:BB51,">0") -> 17688.299 | I41: 0.06841102498
B42: Outros contributos para a redução das importações | C42: =SUMIF(aux!AW6:AW41,"<0") -> -12534.823 | D42: =IF(SUM($C$42:$C$52)<>0,C42/SUM($C$42:$C$52),0) -> 0.1021463421 | G42: Outros contributos para a redução das exportações | H42: =SUMIF(aux!BB6:BB41,"<0") -> -301.238 | I42: =IF(SUM($H$42:$H$52)<>0,H42/SUM($H$42:$H$52),0) -> 0.00639499762
A43: =IF(C43<>0,aux!AU42,"") -> 20 | B43: =IF(C43<0,aux!AV42,"") -> Preparações de produtos vegetais | C43: =IF(aux!AW42<0,aux!AW42,0) -> -2209.289 | D43: =IF(SUM($C$42:$C$52)<>0,C43/SUM($C$42:$C$52),0) -> 0.01800350831 | F43: =IF(H43<>0,aux!AZ42,"") -> 23p | G43: =IF(H43<>0,aux!BA42,"") -> Farinhas de pescado (NC 230120) (p) | H43: =IF(aux!BB42<0,aux!BB42,0) -> -368.527 | I43: =IF(SUM($H$42:$H$52)<>0,H43/SUM($H$42:$H$52),0) -> 0.007823479401
A44: =IF(C44<>0,aux!AU43,"") -> 33 | B44: =IF(C44<0,aux!AV43,"") -> Óleos essenciais e resinóides (NC 3301) | C44: =IF(aux!AW43<0,aux!AW43,0) -> -2406.121 | D44: 0.01960749337 | F44: =IF(H44<>0,aux!AZ43,"") -> 10 | G44: =IF(H44<>0,aux!BA43,"") -> Cereais | H44: =IF(aux!BB43<0,aux!BB43,0) -> -381.43 | I44: 0.008097397878
A45: =IF(C45<>0,aux!AU44,"") -> 07 | B45: =IF(C45<0,aux!AV44,"") -> Produtos hortícolas | C45: =IF(aux!AW44<0,aux!AW44,0) -> -4406.559 | D45: 0.03590907372 | F45: =IF(H45<>0,aux!AZ44,"") -> 38a | G45: =IF(H45<>0,aux!BA44,"") -> Agentes de acabamento, ácidos gordos, sorbitol (NC 380910, 382311-12-13-19-70, 382460) (a) | H45: =IF(aux!BB44<0,aux!BB44,0) -> -403.425 | I45: 0.00856433091
A46: =IF(C46<>0,aux!AU45,"") -> 19a | B46: =IF(C46<0,aux!AV45,"") -> Preparações à base de cereais (exc. NC 19022010) (a) | C46: =IF(aux!AW45<0,aux!AW45,0) -> -4714.182 | D46: 0.03841589525 | F46: =IF(H46<>0,aux!AZ45,"") -> 05a | G46: =IF(H46<>0,aux!BA45,"") -> Outros produtos de origem animal (exc. NC 0508, 051191) (a) | H46: =IF(aux!BB45<0,aux!BB45,0) -> -502.672 | I46: 0.01067125078
A47: =IF(C47<>0,aux!AU46,"") -> 16a | B47: =IF(C47<0,aux!AV46,"") -> Preparações de carnes (exc. NC 1604-05) (a) | C47: =IF(aux!AW46<0,aux!AW46,0) -> -6496.556 | D47: 0.05294047086 | F47: =IF(H47<>0,aux!AZ46,"") -> 51 | G47: =IF(H47<>0,aux!BA46,"") -> Lã não cardada (NC 5101-5103) | H47: =IF(aux!BB46<0,aux!BB46,0) -> -708.788 | I47: 0.01504689838
A48: =IF(C48<>0,aux!AU47,"") -> 04 | B48: =IF(C48<0,aux!AV47,"") -> Leite e laticínios; ovos; mel, etc. | C48: =IF(aux!AW47<0,aux!AW47,0) -> -12187.067 | D48: 0.09931247655 | F48: =IF(H48<>0,aux!AZ47,"") -> 12 | G48: =IF(H48<>0,aux!BA47,"") -> Sementes e frutos oleaginosos | H48: =IF(aux!BB47<0,aux!BB47,0) -> -1352.01 | I48: 0.02870189263
A49: =IF(C49<>0,aux!AU48,"") -> 21 | B49: =IF(C49<0,aux!AV48,"") -> Preparações alimentícias diversas | C49: =IF(aux!AW48<0,aux!AW48,0) -> -13480.96 | D49: 0.1098564178 | F49: =IF(H49<>0,aux!AZ48,"") -> 04 | G49: =IF(H49<>0,aux!BA48,"") -> Leite e laticínios; ovos; mel, etc. | H49: =IF(aux!BB48<0,aux!BB48,0) -> -3022.465 | I49: 0.0641640712
A50: =IF(C50<>0,aux!AU49,"") -> 03 | B50: =IF(C50<0,aux!AV49,"") -> Peixes e crustáceos | C50: =IF(aux!AW49<0,aux!AW49,0) -> -17280.955 | D50: 0.1408225981 | F50: =IF(H50<>0,aux!AZ49,"") -> 47 | G50: =IF(H50<>0,aux!BA49,"") -> Pastas de madeira | H50: =IF(aux!BB49<0,aux!BB49,0) -> -4546.623 | I50: 0.09652050293
A51: =IF(C51<>0,aux!AU50,"") -> 02 | B51: =IF(C51<0,aux!AV50,"") -> Carnes e miudezas | C51: =IF(aux!AW50<0,aux!AW50,0) -> -23169.87 | D51: 0.1888113991 | F51: =IF(H51<>0,aux!AZ50,"") -> 16p | G51: =IF(H51<>0,aux!BA50,"") -> Preparações e conservas de peixes ou crustáceos (NC 1604-05) (p) | H51: =IF(aux!BB50<0,aux!BB50,0) -> -10491.332 | I51: 0.2227210484
A52: =IF(C52<>0,aux!AU51,"") -> 47 | B52: =IF(C52<0,aux!AV51,"") -> Pastas de madeira | C52: =IF(aux!AW51<0,aux!AW51,0) -> -23827.978 | D52: 0.1941743248 | F52: =IF(H52<>0,aux!AZ51,"") -> 08 | G52: =IF(H52<>0,aux!BA51,"") -> Frutas | H52: =IF(aux!BB51<0,aux!BB51,0) -> -25026.746 | I52: 0.5312941299
A53: TOTAL | C53: =SUM(C31:C52) -> -42289.303 | F53: TOTAL | H53: =SUM(H31:H52) -> 211453.931

Sheet 5.2A
A1: Trocas comerciais Portugal-Reino Unido 2018-2022 em milhares de euros (NC 4 dígitos) | G1: Produtos agrícolas e agroalimentares, do mar e da floresta
A2: Cód. NC | B2: Descritivo | C2: Importações | K2: Exportações | S2: Saldo quinquénio (exp-imp) | T2: Evolução das importações | U2: =+"Variação das Importações " & INDEX(K3:N3,1,aux!AL1) & "-"& '5.2'!O3 &"" -> Variação das Importações 2018-2022 | Z2: Evolução das exportações | AA2: ="Variação das Exportações " & INDEX(K3:N3,1,aux!AL1) & "-"& '5.2'!O3 &"" -> Variação das Exportações 2018-2022
C3: 2018 | D3: 2019 | E3: 2020 | F3: 2021 | G3: 2022 | H3: média quinquénio | I3: % Subtot | J3: % Total | K3: 2018 | L3: 2019 | M3: 2020 | N3: 2021 | O3: 2022 | P3: média quinquénio | Q3: % Subtot | R3: % Total | U3: variação total em valor | V3: % no subtotal de variação | W3: % no total de variação | X3: taxa de variação média anual | Y3: taxa de variação total | AA3: variação total em valor | AB3: % no subtotal de variação | AC3: % no total de variação | AD3: taxa de variação média anual | AE3: taxa de variação total | AX3: filtro
A4: 0101 | B4: Equídeos vivos | C4: 0 | D4: 0 | E4: 0 | F4: 8.944 | G4: 48.479 | H4: 11.4846 | I4: 7.008684481e-05 | J4: 5.405174341e-05 | K4: 0 | L4: 0 | M4: 11.443 | N4: 34 | O4: 70 | P4: 23.0886 | Q4: 6.461322339e-05 | R4: 3.379403879e-05 | S4: 11.604 | U4: =G4-INDEX($C4:$G4,1,aux!$AL$1) -> 48.479 | V4: =IF($U$237<>0,U4/$U$237, "n.d.") -> -0.005192265036 | W4: =IF($U$322<>0,U4/$U$322, "n.d.") -> -0.001146365548 | X4: =+IF(INDEX($C4:$G4,1,aux!$AL$1)>0,(G4/INDEX($C4:$G4,1,aux!$AL$1))^(1/($G$3-INDEX($C$3:$G$3,1,aux!$AL$1)))-1,"n.d.") -> n.d. | Y4: =IF(INDEX($C4:$G4,1,aux!$AL$1)>0,(G4-INDEX($C4:$G4,1,aux!$AL$1))/INDEX($C4:$G4,1,aux!$AL$1),"n.d.") -> n.d. | AA4: =O4-INDEX($K4:$O4,1,aux!$AL$1) -> 70 | AB4: =IF($AA$237<>0,AA4/$AA$237, "n.d.") -> 0.0008451672341 | AC4: =IF($AA$322<>0,AA4/$AA$322, "n.d.") -> 0.0003310413747 | AD4: =+IF(INDEX($K4:$O4,1,aux!$AL$1)>0,(O4/INDEX($K4:$O4,1,aux!$AL$1))^(1/($O$3-INDEX($K$3:$O$3,1,aux!$AL$1)))-1,"n.d.") -> n.d. | AE4: =IF(INDEX($K4:$O4,1,aux!$AL$1)>0,(O4-INDEX($K4:$O4,1,aux!$AL$1))/INDEX($K4:$O4,1,aux!$AL$1),"n.d.") -> n.d. | AX4: =+LEFT(A4,2) -> 01
A5: 0102 | B5: Bovinos vivos | C5: 0 | D5: 0 | E5: 0 | F5: 0 | G5: 0 | H5: 0 | I5: 0 | J5: 0 | K5: 0 | L5: 0 | M5: 0 | N5: 0 | O5: 0 | P5: 0 | Q5: 0 | R5: 0 | S5: 0 | U5: =G5-INDEX($C5:$G5,1,aux!$AL$1) -> 0 | V5: 0 | W5: 0 | X5: =+IF(INDEX($C5:$G5,1,aux!$AL$1)>0,(G5/INDEX($C5:$G5,1,aux!$AL$1))^(1/($G$3-INDEX($C$3:$G$3,1,aux!$AL$1)))-1,"n.d.") -> n.d. | Y5: =IF(INDEX($C5:$G5,1,aux!$AL$1)>0,(G5-INDEX($C5:$G5,1,aux!$AL$1))/INDEX($C5:$G5,1,aux!$AL$1),"n.d.") -> n.d. | AA5: =O5-INDEX($K5:$O5,1,aux!$AL$1) -> 0 | AB5: 0 | AC5: 0 | AD5: =+IF(INDEX($K5:$O5,1,aux!$AL$1)>0,(O5/INDEX($K5:$O5,1,aux!$AL$1))^(1/($O$3-INDEX($K$3:$O$3,1,aux!$AL$1)))-1,"n.d.") -> n.d. | AE5: =IF(INDEX($K5:$O5,1,aux!$AL$1)>0,(O5-INDEX($K5:$O5,1,aux!$AL$1))/INDEX($K5:$O5,1,aux!$AL$1),"n.d.") -> n.d. | AX5: 01
A6: 0103 | B6: Suínos vivos | C6: 0 | D6: 0 | E6: 0 | F6: 0 | G6: 0 | H6: 0 | I6: 0 | J6: 0 | K6: 0 | L6: 0 | M6: 45.956 | N6: 0 | O6: 0 | P6: 9.1912 | Q6: 2.572148415e-05 | R6: 1.345286286e-05 | S6: 9.1912 | U6: =G6-INDEX($C6:$G6,1,aux!$AL$1) -> 0 | V6: 0 | W6: 0 | X6: =+IF(INDEX($C6:$G6,1,aux!$AL$1)>0,(G6/INDEX($C6:$G6,1,aux!$AL$1))^(1/($G$3-INDEX($C$3:$G$3,1,aux!$AL$1)))-1,"n.d.") -> n.d. | Y6: =IF(INDEX($C6:$G6,1,aux!$AL$1)>0,(G6-INDEX($C6:$G6,1,aux!$AL$1))/INDEX($C6:$G6,1,aux!$AL$1),"n.d.") -> n.d. | AA6: =O6-INDEX($K6:$O6,1,aux!$AL$1) -> 0 | AB6: 0 | AC6: 0 | AD6: =+IF(INDEX($K6:$O6,1,aux!$AL$1)>0,(O6/INDEX($K6:$O6,1,aux!$AL$1))^(1/($O$3-INDEX($K$3:$O$3,1,aux!$AL$1)))-1,"n.d.") -> n.d. | AE6: =IF(INDEX($K6:$O6,1,aux!$AL$1)>0,(O6-INDEX($K6:$O6,1,aux!$AL$1))/INDEX($K6:$O6,1,aux!$AL$1),"n.d.") -> n.d. | AX6: 01
A7: 0104 | B7: Ovinos ou caprinos vivos | C7: 0 | D7: 0 | E7: 0 | F7: 0 | G7: 0 | H7: 0 | I7: 0 | J7: 0 | K7: 0 | L7: 0 | M7: 0 | N7: 0 | O7: 0 | P7: 0 | Q7: 0 | R7: 0 | S7: 0 | U7: =G7-INDEX($C7:$G7,1,aux!$AL$1) -> 0 | V7: 0 | W7: 0 | X7: =+IF(INDEX($C7:$G7,1,aux!$AL$1)>0,(G7/INDEX($C7:$G7,1,aux!$AL$1))^(1/($G$3-INDEX($C$3:$G$3,1,aux!$AL$1)))-1,"n.d.") -> n.d. | Y7: =IF(INDEX($C7:$G7,1,aux!$AL$1)>0,(G7-INDEX($C7:$G7,1,aux!$AL$1))/INDEX($C7:$G7,1,aux!$AL$1),"n.d.") -> n.d. | AA7: =O7-INDEX($K7:$O7,1,aux!$AL$1) -> 0 | AB7: 0 | AC7: 0 | AD7: =+IF(INDEX($K7:$O7,1,aux!$AL$1)>0,(O7/INDEX($K7:$O7,1,aux!$AL$1))^(1/($O$3-INDEX($K$3:$O$3,1,aux!$AL$1)))-1,"n.d.") -> n.d. | AE7: =IF(INDEX($K7:$O7,1,aux!$AL$1)>0,(O7-INDEX($K7:$O7,1,aux!$AL$1))/INDEX($K7:$O7,1,aux!$AL$1),"n.d.") -> n.d. | AX7: 01
A8: 0105 | B8: Aves de capoeira vivas | C8: 220.476 | D8: 239.922 | E8: 208.752 | F8: 141.499 | G8: 82.484 | H8: 178.6266 | I8: 0.001090101074 | J8: 0.0008406979042 | K8: 0 | L8: 0 | M8: 0 | N8: 0 | O8: 0 | P8: 0 | Q8: 0 | R8: 0 | S8: -178.6266 | U8: =G8-INDEX($C8:$G8,1,aux!$AL$1) -> -137.992 | V8: 0.0147794104 | W8: 0.003263047395 | X8: =+IF(INDEX($C8:$G8,1,aux!$AL$1)>0,(G8/INDEX($C8:$G8,1,aux!$AL$1))^(1/($G$3-INDEX($C$3:$G$3,1,aux!$AL$1)))-1,"n.d.") -> -0.2179183464 | Y8: =IF(INDEX($C8:$G8,1,aux!$AL$1)>0,(G8-INDEX($C8:$G8,1,aux!$AL$1))/INDEX($C8:$G8,1,aux!$AL$1),"n.d.") -> -0.6258821822 | AA8: =O8-INDEX($K8:$O8,1,aux!$AL$1) -> 0 | AB8: 0 | AC8: 0 | AD8: =+IF(INDEX($K8:$O8,1,aux!$AL$1)>0,(O8/INDEX($K8:$O8,1,aux!$AL$1))^(1/($O$3-INDEX($K$3:$O$3,1,aux!$AL$1)))-1,"n.d.") -> n.d. | AE8: =IF(INDEX($K8:$O8,1,aux!$AL$1)>0,(O8-INDEX($K8:$O8,1,aux!$AL$1))/INDEX($K8:$O8,1,aux!$AL$1),"n.d.") -> n.d. | AX8: 01
A9: 0106 | B9: Outros animais vivos | C9: 3.408 | D9: 49.686 | E9: 26.6 | F9: 4.507 | G9: 4.286 | H9: 17.6974 | I9: 0.0001080015784 | J9: 8.32920018e-05 | K9: 0.2 | L9: 0 | M9: 0 | N9: 7.295 | O9: 12.859 | P9: 4.0708 | Q9: 1.139209436e-05 | R9: 5.958298603e-06 | S9: -13.6266 | U9: =G9-INDEX($C9:$G9,1,aux!$AL$1) -> 0.878 | V9: -9.403677266e-05 | W9: -2.07617515e-05 | X9: =+IF(INDEX($C9:$G9,1,aux!$AL$1)>0,(G9/INDEX($C9:$G9,1,aux!$AL$1))^(1/($G$3-INDEX($C$3:$G$3,1,aux!$AL$1)))-1,"n.d.") -> 0.05898094389 | Y9: =IF(INDEX($C9:$G9,1,aux!$AL$1)>0,(G9-INDEX($C9:$G9,1,aux!$AL$1))/INDEX($C9:$G9,1,aux!$AL$1),"n.d.") -> 0.257629108 | AA9: =O9-INDEX($K9:$O9,1,aux!$AL$1) -> 12.659 | AB9: 0.0001528424574 | AC9: 5.986646803e-05 | AD9: =+IF(INDEX($K9:$O9,1,aux!$AL$1)>0,(O9/INDEX($K9:$O9,1,aux!$AL$1))^(1/($O$3-INDEX($K$3:$O$3,1,aux!$AL$1)))-1,"n.d.") -> 1.831680826 | AE9: =IF(INDEX($K9:$O9,1,aux!$AL$1)>0,(O9-INDEX($K9:$O9,1,aux!$AL$1))/INDEX($K9:$O9,1,aux!$AL$1),"n.d.") -> 63.295 | AX9: 01
A10: 01SS | B10: Animais vivos | C10: 0 | D10: 0 | E10: 0 | F10: 0 | G10: 0 | H10: 0 | I10: 0 | J10: 0 | K10: 0 | L10: 0 | M10: 0 | N10: 0 | O10: 0 | P10: 0 | Q10: 0 | R10: 0 | S10: 0 | U10: =G10-INDEX($C10:$G10,1,aux!$AL$1) -> 0 | V10: 0 | W10: 0 | X10: =+IF(INDEX($C10:$G10,1,aux!$AL$1)>0,(G10/INDEX($C10:$G10,1,aux!$AL$1))^(1/($G$3-INDEX($C$3:$G$3,1,aux!$AL$1)))-1,"n.d.") -> n.d. | Y10: =IF(INDEX($C10:$G10,1,aux!$AL$1)>0,(G10-INDEX($C10:$G10,1,aux!$AL$1))/INDEX($C10:$G10,1,aux!$AL$1),"n.d.") -> n.d. | AA10: =O10-INDEX($K10:$O10,1,aux!$AL$1) -> 0 | AB10: 0 | AC10: 0 | AD10: =+IF(INDEX($K10:$O10,1,aux!$AL$1)>0,(O10/INDEX($K10:$O10,1,aux!$AL$1))^(1/($O$3-INDEX($K$3:$O$3,1,aux!$AL$1)))-1,"n.d.") -> n.d. | AE10: =IF(INDEX($K10:$O10,1,aux!$AL$1)>0,(O10-INDEX($K10:$O10,1,aux!$AL$1))/INDEX($K10:$O10,1,aux!$AL$1),"n.d.") -> n.d. | AX10: 01
A11: 0201 | B11: Carnes de bovino, frescas ou refrigeradas | C11: 8874.675 | D11: 10791.904 | E11: 6754.012 | F11: 245.125 | G11: 425.324 | H11: 5418.208 | I11: 0.03306559246 | J11: 0.02550054757 | K11: 246.255 | L11: 883.066 | M11: 3297.541 | N11: 8557.141 | O11: 7582.773 | P11: 4113.3552 | Q11: 0.01151118467 | R11: 0.006020585276 | S11: -1304.8528 | U11: =G11-INDEX($C11:$G11,1,aux!$AL$1) -> -8449.351 | V11: 0.9049540992 | W11: 0.1997987765 | X11: =+IF(INDEX($C11:$G11,1,aux!$AL$1)>0,(G11/INDEX($C11:$G11,1,aux!$AL$1))^(1/($G$3-INDEX($C$3:$G$3,1,aux!$AL$1)))-1,"n.d.") -> -0.5321120527 | Y11: =IF(INDEX($C11:$G11,1,aux!$AL$1)>0,(G11-INDEX($C11:$G11,1,aux!$AL$1))/INDEX($C11:$G11,1,aux!$AL$1),"n.d.") -> -0.952074414 | AA11: =O11-INDEX($K11:$O11,1,aux!$AL$1) -> 7336.518 | AB11: 0.08857978038 | AC11: 0.03469558577 | AD11: =+IF(INDEX($K11:$O11,1,aux!$AL$1)>0,(O11/INDEX($K11:$O11,1,aux!$AL$1))^(1/($O$3-INDEX($K$3:$O$3,1,aux!$AL$1)))-1,"n.d.") -> 1.355649922 | AE11: =IF(INDEX($K11:$O11,1,aux!$AL$1)>0,(O11-INDEX($K11:$O11,1,aux!$AL$1))/INDEX($K11:$O11,1,aux!$AL$1),"n.d.") -> 29.79236158 | AX11: 02
A12: 0202 | B12: Carnes de bovino, congeladas | C12: 5402.232 | D12: 4353.191 | E12: 1210.578 | F12: 383.956 | G12: 1184.197 | H12: 2506.8308 | I12: 0.01529838751 | J12: 0.01179828424 | K12: 7.507 | L12: 12.174 | M12: 233.621 | N12: 1016.44 | O12: 816.272 | P12: 417.2028 | Q12: 0.001167537994 | R12: 0.000610646276 | S12: -2089.628 | U12: =G12-INDEX($C12:$G12,1,aux!$AL$1) -> -4218.035 | V12: 0.4517658296 | W12: 0.09974236274 | X12: =+IF(INDEX($C12:$G12,1,aux!$AL$1)>0,(G12/INDEX($C12:$G12,1,aux!$AL$1))^(1/($G$3-INDEX($C$3:$G$3,1,aux!$AL$1)))-1,"n.d.") -> -0.3157533476 | Y12: =IF(INDEX($C12:$G12,1,aux!$AL$1)>0,(G12-INDEX($C12:$G12,1,aux!$AL$1))/INDEX($C12:$G12,1,aux!$AL$1),"n.d.") -> -0.780794864 | AA12: =O12-INDEX($K12:$O12,1,aux!$AL$1) -> 808.765 | AB12: 0.009764881116 | AC12: 0.003824781106 | AD12: =+IF(INDEX($K12:$O12,1,aux!$AL$1)>0,(O12/INDEX($K12:$O12,1,aux!$AL$1))^(1/($O$3-INDEX($K$3:$O$3,1,aux!$AL$1)))-1,"n.d.") -> 2.22917901 | AE12: =IF(INDEX($K12:$O12,1,aux!$AL$1)>0,(O12-INDEX($K12:$O12,1,aux!$AL$1))/INDEX($K12:$O12,1,aux!$AL$1),"n.d.") -> 107.7347809 | AX12: 02
A13: 0203 | B13: Carnes de suíno | C13: 350.715 | D13: 332.208 | E13: 159.676 | F13: 5.371 | G13: 39.34 | H13: 177.462 | I13: 0.001082993892 | J13: 0.0008352167676 | K13: 6414.93 | L13: 7338.072 | M13: 1145.076 | N13: 1511.394 | O13: 1268.097 | P13: 3535.5138 | Q13: 0.009894101114 | R13: 0.005174817465 | S13: 3358.0518 | U13: =G13-INDEX($C13:$G13,1,aux!$AL$1) -> -311.375 | V13: 0.03334931673 | W13: 0.00736297309 | X13: =+IF(INDEX($C13:$G13,1,aux!$AL$1)>0,(G13/INDEX($C13:$G13,1,aux!$AL$1))^(1/($G$3-INDEX($C$3:$G$3,1,aux!$AL$1)))-1,"n.d.") -> -0.4212779849 | Y13: =IF(INDEX($C13:$G13,1,aux!$AL$1)>0,(G13-INDEX($C13:$G13,1,aux!$AL$1))/INDEX($C13:$G13,1,aux!$AL$1),"n.d.") -> -0.887829149 | AA13: =O13-INDEX($K13:$O13,1,aux!$AL$1) -> -5146.833 | AB13: -0.06214192302 | AC13: -0.02434020959 | AD13: =+IF(INDEX($K13:$O13,1,aux!$AL$1)>0,(O13/INDEX($K13:$O13,1,aux!$AL$1))^(1/($O$3-INDEX($K$3:$O$3,1,aux!$AL$1)))-1,"n.d.") -> -0.333208372 | AE13: =IF(INDEX($K13:$O13,1,aux!$AL$1)>0,(O13-INDEX($K13:$O13,1,aux!$AL$1))/INDEX($K13:$O13,1,aux!$AL$1),"n.d.") -> -0.8023209918 | AX13: 02
A14: 0204 | B14: Carnes de ovino ou caprino | C14: 8011.995 | D14: 4608.448 | E14: 4056.769 | F14: 0 | G14: 0 | H14: 3335.4424 | I14: 0.02035513939 | J14: 0.01569810675 | K14: 7.419 | L14: 10.972 | M14: 79.373 | N14: 64.923 | O14: 151.845 | P14: 62.9064 | Q14: 0.0001760429509 | R14: 9.207406781e-05 | S14: -3272.536 | U14: =G14-INDEX($C14:$G14,1,aux!$AL$1) -> -8011.995 | V14: 0.8581117909 | W14: 0.1894567759 | X14: =+IF(INDEX($C14:$G14,1,aux!$AL$1)>0,(G14/INDEX($C14:$G14,1,aux!$AL$1))^(1/($G$3-INDEX($C$3:$G$3,1,aux!$AL$1)))-1,"n.d.") -> -1 | Y14: =IF(INDEX($C14:$G14,1,aux!$AL$1)>0,(G14-INDEX($C14:$G14,1,aux!$AL$1))/INDEX($C14:$G14,1,aux!$AL$1),"n.d.") -> -1 | AA14: =O14-INDEX($K14:$O14,1,aux!$AL$1) -> 144.426 | AB14: 0.001743773185 | AC14: 0.0006830140226 | AD14: =+IF(INDEX($K14:$O14,1,aux!$AL$1)>0,(O14/INDEX($K14:$O14,1,aux!$AL$1))^(1/($O$3-INDEX($K$3:$O$3,1,aux!$AL$1)))-1,"n.d.") -> 1.126981836 | AE14: =IF(INDEX($K14:$O14,1,aux!$AL$1)>0,(O14-INDEX($K14:$O14,1,aux!$AL$1))/INDEX($K14:$O14,1,aux!$AL$1),"n.d.") -> 19.46704408 | AX14: 02
A15: 0205 | B15: Carnes de equídeo | C15: 0 | D15: 0 | E15: 0 | F15: 0 | G15: 0 | H15: 0 | I15: 0 | J15: 0 | K15: 0 | L15: 0 | M15: 0 | N15: 0 | O15: 0 | P15: 0 | Q15: 0 | R15: 0 | S15: 0 | U15: =G15-INDEX($C15:$G15,1,aux!$AL$1) -> 0 | V15: 0 | W15: 0 | X15: =+IF(INDEX($C15:$G15,1,aux!$AL$1)>0,(G15/INDEX($C15:$G15,1,aux!$AL$1))^(1/($G$3-INDEX($C$3:$G$3,1,aux!$AL$1)))-1,"n.d.") -> n.d. | Y15: =IF(INDEX($C15:$G15,1,aux!$AL$1)>0,(G15-INDEX($C15:$G15,1,aux!$AL$1))/INDEX($C15:$G15,1,aux!$AL$1),"n.d.") -> n.d. | AA15: =O15-INDEX($K15:$O15,1,aux!$AL$1) -> 0 | AB15: 0 | AC15: 0 | AD15: =+IF(INDEX($K15:$O15,1,aux!$AL$1)>0,(O15/INDEX($K15:$O15,1,aux!$AL$1))^(1/($O$3-INDEX($K$3:$O$3,1,aux!$AL$1)))-1,"n.d.") -> n.d. | AE15: =IF(INDEX($K15:$O15,1,aux!$AL$1)>0,(O15-INDEX($K15:$O15,1,aux!$AL$1))/INDEX($K15:$O15,1,aux!$AL$1),"n.d.") -> n.d. | AX15: 02
A16: 0206 | B16: Miudezas de bovino, suíno, ovino, caprino,equídeo | C16: 195.752 | D16: 85.813 | E16: 21.132 | F16: 48.391 | G16: 111.32 | H16: 92.4816 | I16: 0.0005643856596 | J16: 0.0004352604108 | K16: 49.288 | L16: 173.341 | M16: 66.247 | N16: 122.478 | O16: 43.187 | P16: 90.9082 | Q16: 0.0002544057169 | R16: 0.0001330593989 | S16: -1.5734 | U16: =G16-INDEX($C16:$G16,1,aux!$AL$1) -> -84.432 | V16: 0.009042953063 | W16: 0.00199653326 | X16: =+IF(INDEX($C16:$G16,1,aux!$AL$1)>0,(G16/INDEX($C16:$G16,1,aux!$AL$1))^(1/($G$3-INDEX($C$3:$G$3,1,aux!$AL$1)))-1,"n.d.") -> -0.1316061333 | Y16: =IF(INDEX($C16:$G16,1,aux!$AL$1)>0,(G16-INDEX($C16:$G16,1,aux!$AL$1))/INDEX($C16:$G16,1,aux!$AL$1),"n.d.") -> -0.4313212636 | AA16: =O16-INDEX($K16:$O16,1,aux!$AL$1) -> -6.101 | AB16: -7.366236136e-05 | AC16: -2.885262038e-05 | AD16: =+IF(INDEX($K16:$O16,1,aux!$AL$1)>0,(O16/INDEX($K16:$O16,1,aux!$AL$1))^(1/($O$3-INDEX($K$3:$O$3,1,aux!$AL$1)))-1,"n.d.") -> -0.03249557449 | AE16: =IF(INDEX($K16:$O16,1,aux!$AL$1)>0,(O16-INDEX($K16:$O16,1,aux!$AL$1))/INDEX($K16:$O16,1,aux!$AL$1),"n.d.") -> -0.1237826652 | AX16: 02
A17: 0207 | B17: Carnes e miudezas de aves de capoeira | C17: 2933.545 | D17: 2439.361 | E17: 1910.741 | F17: 1885.027 | G17: 1464.238 | H17: 2126.5824 | I17: 0.01297785301 | J17: 0.01000866258 | K17: 708.991 | L17: 592.789 | M17: 740.418 | N17: 913.215 | O17: 633.279 | P17: 717.7384 | Q17: 0.002008583958 | R17: 0.001050530536 | S17: -1408.844 | U17: =G17-INDEX($C17:$G17,1,aux!$AL$1) -> -1469.307 | V17: 0.1573677544 | W17: 0.03474417632 | X17: =+IF(INDEX($C17:$G17,1,aux!$AL$1)>0,(G17/INDEX($C17:$G17,1,aux!$AL$1))^(1/($G$3-INDEX($C$3:$G$3,1,aux!$AL$1)))-1,"n.d.") -> -0.1594670757 | Y17: =IF(INDEX($C17:$G17,1,aux!$AL$1)>0,(G17-INDEX($C17:$G17,1,aux!$AL$1))/INDEX($C17:$G17,1,aux!$AL$1),"n.d.") -> -0.5008639717 | AA17: =O17-INDEX($K17:$O17,1,aux!$AL$1) -> -75.712 | AB17: -0.0009141328805 | AC17: -0.0003580543509 | AD17: =+IF(INDEX($K17:$O17,1,aux!$AL$1)>0,(O17/INDEX($K17:$O17,1,aux!$AL$1))^(1/($O$3-INDEX($K$3:$O$3,1,aux!$AL$1)))-1,"n.d.") -> -0.02783811234 | AE17: =IF(INDEX($K17:$O17,1,aux!$AL$1)>0,(O17-INDEX($K17:$O17,1,aux!$AL$1))/INDEX($K17:$O17,1,aux!$AL$1),"n.d.") -> -0.1067883795 | AX17: 02
A18: 0208 | B18: Outras carnes e miudezas | C18: 0 | D18: 0 | E18: 0.009 | F18: 0 | G18: 0 | H18: 0.0018 | I18: 1.098482495e-08 | J18: 8.471617483e-09 | K18: 20.548 | L18: 22.611 | M18: 35.889 | N18: 52.401 | O18: 34.012 | P18: 33.0922 | Q18: 9.260820107e-05 | R18: 4.843598532e-05 | S18: 33.0904 | U18: =G18-INDEX($C18:$G18,1,aux!$AL$1) -> 0 | V18: 0 | W18: 0 | X18: =+IF(INDEX($C18:$G18,1,aux!$AL$1)>0,(G18/INDEX($C18:$G18,1,aux!$AL$1))^(1/($G$3-INDEX($C$3:$G$3,1,aux!$AL$1)))-1,"n.d.") -> n.d. | Y18: =IF(INDEX($C18:$G18,1,aux!$AL$1)>0,(G18-INDEX($C18:$G18,1,aux!$AL$1))/INDEX($C18:$G18,1,aux!$AL$1),"n.d.") -> n.d. | AA18: =O18-INDEX($K18:$O18,1,aux!$AL$1) -> 13.464 | AB18: 0.0001625618806 | AC18: 6.367344384e-05 | AD18: =+IF(INDEX($K18:$O18,1,aux!$AL$1)>0,(O18/INDEX($K18:$O18,1,aux!$AL$1))^(1/($O$3-INDEX($K$3:$O$3,1,aux!$AL$1)))-1,"n.d.") -> 0.1342679306 | AE18: =IF(INDEX($K18:$O18,1,aux!$AL$1)>0,(O18-INDEX($K18:$O18,1,aux!$AL$1))/INDEX($K18:$O18,1,aux!$AL$1),"n.d.") -> 0.6552462527 | AX18: 02
A19: 0209 | B19: Toucinho, gorduras de porco e de aves | C19: 120.891 | D19: 1.406 | E19: 1 | F19: 0 | G19: 0 | H19: 24.6594 | I19: 0.0001504884402 | J19: 0.0001160583356 | K19: 18.86 | L19: 37.403 | M19: 25.236 | N19: 6.761 | O19: 3.071 | P19: 18.2662 | Q19: 5.111778372e-05 | R19: 2.673564752e-05 | S19: -6.3932 | U19: =G19-INDEX($C19:$G19,1,aux!$AL$1) -> -120.891 | V19: 0.0129478354 | W19: 0.002858666174 | X19: =+IF(INDEX($C19:$G19,1,aux!$AL$1)>0,(G19/INDEX($C19:$G19,1,aux!$AL$1))^(1/($G$3-INDEX($C$3:$G$3,1,aux!$AL$1)))-1,"n.d.") -> -1 | Y19: =IF(INDEX($C19:$G19,1,aux!$AL$1)>0,(G19-INDEX($C19:$G19,1,aux!$AL$1))/INDEX($C19:$G19,1,aux!$AL$1),"n.d.") -> -1 | AA19: =O19-INDEX($K19:$O19,1,aux!$AL$1) -> -15.789 | AB19: -0.0001906335066 | AC19: -7.466874664e-05 | AD19: =+IF(INDEX($K19:$O19,1,aux!$AL$1)>0,(O19/INDEX($K19:$O19,1,aux!$AL$1))^(1/($O$3-INDEX($K$3:$O$3,1,aux!$AL$1)))-1,"n.d.") -> -0.3647648343 | AE19: =IF(INDEX($K19:$O19,1,aux!$AL$1)>0,(O19-INDEX($K19:$O19,1,aux!$AL$1))/INDEX($K19:$O19,1,aux!$AL$1),"n.d.") -> -0.8371686108 | AX19: 02
A20: 0210 | B20: Carnes e miudezas processadas; farinhas de carnes | C20: 535.412 | D20: 499.652 | E20: 114.605 | F20: 43.004 | G20: 30.928 | H20: 244.7202 | I20: 0.0014934492 | J20: 0.001151764403 | K20: 379.871 | L20: 464.123 | M20: 722.879 | N20: 535.039 | O20: 524.187 | P20: 525.2198 | Q20: 0.001469822521 | R20: 0.0007687472734 | S20: 280.4996 | U20: =G20-INDEX($C20:$G20,1,aux!$AL$1) -> -504.484 | V20: 0.05403194444 | W20: 0.01192935244 | X20: =+IF(INDEX($C20:$G20,1,aux!$AL$1)>0,(G20/INDEX($C20:$G20,1,aux!$AL$1))^(1/($G$3-INDEX($C$3:$G$3,1,aux!$AL$1)))-1,"n.d.") -> -0.5097518833 | Y20: =IF(INDEX($C20:$G20,1,aux!$AL$1)>0,(G20-INDEX($C20:$G20,1,aux!$AL$1))/INDEX($C20:$G20,1,aux!$AL$1),"n.d.") -> -0.9422351385 | AA20: =O20-INDEX($K20:$O20,1,aux!$AL$1) -> 144.316 | AB20: 0.001742445065 | AC20: 0.0006824938147 | AD20: =+IF(INDEX($K20:$O20,1,aux!$AL$1)>0,(O20/INDEX($K20:$O20,1,aux!$AL$1))^(1/($O$3-INDEX($K$3:$O$3,1,aux!$AL$1)))-1,"n.d.") -> 0.08383339046 | AE20: =IF(INDEX($K20:$O20,1,aux!$AL$1)>0,(O20-INDEX($K20:$O20,1,aux!$AL$1))/INDEX($K20:$O20,1,aux!$AL$1),"n.d.") -> 0.3799079161 | AX20: 02
A21: 02SS | B21: Carnes e miudezas, comestíveis | C21: 0 | D21: 0 | E21: 0 | F21: 0 | G21: 0 | H21: 0 | I21: 0 | J21: 0 | K21: 0 | L21: 0 | M21: 0 | N21: 0 | O21: 0 | P21: 0 | Q21: 0 | R21: 0 | S21: 0 | U21: =G21-INDEX($C21:$G21,1,aux!$AL$1) -> 0 | V21: 0 | W21: 0 | X21: =+IF(INDEX($C21:$G21,1,aux!$AL$1)>0,(G21/INDEX($C21:$G21,1,aux!$AL$1))^(1/($G$3-INDEX($C$3:$G$3,1,aux!$AL$1)))-1,"n.d.") -> n.d. | Y21: =IF(INDEX($C21:$G21,1,aux!$AL$1)>0,(G21-INDEX($C21:$G21,1,aux!$AL$1))/INDEX($C21:$G21,1,aux!$AL$1),"n.d.") -> n.d. | AA21: =O21-INDEX($K21:$O21,1,aux!$AL$1) -> 0 | AB21: 0 | AC21: 0 | AD21: =+IF(INDEX($K21:$O21,1,aux!$AL$1)>0,(O21/INDEX($K21:$O21,1,aux!$AL$1))^(1/($O$3-INDEX($K$3:$O$3,1,aux!$AL$1)))-1,"n.d.") -> n.d. | AE21: =IF(INDEX($K21:$O21,1,aux!$AL$1)>0,(O21-INDEX($K21:$O21,1,aux!$AL$1))/INDEX($K21:$O21,1,aux!$AL$1),"n.d.") -> n.d. | AX21: 02
A22: 0401 | B22: Leite e nata, não concentrados | C22: 397.286 | D22: 78.719 | E22: 45.387 | F22: 1.591 | G22: 5.514 | H22: 105.6994 | I22: 0.0006450496703 | J22: 0.0004974693805 | K22: 1562.267 | L22: 873.762 | M22: 1634.723 | N22: 348.308 | O22: 304.926 | P22: 944.7972 | Q22: 0.00264400581 | R22: 0.001382869175 | S22: 839.0978 | U22: =G22-INDEX($C22:$G22,1,aux!$AL$1) -> -391.772 | V22: 0.04196010763 | W22: 0.009264092151 | X22: =+IF(INDEX($C22:$G22,1,aux!$AL$1)>0,(G22/INDEX($C22:$G22,1,aux!$AL$1))^(1/($G$3-INDEX($C$3:$G$3,1,aux!$AL$1)))-1,"n.d.") -> -0.6567655467 | Y22: =IF(INDEX($C22:$G22,1,aux!$AL$1)>0,(G22-INDEX($C22:$G22,1,aux!$AL$1))/INDEX($C22:$G22,1,aux!$AL$1),"n.d.") -> -0.9861208298 | AA22: =O22-INDEX($K22:$O22,1,aux!$AL$1) -> -1257.341 | AB22: -0.01518090593 | AC22: -0.005946169901 | AD22: =+IF(INDEX($K22:$O22,1,aux!$AL$1)>0,(O22/INDEX($K22:$O22,1,aux!$AL$1))^(1/($O$3-INDEX($K$3:$O$3,1,aux!$AL$1)))-1,"n.d.") -> -0.3353243034 | AE22: =IF(INDEX($K22:$O22,1,aux!$AL$1)>0,(O22-INDEX($K22:$O22,1,aux!$AL$1))/INDEX($K22:$O22,1,aux!$AL$1),"n.d.") -> -0.8048182545 | AX22: 04
A23: 0402 | B23: Leite e nata, concentrados | C23: 86.726 | D23: 111.509 | E23: 442.758 | F23: 3.575 | G23: 9.679 | H23: 130.8494 | I23: 0.0007985320856 | J23: 0.0006158367026 | K23: 1325.193 | L23: 809.404 | M23: 475.782 | N23: 429.372 | O23: 957.668 | P23: 799.4838 | Q23: 0.002237347668 | R23: 0.00117017864 | S23: 668.6344 | U23: =G23-INDEX($C23:$G23,1,aux!$AL$1) -> -77.047 | V23: 0.00825199456 | W23: 0.001821902811 | X23: =+IF(INDEX($C23:$G23,1,aux!$AL$1)>0,(G23/INDEX($C23:$G23,1,aux!$AL$1))^(1/($G$3-INDEX($C$3:$G$3,1,aux!$AL$1)))-1,"n.d.") -> -0.4220100415 | Y23: =IF(INDEX($C23:$G23,1,aux!$AL$1)>0,(G23-INDEX($C23:$G23,1,aux!$AL$1))/INDEX($C23:$G23,1,aux!$AL$1),"n.d.") -> -0.8883956368 | AA23: =O23-INDEX($K23:$O23,1,aux!$AL$1) -> -367.525 | AB23: -0.004437429825 | AC23: -0.001738085446 | AD23: =+IF(INDEX($K23:$O23,1,aux!$AL$1)>0,(O23/INDEX($K23:$O23,1,aux!$AL$1))^(1/($O$3-INDEX($K$3:$O$3,1,aux!$AL$1)))-1,"n.d.") -> -0.07799354688 | AE23: =IF(INDEX($K23:$O23,1,aux!$AL$1)>0,(O23-INDEX($K23:$O23,1,aux!$AL$1))/INDEX($K23:$O23,1,aux!$AL$1),"n.d.") -> -0.2773369615 | AX23: 04
A24: 0403 | B24: Leitelho, leite coalhado, iogurte, etc. | C24: 767.257 | D24: 658.565 | E24: 355.2 | F24: 101.083 | G24: 1.088 | H24: 376.6386 | I24: 0.002298505051 | J24: 0.001772632305 | K24: 217.61 | L24: 209.288 | M24: 234.863 | N24: 187.843 | O24: 160.731 | P24: 202.067 | Q24: 0.0005654825417 | R24: 0.0002957589476 | S24: -174.5716 | U24: =G24-INDEX($C24:$G24,1,aux!$AL$1) -> -766.169 | V24: 0.08205929393 | W24: 0.0181173239 | X24: =+IF(INDEX($C24:$G24,1,aux!$AL$1)>0,(G24/INDEX($C24:$G24,1,aux!$AL$1))^(1/($G$3-INDEX($C$3:$G$3,1,aux!$AL$1)))-1,"n.d.") -> -0.8059462637 | Y24: =IF(INDEX($C24:$G24,1,aux!$AL$1)>0,(G24-INDEX($C24:$G24,1,aux!$AL$1))/INDEX($C24:$G24,1,aux!$AL$1),"n.d.") -> -0.9985819615 | AA24: =O24-INDEX($K24:$O24,1,aux!$AL$1) -> -56.879 | AB24: -0.000686746673 | AC24: -0.0002689900336 | AD24: =+IF(INDEX($K24:$O24,1,aux!$AL$1)>0,(O24/INDEX($K24:$O24,1,aux!$AL$1))^(1/($O$3-INDEX($K$3:$O$3,1,aux!$AL$1)))-1,"n.d.") -> -0.07294564283 | AE24: =IF(INDEX($K24:$O24,1,aux!$AL$1)>0,(O24-INDEX($K24:$O24,1,aux!$AL$1))/INDEX($K24:$O24,1,aux!$AL$1),"n.d.") -> -0.2613804513 | AX24: 04
A25: 0404 | B25: Soro de leite e outros produtos do leite | C25: 4776.42 | D25: 191.473 | E25: 669.78 | F25: 0 | G25: 0 | H25: 1127.5346 | I25: 0.006880983449 | J25: 0.005306689906 | K25: 94.203 | L25: 40.935 | M25: 28.088 | N25: 5.756 | O25: 14.488 | P25: 36.694 | Q25: 0.0001026878035 | R25: 5.370782375e-05 | S25: -1090.8406 | U25: =G25-INDEX($C25:$G25,1,aux!$AL$1) -> -4776.42 | V25: 0.5115707536 | W25: 0.1129462928 | X25: =+IF(INDEX($C25:$G25,1,aux!$AL$1)>0,(G25/INDEX($C25:$G25,1,aux!$AL$1))^(1/($G$3-INDEX($C$3:$G$3,1,aux!$AL$1)))-1,"n.d.") -> -1 | Y25: =IF(INDEX($C25:$G25,1,aux!$AL$1)>0,(G25-INDEX($C25:$G25,1,aux!$AL$1))/INDEX($C25:$G25,1,aux!$AL$1),"n.d.") -> -1 | AA25: =O25-INDEX($K25:$O25,1,aux!$AL$1) -> -79.715 | AB25: -0.0009624643724 | AC25: -0.0003769851883 | AD25: =+IF(INDEX($K25:$O25,1,aux!$AL$1)>0,(O25/INDEX($K25:$O25,1,aux!$AL$1))^(1/($O$3-INDEX($K$3:$O$3,1,aux!$AL$1)))-1,"n.d.") -> -0.373767034 | AE25: =IF(INDEX($K25:$O25,1,aux!$AL$1)>0,(O25-INDEX($K25:$O25,1,aux!$AL$1))/INDEX($K25:$O25,1,aux!$AL$1),"n.d.") -> -0.8462044733 | AX25: 04
A26: 0405 | B26: Manteiga | C26: 198.13 | D26: 275.521 | E26: 183.103 | F26: 24.629 | G26: 20.274 | H26: 140.3314 | I26: 0.0008563977024 | J26: 0.0006604633009 | K26: 59.961 | L26: 61.798 | M26: 70.795 | N26: 99.754 | O26: 252.663 | P26: 108.9942 | Q26: 0.0003050192127 | R26: 0.0001595312935 | S26: -31.3372 | U26: =G26-INDEX($C26:$G26,1,aux!$AL$1) -> -177.856 | V26: 0.01904897977 | W26: 0.004205697124 | X26: =+IF(INDEX($C26:$G26,1,aux!$AL$1)>0,(G26/INDEX($C26:$G26,1,aux!$AL$1))^(1/($G$3-INDEX($C$3:$G$3,1,aux!$AL$1)))-1,"n.d.") -> -0.4344157583 | Y26: =IF(INDEX($C26:$G26,1,aux!$AL$1)>0,(G26-INDEX($C26:$G26,1,aux!$AL$1))/INDEX($C26:$G26,1,aux!$AL$1),"n.d.") -> -0.8976732448 | AA26: =O26-INDEX($K26:$O26,1,aux!$AL$1) -> 192.702 | AB26: 0.002326648805 | AC26: 0.0009113190712 | AD26: =+IF(INDEX($K26:$O26,1,aux!$AL$1)>0,(O26/INDEX($K26:$O26,1,aux!$AL$1))^(1/($O$3-INDEX($K$3:$O$3,1,aux!$AL$1)))-1,"n.d.") -> 0.4327426702 | AE26: =IF(INDEX($K26:$O26,1,aux!$AL$1)>0,(O26-INDEX($K26:$O26,1,aux!$AL$1))/INDEX($K26:$O26,1,aux!$AL$1),"n.d.") -> 3.213788963 | AX26: 04
A27: 0406 | B27: Queijos e requeijão | C27: 6835.514 | D27: 6982.409 | E27: 5488.943 | F27: 558.936 | G27: 824.876 | H27: 4138.1356 | I27: 0.02525371955 | J27: 0.0194759455 | K27: 793.852 | L27: 1684.869 | M27: 1042.498 | N27: 1285.334 | O27: 1145.83 | P27: 1190.4766 | Q27: 0.003331537231 | R27: 0.001742462185 | S27: -2947.659 | U27: =G27-INDEX($C27:$G27,1,aux!$AL$1) -> -6010.638 | V27: 0.6437596801 | W27: 0.1421314038 | X27: =+IF(INDEX($C27:$G27,1,aux!$AL$1)>0,(G27/INDEX($C27:$G27,1,aux!$AL$1))^(1/($G$3-INDEX($C$3:$G$3,1,aux!$AL$1)))-1,"n.d.") -> -0.4106078155 | Y27: =IF(INDEX($C27:$G27,1,aux!$AL$1)>0,(G27-INDEX($C27:$G27,1,aux!$AL$1))/INDEX($C27:$G27,1,aux!$AL$1),"n.d.") -> -0.8793249491 | AA27: =O27-INDEX($K27:$O27,1,aux!$AL$1) -> 351.978 | AB27: 0.004249718182 | AC27: 0.001664561157 | AD27: =+IF(INDEX($K27:$O27,1,aux!$AL$1)>0,(O27/INDEX($K27:$O27,1,aux!$AL$1))^(1/($O$3-INDEX($K$3:$O$3,1,aux!$AL$1)))-1,"n.d.") -> 0.0960873394 | AE27: =IF(INDEX($K27:$O27,1,aux!$AL$1)>0,(O27-INDEX($K27:$O27,1,aux!$AL$1))/INDEX($K27:$O27,1,aux!$AL$1),"n.d.") -> 0.4433798743 | AX27: 04
A28: 0407 | B28: Ovos de aves, com cascas | C28: 174.395 | D28: 85.957 | E28: 9.226 | F28: 0 | G28: 325.939 | H28: 119.1034 | I28: 0.0007268500001 | J28: 0.0005605546921 | K28: 1472.824 | L28: 449.825 | M28: 244.797 | N28: 96.847 | O28: 418.743 | P28: 536.6072 | Q28: 0.00150169005 | R28: 0.0007854146433 | S28: 417.5038 | U28: =G28-INDEX($C28:$G28,1,aux!$AL$1) -> 151.544 | V28: -0.01623087549 | W28: -0.003583506685 | X28: =+IF(INDEX($C28:$G28,1,aux!$AL$1)>0,(G28/INDEX($C28:$G28,1,aux!$AL$1))^(1/($G$3-INDEX($C$3:$G$3,1,aux!$AL$1)))-1,"n.d.") -> 0.1692316825 | Y28: =IF(INDEX($C28:$G28,1,aux!$AL$1)>0,(G28-INDEX($C28:$G28,1,aux!$AL$1))/INDEX($C28:$G28,1,aux!$AL$1),"n.d.") -> 0.8689698673 | AA28: =O28-INDEX($K28:$O28,1,aux!$AL$1) -> -1054.081 | AB28: -0.01272678176 | AC28: -0.004984920332 | AD28: =+IF(INDEX($K28:$O28,1,aux!$AL$1)>0,(O28/INDEX($K28:$O28,1,aux!$AL$1))^(1/($O$3-INDEX($K$3:$O$3,1,aux!$AL$1)))-1,"n.d.") -> -0.2697876448 | AE28: =IF(INDEX($K28:$O28,1,aux!$AL$1)>0,(O28-INDEX($K28:$O28,1,aux!$AL$1))/INDEX($K28:$O28,1,aux!$AL$1),"n.d.") -> -0.7156870067 | AX28: 04
A29: 0408 | B29: Ovos de aves, sem casca | C29: 84.362 | D29: 63.017 | E29: 29.324 | F29: 0 | G29: 0 | H29: 35.3406 | I29: 0.0002156723915 | J29: 0.0001663289138 | K29: 6.658 | L29: 10.297 | M29: 17.822 | N29: 0.145 | O29: 0.755 | P29: 7.1354 | Q29: 1.996834776e-05 | R29: 1.044385473e-05 | S29: -28.2052 | U29: =G29-INDEX($C29:$G29,1,aux!$AL$1) -> -84.362 | V29: 0.009035455826 | W29: 0.001994877996 | X29: =+IF(INDEX($C29:$G29,1,aux!$AL$1)>0,(G29/INDEX($C29:$G29,1,aux!$AL$1))^(1/($G$3-INDEX($C$3:$G$3,1,aux!$AL$1)))-1,"n.d.") -> -1 | Y29: =IF(INDEX($C29:$G29,1,aux!$AL$1)>0,(G29-INDEX($C29:$G29,1,aux!$AL$1))/INDEX($C29:$G29,1,aux!$AL$1),"n.d.") -> -1 | AA29: =O29-INDEX($K29:$O29,1,aux!$AL$1) -> -5.903 | AB29: -7.127174547e-05 | AC29: -2.791624621e-05 | AD29: =+IF(INDEX($K29:$O29,1,aux!$AL$1)>0,(O29/INDEX($K29:$O29,1,aux!$AL$1))^(1/($O$3-INDEX($K$3:$O$3,1,aux!$AL$1)))-1,"n.d.") -> -0.4197023789 | AE29: =IF(INDEX($K29:$O29,1,aux!$AL$1)>0,(O29-INDEX($K29:$O29,1,aux!$AL$1))/INDEX($K29:$O29,1,aux!$AL$1),"n.d.") -> -0.8866025834 | AX29: 04
A30: 0409 | B30: Mel natural | C30: 54.873 | D30: 26.561 | E30: 33.71 | F30: 11.924 | G30: 8.471 | H30: 27.1078 | I30: 0.0001654302432 | J30: 0.000127581618 | K30: 862.869 | L30: 568.464 | M30: 290.211 | N30: 339.28 | O30: 116.465 | P30: 435.4578 | Q30: 0.001218624434 | R30: 0.0006373655304 | S30: 408.35 | U30: =G30-INDEX($C30:$G30,1,aux!$AL$1) -> -46.402 | V30: 0.004969811304 | W30: 0.001097251473 | X30: =+IF(INDEX($C30:$G30,1,aux!$AL$1)>0,(G30/INDEX($C30:$G30,1,aux!$AL$1))^(1/($G$3-INDEX($C$3:$G$3,1,aux!$AL$1)))-1,"n.d.") -> -0.3731783413 | Y30: =IF(INDEX($C30:$G30,1,aux!$AL$1)>0,(G30-INDEX($C30:$G30,1,aux!$AL$1))/INDEX($C30:$G30,1,aux!$AL$1),"n.d.") -> -0.8456253531 | AA30: =O30-INDEX($K30:$O30,1,aux!$AL$1) -> -746.404 | AB30: -0.009011945775 | AC30: -0.003529865803 | AD30: =+IF(INDEX($K30:$O30,1,aux!$AL$1)>0,(O30/INDEX($K30:$O30,1,aux!$AL$1))^(1/($O$3-INDEX($K$3:$O$3,1,aux!$AL$1)))-1,"n.d.") -> -0.3938743803 | AE30: =IF(INDEX($K30:$O30,1,aux!$AL$1)>0,(O30-INDEX($K30:$O30,1,aux!$AL$1))/INDEX($K30:$O30,1,aux!$AL$1),"n.d.") -> -0.8650258614 | AX30: 04
A31: 0410 | B31: Outros produtos comestíveis de origem animal | C31: 8.066 | D31: 11.761 | E31: 16.356 | F31: 0 | G31: 0.121 | H31: 7.2608 | I31: 4.431034279e-05 | J31: 3.417262234e-05 | K31: 0 | L31: 0 | M31: 0 | N31: 1.631 | O31: 0.703 | P31: 0.4668 | Q31: 1.306335277e-06 | R31: 6.832400972e-07 | S31: -6.794 | U31: =G31-INDEX($C31:$G31,1,aux!$AL$1) -> -7.945 | V31: 0.0008509363995 | W31: 0.0001878725691 | X31: =+IF(INDEX($C31:$G31,1,aux!$AL$1)>0,(G31/INDEX($C31:$G31,1,aux!$AL$1))^(1/($G$3-INDEX($C$3:$G$3,1,aux!$AL$1)))-1,"n.d.") -> -0.6500292178 | Y31: =IF(INDEX($C31:$G31,1,aux!$AL$1)>0,(G31-INDEX($C31:$G31,1,aux!$AL$1))/INDEX($C31:$G31,1,aux!$AL$1),"n.d.") -> -0.9849987602 | AA31: =O31-INDEX($K31:$O31,1,aux!$AL$1) -> 0.703 | AB31: 8.487893794e-06 | AC31: 3.324601234e-06 | AD31: =+IF(INDEX($K31:$O31,1,aux!$AL$1)>0,(O31/INDEX($K31:$O31,1,aux!$AL$1))^(1/($O$3-INDEX($K$3:$O$3,1,aux!$AL$1)))-1,"n.d.") -> n.d. | AE31: =IF(INDEX($K31:$O31,1,aux!$AL$1)>0,(O31-INDEX($K31:$O31,1,aux!$AL$1))/INDEX($K31:$O31,1,aux!$AL$1),"n.d.") -> n.d. | AX31: 04
A32: 04SS | B32: Leite e lacticínios; ovos de aves; mel natural; etc. | C32: 0 | D32: 0 | E32: 0 | F32: 0 | G32: 0 | H32: 0 | I32: 0 | J32: 0 | K32: 0 | L32: 0 | M32: 0 | N32: 0 | O32: 0 | P32: 0 | Q32: 0 | R32: 0 | S32: 0 | U32: =G32-INDEX($C32:$G32,1,aux!$AL$1) -> 0 | V32: 0 | W32: 0 | X32: =+IF(INDEX($C32:$G32,1,aux!$AL$1)>0,(G32/INDEX($C32:$G32,1,aux!$AL$1))^(1/($G$3-INDEX($C$3:$G$3,1,aux!$AL$1)))-1,"n.d.") -> n.d. | Y32: =IF(INDEX($C32:$G32,1,aux!$AL$1)>0,(G32-INDEX($C32:$G32,1,aux!$AL$1))/INDEX($C32:$G32,1,aux!$AL$1),"n.d.") -> n.d. | AA32: =O32-INDEX($K32:$O32,1,aux!$AL$1) -> 0 | AB32: 0 | AC32: 0 | AD32: =+IF(INDEX($K32:$O32,1,aux!$AL$1)>0,(O32/INDEX($K32:$O32,1,aux!$AL$1))^(1/($O$3-INDEX($K$3:$O$3,1,aux!$AL$1)))-1,"n.d.") -> n.d. | AE32: =IF(INDEX($K32:$O32,1,aux!$AL$1)>0,(O32-INDEX($K32:$O32,1,aux!$AL$1))/INDEX($K32:$O32,1,aux!$AL$1),"n.d.") -> n.d. | AX32: 04
A33: 0501 | B33: Cabelos em bruto | C33: 0 | D33: 0 | E33: 0 | F33: 0.195 | G33: 2.202 | H33: 0.4794 | I33: 2.925625046e-06 | J33: 2.256274123e-06 | K33: 0 | L33: 0 | M33: 0 | N33: 0.1 | O33: 0 | P33: 0.02 | Q33: 5.596980622e-08 | R33: 2.927335464e-08 | S33: -0.4594 | U33: =G33-INDEX($C33:$G33,1,aux!$AL$1) -> 2.202 | V33: -0.0002358416554 | W33: -5.206990524e-05 | X33: =+IF(INDEX($C33:$G33,1,aux!$AL$1)>0,(G33/INDEX($C33:$G33,1,aux!$AL$1))^(1/($G$3-INDEX($C$3:$G$3,1,aux!$AL$1)))-1,"n.d.") -> n.d. | Y33: =IF(INDEX($C33:$G33,1,aux!$AL$1)>0,(G33-INDEX($C33:$G33,1,aux!$AL$1))/INDEX($C33:$G33,1,aux!$AL$1),"n.d.") -> n.d. | AA33: =O33-INDEX($K33:$O33,1,aux!$AL$1) -> 0 | AB33: 0 | AC33: 0 | AD33: =+IF(INDEX($K33:$O33,1,aux!$AL$1)>0,(O33/INDEX($K33:$O33,1,aux!$AL$1))^(1/($O$3-INDEX($K$3:$O$3,1,aux!$AL$1)))-1,"n.d.") -> n.d. | AE33: =IF(INDEX($K33:$O33,1,aux!$AL$1)>0,(O33-INDEX($K33:$O33,1,aux!$AL$1))/INDEX($K33:$O33,1,aux!$AL$1),"n.d.") -> n.d. | AX33: 05
A34: 0502 | B34: Cerdas de porco ou de javali, etc. | C34: 0 | D34: 0 | E34: 0 | F34: 0.008 | G34: 0 | H34: 0.0016 | I34: 9.764288847e-09 | J34: 7.530326652e-09 | K34: 0 | L34: 0 | M34: 0 | N34: 0 | O34: 0 | P34: 0 | Q34: 0 | R34: 0 | S34: -0.0016 | U34: =G34-INDEX($C34:$G34,1,aux!$AL$1) -> 0 | V34: 0 | W34: 0 | X34: =+IF(INDEX($C34:$G34,1,aux!$AL$1)>0,(G34/INDEX($C34:$G34,1,aux!$AL$1))^(1/($G$3-INDEX($C$3:$G$3,1,aux!$AL$1)))-1,"n.d.") -> n.d. | Y34: =IF(INDEX($C34:$G34,1,aux!$AL$1)>0,(G34-INDEX($C34:$G34,1,aux!$AL$1))/INDEX($C34:$G34,1,aux!$AL$1),"n.d.") -> n.d. | AA34: =O34-INDEX($K34:$O34,1,aux!$AL$1) -> 0 | AB34: 0 | AC34: 0 | AD34: =+IF(INDEX($K34:$O34,1,aux!$AL$1)>0,(O34/INDEX($K34:$O34,1,aux!$AL$1))^(1/($O$3-INDEX($K$3:$O$3,1,aux!$AL$1)))-1,"n.d.") -> n.d. | AE34: =IF(INDEX($K34:$O34,1,aux!$AL$1)>0,(O34-INDEX($K34:$O34,1,aux!$AL$1))/INDEX($K34:$O34,1,aux!$AL$1),"n.d.") -> n.d. | AX34: 05
A35: 0504 | B35: Tripas de animais (excepto peixes) | C35: 1272.951 | D35: 949.259 | E35: 0 | F35: 0 | G35: 275.66 | H35: 499.574 | I35: 0.003048740523 | J35: 0.002351222129 | K35: 603 | L35: 504.987 | M35: 197.984 | N35: 182.367 | O35: 162.022 | P35: 330.072 | Q35: 0.0009237032939 | R35: 0.0004831157356 | S35: -169.502 | U35: =G35-INDEX($C35:$G35,1,aux!$AL$1) -> -997.291 | V35: 0.1068132426 | W35: 0.02358258305 | X35: =+IF(INDEX($C35:$G35,1,aux!$AL$1)>0,(G35/INDEX($C35:$G35,1,aux!$AL$1))^(1/($G$3-INDEX($C$3:$G$3,1,aux!$AL$1)))-1,"n.d.") -> -0.3178332987 | Y35: =IF(INDEX($C35:$G35,1,aux!$AL$1)>0,(G35-INDEX($C35:$G35,1,aux!$AL$1))/INDEX($C35:$G35,1,aux!$AL$1),"n.d.") -> -0.7834480667 | AA35: =O35-INDEX($K35:$O35,1,aux!$AL$1) -> -440.978 | AB35: -0.005324287951 | AC35: -0.002085456619 | AD35: =+IF(INDEX($K35:$O35,1,aux!$AL$1)>0,(O35/INDEX($K35:$O35,1,aux!$AL$1))^(1/($O$3-INDEX($K$3:$O$3,1,aux!$AL$1)))-1,"n.d.") -> -0.2800303834 | AE35: =IF(INDEX($K35:$O35,1,aux!$AL$1)>0,(O35-INDEX($K35:$O35,1,aux!$AL$1))/INDEX($K35:$O35,1,aux!$AL$1),"n.d.") -> -0.7313067993 | AX35: 05
A36: 0505 | B36: Peles e outras partes de aves | C36: 0 | D36: 0 | E36: 0 | F36: 0 | G36: 0.111 | H36: 0.0222 | I36: 1.354795077e-07 | J36: 1.044832823e-07 | K36: 65.256 | L36: 47.934 | M36: 27.113 | N36: 41.778 | O36: 42.6 | P36: 44.9362 | Q36: 0.0001257535203 | R36: 6.577166593e-05 | S36: 44.914 | U36: =G36-INDEX($C36:$G36,1,aux!$AL$1) -> 0.111 | V36: -1.188847581e-05 | W36: -2.62477724e-06 | X36: =+IF(INDEX($C36:$G36,1,aux!$AL$1)>0,(G36/INDEX($C36:$G36,1,aux!$AL$1))^(1/($G$3-INDEX($C$3:$G$3,1,aux!$AL$1)))-1,"n.d.") -> n.d. | Y36: =IF(INDEX($C36:$G36,1,aux!$AL$1)>0,(G36-INDEX($C36:$G36,1,aux!$AL$1))/INDEX($C36:$G36,1,aux!$AL$1),"n.d.") -> n.d. | AA36: =O36-INDEX($K36:$O36,1,aux!$AL$1) -> -22.656 | AB36: -0.0002735444122 | AC36: -0.0001071439055 | AD36: =+IF(INDEX($K36:$O36,1,aux!$AL$1)>0,(O36/INDEX($K36:$O36,1,aux!$AL$1))^(1/($O$3-INDEX($K$3:$O$3,1,aux!$AL$1)))-1,"n.d.") -> -0.1011291691 | AE36: =IF(INDEX($K36:$O36,1,aux!$AL$1)>0,(O36-INDEX($K36:$O36,1,aux!$AL$1))/INDEX($K36:$O36,1,aux!$AL$1),"n.d.") -> -0.3471864656 | AX36: 05
A37: 0506 | B37: Ossos e núcleos córneos, em bruto | C37: 1.46 | D37: 0.085 | E37: 0 | F37: 0 | G37: 0 | H37: 0.309 | I37: 1.885728284e-06 | J37: 1.454294335e-06 | K37: 39.434 | L37: 9.576 | M37: 0 | N37: 0 | O37: 0.006 | P37: 9.8032 | Q37: 2.743416022e-05 | R37: 1.434862751e-05 | S37: 9.4942 | U37: =G37-INDEX($C37:$G37,1,aux!$AL$1) -> -1.46 | V37: 0.0001563709432 | W37: 3.452409703e-05 | X37: =+IF(INDEX($C37:$G37,1,aux!$AL$1)>0,(G37/INDEX($C37:$G37,1,aux!$AL$1))^(1/($G$3-INDEX($C$3:$G$3,1,aux!$AL$1)))-1,"n.d.") -> -1 | Y37: =IF(INDEX($C37:$G37,1,aux!$AL$1)>0,(G37-INDEX($C37:$G37,1,aux!$AL$1))/INDEX($C37:$G37,1,aux!$AL$1),"n.d.") -> -1 | AA37: =O37-INDEX($K37:$O37,1,aux!$AL$1) -> -39.428 | AB37: -0.0004760464815 | AC37: -0.0001864614189 | AD37: =+IF(INDEX($K37:$O37,1,aux!$AL$1)>0,(O37/INDEX($K37:$O37,1,aux!$AL$1))^(1/($O$3-INDEX($K$3:$O$3,1,aux!$AL$1)))-1,"n.d.") -> -0.8889368199 | AE37: =IF(INDEX($K37:$O37,1,aux!$AL$1)>0,(O37-INDEX($K37:$O37,1,aux!$AL$1))/INDEX($K37:$O37,1,aux!$AL$1),"n.d.") -> -0.999847847 | AX37: 05
A38: 0507 | B38: Marfim, carapaças de tartaruga, etc. | C38: 0 | D38: 0 | E38: 0 | F38: 0 | G38: 0 | H38: 0 | I38: 0 | J38: 0 | K38: 0 | L38: 0 | M38: 0 | N38: 0 | O38: 0 | P38: 0 | Q38: 0 | R38: 0 | S38: 0 | U38: =G38-INDEX($C38:$G38,1,aux!$AL$1) -> 0 | V38: 0 | W38: 0 | X38: =+IF(INDEX($C38:$G38,1,aux!$AL$1)>0,(G38/INDEX($C38:$G38,1,aux!$AL$1))^(1/($G$3-INDEX($C$3:$G$3,1,aux!$AL$1)))-1,"n.d.") -> n.d. | Y38: =IF(INDEX($C38:$G38,1,aux!$AL$1)>0,(G38-INDEX($C38:$G38,1,aux!$AL$1))/INDEX($C38:$G38,1,aux!$AL$1),"n.d.") -> n.d. | AA38: =O38-INDEX($K38:$O38,1,aux!$AL$1) -> 0 | AB38: 0 | AC38: 0 | AD38: =+IF(INDEX($K38:$O38,1,aux!$AL$1)>0,(O38/INDEX($K38:$O38,1,aux!$AL$1))^(1/($O$3-INDEX($K$3:$O$3,1,aux!$AL$1)))-1,"n.d.") -> n.d. | AE38: =IF(INDEX($K38:$O38,1,aux!$AL$1)>0,(O38-INDEX($K38:$O38,1,aux!$AL$1))/INDEX($K38:$O38,1,aux!$AL$1),"n.d.") -> n.d. | AX38: 05
A39: 0510 | B39: Âmbar-cinzento, castóreo, algália e almíscar, etc. | C39: 0 | D39: 0 | E39: 0 | F39: 0 | G39: 0 | H39: 0 | I39: 0 | J39: 0 | K39: 0 | L39: 0 | M39: 0 | N39: 0 | O39: 0 | P39: 0 | Q39: 0 | R39: 0 | S39: 0 | U39: =G39-INDEX($C39:$G39,1,aux!$AL$1) -> 0 | V39: 0 | W39: 0 | X39: =+IF(INDEX($C39:$G39,1,aux!$AL$1)>0,(G39/INDEX($C39:$G39,1,aux!$AL$1))^(1/($G$3-INDEX($C$3:$G$3,1,aux!$AL$1)))-1,"n.d.") -> n.d. | Y39: =IF(INDEX($C39:$G39,1,aux!$AL$1)>0,(G39-INDEX($C39:$G39,1,aux!$AL$1))/INDEX($C39:$G39,1,aux!$AL$1),"n.d.") -> n.d. | AA39: =O39-INDEX($K39:$O39,1,aux!$AL$1) -> 0 | AB39: 0 | AC39: 0 | AD39: =+IF(INDEX($K39:$O39,1,aux!$AL$1)>0,(O39/INDEX($K39:$O39,1,aux!$AL$1))^(1/($O$3-INDEX($K$3:$O$3,1,aux!$AL$1)))-1,"n.d.") -> n.d. | AE39: =IF(INDEX($K39:$O39,1,aux!$AL$1)>0,(O39-INDEX($K39:$O39,1,aux!$AL$1))/INDEX($K39:$O39,1,aux!$AL$1),"n.d.") -> n.d. | AX39: 05
A40: 0511 | B40: Outros produtos de origem animal (exc. NC 0511 91) (a) | C40: 290.652 | D40: 194.043 | E40: 482.649 | F40: 362.828 | G40: 237.276 | H40: 313.4896 | I40: 0.001913126878 | J40: 0.001475424431 | K40: 0 | L40: 0 | M40: 0 | N40: 41.986 | O40: 0.39 | P40: 8.4752 | Q40: 2.371776508e-05 | R40: 1.240487676e-05 | S40: -305.0144 | U40: =G40-INDEX($C40:$G40,1,aux!$AL$1) -> -53.376 | V40: 0.005716750316 | W40: 0.001262163153 | X40: =+IF(INDEX($C40:$G40,1,aux!$AL$1)>0,(G40/INDEX($C40:$G40,1,aux!$AL$1))^(1/($G$3-INDEX($C$3:$G$3,1,aux!$AL$1)))-1,"n.d.") -> -0.04946059775 | Y40: =IF(INDEX($C40:$G40,1,aux!$AL$1)>0,(G40-INDEX($C40:$G40,1,aux!$AL$1))/INDEX($C40:$G40,1,aux!$AL$1),"n.d.") -> -0.1836422939 | AA40: =O40-INDEX($K40:$O40,1,aux!$AL$1) -> 0.39 | AB40: 4.708788876e-06 | AC40: 1.844373373e-06 | AD40: =+IF(INDEX($K40:$O40,1,aux!$AL$1)>0,(O40/INDEX($K40:$O40,1,aux!$AL$1))^(1/($O$3-INDEX($K$3:$O$3,1,aux!$AL$1)))-1,"n.d.") -> n.d. | AE40: =IF(INDEX($K40:$O40,1,aux!$AL$1)>0,(O40-INDEX($K40:$O40,1,aux!$AL$1))/INDEX($K40:$O40,1,aux!$AL$1),"n.d.") -> n.d. | AX40: 05
A41: 05SS | B41: Outros produtos de origem animal | C41: 0 | D41: 0 | E41: 0 | F41: 0 | G41: 0 | H41: 0 | I41: 0 | J41: 0 | K41: 0 | L41: 0 | M41: 0 | N41: 0 | O41: 0 | P41: 0 | Q41: 0 | R41: 0 | S41: 0 | U41: =G41-INDEX($C41:$G41,1,aux!$AL$1) -> 0 | V41: 0 | W41: 0 | X41: =+IF(INDEX($C41:$G41,1,aux!$AL$1)>0,(G41/INDEX($C41:$G41,1,aux!$AL$1))^(1/($G$3-INDEX($C$3:$G$3,1,aux!$AL$1)))-1,"n.d.") -> n.d. | Y41: =IF(INDEX($C41:$G41,1,aux!$AL$1)>0,(G41-INDEX($C41:$G41,1,aux!$AL$1))/INDEX($C41:$G41,1,aux!$AL$1),"n.d.") -> n.d. | AA41: =O41-INDEX($K41:$O41,1,aux!$AL$1) -> 0 | AB41: 0 | AC41: 0 | AD41: =+IF(INDEX($K41:$O41,1,aux!$AL$1)>0,(O41/INDEX($K41:$O41,1,aux!$AL$1))^(1/($O$3-INDEX($K$3:$O$3,1,aux!$AL$1)))-1,"n.d.") -> n.d. | AE41: =IF(INDEX($K41:$O41,1,aux!$AL$1)>0,(O41-INDEX($K41:$O41,1,aux!$AL$1))/INDEX($K41:$O41,1,aux!$AL$1),"n.d.") -> n.d. | AX41: 05
A42: 0601 | B42: Bolbos, tubérculos, raízes, etc. | C42: 200.4 | D42: 0 | E42: 0.053 | F42: 0 | G42: 1.605 | H42: 40.4116 | I42: 0.0002466190845 | J42: 0.0001901953428 | K42: 0 | L42: 0 | M42: 0 | N42: 0 | O42: 0 | P42: 0 | Q42: 0 | R42: 0 | S42: -40.4116 | U42: =G42-INDEX($C42:$G42,1,aux!$AL$1) -> -198.795 | V42: 0.02129161756 | W42: 0.004700834157 | X42: =+IF(INDEX($C42:$G42,1,aux!$AL$1)>0,(G42/INDEX($C42:$G42,1,aux!$AL$1))^(1/($G$3-INDEX($C$3:$G$3,1,aux!$AL$1)))-1,"n.d.") -> -0.7008463336 | Y42: =IF(INDEX($C42:$G42,1,aux!$AL$1)>0,(G42-INDEX($C42:$G42,1,aux!$AL$1))/INDEX($C42:$G42,1,aux!$AL$1),"n.d.") -> -0.991991018 | AA42: =O42-INDEX($K42:$O42,1,aux!$AL$1) -> 0 | AB42: 0 | AC42: 0 | AD42: =+IF(INDEX($K42:$O42,1,aux!$AL$1)>0,(O42/INDEX($K42:$O42,1,aux!$AL$1))^(1/($O$3-INDEX($K$3:$O$3,1,aux!$AL$1)))-1,"n.d.") -> n.d. | AE42: =IF(INDEX($K42:$O42,1,aux!$AL$1)>0,(O42-INDEX($K42:$O42,1,aux!$AL$1))/INDEX($K42:$O42,1,aux!$AL$1),"n.d.") -> n.d. | AX42: 06
A43: 0602 | B43: Plantas vivas | C43: 461.143 | D43: 289.992 | E43: 1314.169 | F43: 2584.816 | G43: 1179.52 | H43: 1165.928 | I43: 0.007115286104 | J43: 0.005487386683 | K43: 4441.149 | L43: 5034.966 | M43: 5312.798 | N43: 6242.434 | O43: 5907.419 | P43: 5387.7532 | Q43: 0.01507757513 | R43: 0.007885880506 | S43: 4221.8252 | U43: =G43-INDEX($C43:$G43,1,aux!$AL$1) -> 718.377 | V43: -0.07694060892 | W43: -0.0169872036 | X43: =+IF(INDEX($C43:$G43,1,aux!$AL$1)>0,(G43/INDEX($C43:$G43,1,aux!$AL$1))^(1/($G$3-INDEX($C$3:$G$3,1,aux!$AL$1)))-1,"n.d.") -> 0.264641479 | Y43: =IF(INDEX($C43:$G43,1,aux!$AL$1)>0,(G43-INDEX($C43:$G43,1,aux!$AL$1))/INDEX($C43:$G43,1,aux!$AL$1),"n.d.") -> 1.557818291 | AA43: =O43-INDEX($K43:$O43,1,aux!$AL$1) -> 1466.27 | AB43: 0.01770347658 | AC43: 0.006934229092 | AD43: =+IF(INDEX($K43:$O43,1,aux!$AL$1)>0,(O43/INDEX($K43:$O43,1,aux!$AL$1))^(1/($O$3-INDEX($K$3:$O$3,1,aux!$AL$1)))-1,"n.d.") -> 0.07392909351 | AE43: =IF(INDEX($K43:$O43,1,aux!$AL$1)>0,(O43-INDEX($K43:$O43,1,aux!$AL$1))/INDEX($K43:$O43,1,aux!$AL$1),"n.d.") -> 0.3301555521 | AX43: 06
A44: 0603 | B44: Flores e seus botões | C44: 3.922 | D44: 0 | E44: 0.721 | F44: 0.683 | G44: 0.802 | H44: 1.2256 | I44: 7.479445257e-06 | J44: 5.768230215e-06 | K44: 0.979 | L44: 0 | M44: 0 | N44: 4.021 | O44: 0.364 | P44: 1.0728 | Q44: 3.002220406e-06 | R44: 1.570222743e-06 | S44: -0.1528 | U44: =G44-INDEX($C44:$G44,1,aux!$AL$1) -> -3.12 | V44: 0.0003341625634 | W44: 7.377752242e-05 | X44: =+IF(INDEX($C44:$G44,1,aux!$AL$1)>0,(G44/INDEX($C44:$G44,1,aux!$AL$1))^(1/($G$3-INDEX($C$3:$G$3,1,aux!$AL$1)))-1,"n.d.") -> -0.3275396307 | Y44: =IF(INDEX($C44:$G44,1,aux!$AL$1)>0,(G44-INDEX($C44:$G44,1,aux!$AL$1))/INDEX($C44:$G44,1,aux!$AL$1),"n.d.") -> -0.7955124936 | AA44: =O44-INDEX($K44:$O44,1,aux!$AL$1) -> -0.615 | AB44: -7.425397843e-06 | AC44: -2.908434935e-06 | AD44: =+IF(INDEX($K44:$O44,1,aux!$AL$1)>0,(O44/INDEX($K44:$O44,1,aux!$AL$1))^(1/($O$3-INDEX($K$3:$O$3,1,aux!$AL$1)))-1,"n.d.") -> -0.2191283191 | AE44: =IF(INDEX($K44:$O44,1,aux!$AL$1)>0,(O44-INDEX($K44:$O44,1,aux!$AL$1))/INDEX($K44:$O44,1,aux!$AL$1),"n.d.") -> -0.6281920327 | AX44: 06
A45: 0604 | B45: Folhagem, folhas, ramos e outras partes de plantas | C45: 4.421 | D45: 0.404 | E45: 0.028 | F45: 0 | G45: 0.115 | H45: 0.9936 | I45: 6.063623374e-06 | J45: 4.676332851e-06 | K45: 66.637 | L45: 76.627 | M45: 156.001 | N45: 0.327 | O45: 101.164 | P45: 80.1512 | Q45: 0.0002243023566 | R45: 0.0001173147251 | S45: 79.1576 | U45: =G45-INDEX($C45:$G45,1,aux!$AL$1) -> -4.306 | V45: 0.0004611871789 | W45: 0.0001018224396 | X45: =+IF(INDEX($C45:$G45,1,aux!$AL$1)>0,(G45/INDEX($C45:$G45,1,aux!$AL$1))^(1/($G$3-INDEX($C$3:$G$3,1,aux!$AL$1)))-1,"n.d.") -> -0.59839942 | Y45: =IF(INDEX($C45:$G45,1,aux!$AL$1)>0,(G45-INDEX($C45:$G45,1,aux!$AL$1))/INDEX($C45:$G45,1,aux!$AL$1),"n.d.") -> -0.9739877856 | AA45: =O45-INDEX($K45:$O45,1,aux!$AL$1) -> 34.527 | AB45: 0.0004168727013 | AC45: 0.0001632837935 | AD45: =+IF(INDEX($K45:$O45,1,aux!$AL$1)>0,(O45/INDEX($K45:$O45,1,aux!$AL$1))^(1/($O$3-INDEX($K$3:$O$3,1,aux!$AL$1)))-1,"n.d.") -> 0.110011911 | AE45: =IF(INDEX($K45:$O45,1,aux!$AL$1)>0,(O45-INDEX($K45:$O45,1,aux!$AL$1))/INDEX($K45:$O45,1,aux!$AL$1),"n.d.") -> 0.5181355703 | AX45: 06
A46: 06SS | B46: Plantas vivas e produtos de floricultura | C46: 0 | D46: 0 | E46: 0 | F46: 0 | G46: 0 | H46: 0 | I46: 0 | J46: 0 | K46: 0 | L46: 0 | M46: 0 | N46: 0 | O46: 0 | P46: 0 | Q46: 0 | R46: 0 | S46: 0 | U46: =G46-INDEX($C46:$G46,1,aux!$AL$1) -> 0 | V46: 0 | W46: 0 | X46: =+IF(INDEX($C46:$G46,1,aux!$AL$1)>0,(G46/INDEX($C46:$G46,1,aux!$AL$1))^(1/($G$3-INDEX($C$3:$G$3,1,aux!$AL$1)))-1,"n.d.") -> n.d. | Y46: =IF(INDEX($C46:$G46,1,aux!$AL$1)>0,(G46-INDEX($C46:$G46,1,aux!$AL$1))/INDEX($C46:$G46,1,aux!$AL$1),"n.d.") -> n.d. | AA46: =O46-INDEX($K46:$O46,1,aux!$AL$1) -> 0 | AB46: 0 | AC46: 0 | AD46: =+IF(INDEX($K46:$O46,1,aux!$AL$1)>0,(O46/INDEX($K46:$O46,1,aux!$AL$1))^(1/($O$3-INDEX($K$3:$O$3,1,aux!$AL$1)))-1,"n.d.") -> n.d. | AE46: =IF(INDEX($K46:$O46,1,aux!$AL$1)>0,(O46-INDEX($K46:$O46,1,aux!$AL$1))/INDEX($K46:$O46,1,aux!$AL$1),"n.d.") -> n.d. | AX46: 06
A47: 0701 | B47: Batatas, frescas ou refrigeradas | C47: 1378.241 | D47: 2086.74 | E47: 910.403 | F47: 0 | G47: 0 | H47: 875.0768 | I47: 0.005340314149 | J47: 0.004118508843 | K47: 51.295 | L47: 134.276 | M47: 26.956 | N47: 16.743 | O47: 1.563 | P47: 46.1666 | Q47: 0.0001291967828 | R47: 6.757256271e-05 | S47: -828.9102 | U47: =G47-INDEX($C47:$G47,1,aux!$AL$1) -> -1378.241 | V47: 0.1476142774 | W47: 0.03259077124 | X47: =+IF(INDEX($C47:$G47,1,aux!$AL$1)>0,(G47/INDEX($C47:$G47,1,aux!$AL$1))^(1/($G$3-INDEX($C$3:$G$3,1,aux!$AL$1)))-1,"n.d.") -> -1 | Y47: =IF(INDEX($C47:$G47,1,aux!$AL$1)>0,(G47-INDEX($C47:$G47,1,aux!$AL$1))/INDEX($C47:$G47,1,aux!$AL$1),"n.d.") -> -1 | AA47: =O47-INDEX($K47:$O47,1,aux!$AL$1) -> -49.732 | AB47: -0.0006004550984 | AC47: -0.0002351907092 | AD47: =+IF(INDEX($K47:$O47,1,aux!$AL$1)>0,(O47/INDEX($K47:$O47,1,aux!$AL$1))^(1/($O$3-INDEX($K$3:$O$3,1,aux!$AL$1)))-1,"n.d.") -> -0.5821975465 | AE47: =IF(INDEX($K47:$O47,1,aux!$AL$1)>0,(O47-INDEX($K47:$O47,1,aux!$AL$1))/INDEX($K47:$O47,1,aux!$AL$1),"n.d.") -> -0.9695291939 | AX47: 07
A48: 0702 | B48: Tomates, frescos ou refrigerados | C48: 0 | D48: 0.079 | E48: 6.551 | F48: 0 | G48: 0 | H48: 1.326 | I48: 8.092154382e-06 | J48: 6.240758212e-06 | K48: 1051.893 | L48: 36.541 | M48: 5.123 | N48: 4804.639 | O48: 1758.891 | P48: 1531.4174 | Q48: 0.004285656756 | R48: 0.002241486232 | S48: 1530.0914 | U48: =G48-INDEX($C48:$G48,1,aux!$AL$1) -> 0 | V48: 0 | W48: 0 | X48: =+IF(INDEX($C48:$G48,1,aux!$AL$1)>0,(G48/INDEX($C48:$G48,1,aux!$AL$1))^(1/($G$3-INDEX($C$3:$G$3,1,aux!$AL$1)))-1,"n.d.") -> n.d. | Y48: =IF(INDEX($C48:$G48,1,aux!$AL$1)>0,(G48-INDEX($C48:$G48,1,aux!$AL$1))/INDEX($C48:$G48,1,aux!$AL$1),"n.d.") -> n.d. | AA48: =O48-INDEX($K48:$O48,1,aux!$AL$1) -> 706.998 | AB48: 0.008536164917 | AC48: 0.003343508426 | AD48: =+IF(INDEX($K48:$O48,1,aux!$AL$1)>0,(O48/INDEX($K48:$O48,1,aux!$AL$1))^(1/($O$3-INDEX($K$3:$O$3,1,aux!$AL$1)))-1,"n.d.") -> 0.1371476034 | AE48: =IF(INDEX($K48:$O48,1,aux!$AL$1)>0,(O48-INDEX($K48:$O48,1,aux!$AL$1))/INDEX($K48:$O48,1,aux!$AL$1),"n.d.") -> 0.6721196928 | AX48: 07
A49: 0703 | B49: Cebolas, alhos, etc., frescos ou refrigerados | C49: 8.157 | D49: 8.458 | E49: 31.4 | F49: 0.793 | G49: 0.643 | H49: 9.8902 | I49: 6.035673097e-05 | J49: 4.654777291e-05 | K49: 21.459 | L49: 6.545 | M49: 27.854 | N49: 100.892 | O49: 8.32 | P49: 33.014 | Q49: 9.238935913e-05 | R49: 4.83215265e-05 | S49: 23.1238 | U49: =G49-INDEX($C49:$G49,1,aux!$AL$1) -> -7.514 | V49: 0.0008047748403 | W49: 0.0001776808665 | X49: =+IF(INDEX($C49:$G49,1,aux!$AL$1)>0,(G49/INDEX($C49:$G49,1,aux!$AL$1))^(1/($G$3-INDEX($C$3:$G$3,1,aux!$AL$1)))-1,"n.d.") -> -0.4701290286 | Y49: =IF(INDEX($C49:$G49,1,aux!$AL$1)>0,(G49-INDEX($C49:$G49,1,aux!$AL$1))/INDEX($C49:$G49,1,aux!$AL$1),"n.d.") -> -0.9211719995 | AA49: =O49-INDEX($K49:$O49,1,aux!$AL$1) -> -13.139 | AB49: -0.0001586378898 | AC49: -6.213646603e-05 | AD49: =+IF(INDEX($K49:$O49,1,aux!$AL$1)>0,(O49/INDEX($K49:$O49,1,aux!$AL$1))^(1/($O$3-INDEX($K$3:$O$3,1,aux!$AL$1)))-1,"n.d.") -> -0.2109065079 | AE49: =IF(INDEX($K49:$O49,1,aux!$AL$1)>0,(O49-INDEX($K49:$O49,1,aux!$AL$1))/INDEX($K49:$O49,1,aux!$AL$1),"n.d.") -> -0.6122838902 | AX49: 07
A50: 0704 | B50: Couves, frescas ou refrigeradas | C50: 12.562 | D50: 84.328 | E50: 82.72 | F50: 32.789 | G50: 34.603 | H50: 49.4004 | I50: 0.0003014748592 | J50: 0.0002325007179 | K50: 2515.944 | L50: 3246.388 | M50: 4241.424 | N50: 6338.213 | O50: 7861.457 | P50: 4840.6852 | Q50: 0.01354661063 | R50: 0.007085154727 | S50: 4791.2848 | U50: =G50-INDEX($C50:$G50,1,aux!$AL$1) -> 22.041 | V50: -0.002360665725 | W50: -0.0005211956319 | X50: =+IF(INDEX($C50:$G50,1,aux!$AL$1)>0,(G50/INDEX($C50:$G50,1,aux!$AL$1))^(1/($G$3-INDEX($C$3:$G$3,1,aux!$AL$1)))-1,"n.d.") -> 0.2882903121 | Y50: =IF(INDEX($C50:$G50,1,aux!$AL$1)>0,(G50-INDEX($C50:$G50,1,aux!$AL$1))/INDEX($C50:$G50,1,aux!$AL$1),"n.d.") -> 1.754577297 | AA50: =O50-INDEX($K50:$O50,1,aux!$AL$1) -> 5345.513 | AB50: 0.0645407491 | AC50: 0.0252797996 | AD50: =+IF(INDEX($K50:$O50,1,aux!$AL$1)>0,(O50/INDEX($K50:$O50,1,aux!$AL$1))^(1/($O$3-INDEX($K$3:$O$3,1,aux!$AL$1)))-1,"n.d.") -> 0.3295372765 | AE50: =IF(INDEX($K50:$O50,1,aux!$AL$1)>0,(O50-INDEX($K50:$O50,1,aux!$AL$1))/INDEX($K50:$O50,1,aux!$AL$1),"n.d.") -> 2.124655 | AX50: 07
A51: 0705 | B51: Alfaces, frescas ou refrigeradas | C51: 11.599 | D51: 8.471 | E51: 0 | F51: 0 | G51: 0 | H51: 4.014 | I51: 2.449615964e-05 | J51: 1.889170699e-05 | K51: 2829.73 | L51: 2899.219 | M51: 2951.619 | N51: 866.385 | O51: 651.194 | P51: 2039.6294 | Q51: 0.005707883114 | R51: 0.002985339738 | S51: 2035.6154 | U51: =G51-INDEX($C51:$G51,1,aux!$AL$1) -> -11.599 | V51: 0.001242292171 | W51: 0.0002742773982 | X51: =+IF(INDEX($C51:$G51,1,aux!$AL$1)>0,(G51/INDEX($C51:$G51,1,aux!$AL$1))^(1/($G$3-INDEX($C$3:$G$3,1,aux!$AL$1)))-1,"n.d.") -> -1 | Y51: =IF(INDEX($C51:$G51,1,aux!$AL$1)>0,(G51-INDEX($C51:$G51,1,aux!$AL$1))/INDEX($C51:$G51,1,aux!$AL$1),"n.d.") -> -1 | AA51: =O51-INDEX($K51:$O51,1,aux!$AL$1) -> -2178.536 | AB51: -0.02630324637 | AC51: -0.01030265075 | AD51: =+IF(INDEX($K51:$O51,1,aux!$AL$1)>0,(O51/INDEX($K51:$O51,1,aux!$AL$1))^(1/($O$3-INDEX($K$3:$O$3,1,aux!$AL$1)))-1,"n.d.") -> -0.3073858692 | AE51: =IF(INDEX($K51:$O51,1,aux!$AL$1)>0,(O51-INDEX($K51:$O51,1,aux!$AL$1))/INDEX($K51:$O51,1,aux!$AL$1),"n.d.") -> -0.7698741576 | AX51: 07
A52: 0706 | B52: Cenouras, nabos, beterrabas, etc., frescos ou refrigerados | C52: 83.777 | D52: 5.756 | E52: 13.866 | F52: 0.121 | G52: 0.051 | H52: 20.7142 | I52: 0.000126412145 | J52: 9.74904327e-05 | K52: 386.459 | L52: 337.226 | M52: 388.491 | N52: 796.914 | O52: 697.519 | P52: 521.3218 | Q52: 0.001458914006 | R52: 0.0007630418966 | S52: 500.6076 | U52: =G52-INDEX($C52:$G52,1,aux!$AL$1) -> -83.726 | V52: 0.008967338073 | W52: 0.001979838731 | X52: =+IF(INDEX($C52:$G52,1,aux!$AL$1)>0,(G52/INDEX($C52:$G52,1,aux!$AL$1))^(1/($G$3-INDEX($C$3:$G$3,1,aux!$AL$1)))-1,"n.d.") -> -0.842923454 | Y52: =IF(INDEX($C52:$G52,1,aux!$AL$1)>0,(G52-INDEX($C52:$G52,1,aux!$AL$1))/INDEX($C52:$G52,1,aux!$AL$1),"n.d.") -> -0.999391241 | AA52: =O52-INDEX($K52:$O52,1,aux!$AL$1) -> 311.06 | AB52: 0.003755681712 | AC52: 0.001471053286 | AD52: =+IF(INDEX($K52:$O52,1,aux!$AL$1)>0,(O52/INDEX($K52:$O52,1,aux!$AL$1))^(1/($O$3-INDEX($K$3:$O$3,1,aux!$AL$1)))-1,"n.d.") -> 0.1590793113 | AE52: =IF(INDEX($K52:$O52,1,aux!$AL$1)>0,(O52-INDEX($K52:$O52,1,aux!$AL$1))/INDEX($K52:$O52,1,aux!$AL$1),"n.d.") -> 0.8048978029 | AX52: 07
A53: 0707 | B53: Pepinos e pepininhos, frescos ou refrigerados | C53: 1.067 | D53: 0.237 | E53: 2.344 | F53: 0 | G53: 0 | H53: 0.7296 | I53: 4.452515714e-06 | J53: 3.433828953e-06 | K53: 1.347 | L53: 0.853 | M53: 0.758 | N53: 0.766 | O53: 1.092 | P53: 0.9632 | Q53: 2.695505868e-06 | R53: 1.409804759e-06 | S53: 0.2336 | U53: =G53-INDEX($C53:$G53,1,aux!$AL$1) -> -1.067 | V53: 0.0001142793126 | W53: 2.52309668e-05 | X53: =+IF(INDEX($C53:$G53,1,aux!$AL$1)>0,(G53/INDEX($C53:$G53,1,aux!$AL$1))^(1/($G$3-INDEX($C$3:$G$3,1,aux!$AL$1)))-1,"n.d.") -> -1 | Y53: =IF(INDEX($C53:$G53,1,aux!$AL$1)>0,(G53-INDEX($C53:$G53,1,aux!$AL$1))/INDEX($C53:$G53,1,aux!$AL$1),"n.d.") -> -1 | AA53: =O53-INDEX($K53:$O53,1,aux!$AL$1) -> -0.255 | AB53: -3.078823496e-06 | AC53: -1.205936436e-06 | AD53: =+IF(INDEX($K53:$O53,1,aux!$AL$1)>0,(O53/INDEX($K53:$O53,1,aux!$AL$1))^(1/($O$3-INDEX($K$3:$O$3,1,aux!$AL$1)))-1,"n.d.") -> -0.05111460823 | AE53: =IF(INDEX($K53:$O53,1,aux!$AL$1)>0,(O53-INDEX($K53:$O53,1,aux!$AL$1))/INDEX($K53:$O53,1,aux!$AL$1),"n.d.") -> -0.1893095768 | AX53: 07
A54: 0708 | B54: Tomates preparados ou conservados | C54: 23.125 | D54: 6.779 | E54: 9.565 | F54: 0.297 | G54: 0.561 | H54: 8.0654 | I54: 4.922055954e-05 | J54: 3.795943536e-05 | K54: 103.818 | L54: 100.548 | M54: 17.696 | N54: 98.739 | O54: 3.971 | P54: 64.9544 | Q54: 0.0001817742591 | R54: 9.507165932e-05 | S54: 56.889 | U54: =G54-INDEX($C54:$G54,1,aux!$AL$1) -> -22.564 | V54: 0.002416680795 | W54: 0.0005335628256 | X54: =+IF(INDEX($C54:$G54,1,aux!$AL$1)>0,(G54/INDEX($C54:$G54,1,aux!$AL$1))^(1/($G$3-INDEX($C$3:$G$3,1,aux!$AL$1)))-1,"n.d.") -> -0.6053425732 | Y54: =IF(INDEX($C54:$G54,1,aux!$AL$1)>0,(G54-INDEX($C54:$G54,1,aux!$AL$1))/INDEX($C54:$G54,1,aux!$AL$1),"n.d.") -> -0.9757405405 | AA54: =O54-INDEX($K54:$O54,1,aux!$AL$1) -> -99.847 | AB54: -0.001205534469 | AC54: -0.0004721926877 | AD54: =+IF(INDEX($K54:$O54,1,aux!$AL$1)>0,(O54/INDEX($K54:$O54,1,aux!$AL$1))^(1/($O$3-INDEX($K$3:$O$3,1,aux!$AL$1)))-1,"n.d.") -> -0.5577612363 | AE54: =IF(INDEX($K54:$O54,1,aux!$AL$1)>0,(O54-INDEX($K54:$O54,1,aux!$AL$1))/INDEX($K54:$O54,1,aux!$AL$1),"n.d.") -> -0.9617503708 | AX54: 07
A55: 0709 | B55: Outros produtos hortícolas, frescos ou refrigerados | C55: 81.746 | D55: 104.105 | E55: 41.019 | F55: 1.578 | G55: 1.248 | H55: 45.9392 | I55: 0.0002803522614 | J55: 0.0002162107388 | K55: 10807.132 | L55: 10554.684 | M55: 7580.578 | N55: 9137.236 | O55: 10083.473 | P55: 9632.6206 | Q55: 0.02695679542 | R55: 0.01409895595 | S55: 9586.6814 | U55: =G55-INDEX($C55:$G55,1,aux!$AL$1) -> -80.498 | V55: 0.008621608344 | W55: 0.001903507372 | X55: =+IF(INDEX($C55:$G55,1,aux!$AL$1)>0,(G55/INDEX($C55:$G55,1,aux!$AL$1))^(1/($G$3-INDEX($C$3:$G$3,1,aux!$AL$1)))-1,"n.d.") -> -0.6484905391 | Y55: =IF(INDEX($C55:$G55,1,aux!$AL$1)>0,(G55-INDEX($C55:$G55,1,aux!$AL$1))/INDEX($C55:$G55,1,aux!$AL$1),"n.d.") -> -0.984733198 | AA55: =O55-INDEX($K55:$O55,1,aux!$AL$1) -> -723.659 | AB55: -0.008737326793 | AC55: -0.003422301002 | AD55: =+IF(INDEX($K55:$O55,1,aux!$AL$1)>0,(O55/INDEX($K55:$O55,1,aux!$AL$1))^(1/($O$3-INDEX($K$3:$O$3,1,aux!$AL$1)))-1,"n.d.") -> -0.01717788337 | AE55: =IF(INDEX($K55:$O55,1,aux!$AL$1)>0,(O55-INDEX($K55:$O55,1,aux!$AL$1))/INDEX($K55:$O55,1,aux!$AL$1),"n.d.") -> -0.06696124374 | AX55: 07
A56: 0710 | B56: Produtos hortícolas congelados | C56: 2673.916 | D56: 2908.811 | E56: 3843.484 | F56: 1732.026 | G56: 151.127 | H56: 2261.8728 | I56: 0.0138034871 | J56: 0.01064540064 | K56: 1507.406 | L56: 1177.713 | M56: 1390.311 | N56: 492.231 | O56: 685.611 | P56: 1050.6544 | Q56: 0.002940246159 | R56: 0.001537808943 | S56: -1211.2184 | U56: =G56-INDEX($C56:$G56,1,aux!$AL$1) -> -2522.789 | V56: 0.2701992434 | W56: 0.05965548782 | X56: =+IF(INDEX($C56:$G56,1,aux!$AL$1)>0,(G56/INDEX($C56:$G56,1,aux!$AL$1))^(1/($G$3-INDEX($C$3:$G$3,1,aux!$AL$1)))-1,"n.d.") -> -0.5124169773 | Y56: =IF(INDEX($C56:$G56,1,aux!$AL$1)>0,(G56-INDEX($C56:$G56,1,aux!$AL$1))/INDEX($C56:$G56,1,aux!$AL$1),"n.d.") -> -0.9434810218 | AA56: =O56-INDEX($K56:$O56,1,aux!$AL$1) -> -821.795 | AB56: -0.00992220296 | AC56: -0.003886402093 | AD56: =+IF(INDEX($K56:$O56,1,aux!$AL$1)>0,(O56/INDEX($K56:$O56,1,aux!$AL$1))^(1/($O$3-INDEX($K$3:$O$3,1,aux!$AL$1)))-1,"n.d.") -> -0.1787755248 | AE56: =IF(INDEX($K56:$O56,1,aux!$AL$1)>0,(O56-INDEX($K56:$O56,1,aux!$AL$1))/INDEX($K56:$O56,1,aux!$AL$1),"n.d.") -> -0.5451716392 | AX56: 07
A57: 0711 | B57: Produtos hortícolas conservados transitoriamente | C57: 46.229 | D57: 27.01 | E57: 35.823 | F57: 0.105 | G57: 0 | H57: 21.8334 | I57: 0.0001332422651 | J57: 0.0001027578962 | K57: 0.872 | L57: 1.046 | M57: 24.028 | N57: 17.319 | O57: 4.678 | P57: 9.5886 | Q57: 2.68336042e-05 | R57: 1.403452441e-05 | S57: -12.2448 | U57: =G57-INDEX($C57:$G57,1,aux!$AL$1) -> -46.229 | V57: 0.004951282418 | W57: 0.001093160604 | X57: =+IF(INDEX($C57:$G57,1,aux!$AL$1)>0,(G57/INDEX($C57:$G57,1,aux!$AL$1))^(1/($G$3-INDEX($C$3:$G$3,1,aux!$AL$1)))-1,"n.d.") -> -1 | Y57: =IF(INDEX($C57:$G57,1,aux!$AL$1)>0,(G57-INDEX($C57:$G57,1,aux!$AL$1))/INDEX($C57:$G57,1,aux!$AL$1),"n.d.") -> -1 | AA57: =O57-INDEX($K57:$O57,1,aux!$AL$1) -> 3.806 | AB57: 4.59529499e-05 | AC57: 1.799919246e-05 | AD57: =+IF(INDEX($K57:$O57,1,aux!$AL$1)>0,(O57/INDEX($K57:$O57,1,aux!$AL$1))^(1/($O$3-INDEX($K$3:$O$3,1,aux!$AL$1)))-1,"n.d.") -> 0.5218993556 | AE57: =IF(INDEX($K57:$O57,1,aux!$AL$1)>0,(O57-INDEX($K57:$O57,1,aux!$AL$1))/INDEX($K57:$O57,1,aux!$AL$1),"n.d.") -> 4.364678899 | AX57: 07
A58: 0712 | B58: Produtos hortícolas secos | C58: 11.055 | D58: 6.54 | E58: 12.317 | F58: 0.832 | G58: 0.812 | H58: 6.3112 | I58: 3.851523736e-05 | J58: 2.970337348e-05 | K58: 2044.376 | L58: 1938.799 | M58: 1617.45 | N58: 975.541 | O58: 2336.585 | P58: 1782.5502 | Q58: 0.004988449464 | R58: 0.002609061208 | S58: 1776.239 | U58: =G58-INDEX($C58:$G58,1,aux!$AL$1) -> -10.243 | V58: 0.00109705998 | W58: 0.000242212552 | X58: =+IF(INDEX($C58:$G58,1,aux!$AL$1)>0,(G58/INDEX($C58:$G58,1,aux!$AL$1))^(1/($G$3-INDEX($C$3:$G$3,1,aux!$AL$1)))-1,"n.d.") -> -0.4794058056 | Y58: =IF(INDEX($C58:$G58,1,aux!$AL$1)>0,(G58-INDEX($C58:$G58,1,aux!$AL$1))/INDEX($C58:$G58,1,aux!$AL$1),"n.d.") -> -0.9265490728 | AA58: =O58-INDEX($K58:$O58,1,aux!$AL$1) -> 292.209 | AB58: 0.003528078176 | AC58: 0.001381903844 | AD58: =+IF(INDEX($K58:$O58,1,aux!$AL$1)>0,(O58/INDEX($K58:$O58,1,aux!$AL$1))^(1/($O$3-INDEX($K$3:$O$3,1,aux!$AL$1)))-1,"n.d.") -> 0.03396348723 | AE58: =IF(INDEX($K58:$O58,1,aux!$AL$1)>0,(O58-INDEX($K58:$O58,1,aux!$AL$1))/INDEX($K58:$O58,1,aux!$AL$1),"n.d.") -> 0.1429331004 | AX58: 07
A59: 0713 | B59: Legumes de vagem, secos, em grão | C59: 35.35 | D59: 111.734 | E59: 94.028 | F59: 41.35 | G59: 9.433 | H59: 58.379 | I59: 0.0003562683866 | J59: 0.0002747580872 | K59: 177.107 | L59: 103.63 | M59: 81.178 | N59: 149.013 | O59: 148.575 | P59: 131.9006 | Q59: 0.0003691225511 | R59: 0.000193058652 | S59: 73.5216 | U59: =G59-INDEX($C59:$G59,1,aux!$AL$1) -> -25.917 | V59: 0.002775798448 | W59: 0.0006128500155 | X59: =+IF(INDEX($C59:$G59,1,aux!$AL$1)>0,(G59/INDEX($C59:$G59,1,aux!$AL$1))^(1/($G$3-INDEX($C$3:$G$3,1,aux!$AL$1)))-1,"n.d.") -> -0.2812711067 | Y59: =IF(INDEX($C59:$G59,1,aux!$AL$1)>0,(G59-INDEX($C59:$G59,1,aux!$AL$1))/INDEX($C59:$G59,1,aux!$AL$1),"n.d.") -> -0.7331541726 | AA59: =O59-INDEX($K59:$O59,1,aux!$AL$1) -> -28.532 | AB59: -0.0003444901646 | AC59: -0.0001349324643 | AD59: =+IF(INDEX($K59:$O59,1,aux!$AL$1)>0,(O59/INDEX($K59:$O59,1,aux!$AL$1))^(1/($O$3-INDEX($K$3:$O$3,1,aux!$AL$1)))-1,"n.d.") -> -0.04296570011 | AE59: =IF(INDEX($K59:$O59,1,aux!$AL$1)>0,(O59-INDEX($K59:$O59,1,aux!$AL$1))/INDEX($K59:$O59,1,aux!$AL$1),"n.d.") -> -0.1611003518 | AX59: 07
A60: 0714 | B60: Raízes de mandioca, de araruta, batata-doce, etc. | C60: 238.213 | D60: 2.436 | E60: 1.565 | F60: 0 | G60: 0 | H60: 48.4428 | I60: 0.0002956309323 | J60: 0.0002279938174 | K60: 60.428 | L60: 57.534 | M60: 523.042 | N60: 125.211 | O60: 115.275 | P60: 176.298 | Q60: 0.0004933682448 | R60: 0.0002580416938 | S60: 127.8552 | U60: =G60-INDEX($C60:$G60,1,aux!$AL$1) -> -238.213 | V60: 0.02551341882 | W60: 0.005632937483 | X60: =+IF(INDEX($C60:$G60,1,aux!$AL$1)>0,(G60/INDEX($C60:$G60,1,aux!$AL$1))^(1/($G$3-INDEX($C$3:$G$3,1,aux!$AL$1)))-1,"n.d.") -> -1 | Y60: =IF(INDEX($C60:$G60,1,aux!$AL$1)>0,(G60-INDEX($C60:$G60,1,aux!$AL$1))/INDEX($C60:$G60,1,aux!$AL$1),"n.d.") -> -1 | AA60: =O60-INDEX($K60:$O60,1,aux!$AL$1) -> 54.847 | AB60: 0.0006622126756 | AC60: 0.0002593803754 | AD60: =+IF(INDEX($K60:$O60,1,aux!$AL$1)>0,(O60/INDEX($K60:$O60,1,aux!$AL$1))^(1/($O$3-INDEX($K$3:$O$3,1,aux!$AL$1)))-1,"n.d.") -> 0.1752336761 | AE60: =IF(INDEX($K60:$O60,1,aux!$AL$1)>0,(O60-INDEX($K60:$O60,1,aux!$AL$1))/INDEX($K60:$O60,1,aux!$AL$1),"n.d.") -> 0.9076421526 | AX60: 07
A61: 07SS | B61: Produtos hortícolas, plantas, raízes e tubérculos, comestíveis | C61: 0 | D61: 0 | E61: 0 | F61: 0 | G61: 0 | H61: 0 | I61: 0 | J61: 0 | K61: 0 | L61: 0 | M61: 0 | N61: 0 | O61: 0 | P61: 0 | Q61: 0 | R61: 0 | S61: 0 | U61: =G61-INDEX($C61:$G61,1,aux!$AL$1) -> 0 | V61: 0 | W61: 0 | X61: =+IF(INDEX($C61:$G61,1,aux!$AL$1)>0,(G61/INDEX($C61:$G61,1,aux!$AL$1))^(1/($G$3-INDEX($C$3:$G$3,1,aux!$AL$1)))-1,"n.d.") -> n.d. | Y61: =IF(INDEX($C61:$G61,1,aux!$AL$1)>0,(G61-INDEX($C61:$G61,1,aux!$AL$1))/INDEX($C61:$G61,1,aux!$AL$1),"n.d.") -> n.d. | AA61: =O61-INDEX($K61:$O61,1,aux!$AL$1) -> 0 | AB61: 0 | AC61: 0 | AD61: =+IF(INDEX($K61:$O61,1,aux!$AL$1)>0,(O61/INDEX($K61:$O61,1,aux!$AL$1))^(1/($O$3-INDEX($K$3:$O$3,1,aux!$AL$1)))-1,"n.d.") -> n.d. | AE61: =IF(INDEX($K61:$O61,1,aux!$AL$1)>0,(O61-INDEX($K61:$O61,1,aux!$AL$1))/INDEX($K61:$O61,1,aux!$AL$1),"n.d.") -> n.d. | AX61: 07
A62: 0801 | B62: Cocos, castanhas do brasil e castanha de cajú | C62: 31.307 | D62: 155.376 | E62: 17.202 | F62: 5.19 | G62: 118.565 | H62: 65.528 | I62: 0.0003998964497 | J62: 0.000308404528 | K62: 12.107 | L62: 219.27 | M62: 20.329 | N62: 14.873 | O62: 17.837 | P62: 56.8832 | Q62: 0.0001591870841 | R62: 8.325810432e-05 | S62: -8.6448 | U62: =G62-INDEX($C62:$G62,1,aux!$AL$1) -> 87.258 | V62: -0.009345627231 | W62: -0.00206335867 | X62: =+IF(INDEX($C62:$G62,1,aux!$AL$1)>0,(G62/INDEX($C62:$G62,1,aux!$AL$1))^(1/($G$3-INDEX($C$3:$G$3,1,aux!$AL$1)))-1,"n.d.") -> 0.3950146328 | Y62: =IF(INDEX($C62:$G62,1,aux!$AL$1)>0,(G62-INDEX($C62:$G62,1,aux!$AL$1))/INDEX($C62:$G62,1,aux!$AL$1),"n.d.") -> 2.787172198 | AA62: =O62-INDEX($K62:$O62,1,aux!$AL$1) -> 5.73 | AB62: 6.918297502e-05 | AC62: 2.70981011e-05 | AD62: =+IF(INDEX($K62:$O62,1,aux!$AL$1)>0,(O62/INDEX($K62:$O62,1,aux!$AL$1))^(1/($O$3-INDEX($K$3:$O$3,1,aux!$AL$1)))-1,"n.d.") -> 0.1017202132 | AE62: =IF(INDEX($K62:$O62,1,aux!$AL$1)>0,(O62-INDEX($K62:$O62,1,aux!$AL$1))/INDEX($K62:$O62,1,aux!$AL$1),"n.d.") -> 0.4732799207 | AX62: 08
A63: 0802 | B63: Frutas de casca rija | C63: 106.785 | D63: 162.835 | E63: 199.21 | F63: 1.5 | G63: 2.005 | H63: 94.467 | I63: 0.0005765019216 | J63: 0.0004446046049 | K63: 31.306 | L63: 51.399 | M63: 138.09 | N63: 173.232 | O63: 225.283 | P63: 123.862 | Q63: 0.0003466266069 | R63: 0.0001812928126 | S63: 29.395 | U63: =G63-INDEX($C63:$G63,1,aux!$AL$1) -> -104.78 | V63: 0.01122229276 | W63: 0.002477695128 | X63: =+IF(INDEX($C63:$G63,1,aux!$AL$1)>0,(G63/INDEX($C63:$G63,1,aux!$AL$1))^(1/($G$3-INDEX($C$3:$G$3,1,aux!$AL$1)))-1,"n.d.") -> -0.62983016 | Y63: =IF(INDEX($C63:$G63,1,aux!$AL$1)>0,(G63-INDEX($C63:$G63,1,aux!$AL$1))/INDEX($C63:$G63,1,aux!$AL$1),"n.d.") -> -0.9812239547 | AA63: =O63-INDEX($K63:$O63,1,aux!$AL$1) -> 193.977 | AB63: 0.002342042923 | AC63: 0.0009173487534 | AD63: =+IF(INDEX($K63:$O63,1,aux!$AL$1)>0,(O63/INDEX($K63:$O63,1,aux!$AL$1))^(1/($O$3-INDEX($K$3:$O$3,1,aux!$AL$1)))-1,"n.d.") -> 0.6378540916 | AE63: =IF(INDEX($K63:$O63,1,aux!$AL$1)>0,(O63-INDEX($K63:$O63,1,aux!$AL$1))/INDEX($K63:$O63,1,aux!$AL$1),"n.d.") -> 6.19616048 | AX63: 08
A64: 0803 | B64: Bananas, frescas ou secas | C64: 476.072 | D64: 439.935 | E64: 374.965 | F64: 0.295 | G64: 0.014 | H64: 258.2562 | I64: 0.001576055083 | J64: 0.001215470966 | K64: 4.721 | L64: 3.855 | M64: 5.239 | N64: 6.385 | O64: 4.662 | P64: 4.9724 | Q64: 1.391521322e-05 | R64: 7.27794143e-06 | S64: -253.2838 | U64: =G64-INDEX($C64:$G64,1,aux!$AL$1) -> -476.058 | V64: 0.0509874236 | W64: 0.011257173 | X64: =+IF(INDEX($C64:$G64,1,aux!$AL$1)>0,(G64/INDEX($C64:$G64,1,aux!$AL$1))^(1/($G$3-INDEX($C$3:$G$3,1,aux!$AL$1)))-1,"n.d.") -> -0.9263599883 | Y64: =IF(INDEX($C64:$G64,1,aux!$AL$1)>0,(G64-INDEX($C64:$G64,1,aux!$AL$1))/INDEX($C64:$G64,1,aux!$AL$1),"n.d.") -> -0.9999705927 | AA64: =O64-INDEX($K64:$O64,1,aux!$AL$1) -> -0.059 | AB64: -7.123552402e-07 | AC64: -2.790205872e-07 | AD64: =+IF(INDEX($K64:$O64,1,aux!$AL$1)>0,(O64/INDEX($K64:$O64,1,aux!$AL$1))^(1/($O$3-INDEX($K$3:$O$3,1,aux!$AL$1)))-1,"n.d.") -> -0.003139087966 | AE64: =IF(INDEX($K64:$O64,1,aux!$AL$1)>0,(O64-INDEX($K64:$O64,1,aux!$AL$1))/INDEX($K64:$O64,1,aux!$AL$1),"n.d.") -> -0.01249735226 | AX64: 08
A65: 0804 | B65: Tâmaras, figos, ananases, abacates, goiabas, mangas | C65: 145.769 | D65: 163.528 | E65: 1193.191 | F65: 0.652 | G65: 0.333 | H65: 300.6946 | I65: 0.001835043081 | J65: 0.00141520535 | K65: 1330.54 | L65: 1140.065 | M65: 2201.528 | N65: 341.909 | O65: 722.238 | P65: 1147.256 | Q65: 0.0032105848 | R65: 0.001679201587 | S65: 846.5614 | U65: =G65-INDEX($C65:$G65,1,aux!$AL$1) -> -145.436 | V65: 0.01557668801 | W65: 0.003439072997 | X65: =+IF(INDEX($C65:$G65,1,aux!$AL$1)>0,(G65/INDEX($C65:$G65,1,aux!$AL$1))^(1/($G$3-INDEX($C$3:$G$3,1,aux!$AL$1)))-1,"n.d.") -> -0.7813775461 | Y65: =IF(INDEX($C65:$G65,1,aux!$AL$1)>0,(G65-INDEX($C65:$G65,1,aux!$AL$1))/INDEX($C65:$G65,1,aux!$AL$1),"n.d.") -> -0.9977155637 | AA65: =O65-INDEX($K65:$O65,1,aux!$AL$1) -> -608.302 | AB65: -0.007344527412 | AC65: -0.002876759004 | AD65: =+IF(INDEX($K65:$O65,1,aux!$AL$1)>0,(O65/INDEX($K65:$O65,1,aux!$AL$1))^(1/($O$3-INDEX($K$3:$O$3,1,aux!$AL$1)))-1,"n.d.") -> -0.1416525923 | AE65: =IF(INDEX($K65:$O65,1,aux!$AL$1)>0,(O65-INDEX($K65:$O65,1,aux!$AL$1))/INDEX($K65:$O65,1,aux!$AL$1),"n.d.") -> -0.4571843011 | AX65: 08
A66: 0805 | B66: Citrinos, frescos ou secos | C66: 6.515 | D66: 8.704 | E66: 10.582 | F66: 0.005 | G66: 0.081 | H66: 5.1774 | I66: 3.159601817e-05 | J66: 2.436719575e-05 | K66: 130.114 | L66: 224.068 | M66: 379.606 | N66: 40.769 | O66: 487.505 | P66: 252.4124 | Q66: 0.0007063736558 | R66: 0.000369447885 | S66: 247.235 | U66: =G66-INDEX($C66:$G66,1,aux!$AL$1) -> -6.434 | V66: 0.0006891031837 | W66: 0.0001521424933 | X66: =+IF(INDEX($C66:$G66,1,aux!$AL$1)>0,(G66/INDEX($C66:$G66,1,aux!$AL$1))^(1/($G$3-INDEX($C$3:$G$3,1,aux!$AL$1)))-1,"n.d.") -> -0.6660798324 | Y66: =IF(INDEX($C66:$G66,1,aux!$AL$1)>0,(G66-INDEX($C66:$G66,1,aux!$AL$1))/INDEX($C66:$G66,1,aux!$AL$1),"n.d.") -> -0.9875671527 | AA66: =O66-INDEX($K66:$O66,1,aux!$AL$1) -> 357.391 | AB66: 0.004315073757 | AC66: 0.001690160113 | AD66: =+IF(INDEX($K66:$O66,1,aux!$AL$1)>0,(O66/INDEX($K66:$O66,1,aux!$AL$1))^(1/($O$3-INDEX($K$3:$O$3,1,aux!$AL$1)))-1,"n.d.") -> 0.3912774994 | AE66: =IF(INDEX($K66:$O66,1,aux!$AL$1)>0,(O66-INDEX($K66:$O66,1,aux!$AL$1))/INDEX($K66:$O66,1,aux!$AL$1),"n.d.") -> 2.746752848 | AX66: 08
A67: 0806 | B67: Uvas, frescas ou secas | C67: 5.395 | D67: 778.048 | E67: 340.806 | F67: 283.022 | G67: 274.131 | H67: 336.2804 | I67: 0.002052211849 | J67: 0.001582688287 | K67: 880.367 | L67: 575.11 | M67: 324.523 | N67: 7.548 | O67: 136.358 | P67: 384.7812 | Q67: 0.00107680646 | R67: 0.0005631918263 | S67: 48.5008 | U67: =G67-INDEX($C67:$G67,1,aux!$AL$1) -> 268.736 | V67: -0.02878253546 | W67: -0.006354703931 | X67: =+IF(INDEX($C67:$G67,1,aux!$AL$1)>0,(G67/INDEX($C67:$G67,1,aux!$AL$1))^(1/($G$3-INDEX($C$3:$G$3,1,aux!$AL$1)))-1,"n.d.") -> 1.66987959 | Y67: =IF(INDEX($C67:$G67,1,aux!$AL$1)>0,(G67-INDEX($C67:$G67,1,aux!$AL$1))/INDEX($C67:$G67,1,aux!$AL$1),"n.d.") -> 49.81204819 | AA67: =O67-INDEX($K67:$O67,1,aux!$AL$1) -> -744.009 | AB67: -0.008983028982 | AC67: -0.003518539459 | AD67: =+IF(INDEX($K67:$O67,1,aux!$AL$1)>0,(O67/INDEX($K67:$O67,1,aux!$AL$1))^(1/($O$3-INDEX($K$3:$O$3,1,aux!$AL$1)))-1,"n.d.") -> -0.3726582126 | AE67: =IF(INDEX($K67:$O67,1,aux!$AL$1)>0,(O67-INDEX($K67:$O67,1,aux!$AL$1))/INDEX($K67:$O67,1,aux!$AL$1),"n.d.") -> -0.8451123225 | AX67: 08
A68: 0807 | B68: Melões, melancias e papaia, frescos | C68: 39.269 | D68: 0.439 | E68: 1.303 | F68: 0 | G68: 0 | H68: 8.2022 | I68: 5.005540624e-05 | J68: 3.860327829e-05 | K68: 434.271 | L68: 510.772 | M68: 97.802 | N68: 179.535 | O68: 174.429 | P68: 279.3618 | Q68: 0.0007817912906 | R68: 0.0004088928522 | S68: 271.1596 | U68: =G68-INDEX($C68:$G68,1,aux!$AL$1) -> -39.269 | V68: =IF($U$237<>0,U68/$U$237, "n.d.") -> 0.004205842854 | W68: =IF($U$322<>0,U68/$U$322, "n.d.") -> 0.0009285799768 | X68: =+IF(INDEX($C68:$G68,1,aux!$AL$1)>0,(G68/INDEX($C68:$G68,1,aux!$AL$1))^(1/($G$3-INDEX($C$3:$G$3,1,aux!$AL$1)))-1,"n.d.") -> -1 | Y68: =IF(INDEX($C68:$G68,1,aux!$AL$1)>0,(G68-INDEX($C68:$G68,1,aux!$AL$1))/INDEX($C68:$G68,1,aux!$AL$1),"n.d.") -> -1 | AA68: =O68-INDEX($K68:$O68,1,aux!$AL$1) -> -259.842 | AB68: =IF($AA$237<>0,AA68/$AA$237, "n.d.") -> -0.003137284921 | AC68: =IF($AA$322<>0,AA68/$AA$322, "n.d.") -> -0.001228835041 | AD68: =+IF(INDEX($K68:$O68,1,aux!$AL$1)>0,(O68/INDEX($K68:$O68,1,aux!$AL$1))^(1/($O$3-INDEX($K$3:$O$3,1,aux!$AL$1)))-1,"n.d.") -> -0.2039057895 | AE68: =IF(INDEX($K68:$O68,1,aux!$AL$1)>0,(O68-INDEX($K68:$O68,1,aux!$AL$1))/INDEX($K68:$O68,1,aux!$AL$1),"n.d.") -> -0.5983406675 | AX68: 08
A69: 0808 | B69: Maçãs, peras e marmelos, frescos | C69: 1.113 | D69: 5.506 | E69: 3.035 | F69: 63.611 | G69: 139.081 | H69: 42.4692 | I69: 0.0002591759599 | J69: 0.0001998793429 | K69: 16520.941 | L69: 15510.522 | M69: 18260.237 | N69: 15862.882 | O69: 20158.023 | P69: 17262.521 | Q69: 0.04830899776 | R69: 0.02526659496 | S69: 17220.0518 | U69: =G69-INDEX($C69:$G69,1,aux!$AL$1) -> 137.968 | V69: -0.01477683992 | W69: -0.003262479876 | X69: =+IF(INDEX($C69:$G69,1,aux!$AL$1)>0,(G69/INDEX($C69:$G69,1,aux!$AL$1))^(1/($G$3-INDEX($C$3:$G$3,1,aux!$AL$1)))-1,"n.d.") -> 2.343437122 | Y69: =IF(INDEX($C69:$G69,1,aux!$AL$1)>0,(G69-INDEX($C69:$G69,1,aux!$AL$1))/INDEX($C69:$G69,1,aux!$AL$1),"n.d.") -> 123.9604672 | AA69: =O69-INDEX($K69:$O69,1,aux!$AL$1) -> 3637.082 | AB69: 0.04391346478 | AC69: 0.01720035179 | AD69: =+IF(INDEX($K69:$O69,1,aux!$AL$1)>0,(O69/INDEX($K69:$O69,1,aux!$AL$1))^(1/($O$3-INDEX($K$3:$O$3,1,aux!$AL$1)))-1,"n.d.") -> 0.05100138669 | AE69: =IF(INDEX($K69:$O69,1,aux!$AL$1)>0,(O69-INDEX($K69:$O69,1,aux!$AL$1))/INDEX($K69:$O69,1,aux!$AL$1),"n.d.") -> 0.2201498087 | AX69: 08
A70: 0809 | B70: Damascos, cerejas, pêssegos, etc., frescos | C70: 1.65 | D70: 11.86 | E70: 2.752 | F70: 0 | G70: 0 | H70: 3.2524 | I70: 1.984835815e-05 | J70: 1.53072715e-05 | K70: 1571.246 | L70: 2107.834 | M70: 2362.86 | N70: 2956.877 | O70: 1767.523 | P70: 2153.268 | Q70: 0.006025899635 | R70: 0.00315166889 | S70: 2150.0156 | U70: =G70-INDEX($C70:$G70,1,aux!$AL$1) -> -1.65 | V70: 0.0001767205864 | W70: 3.901695897e-05 | X70: =+IF(INDEX($C70:$G70,1,aux!$AL$1)>0,(G70/INDEX($C70:$G70,1,aux!$AL$1))^(1/($G$3-INDEX($C$3:$G$3,1,aux!$AL$1)))-1,"n.d.") -> -1 | Y70: =IF(INDEX($C70:$G70,1,aux!$AL$1)>0,(G70-INDEX($C70:$G70,1,aux!$AL$1))/INDEX($C70:$G70,1,aux!$AL$1),"n.d.") -> -1 | AA70: =O70-INDEX($K70:$O70,1,aux!$AL$1) -> 196.277 | AB70: 0.002369812703 | AC70: 0.0009282258271 | AD70: =+IF(INDEX($K70:$O70,1,aux!$AL$1)>0,(O70/INDEX($K70:$O70,1,aux!$AL$1))^(1/($O$3-INDEX($K$3:$O$3,1,aux!$AL$1)))-1,"n.d.") -> 0.0298648181 | AE70: =IF(INDEX($K70:$O70,1,aux!$AL$1)>0,(O70-INDEX($K70:$O70,1,aux!$AL$1))/INDEX($K70:$O70,1,aux!$AL$1),"n.d.") -> 0.1249180587 | AX70: 08
A71: 0810 | B71: Outras frutas frescas | C71: 31.457 | D71: 46.822 | E71: 1.35 | F71: 0.338 | G71: 0 | H71: 15.9934 | I71: 9.760261078e-05 | J71: 7.527220392e-05 | K71: 29173.87 | L71: 33158.253 | M71: 30354.976 | N71: 3827.783 | O71: 2215.604 | P71: 19746.0972 | Q71: 0.05525926169 | R71: 0.0289017253 | S71: 19730.1038 | U71: =G71-INDEX($C71:$G71,1,aux!$AL$1) -> -31.457 | V71: 0.003369151205 | W71: 0.0007438524111 | X71: =+IF(INDEX($C71:$G71,1,aux!$AL$1)>0,(G71/INDEX($C71:$G71,1,aux!$AL$1))^(1/($G$3-INDEX($C$3:$G$3,1,aux!$AL$1)))-1,"n.d.") -> -1 | Y71: =IF(INDEX($C71:$G71,1,aux!$AL$1)>0,(G71-INDEX($C71:$G71,1,aux!$AL$1))/INDEX($C71:$G71,1,aux!$AL$1),"n.d.") -> -1 | AA71: =O71-INDEX($K71:$O71,1,aux!$AL$1) -> -26958.266 | AB71: -0.3254891873 | AC71: -0.1274900205 | AD71: =+IF(INDEX($K71:$O71,1,aux!$AL$1)>0,(O71/INDEX($K71:$O71,1,aux!$AL$1))^(1/($O$3-INDEX($K$3:$O$3,1,aux!$AL$1)))-1,"n.d.") -> -0.4750420413 | AE71: =IF(INDEX($K71:$O71,1,aux!$AL$1)>0,(O71-INDEX($K71:$O71,1,aux!$AL$1))/INDEX($K71:$O71,1,aux!$AL$1),"n.d.") -> -0.9240551905 | AX71: 08
A72: 0811 | B72: Frutas não cozidas ou cozidas em água ou vapor, congeladas | C72: 26.534 | D72: 11.138 | E72: 25.411 | F72: 0.005 | G72: 0.014 | H72: 12.6204 | I72: 7.701826935e-05 | J72: 5.939733405e-05 | K72: 932.774 | L72: 548.891 | M72: 98.789 | N72: 499.441 | O72: 11.011 | P72: 418.1812 | Q72: 0.001170276036 | R72: 0.0006120783285 | S72: 405.5608 | U72: =G72-INDEX($C72:$G72,1,aux!$AL$1) -> -26.52 | V72: 0.002840381789 | W72: 0.0006271089405 | X72: =+IF(INDEX($C72:$G72,1,aux!$AL$1)>0,(G72/INDEX($C72:$G72,1,aux!$AL$1))^(1/($G$3-INDEX($C$3:$G$3,1,aux!$AL$1)))-1,"n.d.") -> -0.8484411408 | Y72: =IF(INDEX($C72:$G72,1,aux!$AL$1)>0,(G72-INDEX($C72:$G72,1,aux!$AL$1))/INDEX($C72:$G72,1,aux!$AL$1),"n.d.") -> -0.9994723751 | AA72: =O72-INDEX($K72:$O72,1,aux!$AL$1) -> -921.763 | AB72: -0.01112919836 | AC72: -0.004359167009 | AD72: =+IF(INDEX($K72:$O72,1,aux!$AL$1)>0,(O72/INDEX($K72:$O72,1,aux!$AL$1))^(1/($O$3-INDEX($K$3:$O$3,1,aux!$AL$1)))-1,"n.d.") -> -0.670380738 | AE72: =IF(INDEX($K72:$O72,1,aux!$AL$1)>0,(O72-INDEX($K72:$O72,1,aux!$AL$1))/INDEX($K72:$O72,1,aux!$AL$1),"n.d.") -> -0.9881954257 | AX72: 08
A73: 0812 | B73: Frutas conservadas transitoriamente | C73: 0.544 | D73: 0.12 | E73: 0.886 | F73: 0 | G73: 0 | H73: 0.31 | I73: 1.891830964e-06 | J73: 1.459000789e-06 | K73: 2.594 | L73: 1.642 | M73: 0.203 | N73: 1.391 | O73: 0 | P73: 1.166 | Q73: 3.263039703e-06 | R73: 1.706636575e-06 | S73: 0.856 | U73: =G73-INDEX($C73:$G73,1,aux!$AL$1) -> -0.544 | V73: 5.826424183e-05 | W73: 1.286377314e-05 | X73: =+IF(INDEX($C73:$G73,1,aux!$AL$1)>0,(G73/INDEX($C73:$G73,1,aux!$AL$1))^(1/($G$3-INDEX($C$3:$G$3,1,aux!$AL$1)))-1,"n.d.") -> -1 | Y73: =IF(INDEX($C73:$G73,1,aux!$AL$1)>0,(G73-INDEX($C73:$G73,1,aux!$AL$1))/INDEX($C73:$G73,1,aux!$AL$1),"n.d.") -> -1 | AA73: =O73-INDEX($K73:$O73,1,aux!$AL$1) -> -2.594 | AB73: -3.131948293e-05 | AC73: -1.226744751e-05 | AD73: =+IF(INDEX($K73:$O73,1,aux!$AL$1)>0,(O73/INDEX($K73:$O73,1,aux!$AL$1))^(1/($O$3-INDEX($K$3:$O$3,1,aux!$AL$1)))-1,"n.d.") -> -1 | AE73: =IF(INDEX($K73:$O73,1,aux!$AL$1)>0,(O73-INDEX($K73:$O73,1,aux!$AL$1))/INDEX($K73:$O73,1,aux!$AL$1),"n.d.") -> -1 | AX73: 08
A74: 0813 | B74: Outras frutas secas | C74: 69.406 | D74: 43.963 | E74: 31.95 | F74: 2.381 | G74: 1.068 | H74: 29.7536 | I74: 0.0001815767154 | J74: 0.0001400339544 | K74: 3.437 | L74: 2.029 | M74: 26.192 | N74: 29.844 | O74: 81.069 | P74: 28.5142 | Q74: 7.979671243e-05 | R74: 4.173531444e-05 | S74: -1.2394 | U74: =G74-INDEX($C74:$G74,1,aux!$AL$1) -> -68.338 | V74: 0.007319231173 | W74: 0.001615964207 | X74: =+IF(INDEX($C74:$G74,1,aux!$AL$1)>0,(G74/INDEX($C74:$G74,1,aux!$AL$1))^(1/($G$3-INDEX($C$3:$G$3,1,aux!$AL$1)))-1,"n.d.") -> -0.6477965878 | Y74: =IF(INDEX($C74:$G74,1,aux!$AL$1)>0,(G74-INDEX($C74:$G74,1,aux!$AL$1))/INDEX($C74:$G74,1,aux!$AL$1),"n.d.") -> -0.9846122814 | AA74: =O74-INDEX($K74:$O74,1,aux!$AL$1) -> 77.632 | AB74: 0.0009373146103 | AC74: 0.0003671343428 | AD74: =+IF(INDEX($K74:$O74,1,aux!$AL$1)>0,(O74/INDEX($K74:$O74,1,aux!$AL$1))^(1/($O$3-INDEX($K$3:$O$3,1,aux!$AL$1)))-1,"n.d.") -> 1.203782961 | AE74: =IF(INDEX($K74:$O74,1,aux!$AL$1)>0,(O74-INDEX($K74:$O74,1,aux!$AL$1))/INDEX($K74:$O74,1,aux!$AL$1),"n.d.") -> 22.58713995 | AX74: 08
A75: 0814 | B75: Cascas de citrinos, melões ou melancias | C75: 0 | D75: 0 | E75: 0 | F75: 0 | G75: 0 | H75: 0 | I75: 0 | J75: 0 | K75: 0 | L75: 0 | M75: 5.433 | N75: 0.042 | O75: 0 | P75: 1.095 | Q75: 3.064346891e-06 | R75: 1.602716166e-06 | S75: 1.095 | U75: =G75-INDEX($C75:$G75,1,aux!$AL$1) -> 0 | V75: 0 | W75: 0 | X75: =+IF(INDEX($C75:$G75,1,aux!$AL$1)>0,(G75/INDEX($C75:$G75,1,aux!$AL$1))^(1/($G$3-INDEX($C$3:$G$3,1,aux!$AL$1)))-1,"n.d.") -> n.d. | Y75: =IF(INDEX($C75:$G75,1,aux!$AL$1)>0,(G75-INDEX($C75:$G75,1,aux!$AL$1))/INDEX($C75:$G75,1,aux!$AL$1),"n.d.") -> n.d. | AA75: =O75-INDEX($K75:$O75,1,aux!$AL$1) -> 0 | AB75: 0 | AC75: 0 | AD75: =+IF(INDEX($K75:$O75,1,aux!$AL$1)>0,(O75/INDEX($K75:$O75,1,aux!$AL$1))^(1/($O$3-INDEX($K$3:$O$3,1,aux!$AL$1)))-1,"n.d.") -> n.d. | AE75: =IF(INDEX($K75:$O75,1,aux!$AL$1)>0,(O75-INDEX($K75:$O75,1,aux!$AL$1))/INDEX($K75:$O75,1,aux!$AL$1),"n.d.") -> n.d. | AX75: =+LEFT(A75,2) -> 08
A76: 08SS | B76: Frutas; cascas de citrinos e de melões | C76: 0 | D76: 0 | E76: 0 | F76: 0 | G76: 0 | H76: 0 | I76: 0 | J76: 0 | K76: 0 | L76: 0 | M76: 0 | N76: 0 | O76: 0 | P76: 0 | Q76: 0 | R76: 0 | S76: 0 | U76: =G76-INDEX($C76:$G76,1,aux!$AL$1) -> 0 | V76: 0 | W76: 0 | X76: =+IF(INDEX($C76:$G76,1,aux!$AL$1)>0,(G76/INDEX($C76:$G76,1,aux!$AL$1))^(1/($G$3-INDEX($C$3:$G$3,1,aux!$AL$1)))-1,"n.d.") -> n.d. | Y76: =IF(INDEX($C76:$G76,1,aux!$AL$1)>0,(G76-INDEX($C76:$G76,1,aux!$AL$1))/INDEX($C76:$G76,1,aux!$AL$1),"n.d.") -> n.d. | AA76: =O76-INDEX($K76:$O76,1,aux!$AL$1) -> 0 | AB76: 0 | AC76: 0 | AD76: =+IF(INDEX($K76:$O76,1,aux!$AL$1)>0,(O76/INDEX($K76:$O76,1,aux!$AL$1))^(1/($O$3-INDEX($K$3:$O$3,1,aux!$AL$1)))-1,"n.d.") -> n.d. | AE76: =IF(INDEX($K76:$O76,1,aux!$AL$1)>0,(O76-INDEX($K76:$O76,1,aux!$AL$1))/INDEX($K76:$O76,1,aux!$AL$1),"n.d.") -> n.d. | AX76: 08
A77: 0901 | B77: Café | C77: 2828.311 | D77: 3070.639 | E77: 1852.028 | F77: 2310.117 | G77: 1502.533 | H77: 2312.7256 | I77: 0.01411382549 | J77: 0.01088473701 | K77: 3449.831 | L77: 4760.804 | M77: 7528.623 | N77: 9030.373 | O77: 10479.5 | P77: 7049.8262 | Q77: 0.01972887031 | R77: 0.01031860312 | S77: 4737.1006 | U77: =G77-INDEX($C77:$G77,1,aux!$AL$1) -> -1325.778 | V77: 0.1419953125 | W77: 0.03135019747 | X77: =+IF(INDEX($C77:$G77,1,aux!$AL$1)>0,(G77/INDEX($C77:$G77,1,aux!$AL$1))^(1/($G$3-INDEX($C$3:$G$3,1,aux!$AL$1)))-1,"n.d.") -> -0.1462627828 | Y77: =IF(INDEX($C77:$G77,1,aux!$AL$1)>0,(G77-INDEX($C77:$G77,1,aux!$AL$1))/INDEX($C77:$G77,1,aux!$AL$1),"n.d.") -> -0.4687525523 | AA77: =O77-INDEX($K77:$O77,1,aux!$AL$1) -> 7029.669 | AB77: 0.08487494151 | AC77: 0.03324444699 | AD77: =+IF(INDEX($K77:$O77,1,aux!$AL$1)>0,(O77/INDEX($K77:$O77,1,aux!$AL$1))^(1/($O$3-INDEX($K$3:$O$3,1,aux!$AL$1)))-1,"n.d.") -> 0.3201877098 | AE77: =IF(INDEX($K77:$O77,1,aux!$AL$1)>0,(O77-INDEX($K77:$O77,1,aux!$AL$1))/INDEX($K77:$O77,1,aux!$AL$1),"n.d.") -> 2.037685034 | AX77: 09
A78: 0902 | B78: Chá | C78: 403.358 | D78: 371.25 | E78: 177.91 | F78: 125.93 | G78: 298.153 | H78: 275.3202 | I78: 0.001680191224 | J78: 0.0012957819 | K78: 10.308 | L78: 29.711 | M78: 29.415 | N78: 92.283 | O78: 39.677 | P78: 40.2788 | Q78: 0.0001127198315 | R78: 5.895477984e-05 | S78: -235.0414 | U78: =G78-INDEX($C78:$G78,1,aux!$AL$1) -> -105.205 | V78: 0.01126781169 | W78: 0.002487744951 | X78: =+IF(INDEX($C78:$G78,1,aux!$AL$1)>0,(G78/INDEX($C78:$G78,1,aux!$AL$1))^(1/($G$3-INDEX($C$3:$G$3,1,aux!$AL$1)))-1,"n.d.") -> -0.07277074167 | Y78: =IF(INDEX($C78:$G78,1,aux!$AL$1)>0,(G78-INDEX($C78:$G78,1,aux!$AL$1))/INDEX($C78:$G78,1,aux!$AL$1),"n.d.") -> -0.2608228918 | AA78: =O78-INDEX($K78:$O78,1,aux!$AL$1) -> 29.369 | AB78: 0.00035459595 | AC78: 0.0001388907733 | AD78: =+IF(INDEX($K78:$O78,1,aux!$AL$1)>0,(O78/INDEX($K78:$O78,1,aux!$AL$1))^(1/($O$3-INDEX($K$3:$O$3,1,aux!$AL$1)))-1,"n.d.") -> 0.4006870209 | AE78: =IF(INDEX($K78:$O78,1,aux!$AL$1)>0,(O78-INDEX($K78:$O78,1,aux!$AL$1))/INDEX($K78:$O78,1,aux!$AL$1),"n.d.") -> 2.849146294 | AX78: 09
A79: 0903 | B79: Mate | C79: 0 | D79: 0 | E79: 0 | F79: 1.282 | G79: 0.93 | H79: 0.4424 | I79: 2.699825866e-06 | J79: 2.082135319e-06 | K79: 4.345 | L79: 4.652 | M79: 5.098 | N79: 4.568 | O79: 1.544 | P79: 4.0414 | Q79: 1.130981874e-05 | R79: 5.915266772e-06 | S79: 3.599 | U79: =G79-INDEX($C79:$G79,1,aux!$AL$1) -> 0.93 | V79: -9.960614872e-05 | W79: -2.199137687e-05 | X79: =+IF(INDEX($C79:$G79,1,aux!$AL$1)>0,(G79/INDEX($C79:$G79,1,aux!$AL$1))^(1/($G$3-INDEX($C$3:$G$3,1,aux!$AL$1)))-1,"n.d.") -> n.d. | Y79: =IF(INDEX($C79:$G79,1,aux!$AL$1)>0,(G79-INDEX($C79:$G79,1,aux!$AL$1))/INDEX($C79:$G79,1,aux!$AL$1),"n.d.") -> n.d. | AA79: =O79-INDEX($K79:$O79,1,aux!$AL$1) -> -2.801 | AB79: -3.381876318e-05 | AC79: -1.324638415e-05 | AD79: =+IF(INDEX($K79:$O79,1,aux!$AL$1)>0,(O79/INDEX($K79:$O79,1,aux!$AL$1))^(1/($O$3-INDEX($K$3:$O$3,1,aux!$AL$1)))-1,"n.d.") -> -0.227916309 | AE79: =IF(INDEX($K79:$O79,1,aux!$AL$1)>0,(O79-INDEX($K79:$O79,1,aux!$AL$1))/INDEX($K79:$O79,1,aux!$AL$1),"n.d.") -> -0.6446490219 | AX79: 09
A80: 0904 | B80: Pimenta | C80: 16.675 | D80: 60.495 | E80: 23.706 | F80: 6.477 | G80: 2.603 | H80: 21.9912 | I80: 0.0001342052681 | J80: 0.0001035005747 | K80: 14.319 | L80: 18.793 | M80: 25.549 | N80: 21.963 | O80: 18.776 | P80: 19.88 | Q80: 5.563398738e-05 | R80: 2.909771451e-05 | S80: -2.1112 | U80: =G80-INDEX($C80:$G80,1,aux!$AL$1) -> -14.072 | V80: 0.001507158844 | W80: 0.0003327555434 | X80: =+IF(INDEX($C80:$G80,1,aux!$AL$1)>0,(G80/INDEX($C80:$G80,1,aux!$AL$1))^(1/($G$3-INDEX($C$3:$G$3,1,aux!$AL$1)))-1,"n.d.") -> -0.3714322695 | Y80: =IF(INDEX($C80:$G80,1,aux!$AL$1)>0,(G80-INDEX($C80:$G80,1,aux!$AL$1))/INDEX($C80:$G80,1,aux!$AL$1),"n.d.") -> -0.843898051 | AA80: =O80-INDEX($K80:$O80,1,aux!$AL$1) -> 4.457 | AB80: 5.381300518e-05 | AC80: 2.107787724e-05 | AD80: =+IF(INDEX($K80:$O80,1,aux!$AL$1)>0,(O80/INDEX($K80:$O80,1,aux!$AL$1))^(1/($O$3-INDEX($K$3:$O$3,1,aux!$AL$1)))-1,"n.d.") -> 0.07009564568 | AE80: =IF(INDEX($K80:$O80,1,aux!$AL$1)>0,(O80-INDEX($K80:$O80,1,aux!$AL$1))/INDEX($K80:$O80,1,aux!$AL$1),"n.d.") -> 0.3112647531 | AX80: 09
A81: 0905 | B81: Baunilha | C81: 6.928 | D81: 9.433 | E81: 3.355 | F81: 1.496 | G81: 0.275 | H81: 4.2974 | I81: 2.622565931e-05 | J81: 2.02255161e-05 | K81: 0.076 | L81: 1.021 | M81: 0.574 | N81: 0.717 | O81: 0.432 | P81: 0.564 | Q81: 1.578348535e-06 | R81: 8.255086008e-07 | S81: -3.7334 | U81: =G81-INDEX($C81:$G81,1,aux!$AL$1) -> -6.653 | V81: 0.0007125588252 | W81: 0.0001573211079 | X81: =+IF(INDEX($C81:$G81,1,aux!$AL$1)>0,(G81/INDEX($C81:$G81,1,aux!$AL$1))^(1/($G$3-INDEX($C$3:$G$3,1,aux!$AL$1)))-1,"n.d.") -> -0.5536441781 | Y81: =IF(INDEX($C81:$G81,1,aux!$AL$1)>0,(G81-INDEX($C81:$G81,1,aux!$AL$1))/INDEX($C81:$G81,1,aux!$AL$1),"n.d.") -> -0.9603060046 | AA81: =O81-INDEX($K81:$O81,1,aux!$AL$1) -> 0.356 | AB81: 4.298279077e-06 | AC81: 1.683581848e-06 | AD81: =+IF(INDEX($K81:$O81,1,aux!$AL$1)>0,(O81/INDEX($K81:$O81,1,aux!$AL$1))^(1/($O$3-INDEX($K$3:$O$3,1,aux!$AL$1)))-1,"n.d.") -> 0.5440719681 | AE81: =IF(INDEX($K81:$O81,1,aux!$AL$1)>0,(O81-INDEX($K81:$O81,1,aux!$AL$1))/INDEX($K81:$O81,1,aux!$AL$1),"n.d.") -> 4.684210526 | AX81: 09
A82: 0906 | B82: Canela | C82: 5.987 | D82: 3.199 | E82: 1.82 | F82: 3.868 | G82: 0.019 | H82: 2.9786 | I82: 1.817744422e-05 | J82: 1.401864435e-05 | K82: 70.904 | L82: 10.863 | M82: 17.591 | N82: 25.104 | O82: 19.001 | P82: 28.6926 | Q82: 8.02959631e-05 | R82: 4.199643276e-05 | S82: 25.714 | U82: =G82-INDEX($C82:$G82,1,aux!$AL$1) -> -5.968 | V82: 0.000639193006 | W82: 0.0001411231583 | X82: =+IF(INDEX($C82:$G82,1,aux!$AL$1)>0,(G82/INDEX($C82:$G82,1,aux!$AL$1))^(1/($G$3-INDEX($C$3:$G$3,1,aux!$AL$1)))-1,"n.d.") -> -0.7626517217 | Y82: =IF(INDEX($C82:$G82,1,aux!$AL$1)>0,(G82-INDEX($C82:$G82,1,aux!$AL$1))/INDEX($C82:$G82,1,aux!$AL$1),"n.d.") -> -0.9968264573 | AA82: =O82-INDEX($K82:$O82,1,aux!$AL$1) -> -51.903 | AB82: -0.0006266673565 | AC82: -0.000245457721 | AD82: =+IF(INDEX($K82:$O82,1,aux!$AL$1)>0,(O82/INDEX($K82:$O82,1,aux!$AL$1))^(1/($O$3-INDEX($K$3:$O$3,1,aux!$AL$1)))-1,"n.d.") -> -0.2805072362 | AE82: =IF(INDEX($K82:$O82,1,aux!$AL$1)>0,(O82-INDEX($K82:$O82,1,aux!$AL$1))/INDEX($K82:$O82,1,aux!$AL$1),"n.d.") -> -0.7320179397 | AX82: 09
A83: 0907 | B83: Cravo-da-índia | C83: 0.805 | D83: 0.95 | E83: 1.073 | F83: 0.019 | G83: 0 | H83: 0.5694 | I83: 3.474866293e-06 | J83: 2.679854997e-06 | K83: 0.659 | L83: 1.635 | M83: 2.581 | N83: 1.526 | O83: 0.742 | P83: 1.4286 | Q83: 3.997923258e-06 | R83: 2.090995722e-06 | S83: 0.8592 | U83: =G83-INDEX($C83:$G83,1,aux!$AL$1) -> -0.805 | V83: 8.62182255e-05 | W83: 1.903554665e-05 | X83: =+IF(INDEX($C83:$G83,1,aux!$AL$1)>0,(G83/INDEX($C83:$G83,1,aux!$AL$1))^(1/($G$3-INDEX($C$3:$G$3,1,aux!$AL$1)))-1,"n.d.") -> -1 | Y83: =IF(INDEX($C83:$G83,1,aux!$AL$1)>0,(G83-INDEX($C83:$G83,1,aux!$AL$1))/INDEX($C83:$G83,1,aux!$AL$1),"n.d.") -> -1 | AA83: =O83-INDEX($K83:$O83,1,aux!$AL$1) -> 0.083 | AB83: 1.002126863e-06 | AC83: 3.925204871e-07 | AD83: =+IF(INDEX($K83:$O83,1,aux!$AL$1)>0,(O83/INDEX($K83:$O83,1,aux!$AL$1))^(1/($O$3-INDEX($K$3:$O$3,1,aux!$AL$1)))-1,"n.d.") -> 0.03010055858 | AE83: =IF(INDEX($K83:$O83,1,aux!$AL$1)>0,(O83-INDEX($K83:$O83,1,aux!$AL$1))/INDEX($K83:$O83,1,aux!$AL$1),"n.d.") -> 0.1259484067 | AX83: 09
A84: 0908 | B84: Noz-moscada, etc. | C84: 7.261 | D84: 12.322 | E84: 22.768 | F84: 3.465 | G84: 0.147 | H84: 9.1926 | I84: 5.609950103e-05 | J84: 4.326455049e-05 | K84: 1.997 | L84: 2.818 | M84: 5.013 | N84: 4.881 | O84: 3.185 | P84: 3.5788 | Q84: 1.001523712e-05 | R84: 5.238174079e-06 | S84: -5.6138 | U84: =G84-INDEX($C84:$G84,1,aux!$AL$1) -> -7.114 | V84: 0.000761933486 | W84: 0.0001682222098 | X84: =+IF(INDEX($C84:$G84,1,aux!$AL$1)>0,(G84/INDEX($C84:$G84,1,aux!$AL$1))^(1/($G$3-INDEX($C$3:$G$3,1,aux!$AL$1)))-1,"n.d.") -> -0.6227925823 | Y84: =IF(INDEX($C84:$G84,1,aux!$AL$1)>0,(G84-INDEX($C84:$G84,1,aux!$AL$1))/INDEX($C84:$G84,1,aux!$AL$1),"n.d.") -> -0.9797548547 | AA84: =O84-INDEX($K84:$O84,1,aux!$AL$1) -> 1.188 | AB84: 1.434369535e-05 | AC84: 5.618245045e-06 | AD84: =+IF(INDEX($K84:$O84,1,aux!$AL$1)>0,(O84/INDEX($K84:$O84,1,aux!$AL$1))^(1/($O$3-INDEX($K$3:$O$3,1,aux!$AL$1)))-1,"n.d.") -> 0.123783996 | AE84: =IF(INDEX($K84:$O84,1,aux!$AL$1)>0,(O84-INDEX($K84:$O84,1,aux!$AL$1))/INDEX($K84:$O84,1,aux!$AL$1),"n.d.") -> 0.5948923385 | AX84: 09
A85: 0909 | B85: Sementes de anis, funcho, etc. | C85: 20.054 | D85: 30.633 | E85: 25.557 | F85: 3.312 | G85: 0.76 | H85: 16.0632 | I85: 9.802857788e-05 | J85: 7.560071442e-05 | K85: 1.027 | L85: 2.816 | M85: 4.923 | N85: 7.45 | O85: 4.297 | P85: 4.1026 | Q85: 1.148108635e-05 | R85: 6.004843237e-06 | S85: -11.9606 | U85: =G85-INDEX($C85:$G85,1,aux!$AL$1) -> -19.294 | V85: 0.002066452724 | W85: 0.0004562383069 | X85: =+IF(INDEX($C85:$G85,1,aux!$AL$1)>0,(G85/INDEX($C85:$G85,1,aux!$AL$1))^(1/($G$3-INDEX($C$3:$G$3,1,aux!$AL$1)))-1,"n.d.") -> -0.5587820775 | Y85: =IF(INDEX($C85:$G85,1,aux!$AL$1)>0,(G85-INDEX($C85:$G85,1,aux!$AL$1))/INDEX($C85:$G85,1,aux!$AL$1),"n.d.") -> -0.9621023237 | AA85: =O85-INDEX($K85:$O85,1,aux!$AL$1) -> 3.27 | AB85: 3.948138365e-05 | AC85: 1.546436136e-05 | AD85: =+IF(INDEX($K85:$O85,1,aux!$AL$1)>0,(O85/INDEX($K85:$O85,1,aux!$AL$1))^(1/($O$3-INDEX($K$3:$O$3,1,aux!$AL$1)))-1,"n.d.") -> 0.4302064342 | AE85: =IF(INDEX($K85:$O85,1,aux!$AL$1)>0,(O85-INDEX($K85:$O85,1,aux!$AL$1))/INDEX($K85:$O85,1,aux!$AL$1),"n.d.") -> 3.184031159 | AX85: 09
A86: 0910 | B86: Gengibre, açafrão, tomilho, louro, etc. | C86: 479.322 | D86: 562.602 | E86: 655.845 | F86: 146.42 | G86: 46.875 | H86: 378.2128 | I86: 0.00230811189 | J86: 0.001780041205 | K86: 46.309 | L86: 40.353 | M86: 50.775 | N86: 54.605 | O86: 41.54 | P86: 46.7164 | Q86: 0.0001307353928 | R86: 6.837728723e-05 | S86: -331.4964 | U86: =G86-INDEX($C86:$G86,1,aux!$AL$1) -> -432.447 | V86: 0.04631653784 | W86: 0.01022591931 | X86: =+IF(INDEX($C86:$G86,1,aux!$AL$1)>0,(G86/INDEX($C86:$G86,1,aux!$AL$1))^(1/($G$3-INDEX($C$3:$G$3,1,aux!$AL$1)))-1,"n.d.") -> -0.4407854283 | Y86: =IF(INDEX($C86:$G86,1,aux!$AL$1)>0,(G86-INDEX($C86:$G86,1,aux!$AL$1))/INDEX($C86:$G86,1,aux!$AL$1),"n.d.") -> -0.9022056154 | AA86: =O86-INDEX($K86:$O86,1,aux!$AL$1) -> -4.769 | AB86: -5.758003628e-05 | AC86: -2.255337594e-05 | AD86: =+IF(INDEX($K86:$O86,1,aux!$AL$1)>0,(O86/INDEX($K86:$O86,1,aux!$AL$1))^(1/($O$3-INDEX($K$3:$O$3,1,aux!$AL$1)))-1,"n.d.") -> -0.02680409617 | AE86: =IF(INDEX($K86:$O86,1,aux!$AL$1)>0,(O86-INDEX($K86:$O86,1,aux!$AL$1))/INDEX($K86:$O86,1,aux!$AL$1),"n.d.") -> -0.1029821417 | AX86: 09
A87: 09SS | B87: Café, chá, mate e especiarias | C87: 0 | D87: 0 | E87: 0 | F87: 0 | G87: 0 | H87: 0 | I87: 0 | J87: 0 | K87: 0 | L87: 0 | M87: 0 | N87: 0 | O87: 0 | P87: 0 | Q87: 0 | R87: 0 | S87: 0 | U87: =G87-INDEX($C87:$G87,1,aux!$AL$1) -> 0 | V87: 0 | W87: 0 | X87: =+IF(INDEX($C87:$G87,1,aux!$AL$1)>0,(G87/INDEX($C87:$G87,1,aux!$AL$1))^(1/($G$3-INDEX($C$3:$G$3,1,aux!$AL$1)))-1,"n.d.") -> n.d. | Y87: =IF(INDEX($C87:$G87,1,aux!$AL$1)>0,(G87-INDEX($C87:$G87,1,aux!$AL$1))/INDEX($C87:$G87,1,aux!$AL$1),"n.d.") -> n.d. | AA87: =O87-INDEX($K87:$O87,1,aux!$AL$1) -> 0 | AB87: 0 | AC87: 0 | AD87: =+IF(INDEX($K87:$O87,1,aux!$AL$1)>0,(O87/INDEX($K87:$O87,1,aux!$AL$1))^(1/($O$3-INDEX($K$3:$O$3,1,aux!$AL$1)))-1,"n.d.") -> n.d. | AE87: =IF(INDEX($K87:$O87,1,aux!$AL$1)>0,(O87-INDEX($K87:$O87,1,aux!$AL$1))/INDEX($K87:$O87,1,aux!$AL$1),"n.d.") -> n.d. | AX87: 09
A88: 1001 | B88: Trigo e mistura trigo/centeio | C88: 852.343 | D88: 26372.329 | E88: 5209.942 | F88: 7694.093 | G88: 22063.105 | H88: 12438.3624 | I88: 0.07590735203 | J88: 0.05854058243 | K88: 18.381 | L88: 0 | M88: 0 | N88: 0.945 | O88: 0 | P88: 3.8652 | Q88: 1.081672475e-05 | R88: 5.657368517e-06 | S88: -12434.4972 | U88: =G88-INDEX($C88:$G88,1,aux!$AL$1) -> 21210.762 | V88: -2.271744424 | W88: -0.5015632913 | X88: =+IF(INDEX($C88:$G88,1,aux!$AL$1)>0,(G88/INDEX($C88:$G88,1,aux!$AL$1))^(1/($G$3-INDEX($C$3:$G$3,1,aux!$AL$1)))-1,"n.d.") -> 1.25560505 | Y88: =IF(INDEX($C88:$G88,1,aux!$AL$1)>0,(G88-INDEX($C88:$G88,1,aux!$AL$1))/INDEX($C88:$G88,1,aux!$AL$1),"n.d.") -> 24.88524221 | AA88: =O88-INDEX($K88:$O88,1,aux!$AL$1) -> -18.381 | AB88: -0.0002219288419 | AC88: -8.692673583e-05 | AD88: =+IF(INDEX($K88:$O88,1,aux!$AL$1)>0,(O88/INDEX($K88:$O88,1,aux!$AL$1))^(1/($O$3-INDEX($K$3:$O$3,1,aux!$AL$1)))-1,"n.d.") -> -1 | AE88: =IF(INDEX($K88:$O88,1,aux!$AL$1)>0,(O88-INDEX($K88:$O88,1,aux!$AL$1))/INDEX($K88:$O88,1,aux!$AL$1),"n.d.") -> -1 | AX88: 10
A89: 1002 | B89: Centeio | C89: 0 | D89: 0 | E89: 0 | F89: 0 | G89: 0 | H89: 0 | I89: 0 | J89: 0 | K89: 0 | L89: 0 | M89: 0 | N89: 0 | O89: 0 | P89: 0 | Q89: 0 | R89: 0 | S89: 0 | U89: =G89-INDEX($C89:$G89,1,aux!$AL$1) -> 0 | V89: 0 | W89: 0 | X89: =+IF(INDEX($C89:$G89,1,aux!$AL$1)>0,(G89/INDEX($C89:$G89,1,aux!$AL$1))^(1/($G$3-INDEX($C$3:$G$3,1,aux!$AL$1)))-1,"n.d.") -> n.d. | Y89: =IF(INDEX($C89:$G89,1,aux!$AL$1)>0,(G89-INDEX($C89:$G89,1,aux!$AL$1))/INDEX($C89:$G89,1,aux!$AL$1),"n.d.") -> n.d. | AA89: =O89-INDEX($K89:$O89,1,aux!$AL$1) -> 0 | AB89: 0 | AC89: 0 | AD89: =+IF(INDEX($K89:$O89,1,aux!$AL$1)>0,(O89/INDEX($K89:$O89,1,aux!$AL$1))^(1/($O$3-INDEX($K$3:$O$3,1,aux!$AL$1)))-1,"n.d.") -> n.d. | AE89: =IF(INDEX($K89:$O89,1,aux!$AL$1)>0,(O89-INDEX($K89:$O89,1,aux!$AL$1))/INDEX($K89:$O89,1,aux!$AL$1),"n.d.") -> n.d. | AX89: 10
A90: 1003 | B90: Cevada | C90: 7731.883 | D90: 25802.829 | E90: 40403.968 | F90: 28030.523 | G90: 44151.872 | H90: 29224.215 | I90: 0.1783460479 | J90: 0.1375424282 | K90: 0.768 | L90: 0.799 | M90: 0.644 | N90: 2.028 | O90: 0 | P90: 0.8478 | Q90: 2.372560086e-06 | R90: 1.240897503e-06 | S90: -29223.3672 | U90: =G90-INDEX($C90:$G90,1,aux!$AL$1) -> 36419.989 | V90: -3.90070413 | W90: -0.8612104342 | X90: =+IF(INDEX($C90:$G90,1,aux!$AL$1)>0,(G90/INDEX($C90:$G90,1,aux!$AL$1))^(1/($G$3-INDEX($C$3:$G$3,1,aux!$AL$1)))-1,"n.d.") -> 0.5458450588 | Y90: =IF(INDEX($C90:$G90,1,aux!$AL$1)>0,(G90-INDEX($C90:$G90,1,aux!$AL$1))/INDEX($C90:$G90,1,aux!$AL$1),"n.d.") -> 4.710364733 | AA90: =O90-INDEX($K90:$O90,1,aux!$AL$1) -> -0.768 | AB90: -9.27269194e-06 | AC90: -3.631996797e-06 | AD90: =+IF(INDEX($K90:$O90,1,aux!$AL$1)>0,(O90/INDEX($K90:$O90,1,aux!$AL$1))^(1/($O$3-INDEX($K$3:$O$3,1,aux!$AL$1)))-1,"n.d.") -> -1 | AE90: =IF(INDEX($K90:$O90,1,aux!$AL$1)>0,(O90-INDEX($K90:$O90,1,aux!$AL$1))/INDEX($K90:$O90,1,aux!$AL$1),"n.d.") -> -1 | AX90: 10
A91: 1004 | B91: Aveia | C91: 1.395 | D91: 2.103 | E91: 4.111 | F91: 0.07 | G91: 0.006 | H91: 1.537 | I91: 9.379819973e-06 | J91: 7.23382004e-06 | K91: 0 | L91: 0 | M91: 0 | N91: 0 | O91: 0 | P91: 0 | Q91: 0 | R91: 0 | S91: -1.537 | U91: =G91-INDEX($C91:$G91,1,aux!$AL$1) -> -1.389 | V91: 0.0001487666028 | W91: 3.284518546e-05 | X91: =+IF(INDEX($C91:$G91,1,aux!$AL$1)>0,(G91/INDEX($C91:$G91,1,aux!$AL$1))^(1/($G$3-INDEX($C$3:$G$3,1,aux!$AL$1)))-1,"n.d.") -> -0.7439090326 | Y91: =IF(INDEX($C91:$G91,1,aux!$AL$1)>0,(G91-INDEX($C91:$G91,1,aux!$AL$1))/INDEX($C91:$G91,1,aux!$AL$1),"n.d.") -> -0.9956989247 | AA91: =O91-INDEX($K91:$O91,1,aux!$AL$1) -> 0 | AB91: 0 | AC91: 0 | AD91: =+IF(INDEX($K91:$O91,1,aux!$AL$1)>0,(O91/INDEX($K91:$O91,1,aux!$AL$1))^(1/($O$3-INDEX($K$3:$O$3,1,aux!$AL$1)))-1,"n.d.") -> n.d. | AE91: =IF(INDEX($K91:$O91,1,aux!$AL$1)>0,(O91-INDEX($K91:$O91,1,aux!$AL$1))/INDEX($K91:$O91,1,aux!$AL$1),"n.d.") -> n.d. | AX91: 10
A92: 1005 | B92: Milho | C92: 2.761 | D92: 4714.708 | E92: 2.088 | F92: 0.307 | G92: 0.105 | H92: 943.9938 | I92: 0.005760892583 | J92: 0.004442863544 | K92: 553.638 | L92: 2.569 | M92: 2.507 | N92: 5.38 | O92: 4.842 | P92: 113.7872 | Q92: 0.0003184323767 | R92: 0.0001665466529 | S92: -830.2066 | U92: =G92-INDEX($C92:$G92,1,aux!$AL$1) -> -2.656 | V92: 0.0002844665925 | W92: 6.280548062e-05 | X92: =+IF(INDEX($C92:$G92,1,aux!$AL$1)>0,(G92/INDEX($C92:$G92,1,aux!$AL$1))^(1/($G$3-INDEX($C$3:$G$3,1,aux!$AL$1)))-1,"n.d.") -> -0.5583983137 | Y92: =IF(INDEX($C92:$G92,1,aux!$AL$1)>0,(G92-INDEX($C92:$G92,1,aux!$AL$1))/INDEX($C92:$G92,1,aux!$AL$1),"n.d.") -> -0.9619703006 | AA92: =O92-INDEX($K92:$O92,1,aux!$AL$1) -> -548.796 | AB92: -0.00662606282 | AC92: -0.002595345461 | AD92: =+IF(INDEX($K92:$O92,1,aux!$AL$1)>0,(O92/INDEX($K92:$O92,1,aux!$AL$1))^(1/($O$3-INDEX($K$3:$O$3,1,aux!$AL$1)))-1,"n.d.") -> -0.6941913796 | AE92: =IF(INDEX($K92:$O92,1,aux!$AL$1)>0,(O92-INDEX($K92:$O92,1,aux!$AL$1))/INDEX($K92:$O92,1,aux!$AL$1),"n.d.") -> -0.991254213 | AX92: 10
A93: 1006 | B93: Arroz | C93: 1416.925 | D93: 2214.535 | E93: 1414.085 | F93: 181.874 | G93: 16.332 | H93: 1048.7502 | I93: 0.006400187426 | J93: 0.004935894739 | K93: 4886.606 | L93: 5871.384 | M93: 7685.742 | N93: 5567.16 | O93: 5073.029 | P93: 5816.7842 | Q93: 0.01627821422 | R93: 0.008513839337 | S93: 4768.034 | U93: =G93-INDEX($C93:$G93,1,aux!$AL$1) -> -1400.593 | V93: 0.1500082523 | W93: 0.03311932098 | X93: =+IF(INDEX($C93:$G93,1,aux!$AL$1)>0,(G93/INDEX($C93:$G93,1,aux!$AL$1))^(1/($G$3-INDEX($C$3:$G$3,1,aux!$AL$1)))-1,"n.d.") -> -0.6723402262 | Y93: =IF(INDEX($C93:$G93,1,aux!$AL$1)>0,(G93-INDEX($C93:$G93,1,aux!$AL$1))/INDEX($C93:$G93,1,aux!$AL$1),"n.d.") -> -0.9884736313 | AA93: =O93-INDEX($K93:$O93,1,aux!$AL$1) -> 186.423 | AB93: 0.002250837304 | AC93: 0.0008816246599 | AD93: =+IF(INDEX($K93:$O93,1,aux!$AL$1)>0,(O93/INDEX($K93:$O93,1,aux!$AL$1))^(1/($O$3-INDEX($K$3:$O$3,1,aux!$AL$1)))-1,"n.d.") -> 0.009403962516 | AE93: =IF(INDEX($K93:$O93,1,aux!$AL$1)>0,(O93-INDEX($K93:$O93,1,aux!$AL$1))/INDEX($K93:$O93,1,aux!$AL$1),"n.d.") -> 0.03814979149 | AX93: 10
A94: 1007 | B94: Sorgo de grão | C94: 0 | D94: 0 | E94: 0 | F94: 0 | G94: 0 | H94: 0 | I94: 0 | J94: 0 | K94: 0 | L94: 0 | M94: 0 | N94: 0 | O94: 0 | P94: 0 | Q94: 0 | R94: 0 | S94: 0 | U94: =G94-INDEX($C94:$G94,1,aux!$AL$1) -> 0 | V94: 0 | W94: 0 | X94: =+IF(INDEX($C94:$G94,1,aux!$AL$1)>0,(G94/INDEX($C94:$G94,1,aux!$AL$1))^(1/($G$3-INDEX($C$3:$G$3,1,aux!$AL$1)))-1,"n.d.") -> n.d. | Y94: =IF(INDEX($C94:$G94,1,aux!$AL$1)>0,(G94-INDEX($C94:$G94,1,aux!$AL$1))/INDEX($C94:$G94,1,aux!$AL$1),"n.d.") -> n.d. | AA94: =O94-INDEX($K94:$O94,1,aux!$AL$1) -> 0 | AB94: 0 | AC94: 0 | AD94: =+IF(INDEX($K94:$O94,1,aux!$AL$1)>0,(O94/INDEX($K94:$O94,1,aux!$AL$1))^(1/($O$3-INDEX($K$3:$O$3,1,aux!$AL$1)))-1,"n.d.") -> n.d. | AE94: =IF(INDEX($K94:$O94,1,aux!$AL$1)>0,(O94-INDEX($K94:$O94,1,aux!$AL$1))/INDEX($K94:$O94,1,aux!$AL$1),"n.d.") -> n.d. | AX94: 10
A95: 1008 | B95: Trigo mourisco, painço e outros cereais | C95: 2.205 | D95: 65.502 | E95: 48.979 | F95: 140.552 | G95: 139.012 | H95: 79.25 | I95: 0.0004836374319 | J95: 0.000372986492 | K95: 0.325 | L95: 0.686 | M95: 1.468 | N95: 0.117 | O95: 0.417 | P95: 0.6026 | Q95: 1.686370261e-06 | R95: 8.820061752e-07 | S95: -78.6474 | U95: =G95-INDEX($C95:$G95,1,aux!$AL$1) -> 136.807 | V95: -0.01465249289 | W95: -0.003235026125 | X95: =+IF(INDEX($C95:$G95,1,aux!$AL$1)>0,(G95/INDEX($C95:$G95,1,aux!$AL$1))^(1/($G$3-INDEX($C$3:$G$3,1,aux!$AL$1)))-1,"n.d.") -> 1.817804929 | Y95: =IF(INDEX($C95:$G95,1,aux!$AL$1)>0,(G95-INDEX($C95:$G95,1,aux!$AL$1))/INDEX($C95:$G95,1,aux!$AL$1),"n.d.") -> 62.04399093 | AA95: =O95-INDEX($K95:$O95,1,aux!$AL$1) -> 0.092 | AB95: 1.110791222e-06 | AC95: 4.350829496e-07 | AD95: =+IF(INDEX($K95:$O95,1,aux!$AL$1)>0,(O95/INDEX($K95:$O95,1,aux!$AL$1))^(1/($O$3-INDEX($K$3:$O$3,1,aux!$AL$1)))-1,"n.d.") -> 0.06429782223 | AE95: =IF(INDEX($K95:$O95,1,aux!$AL$1)>0,(O95-INDEX($K95:$O95,1,aux!$AL$1))/INDEX($K95:$O95,1,aux!$AL$1),"n.d.") -> 0.2830769231 | AX95: 10
A96: 10SS | B96: Cereais | C96: 0 | D96: 0 | E96: 0 | F96: 0 | G96: 0 | H96: 0 | I96: 0 | J96: 0 | K96: 0 | L96: 0 | M96: 0 | N96: 0 | O96: 0 | P96: 0 | Q96: 0 | R96: 0 | S96: 0 | U96: =G96-INDEX($C96:$G96,1,aux!$AL$1) -> 0 | V96: 0 | W96: 0 | X96: =+IF(INDEX($C96:$G96,1,aux!$AL$1)>0,(G96/INDEX($C96:$G96,1,aux!$AL$1))^(1/($G$3-INDEX($C$3:$G$3,1,aux!$AL$1)))-1,"n.d.") -> n.d. | Y96: =IF(INDEX($C96:$G96,1,aux!$AL$1)>0,(G96-INDEX($C96:$G96,1,aux!$AL$1))/INDEX($C96:$G96,1,aux!$AL$1),"n.d.") -> n.d. | AA96: =O96-INDEX($K96:$O96,1,aux!$AL$1) -> 0 | AB96: 0 | AC96: 0 | AD96: =+IF(INDEX($K96:$O96,1,aux!$AL$1)>0,(O96/INDEX($K96:$O96,1,aux!$AL$1))^(1/($O$3-INDEX($K$3:$O$3,1,aux!$AL$1)))-1,"n.d.") -> n.d. | AE96: =IF(INDEX($K96:$O96,1,aux!$AL$1)>0,(O96-INDEX($K96:$O96,1,aux!$AL$1))/INDEX($K96:$O96,1,aux!$AL$1),"n.d.") -> n.d. | AX96: 10
A97: 1101 | B97: Farinhas de trigo ou trigo/centeio | C97: 20.178 | D97: 72.688 | E97: 27.971 | F97: 431.32 | G97: 13.277 | H97: 113.0868 | I97: 0.0006901326125 | J97: 0.00053223784 | K97: 58.134 | L97: 59.182 | M97: 104.752 | N97: 141.214 | O97: 168.466 | P97: 106.3496 | Q97: 0.0002976183252 | R97: 0.0001556604778 | S97: -6.7372 | U97: =G97-INDEX($C97:$G97,1,aux!$AL$1) -> -6.901 | V97: 0.0007391204649 | W97: 0.0001631854751 | X97: =+IF(INDEX($C97:$G97,1,aux!$AL$1)>0,(G97/INDEX($C97:$G97,1,aux!$AL$1))^(1/($G$3-INDEX($C$3:$G$3,1,aux!$AL$1)))-1,"n.d.") -> -0.09935123178 | Y97: =IF(INDEX($C97:$G97,1,aux!$AL$1)>0,(G97-INDEX($C97:$G97,1,aux!$AL$1))/INDEX($C97:$G97,1,aux!$AL$1),"n.d.") -> -0.3420061453 | AA97: =O97-INDEX($K97:$O97,1,aux!$AL$1) -> 110.332 | AB97: 0.001332128447 | AC97: 0.0005217779564 | AD97: =+IF(INDEX($K97:$O97,1,aux!$AL$1)>0,(O97/INDEX($K97:$O97,1,aux!$AL$1))^(1/($O$3-INDEX($K$3:$O$3,1,aux!$AL$1)))-1,"n.d.") -> 0.3047295979 | AE97: =IF(INDEX($K97:$O97,1,aux!$AL$1)>0,(O97-INDEX($K97:$O97,1,aux!$AL$1))/INDEX($K97:$O97,1,aux!$AL$1),"n.d.") -> 1.897891079 | AX97: 11
A98: 1102 | B98: Outras farinhas de cereais | C98: 157.579 | D98: 91.645 | E98: 25.695 | F98: 62.78 | G98: 46.992 | H98: 76.9382 | I98: 0.0004695292551 | J98: 0.0003621061112 | K98: 249.022 | L98: 172.023 | M98: 242.364 | N98: 737.337 | O98: 775.434 | P98: 435.236 | Q98: 0.001218003729 | R98: 0.0006370408889 | S98: 358.2978 | U98: =G98-INDEX($C98:$G98,1,aux!$AL$1) -> -110.587 | V98: 0.01184424212 | W98: 0.002615011177 | X98: =+IF(INDEX($C98:$G98,1,aux!$AL$1)>0,(G98/INDEX($C98:$G98,1,aux!$AL$1))^(1/($G$3-INDEX($C$3:$G$3,1,aux!$AL$1)))-1,"n.d.") -> -0.2610221906 | Y98: =IF(INDEX($C98:$G98,1,aux!$AL$1)>0,(G98-INDEX($C98:$G98,1,aux!$AL$1))/INDEX($C98:$G98,1,aux!$AL$1),"n.d.") -> -0.7017876748 | AA98: =O98-INDEX($K98:$O98,1,aux!$AL$1) -> 526.412 | AB98: 0.006355802487 | AC98: 0.002489487888 | AD98: =+IF(INDEX($K98:$O98,1,aux!$AL$1)>0,(O98/INDEX($K98:$O98,1,aux!$AL$1))^(1/($O$3-INDEX($K$3:$O$3,1,aux!$AL$1)))-1,"n.d.") -> 0.3283936186 | AE98: =IF(INDEX($K98:$O98,1,aux!$AL$1)>0,(O98-INDEX($K98:$O98,1,aux!$AL$1))/INDEX($K98:$O98,1,aux!$AL$1),"n.d.") -> 2.113917646 | AX98: 11
A99: 1103 | B99: Grumos, sêmolas, etc. de cereais | C99: 41.877 | D99: 44.562 | E99: 44.877 | F99: 2.598 | G99: 186.657 | H99: 64.1142 | I99: 0.00039126848 | J99: 0.0003017505431 | K99: 0.19 | L99: 0.266 | M99: 0.857 | N99: 8.587 | O99: 0.891 | P99: 2.1582 | Q99: 6.039701789e-06 | R99: 3.158887699e-06 | S99: -61.956 | U99: =G99-INDEX($C99:$G99,1,aux!$AL$1) -> 144.78 | V99: -0.01550642818 | W99: -0.0034235608 | X99: =+IF(INDEX($C99:$G99,1,aux!$AL$1)>0,(G99/INDEX($C99:$G99,1,aux!$AL$1))^(1/($G$3-INDEX($C$3:$G$3,1,aux!$AL$1)))-1,"n.d.") -> 0.4530052379 | Y99: =IF(INDEX($C99:$G99,1,aux!$AL$1)>0,(G99-INDEX($C99:$G99,1,aux!$AL$1))/INDEX($C99:$G99,1,aux!$AL$1),"n.d.") -> 3.457267713 | AA99: =O99-INDEX($K99:$O99,1,aux!$AL$1) -> 0.701 | AB99: 8.463746159e-06 | AC99: 3.315142909e-06 | AD99: =+IF(INDEX($K99:$O99,1,aux!$AL$1)>0,(O99/INDEX($K99:$O99,1,aux!$AL$1))^(1/($O$3-INDEX($K$3:$O$3,1,aux!$AL$1)))-1,"n.d.") -> 0.4715703396 | AE99: =IF(INDEX($K99:$O99,1,aux!$AL$1)>0,(O99-INDEX($K99:$O99,1,aux!$AL$1))/INDEX($K99:$O99,1,aux!$AL$1),"n.d.") -> 3.689473684 | AX99: 11
A100: 1104 | B100: Grãos de cereais processados | C100: 1195.317 | D100: 1885.31 | E100: 1197.191 | F100: 1076.025 | G100: 951.365 | H100: 1261.0416 | I100: 0.007695734019 | J100: 0.005935034481 | K100: 140.473 | L100: 145.039 | M100: 152.681 | N100: 21.821 | O100: 8.555 | P100: 93.7138 | Q100: 0.0002622571613 | R100: 0.0001371658651 | S100: -1167.3278 | U100: =G100-INDEX($C100:$G100,1,aux!$AL$1) -> -243.952 | V100: 0.02612808515 | W100: 0.00576864556 | X100: =+IF(INDEX($C100:$G100,1,aux!$AL$1)>0,(G100/INDEX($C100:$G100,1,aux!$AL$1))^(1/($G$3-INDEX($C$3:$G$3,1,aux!$AL$1)))-1,"n.d.") -> -0.05546943019 | Y100: =IF(INDEX($C100:$G100,1,aux!$AL$1)>0,(G100-INDEX($C100:$G100,1,aux!$AL$1))/INDEX($C100:$G100,1,aux!$AL$1),"n.d.") -> -0.2040897938 | AA100: =O100-INDEX($K100:$O100,1,aux!$AL$1) -> -131.918 | AB100: -0.001592753874 | AC100: -0.0006238616581 | AD100: =+IF(INDEX($K100:$O100,1,aux!$AL$1)>0,(O100/INDEX($K100:$O100,1,aux!$AL$1))^(1/($O$3-INDEX($K$3:$O$3,1,aux!$AL$1)))-1,"n.d.") -> -0.5032283663 | AE100: =IF(INDEX($K100:$O100,1,aux!$AL$1)>0,(O100-INDEX($K100:$O100,1,aux!$AL$1))/INDEX($K100:$O100,1,aux!$AL$1),"n.d.") -> -0.9390986168 | AX100: 11
A101: 1105 | B101: Farinha, sêmola, etc. de batata | C101: 184.428 | D101: 151.461 | E101: 4.17 | F101: 0.033 | G101: 0.819 | H101: 68.1822 | I101: 0.0004160941844 | J101: 0.0003208963986 | K101: 4.076 | L101: 4.166 | M101: 4.001 | N101: 2.637 | O101: 0.88 | P101: 3.152 | Q101: 8.82084146e-06 | R101: 4.613480691e-06 | S101: -65.0302 | U101: =G101-INDEX($C101:$G101,1,aux!$AL$1) -> -183.609 | V101: 0.01966514555 | W101: 0.004341736254 | X101: =+IF(INDEX($C101:$G101,1,aux!$AL$1)>0,(G101/INDEX($C101:$G101,1,aux!$AL$1))^(1/($G$3-INDEX($C$3:$G$3,1,aux!$AL$1)))-1,"n.d.") -> -0.7418546769 | Y101: =IF(INDEX($C101:$G101,1,aux!$AL$1)>0,(G101-INDEX($C101:$G101,1,aux!$AL$1))/INDEX($C101:$G101,1,aux!$AL$1),"n.d.") -> -0.9955592426 | AA101: =O101-INDEX($K101:$O101,1,aux!$AL$1) -> -3.196 | AB101: -3.858792115e-05 | AC101: -1.511440334e-05 | AD101: =+IF(INDEX($K101:$O101,1,aux!$AL$1)>0,(O101/INDEX($K101:$O101,1,aux!$AL$1))^(1/($O$3-INDEX($K$3:$O$3,1,aux!$AL$1)))-1,"n.d.") -> -0.3183489246 | AE101: =IF(INDEX($K101:$O101,1,aux!$AL$1)>0,(O101-INDEX($K101:$O101,1,aux!$AL$1))/INDEX($K101:$O101,1,aux!$AL$1),"n.d.") -> -0.7841020608 | AX101: 11
A102: 1106 | B102: Farinhas, etc. de leguminosas e outros tubérculos | C102: 118.67 | D102: 33.781 | E102: 223.895 | F102: 18.125 | G102: 1.54 | H102: 79.2022 | I102: 0.0004833457238 | J102: 0.0003727615235 | K102: 9.241 | L102: 7.328 | M102: 46.868 | N102: 19.019 | O102: 15.616 | P102: 19.6144 | Q102: 5.489070836e-05 | R102: 2.870896436e-05 | S102: -59.5878 | U102: =G102-INDEX($C102:$G102,1,aux!$AL$1) -> -117.13 | V102: 0.01254501957 | W102: 0.002769731154 | X102: =+IF(INDEX($C102:$G102,1,aux!$AL$1)>0,(G102/INDEX($C102:$G102,1,aux!$AL$1))^(1/($G$3-INDEX($C$3:$G$3,1,aux!$AL$1)))-1,"n.d.") -> -0.6624835499 | Y102: =IF(INDEX($C102:$G102,1,aux!$AL$1)>0,(G102-INDEX($C102:$G102,1,aux!$AL$1))/INDEX($C102:$G102,1,aux!$AL$1),"n.d.") -> -0.9870228364 | AA102: =O102-INDEX($K102:$O102,1,aux!$AL$1) -> 6.375 | AB102: 7.69705874e-05 | AC102: 3.014841091e-05 | AD102: =+IF(INDEX($K102:$O102,1,aux!$AL$1)>0,(O102/INDEX($K102:$O102,1,aux!$AL$1))^(1/($O$3-INDEX($K$3:$O$3,1,aux!$AL$1)))-1,"n.d.") -> 0.1401518795 | AE102: =IF(INDEX($K102:$O102,1,aux!$AL$1)>0,(O102-INDEX($K102:$O102,1,aux!$AL$1))/INDEX($K102:$O102,1,aux!$AL$1),"n.d.") -> 0.6898604047 | AX102: 11
A103: 1107 | B103: Malte, mesmo torrado | C103: 318.019 | D103: 345.471 | E103: 260.027 | F103: 360.159 | G103: 235.617 | H103: 303.8586 | I103: 0.001854351962 | J103: 0.001430096571 | K103: 0 | L103: 0 | M103: 0 | N103: 0 | O103: 0 | P103: 0 | Q103: 0 | R103: 0 | S103: -303.8586 | U103: =G103-INDEX($C103:$G103,1,aux!$AL$1) -> -82.402 | V103: 0.00882553319 | W103: 0.001948530578 | X103: =+IF(INDEX($C103:$G103,1,aux!$AL$1)>0,(G103/INDEX($C103:$G103,1,aux!$AL$1))^(1/($G$3-INDEX($C$3:$G$3,1,aux!$AL$1)))-1,"n.d.") -> -0.07223413717 | Y103: =IF(INDEX($C103:$G103,1,aux!$AL$1)>0,(G103-INDEX($C103:$G103,1,aux!$AL$1))/INDEX($C103:$G103,1,aux!$AL$1),"n.d.") -> -0.2591103047 | AA103: =O103-INDEX($K103:$O103,1,aux!$AL$1) -> 0 | AB103: 0 | AC103: 0 | AD103: =+IF(INDEX($K103:$O103,1,aux!$AL$1)>0,(O103/INDEX($K103:$O103,1,aux!$AL$1))^(1/($O$3-INDEX($K$3:$O$3,1,aux!$AL$1)))-1,"n.d.") -> n.d. | AE103: =IF(INDEX($K103:$O103,1,aux!$AL$1)>0,(O103-INDEX($K103:$O103,1,aux!$AL$1))/INDEX($K103:$O103,1,aux!$AL$1),"n.d.") -> n.d. | AX103: 11
